Workbook

Sheet ÚVOD
A1: Úvodní informace k Formuláři SR
A2: (1) | B2: Formulář reprezentuje Souhrnný rozpočet stavby (dále jen SR), který je souhrnem všech nákladů, které jsou nutné k přípravě, zabezpečení a realizaci stavby včetně příjmů generovaných stavbou a nákladů provozních přímo souvisejících s realizací stavby – Celkové náklady stavby CNS.
A3: (2) | B3: Hlavní prioritou SR je stanovení Celkových investičních nákladů CIN, které jsou v rámci Souhrnného rozpočtu rozčleněny do částí:
B4: - | C4: A. – Příprava a celkové zabezpečení stavby
B5: - | C5: B. – Realizace stavby
B6: Část C. tvoří primárně souhrn nákladů zařazených v částech A. a B. s doplněním o položky, které nevstupují do CIN, ale až do CNS .
A7: (3) | B7: CIN i CNS se stanovují v Aktuální cenové úrovni a ve Smíšené cenové úrovni se zohledněním vývoje inflace v plánovaných letech provádění stavby. Za tímto účelem je Formulář SR rozdělen do částí:
B8: - | C8: 1A. 1.B 1C. – náklady v Aktuální cenové úrovni
B9: - | C9: 2A. 2.B 2C. – náklady ve Smíšené cenové úrovni
A10: (4) | B10: Náklady, uvedené v SR, vychází z rozpočtů stavby jednotlivých Objektů, které jsou začleněné do Formuláře SR v listech:
B11: - | C11: 3SO. – náklady na objekty Stavební části
B12: - | C12: 3PS. – náklady na objekty Technické a Technologické části
A13: (5) | B13: Za účelem schvalování i zajišťování financování stavby jsou náklady uvedené v SR sdružované do různých tabulkových přehledů, uvedených v listech:
B14: - | C14: FR; Komentář FR; PN – finanční rozpočet, který je součástí přílohy k žádosti na spolufinancování stavby z dotačních zdrojů
B15: - | C15: VZOR 80; VZOR 81; VZOR 83 – přehled nákladů, který je součástí Záměru projektu (ZP) nebo Aktualizace záměru projektu (AZP).
A16: (6) | B16: Podrobný postup vyplnění Formuláře je uveden v samostatném dokumentu Manuál k Formuláři SR, případně u vyplňovaných položek v komentářích k těmto položkám, kterým je potřebné věnovat pozornost.
A17: (7) | B17: Změny položek nového Formuláře a zařazování stávajících položek z dříve zpracovaných formulářů do nového Formuláře jsou uvedené v listu Změna.
A18: (8) | B18: Formuláře jsou vzájemně provázaná a pole určené k vyplnění jsou označené žlutě. Pole, které nelze vyplnit jsou uzamčená.
A19: (9) | B19: Listy ÚVOD, Změna jsou pouze informativní a nejsou určené k tisku nebo schválení. Listy VZOR 80 - 83 se odevzdávají jako součást SR pouze při pracování ZP nebo AZP. Listy FR, Komentář FR, PN se odevzdávají jako součást SR v případě, že není stanoveno jinak. Listy 1A až 3PS včetně Krycího listu jsou součástí SR vždy a jsou předmětem schválení.
A20: (10) | B20: V CIN je zohleňovaná inflace následovně:
B21: Zohlednění inflace do Aktuálního roku: (již do listú 1A až 1C) v případě, že byly stanovené stavební náklady v SR rozpočtu, uvedené listech 3SO a 3PS před Aktuálním rokem bude cena objektů z listech 3SO a 3PS automaticky doinflatovaná na úroveň Aktuálního roku výší inflace stanovené pro příslušné roky dle zprávy o měnové politice – ČNB. Pro určení správné hodnoty stavebních nákladů v Aktuálním roce je potřebné, aby zpracovatel Formuláře uvedl následující informace:
B22: - | C22: v listech 3SO a 3PS u každého Objektu uvést cenovou databázi ve sloupci „N“ dle výběrového pole:
C23: * | D23: OTSKP - v případě ocenění dle této cenové soustavy
C24: * | D24: Jiná - v případě ocenění dle ostatních veřejně dostupných cenových soustav
C25: * | D25: Kalkulace - v případě, že nebyla použitá veřejně dostupná cenová soustava a položky pro ocenění Objektů vychází pouze z individuální kalkulace
B26: - | C26: v Krycím listu uvést:
C27: * | D27: v poli F5 – rok ocenění stavebních náklady Objektů v rozmezí od roku 2015 do Aktuálního roku. Náklady u Objektů s označením „cenové soustavy“ Jiná nebo Kalkulace budou doinflatované na Aktuální cenovou úroveň. Rok se uvede i v případech shodné hodnoty v Aktuálním roku.
C28: * | D28: v poli H5 – v případě použité cenové soustavy OTSKP její rok vydání, i když je shodný s rokem uvedeným v poli F5. Náklady u Objektů s označením „cenové soustavy“ Jiná nebo Kalkulace budou doinflatované na Aktuální cenovou úroveň
B29: Zohlednění inflace od Aktuálního roku: (do listů 2A až 2C) Při zohlednění vývoje míry inflace ve stavebních nákladech bude použitá hodnota predikce celkové inflace z dokumentu České národní banky (ČNB), nazvaného a Zpráva o měnové politice – zima a současně dlouhodobý inflační cíl stanovenému ČNB, následovně:
B30: - | C30: v prvních dvou letech, tj. aktuální rok a rok následující, bude použita hodnota predikce inflačního koeficientu stanoveného ČNB.
B31: - | C31: v následujících letech bude použita hodnota dlouhodobé ho inflačního cíle, které aktuálně činí 2%.
B32: Ve stádiích přípravy se inflace zohledňuje v listech 2A následovně:
B33: - | C33: ve Stádiu 1 z hodnoty nákladů předprojektové a projektové přípravy (A.2.1; A.2.2; A.2.3 a A.2.4)
B34: - | C34: ve Stádiu 2 z hodnoty nákladů projektové přípravy (A.2.2; A.2.3 a A.2.4)
B35: - | C35: ve Stádiu 3 inflace se nezohledňuje
B37: V CIN se inflace zohledňuje AUTOMATICKY VÝPOČTEM FORMULÁŘE po správném zadání všech polí.

Sheet Změna
A1: Změny listu 1A
A2: Stávající verze Formuláře | F2: Popis změny | H2: Nová verze Formuláře
A3: A.1 | B3: Náklady investorsko - inženýrské činnosti ve výstavbě | F3: součtová položka | H3: A.1 | I3: Náklady investorsko - inženýrské činnosti ve výstavbě
A4: A.2 | B4: Náklady na dokumentace stavby | F4: součtová položka | H4: A.2 | I4: Náklady na dokumentace stavby
A5: A.2.1 | B5: z toho | C5: Náklady na předprojektové dokumentace pro přípravu stavby | F5: součtová položka | H5: A.2.1 | I5: z toho | J5: Náklady na předprojektové dokumentace pro přípravu stavby
A6: A.2.1.1 | C6: z toho | D6: Práce prováděné pro zpracování předprojektových dokumentací | F6: součtová položka | H6: A.2.1.1 | J6: z toho | K6: Práce prováděné pro zpracování předprojektových dokumentací
A7: A.2.1.1.1 | D7: z toho | E7: Geodetické práce a mapové podklady | F7: =A7 -> A.2.1.1.1 | G7: shodně | H7: A.2.1.1.1 | K7: z toho | L7: Geodetické práce a mapové podklady
A8: A.2.1.1.2 | E8: Průzkumné práce pro předprojektové dokumentace | F8: =A8 -> A.2.1.1.2 | G8: shodně | H8: A.2.1.1.2 | L8: Průzkumné práce pro předprojektové dokumentace
A9: A.2.1.1.3 | E9: Posouzení vlivu stavby na životní prostředí | F9: A.2.1.1.3 | G9: shodně | H9: A.2.1.1.3 | L9: Posouzení vlivu stavby na životní prostředí
A10: A.2.1.1.4 | E10: Inženýrská činnost pro předprojektové dokumentace | F10: A.2.1.1.4 | G10: shodně | H10: A.2.1.1.4 | L10: Inženýrská činnost pro předprojektové dokumentace
A11: A.2.1.1.5 | E11: Ostatní náklady pro předprojektové dokumentace | F11: A.2.1.1.5 | G11: shodně | H11: A.2.1.1.5 | L11: Ostatní náklady pro předprojektové dokumentace
A12: A.2.1.2 | D12: Záměr projektu | G12: součtová položka | H12: A.2.1.2 | K12: Záměr projektu
F13: rozděleno na: | G13: A.2.1.2.1 | H13: A.2.1.2.1 | K13: z toho | L13: Záměr projektu, povinný obsah
G14: A.2.1.2.2 | H14: A.2.1.2.2 | L14: Doprovodná dokumentace
A15: A.2.1.3 | D15: Dokumentace pro územní řízení | F15: =A15 -> A.2.1.3 | G15: shodně | H15: A.2.1.3 | K15: Dokumentace pro územní řízení
A16: A.2.1.4 | C16: zrušeno | D16: Dodatky k předprojektovým dokumentacím pro přípravu stavby | F16: náklady v A.2.4.3
A17: A.2.2 | C17: Náklady na projektové dokumentace | F17: součtová položka | H17: A.2.2 | J17: Náklady na projektové dokumentace
A18: A.2.2.1 | C18: z toho | D18: Práce prováděné pro zpracování projektových dokumentací | F18: součtová položka | H18: A.2.2.1 | J18: z toho | K18: Práce prováděné pro zpracování projektových dokumentací
A19: A.2.2.1.1 | D19: z toho | E19: Geodetické práce a mapové podklady | F19: =A19 -> A.2.2.1.1 | G19: shodně | H19: A.2.2.1.1 | K19: z toho | L19: Geodetické práce a mapové podklady
A20: A.2.2.1.2 | E20: Geotechnický průzkum | F20: A.2.2.1.2 | G20: shodně | H20: A.2.2.1.2 | L20: Geotechnický průzkum
A21: A.2.2.1.3 | E21: Ostatní průzkumné práce | F21: A.2.2.1.3 | G21: shodně | H21: A.2.2.1.3 | L21: Ostatní průzkumné práce
A22: A.2.2.1.4 | E22: Inženýrská činnost pro projektové dokumentace | F22: A.2.2.1.4 | G22: shodně | H22: A.2.2.1.4 | L22: Inženýrská činnost pro projektové dokumentace
A23: A.2.2.1.5 | E23: Ostatní náklady pro projektové dokumentace | F23: A.2.2.1.5 | G23: shodně | H23: A.2.2.1.5 | L23: Ostatní náklady pro projektové dokumentace
A24: A.2.2.2 | C24: zrušeno | D24: Projektová dokumentace pro ohlášení stavby | F24: náklady v A.2.2.3 | G24: nová položka | H24: A.2.2.2 | K24: Projektová dokumentace společné povolení
A25: A.2.2.3 | D25: Projektová dokumentace pro stavební povolení | F25: =A25 -> A.2.2.3 | G25: shodně | H25: A.2.2.3 | K25: Projektová dokumentace pro stavební povolení
A26: A.2.2.4 | D26: Projektová dokumentace pro provádění stavby | F26: =A26 -> A.2.2.4 | G26: shodně | H26: A.2.2.4 | K26: Projektová dokumentace pro provádění stavby
A27: A.2.2.5 | D27: Dodatky k projektové dokumentaci | F27: =A27 -> A.2.2.5 | G27: shodně | H27: A.2.2.5 | K27: Ostatní náklady na základí služby
A28: A.2.3 | C28: Autorský dozor | F28: A.2.3 | G28: shodně | H28: A.2.3 | J28: Autorský dozor
A29: A.2.4 | C29: Ostatní náklady pro přípravu stavby | F29: součtová položka | H29: A.2.4 | J29: Ostatní náklady pro přípravu stavby
A30: A.2.4.1 | C30: z toho | D30: Osvědčení o shodě notifikovanou osobou v přípravě | F30: =A30 -> A.2.4.1 | G30: shodně | H30: A.2.4.1 | J30: z toho | K30: Osvědčení o shodě notifikovanou osobou v přípravě
A31: A.2.4.2 | D31: Koordinátor BOZP v přípravě | F31: A.2.4.2 | G31: shodně | H31: A.2.4.2 | K31: Koordinátor BOZP v přípravě
A32: A.2.4.3 | D32: Zpracování žádosti o spolufinancování stavby | F32: A.2.4.3 | G32: shodně | H32: A.2.4.3 | K32: Zpracování žádosti o spolufinancování stavby
A33: A.2.4.4 | C33: zrušeno | D33: Ostatní nezařazené činnosti v přípravě | F33: náklady v A.2.2.5 | G33: nová položka | H33: A.2.4.4 | K33: Zpracování dokumentací stavby v režimu BIM
A34: A.2.5 | C34: Dokumentace skutečného provedení | F34: součtová položka | H34: A.2.5 | J34: Dokumentace skutečného provedení | M34: DSPS
A35: A.2.5.1 | C35: z toho | D35: Geodetická dokumentace skutečného provedení stavby | F35: =A35 -> A.2.5.1 | G35: shodně | H35: A.2.5.1 | J35: z toho | K35: Dokumentace skutečného provedení stavby, geodetická část
A36: A.2.5.2 | D36: Dokumentace skutečného provedení v listinné formě | F36: A.2.5.2 | G36: shodně | H36: A.2.5.2 | K36: Dokumentace skutečného provedení stavby, technická část
A37: A.2.5.3 | C37: zrušeno | D37: Dokumentace skutečného provedení v elektronické formě | F37: náklady v A.2.5.2 | G37: nová položka | H37: A.2.5.3 | K37: Dokumentace skutečného provedení stavby, dokladová část
A38: A.3 | B38: Výkupy a zatížení nemovitých věcí | F38: součtová položka | H38: A.3 | I38: Výkupy a zatížení nemovitých věcí
A39: A.3.1 | B39: z toho | C39: Výkupy pozemků | F39: =A39 -> A.3.1 | G39: shodně | H39: A.3.1 | I39: z toho | J39: Výkupy pozemků
A40: A.3.2 | C40: Výkupy staveb | F40: A.3.2 | G40: shodně | H40: A.3.2 | J40: Výkupy staveb
A41: A.3.3 | C41: Věcná břemena a služebnosti | F41: A.3.3 | G41: shodně | H41: A.3.3 | J41: Věcná břemena a služebnosti
A42: A.4 | B42: Nájmy pro účely stavby | F42: součtová položka | H42: A.4 | I42: Nájmy pro účely stavby
A43: A.4.1 | B43: z toho | C43: Nájmy hrazené investorem přímo | F43: =A43 -> A.4.1 | G43: shodně | H43: A.4.1 | I43: z toho | J43: Nájmy hrazené investorem přímo
A44: A.4.2 | C44: Nájmy hrazené zhotovitelem stavby | F44: A.4.2 | G44: shodně | H44: A.4.2 | J44: Nájmy hrazené zhotovitelem stavby
A45: A.5 | B45: Jiné náklady přípravy a zabezpečení stavby | F45: součtová položka | H45: A.5 | I45: Jiné náklady přípravy a zabezpečení stavby
A46: A.5.1 | B46: z toho | C46: Poradenské firmy pro přípravu a zabezpečení stavby | F46: součtová položka | H46: A.5.1 | I46: z toho | J46: Poradenské firmy pro přípravu a zabezpečení stavby
A47: A.5.1.1 | C47: zrušeno | D47: Supervizor | F47: náklady v B.3.9 | G47: nová položka | H47: A.5.1.1 | J47: z toho | K47: Technická podpora investora
A48: A.5.1.2 | D48: Poradenské firmy pro geotechnický průzkum | F48: =A48 -> A.5.1.2 | G48: shodně | H48: A.5.1.2 | K48: Poradenské firmy pro geotechnický průzkum
A49: A.5.1.3 | D49: Ostatní poradenské firmy | F49: =A49 -> A.5.1.3 | G49: shodně | H49: A.5.1.3 | K49: Ostatní poradenské firmy
A50: A.5.2 | C50: Soutěže a zadávací řízení | F50: sloučeno do: | G50: A.5.2 | H50: A.5.2 | K50: Soutěže a zadávací řízení
A51: A.5.2.1 | C51: z toho | D51: Soutěže a zadávací řízení na předprojektovou přípravu
A52: A.5.2.2 | D52: Soutěže a zadávací řízení na projektovou přípravu
A53: A.5.2.3 | D53: Soutěže a zadávací řízení na zhotovení stavby
A54: A.5.3 | C54: Ostatní náklady pro zabezpečení stavby | F54: součtová položka | H54: A.5.3 | J54: Ostatní náklady pro zabezpečení stavby
A55: A.5.3.1 | C55: z toho | D55: Správní a místní poplatky | F55: =A55 -> A.5.3.1 | G55: shodně | H55: A.5.3.1 | J55: z toho | K55: Poplatky
A56: A.5.3.2 | D56: Záchranný archeologický výzkum | F56: A.5.3.2 | G56: shodně | H56: A.5.3.2 | K56: Záchranný archeologický výzkum
A57: A.5.3.3 | D57: Publicita stavby | F57: součtová položka | H57: A.5.3.3 | K57: Publicita stavby
A58: A.5.3.3.1 | D58: z toho | E58: Publicita povinná | F58: =A58 -> A.5.3.3.1 | G58: shodně | H58: A.5.3.3.1 | K58: z toho | L58: Publicita povinná
A59: A.5.3.3.2 | E59: Publicta nepovinná | F59: A.5.3.3.2 | G59: shodně | H59: A.5.3.3.2 | L59: Publicta nepovinná
A60: A.5.3.4 | D60: Monitoring stavby | F60: A.5.3.4 | G60: shodně | H60: A.5.3.4 | K60: Monitoring stavby
A61: A.5.3.5 | D61: Vyhodnocení stavby | F61: A.5.3.5 | G61: shodně | H61: A.5.3.5 | K61: Vyhodnocení stavby
A62: A.5.4 | B62: zrušeno | C62: Odvody za odnětí ZPF a LPF | F62: náklady v 5.3.1
A63: A.5.4.1 | C63: z toho | D63: Odvody za trvalé odnětí ZPF a LPF
A64: A.5.4.2 | D64: Odvody za dočasné odnětí ZPF a LPF
A67: Změny listu 1B
A68: Stávající verze Formuláře | F68: Popis změny | H68: Nová verze Formuláře
A69: B.1 | B69: Stavební část | F69: součtová položka | H69: B.1 | I69: Stavební část
A70: B.1.1 | B70: z toho | C70: Stavební objekty dodávané zhotoviteli | F70: součtová položka | H70: B.1.1 | I70: z toho | J70: Stavební objekty dodávané zhotoviteli
A71: B.1.1.1 | C71: z toho | D71: Základní rozpočtové náklady jednotlivých SO (ZRN) | F71: nově položka bez inflace | H71: B.1.1.1 | J71: z toho | K71: Základní rozpočtové náklady jednotlivých SO (ZRN)
A72: B.1.1.2 | D72: Vedlejší rozpočtové náklady nezahrnuté do jednotlivých SO (VRN) | F72: nově VRN zohleňováno | H72: B.1.1.2 | K72: Vedlejší rozpočtové náklady dle indexu jednotlivých SO (VRN)
A73: B.1.2 | C73: Stavební část zajišťovaná přímo investorem | F73: součtová položka | H73: B.1.2 | J73: Stavební část zajišťovaná přímo investorem
A74: B.1.2.1 | C74: z toho | D74: Stavební objekty zajišťované přímo investorem | F74: =A74 -> B.1.2.1 | G74: shodně | H74: B.1.2.1 | J74: z toho | K74: Stavební objekty zajišťované přímo investorem
A75: B.1.2.2 | D75: Stavební práce a dodávky zajišťované přímo investorem | F75: B.1.2.2 | G75: shodně | H75: B.1.2.2 | K75: Stavební práce a dodávky zajišťované přímo investorem
A76: B.1.2.3 | D76: Zkoušky, revize a měření zajišťované přímo investorem | F76: =A76 -> B.1.2.3 | G76: shodně | H76: B.1.2.3 | K76: Zkoušky, revize a měření zajišťované přímo investorem
A77: B.2 | B77: Technologická část | F77: součtová položka | H77: B.2 | I77: Technologická část
A78: B.2.1 | B78: z toho | C78: Provozní soubory dodávané zhotoviteli | F78: součtová položka | H78: B.2.1 | I78: z toho | J78: Provozní soubory dodávané zhotoviteli
A79: B.2.1.1 | C79: z toho | D79: Základní rozpočtové náklady jednotlivých PS (ZRN) | F79: nově položka bez inflace | H79: B.2.1.1 | J79: z toho | K79: Základní rozpočtové náklady jednotlivých PS (ZRN)
A80: B.2.1.2 | D80: Vedlejší rozpočtové náklady nezahrnute do jednotlivých PS (VRN) | F80: nově VRN zohleňováno | H80: B.2.1.2 | K80: Vedlejší rozpočtové náklady dle indexu jednotlivých PS (VRN)
A81: B.2.2 | C81: Technologické část zajišťovaná přímo investorem | F81: součtová položka | H81: B.2.2 | J81: Technologické část zajišťovaná přímo investorem
A82: B.2.2.1 | C82: z toho | D82: Provozní soubory zajišťované přímo investorem | F82: =A82 -> B.2.2.1 | G82: shodně | H82: B.2.2.1 | J82: z toho | K82: Provozní soubory zajišťované přímo investorem
A83: B.2.2.2 | D83: Technologické práce a dodávky zajišťované přímo investorem | F83: B.2.2.2 | G83: shodně | H83: B.2.2.2 | K83: Technologické práce a dodávky zajišťované přímo investorem
A84: B.2.2.3 | D84: Revize a měření zajišťované investorem | F84: B.2.2.3 | G84: shodně | H84: B.2.2.3 | K84: Revize a měření zajišťované investorem
A85: B.3 | B85: Ostatní náklady pro zajištění realizace stavby | F85: součtová položka | H85: B.3 | I85: Ostatní náklady pro zajištění realizace stavby
A86: B.3.1 | B86: z toho | C86: Osvědčení o shodě notifikovanou osobou v realizaci | F86: =A86 -> B.3.1 | G86: shodně | H86: B.3.1 | I86: z toho | J86: Osvědčení o shodě notifikovanou osobou v realizaci
A87: B.3.2 | C87: Koordinátor BOZP v realizaci | F87: B.3.2 | G87: shodně | H87: B.3.2 | J87: Koordinátor BOZP v realizaci
A88: B.3.3 | C88: Osvědčení o bezpečnosti před uvedením do provozu | F88: B.3.3 | G88: shodně | H88: B.3.3 | J88: Osvědčení o bezpečnosti před uvedením do provozu
A89: B.3.4 | B89: zrušeno | C89: Rekultivace | F89: součást SO-D.2.4 | G89: nová položka | H89: B.3.4 | J89: Geodetická vytyčovací síť celé stavby
A90: B.3.5 | B90: zrušeno | C90: Zajištění veřejných zájmů | F90: součást SO-D.2.4.3 | G90: nová položka | H90: B.3.5 | J90: Odborné dozory, dohledy a průzkumy zajišťované zhotovitelem
A91: B.3.6 | C91: Hlukové měření pro účely realizace stavby | F91: =A91 -> B.3.6 | G91: shodně | H91: B.3.6 | J91: Hlukové měření pro účely realizace stavby
A92: B.3.7 | C92: Náhrady | F92: součtová položka | H92: B.3.7 | J92: Náhrady
A93: B.3.7.1 | C93: z toho | D93: Náhrady za omezení hospodaření | F93: =A93 -> B.3.7.1 | G93: shodně | H93: B.3.7.1 | J93: z toho | K93: Náhrady za omezení hospodaření
A94: B.3.7.2 | D94: Náhrady za omezení provozu | F94: B.3.7.2 | G94: shodně | H94: B.3.7.2 | K94: Náhrady za omezení provozu
A95: B.3.7.3 | D95: Ostatní náhrady v realizaci | F95: B.3.7.3 | G95: shodně | H95: B.3.7.3 | K95: Ostatní náhrady v realizaci
A96: B.3.8 | C96: Zabezpečovací a konzervační práce | F96: B.3.8 | G96: shodně | H96: B.3.8 | J96: Zabezpečovací a konzervační práce
A97: B.3.9 | C97: Ostatní nezařazené náklady v realizaci | F97: B.3.9 | G97: shodně | H97: B.3.9 | J97: Ostatní nezařazené náklady v realizaci
A98: B.3.10 | C98: Jiné náklady v realizaci | F98: B.3.10 | G98: shodně | H98: B.3.10 | J98: Jiné náklady v realizaci
A99: B.3.11 | C99: Stavební náklady z rozdílu stádia přípravy a realizace | F99: B.3.11 | G99: shodně | H99: B.3.11 | J99: Stavební náklady z rozdílu stádia přípravy a realizace
A100: B.4 | B100: Příspěvky jiným investorům | F100: součtová položka | H100: B.4 | I100: Příspěvky jiným investorům
A101: B.4.1 | B101: z toho | C101: Podíl na účelně vynaložených nákl. ve smyslu zák. č.458/00 Sb. | F101: =A101 -> B.4.1 | G101: shodně | H101: B.4.1 | I101: z toho | J101: Podíl na účelně vynaložených nákl. ve smyslu zák. č.458/00 Sb.
A102: B.4.2 | C102: Podíl na účelně vynaložených nákladech dle zákona č. 127/2005 Sb. | F102: B.4.2 | G102: shodně | H102: B.4.2 | J102: Podíl na účelně vynaložených nákladech dle zákona č. 127/2005 Sb.
A103: B.4.3 | C103: Ostatní příspěvky | F103: B.4.3 | G103: shodně | H103: B.4.3 | J103: Ostatní příspěvky
A104: B.5 | B104: Rezerva | F104: B.5 | G104: shodně | H104: B.5 | I104: Rezerva
A105: B.6 | B105: Náklady na realizaci stavby bez rezervy | F105: součtová položka nově bez inflace | H105: B.6 | I105: Náklady na realizaci stavby bez rezervy a inflace
A106: B.7 | B106: Náklady na realizaci stavby celkem s rezervou | F106: nově položka bez inflace | H106: B.7 | I106: Náklady na realizaci stavby celkem s rezervou a bez inflace
G107: nová položka | H107: B.8 | I107: Náklady na realizaci stavby celkem s rezervou a inflací
H108: z toho
I109: B.8.1 | J109: inflace ze ZRN jednotlivých SO
I110: B.8.2 | J110: inflace ze ZRN jednotlivých PS
I111: B.8.3 | J111: inflace z rezervy stavby

Sheet Krycí list SR
B1: Souhrnný rozpočet stavby v přípravě | G1: Krycí list SR | H1: SRP/2023/08 | V1: Souhrnný rozpočet stavby v přípravě | AA1: Krycí list SR | AB1: SRP/2023/08
A2: Název stavby: | I2: =IF(B2="","<= Zadat název stavby","") -> <= Zadat název stavby | U2: Název stavby: | V2: Modernizace a dostavba ŽST Praha Masarykovo nádraží | AD2: Zástupce investor pro výběr v řádku "D": | AF2: STÁDIUM - vybrat v poli E3 | AI2: Podmínky pro rok výběrového řízení
A3: ISPROFIN: | C3: Označení (S-kód): | F3: =IF($E$3="","<= vybrat Stádium v poli E3",LOOKUP($E$3,$AF$3:$AF$5,$AG$3:$AG$5)) -> <= vybrat Stádium v poli E3 | I3: =IF(B3="","<= Zadat ISPROFIN v poli B3",IF(D3="","<= Zadat Označení (S kód) stavby v poli D3",IF(E3="","<=Vybrat stádium v poli E3",IF(E3="Stádium 3",IF(H3="-","<= Vybrat typ projektové dokumentace v poli H3",IF(H3="","<= Vybrat typ projektové dokumentace v poli H3","")),"")))) -> <= Zadat ISPROFIN v poli B3 | U3: ISPROFIN: | V3: 5113720005 | W3: Označení (S-kód): | X3: S631500649 | Y3: Stádium 1 | Z3: =IF($E$3="","<= vybrat Stádium v poli E3",LOOKUP($E$3,$AF$3:$AF$5,$AG$3:$AG$5)) -> <= vybrat Stádium v poli E3 | AD3: Stavební správa západ, Ke Štvanici 656/3,186 00 Praha 8 | AF3: Stádium 1 | AG3: záměr projektu (ZP) | AI3: =IF(E3="Stádium 3",IF(G7="","Vybrat předpokládané čtvrteltí z roku v kterém bude zahájeno výběrové řízení na realizaci - v poli G7.",""),"") ->  | AJ3: =IF(E3="Stádium 3",IF(H7="","Vyplnit předpokládaný rok zahájení výběrového řízení na realizaci v poli H7.",""),"") ->  | AK3: =IF(E3="Stádium 3",IF(H7="","",IF(H7<H4,"Zahájení výběrového řízení nemůže být uvedeno před Aktuálním rokem.","")),"") ->  | AL3: =IF((AI4+AJ4+AK4)=0,"","<=") -> 
A4: Investor: | B4: Správa železnic, státní organizace | E4: Zahájení přípravy stavby (první fakturace) | G4: Aktuální rok | I4: =IF(H4="","<= Určit aktuální rok",(IF(F4="","<= Vyplnit rok zahájení přípravy stavby dle proběhlé první fakturace SŽ",""))) -> <= Určit aktuální rok | U4: Investor: | V4: Správa železnic, státní organizace | Y4: Zahájení přípravy stavby (první fakturace) | Z4: 2013 | AA4: Aktuální rok | AB4: 2023 | AD4: Stavební správa východ, Nerudova 773/1, 772 58 Olomouc | AF4: Stádium 2 | AG4: dokumentace pro územní řízení (DUR) | AI4: =IF(AI3="",0,1) -> 0 | AJ4: =IF(AJ3="",0,1) -> 0 | AK4: =IF(AK3="",0,1) -> 0
A5: =IF(B5="","Vybrat zástupce investora =>","Zástupce investora:") -> Vybrat zástupce investora => | E5: Stavební náklady stanovené v roce: | G5: =IF(('3SO'!V4+'3PS'!V4)>0,"Cenová soustava OTSKP z roku:*)","") ->  | I5: =IF(H4="","",IF(F5="","<= Vyplnit pole F5, tj. rok vypracování položkových rozpočtů v listech 3SO a 3PS",IF(('3SO'!V4+'3PS'!V4)>0,IF(H5="","<= Vyplnit pole H5, tj. rok vydání cenové soustavy OTSKP použité v položkových rozpočtech",IF((IF(F5>H4,1,IF(H5>H4,1,0)))=1,"<= !Chyba - Nelze uvést výše než Aktuální rok, nebo není Aktuální rok zadán","")),""))) ->  | U5: =IF(V5="","Vybrat zástupce investora =>","Zástupce investora:") -> Zástupce investora: | V5: Stavební správa východ, Nerudova 773/1, 772 58 Olomouc | Y5: Stavební náklady stanovené v roce: | Z5: 2023 | AA5: =IF(('3SO'!AP4+'3PS'!AP4)>0,"Cenová soustava OTSKP z roku:*)","") ->  | AB5: 2022 | AD5: Oblastní ředitelství | AF5: Stádium 3 | AG5: projektová dokumentace
A6: =IF(B6="","Vybrat pracoviště =>","Pracoviště:") -> Vybrat pracoviště => | E6: Předpokládané období realizace stavby: | U6: =IF(V6="","Vybrat pracoviště =>","Pracoviště:") -> Pracoviště: | V6: Praha | Y6: Předpokládané období realizace stavby: | AD6: Stavební správa vysokorychlostních tratí, V Celnici 1028/10, 110 00 Praha 1-Nové Město
A7: Jiný investor: | B7: - | E7: =IF(E3="Stádium 3","Výběrové řízení na realizaci: (čtvrtletí/rok)","") ->  | G7: 2.Q | H7: 2024 | I7: =IF(AK4=1,CONCATENATE(AL3," ",AK3),CONCATENATE(AL3," ",AJ3," ",AI3)) ->  | U7: Jiný investor: | V7: - | Y7: =IF(Y3="Stádium 3","Výběrové řízení na realizaci: (čtvrtletí/rok)","") -> 
A8: Majetek: | B8: =IF(('1C'!J19+'1C'!K19)=0,"",IF(('3SO'!D7+'3SO'!D9+'3PS'!D7+'3PS'!D9)>0,"SŽ a Ostatní","SŽ")) ->  | C8: IČO: | D8: 70994234 | E8: Zahájení realizace stavby: | G8: =IF(MIN('3SO'!E9,'3PS'!E9)=0,"",MIN('3SO'!E9,'3PS'!E9)) ->  | U8: Majetek: | V8: =IF(('1C'!AD19+'1C'!AE19)=0,"",IF(('3SO'!X7+'3SO'!X9+'3PS'!X7+'3PS'!X9)>0,"SŽ a Ostatní","SŽ")) ->  | W8: IČO: | X8: 70994234 | Y8: Zahájení realizace stavby: | AA8: =IF(MIN('3SO'!Y9,'3PS'!Y9)=0,"",MIN('3SO'!Y9,'3PS'!Y9)) -> 
A9: =IF(B9="","Kategorie dráhy =>","Kategorie dráhy:") -> Kategorie dráhy => | C9: DIČ: | D9: CZ70994234 | E9: Ukončení stavebních prací v realizaci stavby: | G9: =IF(MAX('3SO'!F9,'3PS'!F9)=0,"",MAX('3SO'!F9,'3PS'!F9)) ->  | U9: =IF(V9="","Kategorie dráhy =>","Kategorie dráhy:") -> Kategorie dráhy => | W9: DIČ: | X9: CZ70994234 | Y9: Ukončení stavebních prací v realizaci stavby: | AA9: =IF(MAX('3SO'!Z9,'3PS'!Z9)=0,"",MAX('3SO'!Z9,'3PS'!Z9)) -> 
A10: =IF(B10="","Kraj =>","Kraj:") -> Kraj => | C10: - | D10: - | E10: =IF(A11="Vyplnit listy 3SO a 3PS","Ukončení stavby - vyplnit listy 3SO a 3PS","Ukončení stavby:") -> Ukončení stavby: | G10: =IF(G9="","",G9+'2A'!G38+'2A'!G62) ->  | U10: =IF(V10="","Kraj =>","Kraj:") -> Kraj => | W10: - | X10: - | Y10: =IF(U11="Vyplnit listy 3SO a 3PS","Ukončení stavby - vyplnit listy 3SO a 3PS","Ukončení stavby:") ->  | AA10: =IF(AA9="","",AA9+'2A'!AA38+'2A'!AA62) -> 
A11: =IF(H4="","",IF(('3SO'!G6+'3PS'!G6)=0,"Vyplnit listy 3SO a 3PS",IF(F4="","",IF(G10="","",CONCATENATE("Smíšená cenová úroveň ",F4," / ",YEAR(G10)))))) ->  | G11: náklady v Kč | U11: =IF(AB4="","",IF(('3SO'!AA6+'3PS'!AA6)=0,"Vyplnit listy 3SO a 3PS",IF(Z4="","",IF(AA10="","",CONCATENATE("Smíšená cenová úroveň ",Z4," / ",YEAR(AA10)))))) ->  | AA11: náklady v Kč
A12: C.1 | B12: Pořizovací investiční náklady | F12: PIN | G12: ='2C'!H7 -> 0 | I12: =IF('Krycí list SR'!H4="","",IF(('3SO'!G6+'3PS'!G6)=0,"<=Pro výpočet CIN je nutné vyplnit listy 3SO a 3PS","")) ->  | U12: C.1 | V12: Pořizovací investiční náklady | Z12: PIN | AA12: ='2C'!AB7 -> 0
A13: C.1.1 | B13: Celkové investiční náklady z plánovaných investičních zdrojů | F13: CIN | G13: ='2C'!H8 -> 0 | U13: C.1.1 | V13: Celkové investiční náklady z plánovaných investičních zdrojů | Z13: CIN | AA13: ='2C'!AB8 -> 0
B14: z toho | C14: Náklady na přípravu a celkové zabezpečení výstavby | G14: ='2C'!H9 -> 0 | V14: z toho | W14: Náklady na přípravu a celkové zabezpečení výstavby | AA14: ='2C'!AB9 -> 0
C15: Náklady na realizaci stavby bez rezervy | G15: ='2C'!H10 -> 0 | W15: Náklady na realizaci stavby bez rezervy | AA15: ='2C'!AB10 -> 0
C16: Rezerva stavby | G16: ='2C'!H11 -> 0 | W16: Rezerva stavby | AA16: ='2C'!AB11 -> 0
C17: Předpokládaná výše inflace | G17: ='2C'!H12 -> 0 | W17: Předpokládaná výše inflace | AA17: ='2C'!AB12 -> 0
A18: C.1.2 | B18: Hodnota zůstatkového majetku SŽ, který bude stavbou odstraněn | G18: ='2C'!H13 -> 0 | U18: C.1.2 | V18: Hodnota zůstatkového majetku SŽ, který bude stavbou odstraněn | AA18: ='2C'!AB13 -> 0
A19: C.2 | B19: Provozní náklady | F19: PRN | G19: ='2C'!H14 -> 0 | U19: C.2 | V19: Provozní náklady | Z19: PRN | AA19: ='2C'!AB14 -> 0
A20: C.3 | B20: Příjmy generované stavbou | G20: ='2C'!H15 -> 0 | U20: C.3 | V20: Příjmy generované stavbou | AA20: ='2C'!AB15 -> 0
A22: C.4 | B22: Celkové náklady stavby bez DPH | F22: CNS | G22: ='2C'!H19 -> 0 | U22: C.4 | V22: Celkové náklady stavby bez DPH | Z22: CNS | AA22: ='2C'!AB19 -> 0
A23: C.5 | B23: Daň z přidané hodnoty | F23: DPH | G23: ='2C'!H21 -> 0 | U23: C.5 | V23: Daň z přidané hodnoty | Z23: DPH | AA23: ='2C'!AB21 -> 0
A24: C.6 | B24: Celkové náklady stavby vč. DPH | F24: CNS | G24: ='2C'!H23 -> 0 | U24: C.6 | V24: Celkové náklady stavby vč. DPH | Z24: CNS | AA24: ='2C'!AB23 -> 0
A26: Poznámka: | U26: Poznámka:
A27: *) V případě rozdílu mezi rokem použité cenové soustavy případně rokem ocenění stavebních nákladů a Aktuálním rokem je v cenách SO/PS zohledněna míra inflace rozdílu let. | U27: *) V případě rozdílu mezi rokem použité cenové soustavy a rokem ocenění stavebních nákladů je v cenách SO/PS zohledněna míra inflace rozdílu let.
U28: index inženýrských děl dle ČSU
U29: po aktuálním roce predikce ČNB - ZIMA +predikce ČNB
I36: =IF($E$3="Stádium 3","Předpokládaná hodnota veřejné zakázky na zhotovení stavby dle aktuálního SR:","") -> 
A37: =IF(E3="Stádium 3","Předpokládaná hodnota veřejné zákázky na zhotovení stavby v rozčlenění:","") ->  | G37: =IF(E3="Stádium 3",SUM(G38,G43:H46),"") ->  | U37: =IF(Y3="Stádium 3","Předpokládaná hodnota veřejné zákázky na zhotovení stavby v rozčlenění:","") ->  | AA37: =IF(Y3="Stádium 3",SUM(AA38,AA43:AB46),"") -> 
A38: =IF($E$3="Stádium 3","z toho","") ->  | B38: =IF(E3="Stádium 3","Náklady zhotovitelem oceněných prací","") ->  | G38: =IF(E3="Stádium 3",SUM(G39:H41)-G45,"") ->  | I38: =IF($E$3="Stádium 3","Od celkového součtu je odečtená hodnota vyhrazených dodávek a prací z v položkových rozpočtů SO/PS pro JŘSU (viz hodnota v poli H45)","""") -> " | U38: =IF($E$3="Stádium 3","z toho","") ->  | V38: =IF(Y3="Stádium 3","Náklady zhotovitelem oceněných prací","") ->  | AA38: =IF(Y3="Stádium 3",SUM(AA39:AB41)-AA45,"") -> 
A39: =IF($I$21="ANO",IF($E$3="Stádium 2",IF('1A'!I28>0,'1A'!A28,IF('1A'!I29>0,'1A'!A29,"")),""),"") ->  | B39: =IF($E$3="Stádium 3","z toho","") ->  | C39: =IF(E3="Stádium 3","B.1.1.1 a B.1.1.2 - ZRN a VRN (SO) a poměrná část inflace dle zahájení výběrového řízení","") ->  | G39: =IF(E3="Stádium 3",'3SO'!G6+'3SO'!M9+'3SO'!Y4,"") ->  | I39: =IF($E$3="Stádium 3"," - B.1.1.1 (ZRN) + B.1.1.2 (VRN) - součet nákladů za SO, které bude zhotovitel oceňovat v soupisech prací.","") ->  | U39: =IF($I$21="ANO",IF($E$3="Stádium 2",IF('1A'!AC28>0,'1A'!U28,IF('1A'!AC29>0,'1A'!U29,"")),""),"") ->  | V39: =IF($E$3="Stádium 3","z toho","") ->  | W39: =IF(Y3="Stádium 3","B.1.1.1 a B.1.1.2 - ZRN a VRN (SO) a poměrná část inflace dle zahájení výběrového řízení","") ->  | AA39: =IF(Y3="Stádium 3",'3SO'!AA6+'3SO'!AG9+'3SO'!AS4,"") -> 
A40: =IF($I$21="ANO",IF($E$3="Stádium 2",IF('1A'!I34>0,'1A'!A34,""),""),"") ->  | C40: =IF(E3="Stádium 3","B.2.1.1 a B.2.1.2 - ZRN a VRN (PS) a poměrná část inflace dle zahájení výběrového řízení","") ->  | G40: =IF(E3="Stádium 3",'3PS'!G6+'3PS'!M9+'3PS'!Y4,"") ->  | I40: =IF($E$3="Stádium 3"," - B.2.1.1 (ZRN) + B.2.1.2 (VRN) - součet nákladů za PS, které bude zhotovitel oceňovat v soupisech prací.","") ->  | U40: =IF($I$21="ANO",IF($E$3="Stádium 2",IF('1A'!AC34>0,'1A'!U34,""),""),"") ->  | W40: =IF(Y3="Stádium 3","B.2.1.1 a B.2.1.2 - ZRN a VRN (PS) a poměrná část inflace dle zahájení výběrového řízení","") ->  | AA40: =IF(Y3="Stádium 3",'3PS'!AA6+'3PS'!AG9+'3PS'!AS4,"") -> 
A41: =IF($I$21="ANO",IF($E$3="Stádium 2",IF('1A'!I35>0,'1A'!A35,""),""),"") ->  | C41: =IF(E3="Stádium 3","Všeobecný objekt","") ->  | G41: =IF(E3="Stádium 3",PN!F60,"") ->  | I41: =IF($E$3="Stádium 3","- v případě, že jsou vybrané činnosti (nezahrnuté v SO a PS) předmětem plnění zhotovitele musí být pro správné načtení v sloupci G listů 1A a 1B označení Všeobecný objekt."&" Jedná se o položky: A.2.2.4; A.2.5; A.4.2; A.5.1.1; A.5.3.3; B.3.1; B.3.3; B.3.4; B.3.5; B.3.6; B.3.7.1; B.3.9)","") ->  | U41: =IF($I$21="ANO",IF($E$3="Stádium 2",IF('1A'!AC35>0,'1A'!U35,""),""),"") ->  | W41: =IF(Y3="Stádium 3","Všeobecný objekt","") ->  | AA41: =IF(Y3="Stádium 3",PN!Z60,"") -> 
A42: =IF($I$21="ANO",IF(E3="Stádium 3","z toho",IF($E$3="Stádium 2",IF('1A'!I36>0,'1A'!A36,""),"")),"") ->  | B42: =IF(E3="Stádium 3","Předpokládaná hodnota souvisejících plnění","") ->  | G42: =IF(E3="Stádium 3",SUM(G43:H46),"") ->  | U42: =IF($I$21="ANO",IF(Y3="Stádium 3","z toho",IF($E$3="Stádium 2",IF('1A'!AC36>0,'1A'!U36,""),"")),"") ->  | V42: =IF(Y3="Stádium 3","Předpokládaná hodnota souvisejících plnění","") ->  | AA42: =IF(Y3="Stádium 3",SUM(AA43:AB46),"") -> 
A43: =IF($I$21="ANO",IF($E$3="Stádium 2",IF('1A'!I37>0,'1A'!A37,""),""),"") ->  | B43: =IF(E3="Stádium 3","z toho","") ->  | C43: =IF(E3="Stádium 3","Vyhrazené změny závazků ze smlouvy","") ->  | G43: =IF(E3="Stádium 3",IF(F43="nezařazeno",0,IF(F43="zařazeno",4%*('2B'!H9+'2B'!H17),"")),"") ->  | U43: =IF($I$21="ANO",IF($E$3="Stádium 2",IF('1A'!AC37>0,'1A'!U37,""),""),"") ->  | V43: =IF(Y3="Stádium 3","z toho","") ->  | W43: =IF(Y3="Stádium 3","Vyhrazené změny závazků ze smlouvy","") ->  | AA43: =IF(Y3="Stádium 3",IF(Z43="nezařazeno",0,IF(Z43="zařazeno",4%*('2B'!AB9+'2B'!AB17),"")),"") -> 
B44: =IF($I$21="ANO",IF(E3="Stádium 3","z toho",""),"") ->  | C44: =IF(E3="Stádium 3","Hodnota zadavatelem poskytnutých služeb/stavebních prací, které jsou nezbytné pro plnění zakázky","") ->  | G44: =IF(E3="Stádium 3",'3SO'!I8+'3PS'!I8,"") ->  | I44: =IF($E$3="Stádium 3","- zařazeno v položkách B.1.2 nebo B.2.2.","") ->  | V44: =IF($I$21="ANO",IF(Y3="Stádium 3","z toho",""),"") ->  | W44: =IF(Y3="Stádium 3","Hodnota zadavatelem poskytnutých služeb/stavebních prací, které jsou nezbytné pro plnění zakázky","") ->  | AA44: =IF(Y3="Stádium 3",'3SO'!AC8+'3PS'!AC8,"") -> 
C45: =IF(E3="Stádium 3","Hodnotu nákladů na nové práce, na jejichž poskytnutí si zadavatel vyhrazuje možnost použití JŘBU","") ->  | I45: =IF($E$3="Stádium 3","- jedná se o náklady na činnosti, vyhrazené jako opce (§66 ZZVZ) např. následná směrová a výšková úprava, náklady jsou standardně zahrnuté v B.1.1.1 nebo B.2.1.1 a automaticky se odečítají od Předpokládané hodnoty plnění zhotovitele","") ->  | W45: =IF(Y3="Stádium 3","Hodnotu nákladů na nové práce, na jejichž poskytnutí si zadavatel vyhrazuje možnost použití JŘBU","") -> 
C46: =IF(E3="Stádium 3","Hodnota vývoje inflace v letech po odečtení zohledněné poměrné části v ZRN SO/PS","") ->  | G46: =IF(E3="Stádium 3",('2B'!H46+'2B'!H48)-('3SO'!Y4+'3PS'!Y4),"") ->  | W46: =IF(Y3="Stádium 3","Hodnota vývoje inflace v letech po odečtení zohledněné poměrné části v ZRN SO/PS","") ->  | AA46: =IF(Y3="Stádium 3",('2B'!AB46+'2B'!AB48)-('3SO'!AS4+'3PS'!AS4),"") -> 
I47: =IF(E3="Stádium 3","Všeobecný objekt musí zahrnovat položky:","") -> 
A48: Vypracoval : | D48: Zástupce investora kontroloval: | I48: =IF($E$3="Stádium 3",(IF('1A'!G30="Všeobecný objekt",'1A'!I30,"")),"") ->  | J48: =IF($E$3="Stádium 3",'1A'!A30,"") ->  | K48: =IF(E3="Stádium 3",'1A'!D30,"") ->  | U48: Vypracoval : | X48: Zástupce investora kontroloval:
I49: =IF($E$3="Stádium 3",(IF('1A'!G38="Všeobecný objekt",'1A'!J38,"")),"") ->  | J49: =IF($E$3="Stádium 3",'1A'!A38,"") ->  | K49: =IF(E3="Stádium 3",'1A'!C38,"") -> 
I50: =IF($E$3="Stádium 3",(IF('1A'!G48="Všeobecný objekt",'1A'!I48,"")),"") ->  | J50: =IF($E$3="Stádium 3",'1A'!A48,"") ->  | K50: =IF(E3="Stádium 3",'1A'!C48,"") -> 
A51: Datum : | D51: Datum : | I51: =IF($E$3="Stádium 3",(IF('1A'!G51="Všeobecný objekt",'1A'!I51,"")),"") ->  | J51: =IF($E$3="Stádium 3",'1A'!A51,"") ->  | K51: =IF(E3="Stádium 3",'1A'!D51,"") ->  | U51: Datum : | X51: Datum :
A52: Podpis: | D52: Podpis: | I52: =IF($E$3="Stádium 3",(IF('1A'!H58=0,"",'1A'!H58)),"") ->  | J52: =IF($E$3="Stádium 3",'1A'!A58,"") ->  | K52: =IF(E3="Stádium 3",'1A'!D58,"") ->  | U52: Podpis: | X52: Podpis:
A53: GŘ SŽ s.o.: | I53: =IF($E$3="Stádium 3",(IF('1B'!G25="Všeobecný objekt",'1B'!I25,"")),"") ->  | J53: =IF($E$3="Stádium 3",'1B'!A25,"") ->  | K53: =IF($E$3="Stádium 3",'1B'!C25,"") ->  | U53: GŘ SŽ s.o.:
I54: =IF($E$3="Stádium 3",(IF('1B'!G27="Všeobecný objekt",'1B'!I27,"")),"") ->  | J54: =IF($E$3="Stádium 3",'1B'!A27,"") ->  | K54: =IF($E$3="Stádium 3",'1B'!C27,"") -> 
I55: =IF($E$3="Stádium 3",(IF('1B'!G28="Všeobecný objekt",'1B'!I28,"")),"") ->  | J55: =IF($E$3="Stádium 3",'1B'!A28,"") ->  | K55: =IF($E$3="Stádium 3",'1B'!C28,"") -> 
I56: =IF($E$3="Stádium 3",(IF('1B'!G29="Všeobecný objekt",'1B'!I29,"")),"") ->  | J56: =IF($E$3="Stádium 3",'1B'!A29,"") ->  | K56: =IF($E$3="Stádium 3",'1B'!C29,"") -> 
I57: =IF($E$3="Stádium 3",(IF('1B'!G30="Všeobecný objekt",'1B'!I30,"")),"") ->  | J57: =IF($E$3="Stádium 3",'1B'!A30,"") ->  | K57: =IF($E$3="Stádium 3",'1B'!C30,"") -> 
I58: =IF($E$3="Stádium 3",(IF('1B'!G32="Všeobecný objekt",'1B'!I32,"")),"") ->  | J58: =IF($E$3="Stádium 3",'1B'!A32,"") ->  | K58: =IF($E$3="Stádium 3",'1B'!D32,"") -> 
I59: =IF($E$3="Stádium 3",(IF('1B'!G36="Všeobecný objekt",'1B'!I36,"")),"") ->  | J59: =IF($E$3="Stádium 3",'1B'!A36,"") ->  | K59: =IF($E$3="Stádium 3",'1B'!C36,"") -> 
K60: =IF($E$3="Stádium 3",(IF('1B'!G36="Všeobecný objekt","(Ostatní náklady je nutné ve Všeobecném objektu rozepsat)","")),"") -> 
I61: =IF($E$3="Stádium 3",SUM(I48:I59),"") -> 

Sheet 1A
A1: =CONCATENATE("Náklady stavby v aktuálním roce: ",IF('Krycí list SR'!H4="","",'Krycí list SR'!H4)) -> Náklady stavby v aktuálním roce: | K1: Formulář 1.A | L1: ='Krycí list SR'!$H$1 -> SRP/2023/08 | O1: CIN: | Q1: ='Krycí list SR'!G13 -> 0 | AM1: NÁKLADY VÝPOČTEM | AO1: Poznámka | AP1: ='1A'!AN2/'Krycí list SR'!G13-100% ->  | AU1: =CONCATENATE("Náklady stavby v aktuálním roce: ",IF('Krycí list SR'!BB4="","",'Krycí list SR'!BB4)) -> Náklady stavby v aktuálním roce: | BE1: Formulář 1.A | BF1: ='Krycí list SR'!$H$1 -> SRP/2023/08
A2: Název stavby: | C2: =IF('Krycí list SR'!B2="","",'Krycí list SR'!B2) ->  | O2: Podklad pro kontrolu výpočtu individuální kalkulace | AL2: =IF($AN$3<50000000,25%,IF($AN$3>2000000000,10%,25%-((($AN$3/2000000000)*((25%-10%)))))) -> 0.25 | AM2: Teoretický CIN | AN2: =AL2*(AN3+AN4)+(AN3+AN4)+AL4 -> 0 | AU2: Název stavby: | AW2: =IF('Krycí list SR'!AV2="","",'Krycí list SR'!AV2) -> 
A3: ISPROFIN: | C3: =IF('Krycí list SR'!$B$3="","",'Krycí list SR'!$B$3) ->  | E3: Označení (S-kód): | G3: =IF('Krycí list SR'!D3="","",'Krycí list SR'!D3) ->  | I3: =IF('Krycí list SR'!E3="","",'Krycí list SR'!E3) ->  | K3: ='Krycí list SR'!F3 -> <= vybrat Stádium v poli E3 | O3: IIČ | Q3: =(K9+K42+K46+K49+'1B'!I45) -> 0 | S3: B.1 | T3: =AN3 -> 0 | AL3: inflace | AM3: B.1 (SO) | AN3: ='1B'!K8 -> 0 | AU3: ISPROFIN: | AW3: =IF('Krycí list SR'!$B$3="","",'Krycí list SR'!$B$3) ->  | AY3: Označení (S-kód): | BA3: =IF('Krycí list SR'!AX3="","",'Krycí list SR'!AX3) ->  | BC3: =IF('Krycí list SR'!AY3="","",'Krycí list SR'!AY3) ->  | BE3: ='Krycí list SR'!AZ3 -> 0
A4: Investor: | B4: SŽ | D4: =IF('Krycí list SR'!$B$5="","",'Krycí list SR'!$B$5) ->  | I4: IČO: | J4: ='Krycí list SR'!$D$8 -> 70994234 | K4: DIČ: | L4: ='Krycí list SR'!D9 -> CZ70994234 | O4: DUSP/DSP/ODOS | Q4: =I28+I29+I30 -> 0 | S4: B.2 | T4: =AN4 -> 0 | AL4: ='2B'!H46+'2B'!H48+'2B'!H49 -> 0 | AM4: B.2 (PS) | AN4: ='1B'!K16 -> 0 | AU4: Investor: | AV4: SŽ | AX4: =IF('Krycí list SR'!$B$5="","",'Krycí list SR'!$B$5) ->  | BC4: IČO: | BD4: ='Krycí list SR'!$D$8 -> 70994234 | BE4: DIČ: | BF4: ='Krycí list SR'!AX9 -> 0
A5: Jiný investor: | C5: =IF('Krycí list SR'!$B$7="","neurčen",'Krycí list SR'!$B$7) -> - | F5: Doplňující informace k stanovení nákladů | I5: Náklady dle rozdělení v Kč | O5: Tabulky stanovení nákladů | T5: Rozhraní pro procentní sazby (v mil. Kč) | AA5: =AA29+AA30 -> 0 | AB5: =AB29+AB30 -> 0 | AJ5: dolní hranice | AK5: horní hranice | AL5: % stavebních nákladů z rozmezí | AM5: rozdíl min/max | AN5: Kč | AO5: dolní hranice CIN | AP5: horní hranice CIN | AU5: Jiný investor: | AW5: =IF('Krycí list SR'!$B$7="","neurčen",'Krycí list SR'!$B$7) -> - | AZ5: Doplňující informace k stanovení nákladů | BC5: Náklady dle rozdělení v Kč
A6: A | B6: Příprava a celkové zabezpečení stavby | F6: Doplňující informace | H6: Stanovení nákladů | I6: Kalkulací Smluvně | J6: Výpočtem | K6: Souhrn nákladů | L6: z toho podíl za Ostatní subjekty | M6: Pole pro pracovní výpočty bez tisku | N6: Součet nákladů | O6: sloupec I | T6: 0 | U6: 50 | V6: 200 | W6: 1000 | X6: 2000 | Y6: 3000 | Z6: >5000 | AA6: maximální hodnota | AB6: Minimální hodnota | AC6: max % | AD6: min% | AE6: % z B.1 | AF6: % z B.2 | AG6: Kontrola překročení llimitní hranice % sazby | AL6: % stavebních nákladů z rozmezí | AU6: A | AV6: Příprava a celkové zabezpečení stavby | AZ6: Doplňující informace | BB6: Stanovení nákladů | BC6: Kalkulací Smluvně | BD6: Výpočtem | BE6: Souhrn nákladů | BF6: z toho podíl za Ostatní subjekty
F7: =IF(S103="Chyba","Nelze stanovit výpočtem DUR a DUSL/DUSP",IF(W103="Chyba","Nelze stanovit výpočtem DUSL/DUSP a DSP","")) ->  | O7: Formáty | P7: 4 | Q7: 1 | R7: 1 | S7: 2 | T7: =IF(T6*1000000=$AJ$8,1,IF(T6*1000000=$AK$8,1,0)) -> 1 | U7: 1 | V7: 0 | W7: 0 | X7: 0 | Y7: 0 | AZ7: =IF(BM103="Chyba","Nelze stanovit výpočtem DUR a DUSL/DUSP",IF(BQ103="Chyba","Nelze stanovit výpočtem DUSL/DUSP a DSP","")) -> 
A8: A.1 | B8: Náklady investorsko - inženýrské činnosti ve výstavbě | H8: Nezařazeno | J8: =IF(H8="Výpočtem",AN8,0) -> 0 | K8: =N8 -> 0 | L8: =N8*hide!$D$59 -> 0 | N8: =IF(H8="Nezařazeno",0,IF(H8="Výpočtem",J8,I8)) -> 0 | O8: =IF((IF(H8="Individuálně",1,IF(H8="Smluvně",1,IF(H8="Nezařazeno",2,2))))=1,IF(I8=0,3,1),IF(H8="Výpočtem",4,2)) -> 2 | P8: Výpočtem | Q8: Smluvně | R8: Individuálně | S8: Nezařazeno | T8: 0.08 | U8: 0.08 | V8: 0.07 | W8: 0.05 | X8: 0.025 | Y8: 0.02 | Z8: 0.02 | AA8: =($T$3*$AE8+$T$4*$AF8+K9+K42+K46+K49+I43)*AC8 -> 0 | AB8: =($T$3*$AE8+$T$4*$AF8+K9+K42+K46+K49+I43)*AF8 -> 0 | AC8: =IF($AN$2>5000000000,Z8,IF($AN$2>2000000000,X8,IF($AN$2>($W$6*1000000),W8,IF($AN$2>($V$6*1000000),V8,IF($AN$2>($U$6*1000000),U8,T8))))) -> 0.08 | AD8: =IF($AN$2>5000000000,Z8,IF($AN$2>2000000000,Y8,IF($AN$2>($W$6*1000000),X8,IF($AN$2>($V$6*1000000),W8,IF($AN$2>($U$6*1000000),V8,U8))))) -> 0.08 | AE8: 1 | AF8: 1 | AG8: =IF(I8>AA8,IF(H8="Aktualizace","PŘEKROČENÉ %",IF(H8="Individuálně","PŘEKROČENÉ","OK")),"OK") -> OK | AH8: =IF(AG8="PŘEKROČENÉ %",IF(H8="Výpočtem",0,IF(H8="Smluvně",0,IF(H8="Nezařazeno",0,IF(H8="Individuálně",IF(AG8="PŘEKROČENÉ %",100,1),1)))),0) -> 0 | AI8: =IF(AG8="PŘEKROČENÉ %",IF(H8="Výpočtem",0,IF(H8="Smluvně",0,IF(H8="Nezařazeno",0,IF(H8="Individuálně",IF(AH8="PŘEKROČENÉ %",0,0),1)))),0) -> 0 | AJ8: =IF($AN$2>5000000000,$X$6*1000000,IF($AN$2>($W$6*1000000),$W$6*1000000,IF($AN$2>($V$6*1000000),$V$6*1000000,IF($AN$2>($U$6*1000000),$U$6*1000000,0)))) -> 0 | AK8: =IF($AN$2>5000000000,5000000000,IF($AN$2>($W$6*1000000),$X$6*1000000,IF($AN$2>($V$6*1000000),$W$6*1000000,IF($AN$2>($U$6*1000000),$V$6*1000000,$U$6*1000000)))) -> 50000000 | AL8: =IF($AN$2<X$6*1000000,(X8+(((U8-X8)/($X$6*1000000))*($X$6*1000000-$AN$2))),IF($AN$2<$Y$6*1000000,Y8,Z8)) -> 0.08 | AM8: =IF(AL8=0,0,100%-((AA8-AN8)/AA8)) ->  | AN8: =ROUND(AL8*($AN$3*AE8+$AN$4*AF8+SUM(AN12:AN62,I43:I45,I47:I48,'1B'!AN25:AN28)),0) -> 0 | AO8: =ROUND(AD8*($AN$3*AE8+$AN$4*AF8),0) -> 0 | AP8: =ROUND(AC8*($AN$3*AE8+$AN$4*AF8),0) -> 0 | AU8: A.1 | AV8: Náklady investorsko - inženýrské činnosti ve výstavbě | BB8: Nezařazeno | BD8: =IF(BB8="Výpočtem",CH8,0) -> 0 | BE8: =BH8 -> 0 | BF8: =BH8*hide!$D$59 -> 0
A9: A.2 | B9: Náklady na dokumentace stavby | K9: =N9 -> 0 | L9: =L10+L21+L32+L33+L38 -> 0 | N9: =N10+N21+N32+N33+N38 -> 0 | AH9: =IF(AG9="PŘEKROČENÉ %",IF(H9="Smluvně",0,IF(H9="Nezařazeno",0,IF(H9="Individuálně",IF(AG9="PŘEKROČENÉ %",100,1),1))),0) -> 0 | AI9: =IF(AG9="PŘEKROČENÉ %",IF(H9="Smluvně",0,IF(H9="Nezařazeno",0,IF(H9="Individuálně",IF(AH9="PŘEKROČENÉ %",0,0),1))),0) -> 0 | AU9: A.2 | AV9: Náklady na dokumentace stavby | BE9: =BH9 -> 0 | BF9: =BF10+BF21+BF32+BF33+BF38 -> 0
A10: A.2.1 | B10: z toho | C10: Náklady na předprojektové dokumentace pro přípravu stavby | J10: =N10 -> 0 | L10: =L11+L17+L20 -> 0 | N10: =N11+N17+N20 -> 0 | AH10: =IF(AG10="PŘEKROČENÉ %",IF(H10="Smluvně",0,IF(H10="Nezařazeno",0,IF(H10="Individuálně",IF(AG10="PŘEKROČENÉ %",100,1),1))),0) -> 0 | AI10: =IF(AG10="PŘEKROČENÉ %",IF(H10="Smluvně",0,IF(H10="Nezařazeno",0,IF(H10="Individuálně",IF(AH10="PŘEKROČENÉ %",0,0),1))),0) -> 0 | AU10: A.2.1 | AV10: z toho | AW10: Náklady na předprojektové dokumentace pro přípravu stavby | BD10: =BH10 -> 0 | BF10: =BF11+BF17+BF20 -> 0
A11: A.2.1.1 | C11: z toho | D11: Práce prováděné pro zpracování předprojektových dokumentací | J11: =N11 -> 0 | L11: =J11*hide!$D$59 -> 0 | N11: =SUM(N12:N16) -> 0 | AH11: =IF(AG11="PŘEKROČENÉ %",IF(H11="Smluvně",0,IF(H11="Nezařazeno",0,IF(H11="Individuálně",IF(AG11="PŘEKROČENÉ %",100,1),1))),0) -> 0 | AI11: =IF(AG11="PŘEKROČENÉ %",IF(H11="Smluvně",0,IF(H11="Nezařazeno",0,IF(H11="Individuálně",IF(AH11="PŘEKROČENÉ %",0,0),1))),0) -> 0 | AU11: A.2.1.1 | AW11: z toho | AX11: Práce prováděné pro zpracování předprojektových dokumentací | BD11: =BH11 -> 0 | BF11: =BD11*hide!$D$59 -> 0
A12: A.2.1.1.1 | B12: =IF(O12=4,IF(O23=4,IF($N$28>0,"Výpočtem jen v A.2.2.1.1",""),""),"") ->  | D12: z toho | E12: Geodetické práce a mapové podklady | H12: Nezařazeno | J12: =IF(H12="Výpočtem",(IF($I$3="",0,IF($I$3="Stádium 3",0,IF($I$3="Stádium 2",0,AN12)))),0) -> 0 | K12: =IF($I$3="Stádium 1","",IF($I$3="","",IF(O12=4,CONCATENATE("Nelze ve ",$I$3),""))) ->  | L12: =N12*hide!$D$59 -> 0 | N12: =IF(H12="Nezařazeno",0,IF(H12="Výpočtem",J12,I12)) -> 0 | O12: =IF((IF(H12="Individuálně",1,IF(H12="Smluvně",1,IF(H12="Nezařazeno",2,2))))=1,IF(I12=0,3,1),IF(H12="Výpočtem",4,2)) -> 2 | P12: Výpočtem | Q12: Smluvně | R12: Individuálně | S12: Nezařazeno | T12: 0.0038 | U12: 0.0038 | V12: 0.0035 | W12: 0.0021 | X12: 0.0005 | Y12: 0.0005 | Z12: 0.0005 | AA12: =($T$3*$AE12+$T$4*$AF12)*AC12 -> 0 | AB12: =($T$3*$AE12+$T$4*$AF12)*AD12 -> 0 | AC12: =IF($AN$2>5000000000,Z12,IF($AN$2>2000000000,X12,IF($AN$2>($W$6*1000000),W12,IF($AN$2>($V$6*1000000),V12,IF($AN$2>($U$6*1000000),U12,T12))))) -> 0.0038 | AD12: =IF($AN$2>5000000000,Z12,IF($AN$2>2000000000,Y12,IF($AN$2>($W$6*1000000),X12,IF($AN$2>($V$6*1000000),W12,IF($AN$2>($U$6*1000000),V12,U12))))) -> 0.0038 | AE12: 1 | AF12: 1 | AG12: =IF(I12>AA12,IF(H12="Aktualizace","PŘEKROČENÉ %",IF(H12="Individuálně","PŘEKROČENÉ","OK")),"OK") -> OK | AH12: =IF(AG12="PŘEKROČENÉ %",IF(H12="Výpočtem",0,IF(H12="Smluvně",0,IF(H12="Nezařazeno",0,IF(H12="Individuálně",IF(AG12="PŘEKROČENÉ %",100,1),1)))),0) -> 0 | AI12: =IF(AG12="PŘEKROČENÉ %",IF(H12="Výpočtem",0,IF(H12="Smluvně",0,IF(H12="Nezařazeno",0,IF(H12="Individuálně",IF(AH12="PŘEKROČENÉ %",0,0),1)))),0) -> 0 | AJ12: =IF($AN$2>5000000000,$X$6*1000000,IF($AN$2>($W$6*1000000),$W$6*1000000,IF($AN$2>($V$6*1000000),$V$6*1000000,IF($AN$2>($U$6*1000000),$U$6*1000000,0)))) -> 0 | AK12: =IF($AN$2>5000000000,5000000000,IF($AN$2>($W$6*1000000),$X$6*1000000,IF($AN$2>($V$6*1000000),$W$6*1000000,IF($AN$2>($U$6*1000000),$V$6*1000000,$U$6*1000000)))) -> 50000000 | AL12: =IF($AN$2<X$6*1000000,(X12+(((U12-X12)/($X$6*1000000))*($X$6*1000000-$AN$2))),IF($AN$2<$Y$6,Y12,Z12)) -> 0.0038 | AM12: =IF(AL12=0,0,100%-((AA12-AN12)/AA12)) ->  | AN12: =ROUND(AL12*($AN$3*AE12+$AN$4*AF12),0) -> 0 | AO12: =ROUND(AD12*($AN$3*AE12+$AN$4*AF12),0) -> 0 | AP12: =ROUND(AC12*($AN$3*AE12+$AN$4*AF12),0) -> 0 | AU12: A.2.1.1.1 | AV12: =IF(BI12=4,IF(BI23=4,IF($N$28>0,"Výpočtem jen v A.2.2.1.1",""),""),"") ->  | AX12: z toho | AY12: Geodetické práce a mapové podklady | BB12: Nezařazeno | BD12: =IF(BB12="Výpočtem",(IF($I$3="",0,IF($I$3="Stádium 3",0,IF($I$3="Stádium 2",0,CH12)))),0) -> 0 | BE12: =IF($I$3="Stádium 1","",IF($I$3="","",IF(BI12=4,CONCATENATE("Nelze ve ",$I$3),""))) ->  | BF12: =BH12*hide!$D$59 -> 0
A13: A.2.1.1.2 | B13: =IF(O13=4,IF(O24=4,IF($N$28>0,"Výpočtem jen v A.2.2.1.2",""),""),"") ->  | E13: Průzkumné práce pro předprojektové dokumentace | H13: Nezařazeno | J13: =IF(H13="Výpočtem",(IF($I$3="",0,IF($I$3="Stádium 3",0,IF($I$3="Stádium 2",0,AN13)))),0) -> 0 | K13: =IF($I$3="Stádium 1","",IF($I$3="","",IF(O13=4,CONCATENATE("Nelze ve ",$I$3),""))) ->  | L13: =N13*hide!$D$59 -> 0 | N13: =IF(H13="Nezařazeno",0,IF(H13="Výpočtem",J13,I13)) -> 0 | O13: =IF((IF(H13="Individuálně",1,IF(H13="Smluvně",1,IF(H13="Nezařazeno",2,2))))=1,IF(I13=0,3,1),IF(H13="Výpočtem",4,2)) -> 2 | P13: Výpočtem | Q13: Smluvně | R13: Individuálně | S13: Nezařazeno | T13: 0.0104 | U13: 0.0104 | V13: 0.0098 | W13: 0.0072 | X13: 0.0042 | Y13: 0.0042 | Z13: 0.0042 | AA13: =($T$3*$AE13+$T$4*$AF13)*AC13 -> 0 | AB13: =($T$3*$AE13+$T$4*$AF13)*AD13 -> 0 | AC13: =IF($AN$2>5000000000,Z13,IF($AN$2>2000000000,X13,IF($AN$2>($W$6*1000000),W13,IF($AN$2>($V$6*1000000),V13,IF($AN$2>($U$6*1000000),U13,T13))))) -> 0.0104 | AD13: =IF($AN$2>5000000000,Z13,IF($AN$2>2000000000,Y13,IF($AN$2>($W$6*1000000),X13,IF($AN$2>($V$6*1000000),W13,IF($AN$2>($U$6*1000000),V13,U13))))) -> 0.0104 | AE13: 1 | AF13: 0.05 | AG13: =IF(I13>AA13,IF(H13="Aktualizace","PŘEKROČENÉ %",IF(H13="Individuálně","PŘEKROČENÉ","OK")),"OK") -> OK | AH13: =IF(AG13="PŘEKROČENÉ %",IF(H13="Výpočtem",0,IF(H13="Smluvně",0,IF(H13="Nezařazeno",0,IF(H13="Individuálně",IF(AG13="PŘEKROČENÉ %",100,1),1)))),0) -> 0 | AI13: =IF(AG13="PŘEKROČENÉ %",IF(H13="Výpočtem",0,IF(H13="Smluvně",0,IF(H13="Nezařazeno",0,IF(H13="Individuálně",IF(AH13="PŘEKROČENÉ %",0,0),1)))),0) -> 0 | AJ13: =IF($AN$2>5000000000,$X$6*1000000,IF($AN$2>($W$6*1000000),$W$6*1000000,IF($AN$2>($V$6*1000000),$V$6*1000000,IF($AN$2>($U$6*1000000),$U$6*1000000,0)))) -> 0 | AK13: =IF($AN$2>5000000000,5000000000,IF($AN$2>($W$6*1000000),$X$6*1000000,IF($AN$2>($V$6*1000000),$W$6*1000000,IF($AN$2>($U$6*1000000),$V$6*1000000,$U$6*1000000)))) -> 50000000 | AL13: =IF($AN$2<X$6*1000000,(X13+(((U13-X13)/($X$6*1000000))*($X$6*1000000-$AN$2))),IF($AN$2<$Y$6,Y13,Z13)) -> 0.0104 | AM13: =IF(AL13=0,0,100%-((AA13-AN13)/AA13)) ->  | AN13: =ROUND(AL13*($AN$3*AE13+$AN$4*AF13),0) -> 0 | AO13: =ROUND(AD13*($AN$3*AE13+$AN$4*AF13),0) -> 0 | AP13: =ROUND(AC13*($AN$3*AE13+$AN$4*AF13),0) -> 0 | AU13: A.2.1.1.2 | AV13: =IF(BI13=4,IF(BI24=4,IF($N$28>0,"Výpočtem jen v A.2.2.1.2",""),""),"") ->  | AY13: Průzkumné práce pro předprojektové dokumentace | BB13: Nezařazeno | BD13: =IF(BB13="Výpočtem",(IF($I$3="",0,IF($I$3="Stádium 3",0,IF($I$3="Stádium 2",0,CH13)))),0) -> 0 | BE13: =IF($I$3="Stádium 1","",IF($I$3="","",IF(BI13=4,CONCATENATE("Nelze ve ",$I$3),""))) ->  | BF13: =BH13*hide!$D$59 -> 0
A14: A.2.1.1.3 | B14: =IF(N14>0,IF($H$16="Nezařazeno","DUR Nezařazená",""),"") ->  | E14: Posouzení vlivu stavby na životní prostředí | H14: Nezařazeno | L14: =N14*hide!$D$59 -> 0 | N14: =IF(H14="Nezařazeno",0,IF(H14="Výpočtem",J14,I14)) -> 0 | O14: =IF((IF(H14="Předpoklad",1,IF(H14="Smluvně",1,IF(H14="Nezařazeno",2,2))))=1,IF(I14=0,3,1),IF(H14="Výpočtem",4,2)) -> 2 | Q14: Smluvně | R14: Předpoklad | S14: Nezařazeno | T14: není určena | AH14: =IF(AG14="PŘEKROČENÉ %",IF(H14="Smluvně",0,IF(H14="Nezařazeno",0,IF(H14="Individuálně",IF(AG14="PŘEKROČENÉ %",100,1),1))),0) -> 0 | AI14: =IF(AG14="PŘEKROČENÉ %",IF(H14="Smluvně",0,IF(H14="Nezařazeno",0,IF(H14="Individuálně",IF(AH14="PŘEKROČENÉ %",0,0),1))),0) -> 0 | AU14: A.2.1.1.3 | AV14: =IF(BH14>0,IF($H$16="Nezařazeno","DUR Nezařazená",""),"") ->  | AY14: Posouzení vlivu stavby na životní prostředí | BB14: Nezařazeno | BF14: =BH14*hide!$D$59 -> 0
A15: A.2.1.1.4 | B15: =IF(O15=4,IF(O26=4,IF($N$28>0,"Výpočtem jen v A.2.2.1.4",""),""),"") ->  | E15: Inženýrská činnost pro předprojektové dokumentace | H15: Nezařazeno | J15: =IF(H15="Výpočtem",(IF($I$3="",0,IF($I$3="Stádium 3",0,IF($I$3="Stádium 2",0,AN15)))),0) -> 0 | K15: =IF($I$3="Stádium 1","",IF($I$3="","",IF(O15=4,CONCATENATE("Nelze ve ",$I$3),""))) ->  | L15: =N15*hide!$D$59 -> 0 | N15: =IF(H15="Nezařazeno",0,IF(H15="Výpočtem",J15,I15)) -> 0 | O15: =IF((IF(H15="Individuálně",1,IF(H15="Smluvně",1,IF(H15="Nezařazeno",2,2))))=1,IF(I15=0,3,1),IF(H15="Výpočtem",4,2)) -> 2 | P15: Výpočtem | Q15: Smluvně | R15: Individuálně | S15: Nezařazeno | T15: 0.0035 | U15: 0.0027 | V15: 0.0026 | W15: 0.002 | X15: 0.0014 | Y15: 0.0014 | Z15: 0.0014 | AA15: =($T$3*$AE15+$T$4*$AF15)*AC15 -> 0 | AB15: =($T$3*$AE15+$T$4*$AF15)*AD15 -> 0 | AC15: =IF($AN$2>5000000000,Z15,IF($AN$2>2000000000,X15,IF($AN$2>($W$6*1000000),W15,IF($AN$2>($V$6*1000000),V15,IF($AN$2>($U$6*1000000),U15,T15))))) -> 0.0035 | AD15: =IF($AN$2>5000000000,Z15,IF($AN$2>2000000000,Y15,IF($AN$2>($W$6*1000000),X15,IF($AN$2>($V$6*1000000),W15,IF($AN$2>($U$6*1000000),V15,U15))))) -> 0.0027 | AE15: 1 | AF15: 0.7 | AG15: =IF(I15>AA15,IF(H15="Aktualizace","PŘEKROČENÉ %",IF(H15="Individuálně","PŘEKROČENÉ","OK")),"OK") -> OK | AH15: =IF(AG15="PŘEKROČENÉ %",IF(H15="Výpočtem",0,IF(H15="Smluvně",0,IF(H15="Nezařazeno",0,IF(H15="Individuálně",IF(AG15="PŘEKROČENÉ %",100,1),1)))),0) -> 0 | AI15: =IF(AG15="PŘEKROČENÉ %",IF(H15="Výpočtem",0,IF(H15="Smluvně",0,IF(H15="Nezařazeno",0,IF(H15="Individuálně",IF(AH15="PŘEKROČENÉ %",0,0),1)))),0) -> 0 | AJ15: =IF($AN$2>5000000000,$X$6*1000000,IF($AN$2>($W$6*1000000),$W$6*1000000,IF($AN$2>($V$6*1000000),$V$6*1000000,IF($AN$2>($U$6*1000000),$U$6*1000000,0)))) -> 0 | AK15: =IF($AN$2>5000000000,5000000000,IF($AN$2>($W$6*1000000),$X$6*1000000,IF($AN$2>($V$6*1000000),$W$6*1000000,IF($AN$2>($U$6*1000000),$V$6*1000000,$U$6*1000000)))) -> 50000000 | AL15: =IF($AN$2<X$6*1000000,(X15+(((U15-X15)/($X$6*1000000))*($X$6*1000000-$AN$2))),IF($AN$2<$Y$6,Y15,Z15)) -> 0.0027 | AM15: =IF(AL15=0,0,100%-((AA15-AN15)/AA15)) ->  | AN15: =ROUND(AL15*($AN$3*AE15+$AN$4*AF15),0) -> 0 | AO15: =ROUND(AD15*($AN$3*AE15+$AN$4*AF15),0) -> 0 | AP15: =ROUND(AC15*($AN$3*AE15+$AN$4*AF15),0) -> 0 | AU15: A.2.1.1.4 | AV15: =IF(BI15=4,IF(BI26=4,IF($N$28>0,"Výpočtem jen v A.2.2.1.4",""),""),"") ->  | AY15: Inženýrská činnost pro předprojektové dokumentace | BB15: Nezařazeno | BD15: =IF(BB15="Výpočtem",(IF($I$3="",0,IF($I$3="Stádium 3",0,IF($I$3="Stádium 2",0,CH15)))),0) -> 0 | BE15: =IF($I$3="Stádium 1","",IF($I$3="","",IF(BI15=4,CONCATENATE("Nelze ve ",$I$3),""))) ->  | BF15: =BH15*hide!$D$59 -> 0
A16: A.2.1.1.5 | E16: Ostatní náklady pro předprojektové dokumentace | H16: Nezařazeno | K16: =IF($I$3="Stádium 1","",IF($I$3="","",IF(O16=4,"Nelze Výpočtem v stádiu",""))) ->  | L16: =N16*hide!$D$59 -> 0 | N16: =IF(H16="Nezařazeno",0,IF(H16="Výpočtem",J16,I16)) -> 0 | O16: =IF((IF(H16="Individuálně",1,IF(H16="Smluvně",1,IF(H16="Nezařazeno",2,2))))=1,IF(I16=0,3,1),IF(H16="Výpočtem",4,2)) -> 2 | Q16: Smluvně | R16: Individuálně | S16: Nezařazeno | T16: není určena | AH16: =IF(AG16="PŘEKROČENÉ %",IF(H16="Smluvně",0,IF(H16="Nezařazeno",0,IF(H16="Individuálně",IF(AG16="PŘEKROČENÉ %",100,1),1))),0) -> 0 | AI16: =IF(AG16="PŘEKROČENÉ %",IF(H16="Smluvně",0,IF(H16="Nezařazeno",0,IF(H16="Individuálně",IF(AH16="PŘEKROČENÉ %",0,0),1))),0) -> 0 | AU16: A.2.1.1.5 | AY16: Ostatní náklady pro předprojektové dokumentace | BB16: Nezařazeno | BE16: =IF($I$3="Stádium 1","",IF($I$3="","",IF(BI16=4,"Nelze Výpočtem v stádiu",""))) ->  | BF16: =BH16*hide!$D$59 -> 0
A17: A.2.1.2 | D17: Záměr projektu | J17: =N17 -> 0 | K17: =IF($I$3="Stádium 1","",IF($I$3="","",IF(O17=4,"Nelze Výpočtem v stádiu",""))) ->  | L17: =SUM(L18:L19) -> 0 | N17: =SUM(N18:N19) -> 0 | AH17: =IF(AG17="PŘEKROČENÉ %",IF(H17="Smluvně",0,IF(H17="Nezařazeno",0,IF(H17="Individuálně",IF(AG17="PŘEKROČENÉ %",100,1),1))),0) -> 0 | AI17: =IF(AG17="PŘEKROČENÉ %",IF(H17="Smluvně",0,IF(H17="Nezařazeno",0,IF(H17="Individuálně",IF(AH17="PŘEKROČENÉ %",0,0),1))),0) -> 0 | AU17: A.2.1.2 | AX17: Záměr projektu | BD17: =BH17 -> 0 | BE17: =IF($I$3="Stádium 1","",IF($I$3="","",IF(BI17=4,"Nelze Výpočtem v stádiu",""))) ->  | BF17: =SUM(BF18:BF19) -> 0
A18: A.2.1.2.1 | D18: z toho | E18: Záměr projektu, povinný obsah | G18: ZP | H18: Nezařazeno | J18: =IF(H18="Výpočtem",(IF($I$3="",0,IF($I$3="Stádium 3",0,IF($I$3="Stádium 2",0,AN18)))),0) -> 0 | K18: =IF($I$3="Stádium 1","",IF($I$3="","",IF(O18=4,CONCATENATE("Nelze ve ",$I$3),""))) ->  | L18: =N18*hide!$D$59 -> 0 | N18: =IF(H18="Nezařazeno",0,IF(H18="Výpočtem",J18,I18)) -> 0 | O18: =IF((IF(H18="Individuálně",1,IF(H18="Smluvně",1,IF(H18="Nezařazeno",2,2))))=1,IF(I18=0,3,1),IF(H18="Výpočtem",4,2)) -> 2 | P18: Výpočtem | Q18: Smluvně | R18: Individuálně | S18: Nezařazeno | U18: 0.0025 | V18: 0.0015 | W18: 0.001 | X18: 0.0008 | Y18: 0.0008 | Z18: 0.0005 | AA18: =($T$3*$AE18+$T$4*$AF18)*AC18 -> 0 | AB18: =($T$3*$AE18+$T$4*$AF18)*AD18 -> 0 | AC18: =IF($AN$2>5000000000,Z18,IF($AN$2>2000000000,X18,IF($AN$2>($W$6*1000000),W18,IF($AN$2>($V$6*1000000),V18,IF($AN$2>($U$6*1000000),U18,T18))))) -> 0 | AD18: =IF($AN$2>5000000000,Z18,IF($AN$2>2000000000,Y18,IF($AN$2>($W$6*1000000),X18,IF($AN$2>($V$6*1000000),W18,IF($AN$2>($U$6*1000000),V18,U18))))) -> 0.0025 | AE18: 1 | AF18: 1 | AG18: =IF(I18>AA18,IF(H18="Aktualizace","PŘEKROČENÉ %",IF(H18="Individuálně","PŘEKROČENÉ","OK")),"OK") -> OK | AH18: =IF(AG18="PŘEKROČENÉ %",IF(H18="Smluvně",0,IF(H18="Nezařazeno",0,IF(H18="Individuálně",IF(AG18="PŘEKROČENÉ %",100,1),1))),0) -> 0 | AI18: =IF(AG18="PŘEKROČENÉ %",IF(H18="Smluvně",0,IF(H18="Nezařazeno",0,IF(H18="Individuálně",IF(AH18="PŘEKROČENÉ %",0,0),1))),0) -> 0 | AJ18: =IF($AN$2>5000000000,$X$6*1000000,IF($AN$2>($W$6*1000000),$W$6*1000000,IF($AN$2>($V$6*1000000),$V$6*1000000,IF($AN$2>($U$6*1000000),$U$6*1000000,0)))) -> 0 | AK18: =IF($AN$2>5000000000,5000000000,IF($AN$2>($W$6*1000000),$X$6*1000000,IF($AN$2>($V$6*1000000),$W$6*1000000,IF($AN$2>($U$6*1000000),$V$6*1000000,$U$6*1000000)))) -> 50000000 | AL18: =IF($AN$2<X$6*1000000,(X18+(((U18-X18)/($X$6*1000000))*($X$6*1000000-$AN$2))),IF($AN$2<$Y$6,Y18,Z18)) -> 0.0025 | AM18: =IF(AL18=0,0,100%-((AA18-AN18)/AA18)) ->  | AN18: =ROUND(AL18*($AN$3*AE18+$AN$4*AF18),0) -> 0 | AO18: =ROUND(AD18*($AN$3*AE18+$AN$4*AF18),0) -> 0 | AP18: =ROUND(AC18*($AN$3*AE18+$AN$4*AF18),0) -> 0 | AU18: A.2.1.2.1 | AX18: z toho | AY18: Záměr projektu, povinný obsah | BA18: ZP | BB18: Nezařazeno | BD18: =IF(BB18="Výpočtem",(IF($I$3="",0,IF($I$3="Stádium 3",0,IF($I$3="Stádium 2",0,CH18)))),0) -> 0 | BE18: =IF($I$3="Stádium 1","",IF($I$3="","",IF(BI18=4,CONCATENATE("Nelze ve ",$I$3),""))) ->  | BF18: =BH18*hide!$D$59 -> 0
A19: A.2.1.2.2 | E19: Doprovodná dokumentace | G19: DD | H19: Nezařazeno | L19: =N19*hide!$D$59 -> 0 | N19: =IF(H19="Nezařazeno",0,IF(H19="Výpočtem",J19,I19)) -> 0 | O19: =IF((IF(H19="Předpoklad",1,IF(H19="Smluvně",1,IF(H19="Nezařazeno",2,2))))=1,IF(I19=0,3,1),IF(H19="Výpočtem",4,2)) -> 2 | Q19: Smluvně | R19: Předpoklad | S19: Nezařazeno | T19: není určena | AH19: =IF(AG19="PŘEKROČENÉ %",IF(H19="Smluvně",0,IF(H19="Nezařazeno",0,IF(H19="Individuálně",IF(AG19="PŘEKROČENÉ %",100,1),1))),0) -> 0 | AI19: =IF(AG19="PŘEKROČENÉ %",IF(H19="Smluvně",0,IF(H19="Nezařazeno",0,IF(H19="Individuálně",IF(AH19="PŘEKROČENÉ %",0,0),1))),0) -> 0 | AU19: A.2.1.2.2 | AY19: Doprovodná dokumentace | BA19: DD | BB19: Nezařazeno | BF19: =BH19*hide!$D$59 -> 0
A20: A.2.1.3 | C20: =IF($S$103="Chyba","=>","") ->  | D20: Dokumentace pro územní řízení | G20: DUR | H20: Nezařazeno | J20: =IF(S103="Chyba",0,IF(H20="Výpočtem",(IF($I$3="",0,IF($I$3="Stádium 3",0,IF($I$3="Stádium 2",0,AN20)))),0)) -> 0 | K20: =IF($I$3="Stádium 1","",IF($I$3="","",IF(O20=4,CONCATENATE("Nelze ve ",$I$3),""))) ->  | L20: =N20*hide!$D$59 -> 0 | N20: =IF(H20="Nezařazeno",0,IF(H20="Výpočtem",J20,I20)) -> 0 | O20: =IF((IF(H20="Individuálně",1,IF(H20="Smluvně",1,IF(H20="Nezařazeno",2,2))))=1,IF(I20=0,3,1),IF(H20="Výpočtem",4,2)) -> 2 | P20: Výpočtem | Q20: Smluvně | R20: Individuálně | S20: Nezařazeno | T20: 0.03 | U20: =U68 -> 0.022 | V20: =V68 -> 0.018 | W20: =W68 -> 0.012 | X20: 0.008 | Y20: 0.007 | Z20: 0.006 | AA20: =($T$3*$AE20+$T$4*$AF20)*AC20 -> 0 | AB20: =($T$3*$AE20+$T$4*$AF20)*AD20 -> 0 | AC20: =IF($AN$2>5000000000,Z20,IF($AN$2>2000000000,X20,IF($AN$2>($W$6*1000000),W20,IF($AN$2>($V$6*1000000),V20,IF($AN$2>($U$6*1000000),U20,T20))))) -> 0.03 | AD20: =IF($AN$2>5000000000,Z20,IF($AN$2>2000000000,Y20,IF($AN$2>($W$6*1000000),X20,IF($AN$2>($V$6*1000000),W20,IF($AN$2>($U$6*1000000),V20,U20))))) -> 0.022 | AE20: 1 | AF20: 1 | AG20: =IF(I20>AA20,IF(H20="Aktualizace","PŘEKROČENÉ %",IF(H20="Individuálně","PŘEKROČENÉ","OK")),"OK") -> OK | AH20: =IF(AG20="PŘEKROČENÉ %",IF(H20="Výpočtem",0,IF(H20="Smluvně",0,IF(H20="Nezařazeno",0,IF(H20="Individuálně",IF(AG20="PŘEKROČENÉ %",100,1),1)))),0) -> 0 | AI20: =IF(AG20="PŘEKROČENÉ %",IF(H20="Výpočtem",0,IF(H20="Smluvně",0,IF(H20="Nezařazeno",0,IF(H20="Individuálně",IF(AH20="PŘEKROČENÉ %",0,0),1)))),0) -> 0 | AJ20: =IF($AN$2>5000000000,$X$6*1000000,IF($AN$2>($W$6*1000000),$W$6*1000000,IF($AN$2>($V$6*1000000),$V$6*1000000,IF($AN$2>($U$6*1000000),$U$6*1000000,0)))) -> 0 | AK20: =IF($AN$2>5000000000,5000000000,IF($AN$2>($W$6*1000000),$X$6*1000000,IF($AN$2>($V$6*1000000),$W$6*1000000,IF($AN$2>($U$6*1000000),$V$6*1000000,$U$6*1000000)))) -> 50000000 | AL20: =IF($AN$2<X$6*1000000,(X20+(((U20-X20)/($X$6*1000000))*($X$6*1000000-$AN$2))),IF($AN$2<$Y$6,Y20,Z20)) -> 0.022 | AM20: =IF(AL20=0,0,100%-((AA20-AN20)/AA20)) ->  | AN20: =ROUND(AL20*($AN$3*AE20+$AN$4*AF20),0) -> 0 | AO20: =ROUND(AD20*($AN$3*AE20+$AN$4*AF20),0) -> 0 | AP20: =ROUND(AC20*($AN$3*AE20+$AN$4*AF20),0) -> 0 | AU20: A.2.1.3 | AW20: =IF($S$103="Chyba","=>","") ->  | AX20: Dokumentace pro územní řízení | BA20: DUR | BB20: Nezařazeno | BD20: =IF(BM103="Chyba",0,IF(BB20="Výpočtem",(IF($I$3="",0,IF($I$3="Stádium 3",0,IF($I$3="Stádium 2",0,CH20)))),0)) -> 0 | BE20: =IF($I$3="Stádium 1","",IF($I$3="","",IF(BI20=4,CONCATENATE("Nelze ve ",$I$3),""))) ->  | BF20: =BH20*hide!$D$59 -> 0
A21: A.2.2 | C21: Náklady na projektové dokumentace | J21: =N21 -> 0 | L21: =L22+L28+L29+L30+L31 -> 0 | N21: =N22+N28+N29+N30+N31 -> 0 | AH21: =IF(AG21="PŘEKROČENÉ %",IF(H21="Smluvně",0,IF(H21="Nezařazeno",0,IF(H21="Individuálně",IF(AG21="PŘEKROČENÉ %",100,1),1))),0) -> 0 | AI21: =IF(AG21="PŘEKROČENÉ %",IF(H21="Smluvně",0,IF(H21="Nezařazeno",0,IF(H21="Individuálně",IF(AH21="PŘEKROČENÉ %",0,0),1))),0) -> 0 | AU21: A.2.2 | AW21: Náklady na projektové dokumentace | BD21: =BH21 -> 0 | BF21: =BF22+BF28+BF29+BF30+BF31 -> 0
A22: A.2.2.1 | C22: z toho | D22: Práce prováděné pro zpracování projektových dokumentací | J22: =N22 -> 0 | L22: =SUM(L23:L27) -> 0 | N22: =SUM(N23:N27) -> 0 | AH22: =IF(AG22="PŘEKROČENÉ %",IF(H22="Smluvně",0,IF(H22="Nezařazeno",0,IF(H22="Individuálně",IF(AG22="PŘEKROČENÉ %",100,1),1))),0) -> 0 | AI22: =IF(AG22="PŘEKROČENÉ %",IF(H22="Smluvně",0,IF(H22="Nezařazeno",0,IF(H22="Individuálně",IF(AH22="PŘEKROČENÉ %",0,0),1))),0) -> 0 | AU22: A.2.2.1 | AW22: z toho | AX22: Práce prováděné pro zpracování projektových dokumentací | BD22: =BH22 -> 0 | BF22: =SUM(BF23:BF27) -> 0
A23: A.2.2.1.1 | B23: =IF(O12=4,IF(O23=4,IF($N$28>0,"=>",""),""),"") ->  | D23: z toho | E23: Geodetické práce a mapové podklady | H23: Nezařazeno | J23: =IF(H23="Výpočtem",(IF($I$3="",0,IF($I$3="Stádium 3",0,AN23))),0) -> 0 | K23: =IF($I$3="Stádium 3",IF($I$3="","",IF(O23=4,CONCATENATE("Nelze ve ",$I$3),"")),"") ->  | L23: =N23*hide!$D$59 -> 0 | N23: =IF(H23="Nezařazeno",0,IF(H23="Výpočtem",J23,I23)) -> 0 | O23: =IF((IF(H23="Individuálně",1,IF(H23="Smluvně",1,IF(H23="Nezařazeno",2,2))))=1,IF(I23=0,3,1),IF(H23="Výpočtem",4,2)) -> 2 | P23: Výpočtem | Q23: Smluvně | R23: Individuálně | S23: Nezařazeno | T23: =T93 -> 0.0013 | U23: =U93 -> 0.0013 | V23: 0.0012 | W23: 0.0007 | X23: 0.0002 | Y23: 0.0002 | Z23: 0.0002 | AA23: =($T$3*$AE23+$T$4*$AF23)*AC23 -> 0 | AB23: =($T$3*$AE23+$T$4*$AF23)*AD23 -> 0 | AC23: =IF($AN$2>5000000000,Z23,IF($AN$2>2000000000,X23,IF($AN$2>($W$6*1000000),W23,IF($AN$2>($V$6*1000000),V23,IF($AN$2>($U$6*1000000),U23,T23))))) -> 0.0013 | AD23: =IF($AN$2>5000000000,Z23,IF($AN$2>2000000000,Y23,IF($AN$2>($W$6*1000000),X23,IF($AN$2>($V$6*1000000),W23,IF($AN$2>($U$6*1000000),V23,U23))))) -> 0.0013 | AE23: 1 | AF23: 1 | AG23: =IF(I23>AA23,IF(H23="Aktualizace","PŘEKROČENÉ %",IF(H23="Individuálně","PŘEKROČENÉ","OK")),"OK") -> OK | AH23: =IF(AG23="PŘEKROČENÉ %",IF(H23="Výpočtem",0,IF(H23="Smluvně",0,IF(H23="Nezařazeno",0,IF(H23="Individuálně",IF(AG23="PŘEKROČENÉ %",100,1),1)))),0) -> 0 | AI23: =IF(AG23="PŘEKROČENÉ %",IF(H23="Výpočtem",0,IF(H23="Smluvně",0,IF(H23="Nezařazeno",0,IF(H23="Individuálně",IF(AH23="PŘEKROČENÉ %",0,0),1)))),0) -> 0 | AJ23: =IF($AN$2>5000000000,$X$6*1000000,IF($AN$2>($W$6*1000000),$W$6*1000000,IF($AN$2>($V$6*1000000),$V$6*1000000,IF($AN$2>($U$6*1000000),$U$6*1000000,0)))) -> 0 | AK23: =IF($AN$2>5000000000,5000000000,IF($AN$2>($W$6*1000000),$X$6*1000000,IF($AN$2>($V$6*1000000),$W$6*1000000,IF($AN$2>($U$6*1000000),$V$6*1000000,$U$6*1000000)))) -> 50000000 | AL23: =IF($AN$2<X$6*1000000,(X23+(((U23-X23)/($X$6*1000000))*($X$6*1000000-$AN$2))),IF($AN$2<$Y$6,Y23,Z23)) -> 0.0013 | AM23: =IF(AL23=0,0,100%-((AA23-AN23)/AA23)) ->  | AN23: =ROUND(AL23*($AN$3*AE23+$AN$4*AF23),0) -> 0 | AO23: =ROUND(AD23*($AN$3*AE23+$AN$4*AF23),0) -> 0 | AP23: =ROUND(AC23*($AN$3*AE23+$AN$4*AF23),0) -> 0 | AU23: A.2.2.1.1 | AV23: =IF(BI12=4,IF(BI23=4,IF($N$28>0,"=>",""),""),"") ->  | AX23: z toho | AY23: Geodetické práce a mapové podklady | BB23: Nezařazeno | BD23: =IF(BB23="Výpočtem",(IF($I$3="",0,IF($I$3="Stádium 3",0,CH23))),0) -> 0 | BE23: =IF($I$3="Stádium 3",IF($I$3="","",IF(BI23=4,CONCATENATE("Nelze ve ",$I$3),"")),"") ->  | BF23: =BH23*hide!$D$59 -> 0
A24: A.2.2.1.2 | B24: =IF(O13=4,IF(O24=4,IF($N$28>0,"=>",""),""),"") ->  | E24: Geotechnický průzkum | H24: Nezařazeno | J24: =IF(H24="Výpočtem",(IF($I$3="",0,IF($I$3="Stádium 3",0,AN24))),0) -> 0 | K24: =IF($I$3="Stádium 3",IF($I$3="","",IF(O24=4,CONCATENATE("Nelze ve ",$I$3),"")),"") ->  | L24: =N24*hide!$D$59 -> 0 | N24: 0 | O24: 2 | P24: Výpočtem | Q24: Smluvně | R24: Individuálně | S24: Nezařazeno | T24: =T94 -> 0.0056 | U24: 0.0056 | V24: 0.0053 | W24: 0.0039 | X24: 0.0022 | Y24: 0.0022 | Z24: 0.0022 | AA24: =($T$3*$AE24+$T$4*$AF24)*AC24 -> 0 | AB24: 0 | AC24: =IF($AN$2>5000000000,Z24,IF($AN$2>2000000000,X24,IF($AN$2>($W$6*1000000),W24,IF($AN$2>($V$6*1000000),V24,IF($AN$2>($U$6*1000000),U24,T24))))) -> 0.0056 | AD24: =IF($AN$2>5000000000,Z24,IF($AN$2>2000000000,Y24,IF($AN$2>($W$6*1000000),X24,IF($AN$2>($V$6*1000000),W24,IF($AN$2>($U$6*1000000),V24,U24))))) -> 0.0056 | AE24: 1 | AF24: 0.05 | AG24: =IF(I24>AA24,IF(H24="Aktualizace","PŘEKROČENÉ %",IF(H24="Individuálně","PŘEKROČENÉ","OK")),"OK") -> OK | AH24: =IF(AG24="PŘEKROČENÉ %",IF(H24="Výpočtem",0,IF(H24="Smluvně",0,IF(H24="Nezařazeno",0,IF(H24="Individuálně",IF(AG24="PŘEKROČENÉ %",100,1),1)))),0) -> 0 | AI24: =IF(AG24="PŘEKROČENÉ %",IF(H24="Výpočtem",0,IF(H24="Smluvně",0,IF(H24="Nezařazeno",0,IF(H24="Individuálně",IF(AH24="PŘEKROČENÉ %",0,0),1)))),0) -> 0 | AJ24: =IF($AN$2>5000000000,$X$6*1000000,IF($AN$2>($W$6*1000000),$W$6*1000000,IF($AN$2>($V$6*1000000),$V$6*1000000,IF($AN$2>($U$6*1000000),$U$6*1000000,0)))) -> 0 | AK24: =IF($AN$2>5000000000,5000000000,IF($AN$2>($W$6*1000000),$X$6*1000000,IF($AN$2>($V$6*1000000),$W$6*1000000,IF($AN$2>($U$6*1000000),$V$6*1000000,$U$6*1000000)))) -> 50000000 | AL24: =IF($AN$2<X$6*1000000,(X24+(((U24-X24)/($X$6*1000000))*($X$6*1000000-$AN$2))),IF($AN$2<$Y$6,Y24,Z24)) -> 0.0056 | AM24: =IF(AL24=0,0,100%-((AA24-AN24)/AA24)) ->  | AN24: 0 | AO24: 0 | AP24: 0 | AU24: A.2.2.1.2 | AV24: =IF(BI13=4,IF(BI24=4,IF($N$28>0,"=>",""),""),"") ->  | AY24: Geotechnický průzkum | BB24: Nezařazeno | BD24: =IF(BB24="Výpočtem",(IF($I$3="",0,IF($I$3="Stádium 3",0,CH24))),0) -> 0 | BE24: =IF($I$3="Stádium 3",IF($I$3="","",IF(BI24=4,CONCATENATE("Nelze ve ",$I$3),"")),"") ->  | BF24: =BH24*hide!$D$59 -> 0
A25: A.2.2.1.3 | E25: Ostatní průzkumné práce | H25: Nezařazeno | J25: =IF(H25="Výpočtem",(IF($I$3="",0,IF($I$3="Stádium 3",0,AN25))),0) -> 0 | K25: =IF($I$3="Stádium 3",IF($I$3="","",IF(O25=4,CONCATENATE("Nelze ve ",$I$3),"")),"") ->  | L25: =N25*hide!$D$59 -> 0 | N25: 0 | O25: 2 | P25: Výpočtem | Q25: Smluvně | R25: Individuálně | S25: Nezařazeno | T25: 0.02 | U25: 0.012 | V25: 0.01 | W25: 0.008 | X25: 0.005 | Y25: 0.005 | Z25: 0.005 | AA25: =($T$3*$AE25+$T$4*$AF25)*AC25 -> 0 | AB25: 0 | AC25: =IF($AN$2>5000000000,Z25,IF($AN$2>2000000000,X25,IF($AN$2>($W$6*1000000),W25,IF($AN$2>($V$6*1000000),V25,IF($AN$2>($U$6*1000000),U25,T25))))) -> 0.02 | AD25: =IF($AN$2>5000000000,Z25,IF($AN$2>2000000000,Y25,IF($AN$2>($W$6*1000000),X25,IF($AN$2>($V$6*1000000),W25,IF($AN$2>($U$6*1000000),V25,U25))))) -> 0.012 | AE25: 1 | AF25: 0.05 | AG25: =IF(I25>AA25,IF(H25="Aktualizace","PŘEKROČENÉ %",IF(H25="Individuálně","PŘEKROČENÉ","OK")),"OK") -> OK | AH25: =IF(AG25="PŘEKROČENÉ %",IF(H25="Výpočtem",0,IF(H25="Smluvně",0,IF(H25="Nezařazeno",0,IF(H25="Individuálně",IF(AG25="PŘEKROČENÉ %",100,1),1)))),0) -> 0 | AI25: =IF(AG25="PŘEKROČENÉ %",IF(H25="Výpočtem",0,IF(H25="Smluvně",0,IF(H25="Nezařazeno",0,IF(H25="Individuálně",IF(AH25="PŘEKROČENÉ %",0,0),1)))),0) -> 0 | AJ25: =IF($AN$2>5000000000,$X$6*1000000,IF($AN$2>($W$6*1000000),$W$6*1000000,IF($AN$2>($V$6*1000000),$V$6*1000000,IF($AN$2>($U$6*1000000),$U$6*1000000,0)))) -> 0 | AK25: =IF($AN$2>5000000000,5000000000,IF($AN$2>($W$6*1000000),$X$6*1000000,IF($AN$2>($V$6*1000000),$W$6*1000000,IF($AN$2>($U$6*1000000),$V$6*1000000,$U$6*1000000)))) -> 50000000 | AL25: =IF($AN$2<X$6*1000000,(X25+(((U25-X25)/($X$6*1000000))*($X$6*1000000-$AN$2))),IF($AN$2<$Y$6,Y25,Z25)) -> 0.012 | AM25: =IF(AL25=0,0,100%-((AA25-AN25)/AA25)) ->  | AN25: =ROUND(AL25*(PN!J17+PN!J20+PN!J23+PN!J26+PN!J27/2),0) -> 0 | AO25: 0 | AP25: 0 | AU25: A.2.2.1.3 | AY25: Ostatní průzkumné práce | BB25: Nezařazeno | BD25: =IF(BB25="Výpočtem",(IF($I$3="",0,IF($I$3="Stádium 3",0,CH25))),0) -> 0 | BE25: =IF($I$3="Stádium 3",IF($I$3="","",IF(BI25=4,CONCATENATE("Nelze ve ",$I$3),"")),"") ->  | BF25: =BH25*hide!$D$59 -> 0
A26: A.2.2.1.4 | B26: =IF(O15=4,IF(O26=4,IF($N$28>0,"=>",""),""),"") ->  | E26: Inženýrská činnost pro projektové dokumentace | H26: Nezařazeno | J26: =IF(H26="Výpočtem",(IF($I$3="",0,IF($I$3="Stádium 3",0,AN26))),0) -> 0 | K26: =IF($I$3="Stádium 3",IF($I$3="","",IF(O26=4,CONCATENATE("Nelze ve ",$I$3),"")),"") ->  | L26: =N26*hide!$D$59 -> 0 | N26: 0 | O26: 2 | P26: Výpočtem | Q26: Smluvně | R26: Individuálně | S26: Nezařazeno | T26: =T95 -> 0.0023 | U26: =U95 -> 0.0018 | V26: 0.0017 | W26: 0.0014 | X26: 0.0009 | Y26: 0.0009 | Z26: 0.0009 | AA26: =($T$3*$AE26+$T$4*$AF26)*AC26 -> 0 | AB26: 0 | AC26: =IF($AN$2>5000000000,Z26,IF($AN$2>2000000000,X26,IF($AN$2>($W$6*1000000),W26,IF($AN$2>($V$6*1000000),V26,IF($AN$2>($U$6*1000000),U26,T26))))) -> 0.0023 | AD26: =IF($AN$2>5000000000,Z26,IF($AN$2>2000000000,Y26,IF($AN$2>($W$6*1000000),X26,IF($AN$2>($V$6*1000000),W26,IF($AN$2>($U$6*1000000),V26,U26))))) -> 0.0018 | AE26: 1 | AF26: 0.7 | AG26: =IF(I26>AA26,IF(H26="Aktualizace","PŘEKROČENÉ %",IF(H26="Individuálně","PŘEKROČENÉ","OK")),"OK") -> OK | AH26: =IF(AG26="PŘEKROČENÉ %",IF(H26="Výpočtem",0,IF(H26="Smluvně",0,IF(H26="Nezařazeno",0,IF(H26="Individuálně",IF(AG26="PŘEKROČENÉ %",100,1),1)))),0) -> 0 | AI26: =IF(AG26="PŘEKROČENÉ %",IF(H26="Výpočtem",0,IF(H26="Smluvně",0,IF(H26="Nezařazeno",0,IF(H26="Individuálně",IF(AH26="PŘEKROČENÉ %",0,0),1)))),0) -> 0 | AJ26: =IF($AN$2>5000000000,$X$6*1000000,IF($AN$2>($W$6*1000000),$W$6*1000000,IF($AN$2>($V$6*1000000),$V$6*1000000,IF($AN$2>($U$6*1000000),$U$6*1000000,0)))) -> 0 | AK26: =IF($AN$2>5000000000,5000000000,IF($AN$2>($W$6*1000000),$X$6*1000000,IF($AN$2>($V$6*1000000),$W$6*1000000,IF($AN$2>($U$6*1000000),$V$6*1000000,$U$6*1000000)))) -> 50000000 | AL26: =IF($AN$2<X$6*1000000,(X26+(((U26-X26)/($X$6*1000000))*($X$6*1000000-$AN$2))),IF($AN$2<$Y$6,Y26,Z26)) -> 0.0018 | AM26: =IF(AL26=0,0,100%-((AA26-AN26)/AA26)) ->  | AN26: =ROUND(AL26*($AN$3*AE26+$AN$4*AF26),0) -> 0 | AO26: 0 | AP26: 0 | AU26: A.2.2.1.4 | AV26: =IF(BI15=4,IF(BI26=4,IF($N$28>0,"=>",""),""),"") ->  | AY26: Inženýrská činnost pro projektové dokumentace | BB26: Nezařazeno | BD26: =IF(BB26="Výpočtem",(IF($I$3="",0,IF($I$3="Stádium 3",0,CH26))),0) -> 0 | BE26: =IF($I$3="Stádium 3",IF($I$3="","",IF(BI26=4,CONCATENATE("Nelze ve ",$I$3),"")),"") ->  | BF26: =BH26*hide!$D$59 -> 0
A27: A.2.2.1.5 | E27: Ostatní náklady pro projektové dokumentace | H27: Nezařazeno | L27: =N27*hide!$D$59 -> 0 | N27: 0 | O27: 2 | Q27: Smluvně | R27: Individuálně | S27: Nezařazeno | T27: není určena | AH27: =IF(AG27="PŘEKROČENÉ %",IF(H27="Smluvně",0,IF(H27="Nezařazeno",0,IF(H27="Individuálně",IF(AG27="PŘEKROČENÉ %",100,1),1))),0) -> 0 | AI27: =IF(AG27="PŘEKROČENÉ %",IF(H27="Smluvně",0,IF(H27="Nezařazeno",0,IF(H27="Individuálně",IF(AH27="PŘEKROČENÉ %",0,0),1))),0) -> 0 | AU27: A.2.2.1.5 | AY27: Ostatní náklady pro projektové dokumentace | BB27: Nezařazeno | BF27: =BH27*hide!$D$59 -> 0
A28: A.2.2.2 | B28: =IF(B23="",IF(B24="",IF(B26="","","DUSP/L"),"DUSP/L"),"DUSP/L") ->  | C28: =IF($S$103="Chyba","=>","") ->  | D28: Projektová dokumentace společné povolení | G28: - | H28: Nezařazeno | J28: =IF(S103="Chyba",0,IF(W103="Chyba",0,IF(H28="Výpočtem",AN28,0))) -> 0 | K28: =IF($W$103="Chyba","",IF($S$103="Chyba","",(IF($I$3="Stádium 3",IF($I$3="","",IF(O28=4,CONCATENATE("Nelze ve ",$I$3),"")),"")))) ->  | L28: =N28*hide!$D$59 -> 0 | N28: 0 | O28: 2 | P28: Výpočtem | Q28: Smluvně | R28: Individuálně | S28: Nezařazeno | T28: =T96 -> 0 | U28: =U96 -> 0 | V28: 0 | W28: 0 | X28: 0 | Y28: 0 | Z28: 0 | AA28: =($T$3*$AE28+$T$4*$AF28)*AC28 -> 0 | AB28: =($T$3*$AE28+$T$4*$AF28)*AD28 -> 0 | AC28: =IF($AN$2>5000000000,Z28,IF($AN$2>2000000000,X28,IF($AN$2>($W$6*1000000),W28,IF($AN$2>($V$6*1000000),V28,IF($AN$2>($U$6*1000000),U28,T28))))) -> 0 | AD28: =IF($AN$2>5000000000,Z28,IF($AN$2>2000000000,Y28,IF($AN$2>($W$6*1000000),X28,IF($AN$2>($V$6*1000000),W28,IF($AN$2>($U$6*1000000),V28,U28))))) -> 0 | AE28: 0.6 | AF28: 0.6 | AG28: =IF(I28>AA28,IF(H28="Aktualizace","PŘEKROČENÉ %",IF(H28="Individuálně","PŘEKROČENÉ","OK")),"OK") -> OK | AH28: =IF(AG28="PŘEKROČENÉ %",IF(H28="Výpočtem",0,IF(H28="Smluvně",0,IF(H28="Nezařazeno",0,IF(H28="Individuálně",IF(AG28="PŘEKROČENÉ %",100,1),1)))),0) -> 0 | AI28: =IF(AG28="PŘEKROČENÉ %",IF(H28="Výpočtem",0,IF(H28="Smluvně",0,IF(H28="Nezařazeno",0,IF(H28="Individuálně",IF(AH28="PŘEKROČENÉ %",0,0),1)))),0) -> 0 | AJ28: =IF($AN$2>5000000000,$X$6*1000000,IF($AN$2>($W$6*1000000),$W$6*1000000,IF($AN$2>($V$6*1000000),$V$6*1000000,IF($AN$2>($U$6*1000000),$U$6*1000000,0)))) -> 0 | AK28: =IF($AN$2>5000000000,5000000000,IF($AN$2>($W$6*1000000),$X$6*1000000,IF($AN$2>($V$6*1000000),$W$6*1000000,IF($AN$2>($U$6*1000000),$V$6*1000000,$U$6*1000000)))) -> 50000000 | AL28: =IF($AN$2<X$6*1000000,(X28+(((U28-X28)/($X$6*1000000))*($X$6*1000000-$AN$2))),IF($AN$2<$Y$6,Y28,Z28)) -> 0 | AM28: =IF(AL28=0,0,100%-((AA28-AN28)/AA28)) -> 0 | AN28: =ROUND((AL28*($AN$3*AE28+$AN$4*AF28)),0) -> 0 | AO28: =AA28-AN28 -> 0 | AP28: =AN28-AB28 -> 0 | AU28: A.2.2.2 | AV28: =IF(AV23="",IF(AV24="",IF(AV26="","","DUSP/L"),"DUSP/L"),"DUSP/L") ->  | AW28: =IF($S$103="Chyba","=>","") ->  | AX28: Projektová dokumentace společné povolení | BA28: - | BB28: Nezařazeno | BD28: =IF(BM103="Chyba",0,IF(BQ103="Chyba",0,IF(BB28="Výpočtem",CH28,0))) -> 0 | BE28: =IF($W$103="Chyba","",IF($S$103="Chyba","",(IF($I$3="Stádium 3",IF($I$3="","",IF(BI28=4,CONCATENATE("Nelze ve ",$I$3),"")),"")))) ->  | BF28: =BH28*hide!$D$59 -> 0
A29: A.2.2.3 | D29: Projektová dokumentace pro stavební povolení | G29: DSP | H29: Nezařazeno | J29: =IF(H29="Výpočtem",(IF($I$3="",0,IF($I$3="Stádium 3",0,AN29))),0) -> 0 | K29: =IF($S$103="Chyba","",(IF($I$3="Stádium 3",IF($I$3="","",IF(O29=4,CONCATENATE("Nelze ve ",$I$3),"")),""))) ->  | L29: =N29*hide!$D$59 -> 0 | N29: 0 | O29: 2 | P29: Výpočtem | Q29: Smluvně | R29: Individuálně | S29: Nezařazeno | T29: 0.09 | U29: =U69 -> 0.072 | V29: =V69 -> 0.068 | W29: =W69 -> 0.055 | X29: 0.04 | Y29: 0.03 | Z29: 0.02 | AA29: =($T$3*$AE29+$T$4*$AF29)*AC29 -> 0 | AB29: 0 | AC29: =IF($AN$2>5000000000,Z29,IF($AN$2>2000000000,X29,IF($AN$2>($W$6*1000000),W29,IF($AN$2>($V$6*1000000),V29,IF($AN$2>($U$6*1000000),U29,T29))))) -> 0.09 | AD29: =IF($AN$2>5000000000,Z29,IF($AN$2>2000000000,Y29,IF($AN$2>($W$6*1000000),X29,IF($AN$2>($V$6*1000000),W29,IF($AN$2>($U$6*1000000),V29,U29))))) -> 0.072 | AE29: 0.6 | AF29: 0.6 | AG29: =IF(I29>AA29,IF(H29="Aktualizace","PŘEKROČENÉ %",IF(H29="Individuálně","PŘEKROČENÉ","OK")),"OK") -> OK | AH29: =IF(AG29="PŘEKROČENÉ %",IF(H29="Výpočtem",0,IF(H29="Smluvně",0,IF(H29="Nezařazeno",0,IF(H29="Individuálně",IF(AG29="PŘEKROČENÉ %",100,1),1)))),0) -> 0 | AI29: =IF(AG29="PŘEKROČENÉ %",IF(H29="Výpočtem",0,IF(H29="Smluvně",0,IF(H29="Nezařazeno",0,IF(H29="Individuálně",IF(AH29="PŘEKROČENÉ %",0,0),1)))),0) -> 0 | AJ29: =IF($AN$2>5000000000,$X$6*1000000,IF($AN$2>($W$6*1000000),$W$6*1000000,IF($AN$2>($V$6*1000000),$V$6*1000000,IF($AN$2>($U$6*1000000),$U$6*1000000,0)))) -> 0 | AK29: =IF($AN$2>5000000000,5000000000,IF($AN$2>($W$6*1000000),$X$6*1000000,IF($AN$2>($V$6*1000000),$W$6*1000000,IF($AN$2>($U$6*1000000),$V$6*1000000,$U$6*1000000)))) -> 50000000 | AL29: =IF($AN$2<X$6*1000000,(X29+(((U29-X29)/($X$6*1000000))*($X$6*1000000-$AN$2))),IF($AN$2<$Y$6,Y29,Z29)) -> 0.072 | AM29: =IF(AL29=0,0,100%-((AA29-AN29)/AA29)) ->  | AN29: =ROUND(AL29*($AN$3*AE29+$AN$4*AF29),0) -> 0 | AO29: =ROUND(AD29*($AN$3*AE29+$AN$4*AF29),0) -> 0 | AP29: =ROUND(AC29*($AN$3*AE29+$AN$4*AF29),0) -> 0 | AU29: A.2.2.3 | AX29: Projektová dokumentace pro stavební povolení | BA29: DSP | BB29: Nezařazeno | BD29: =IF(BB29="Výpočtem",(IF($I$3="",0,IF($I$3="Stádium 3",0,CH29))),0) -> 0 | BE29: =IF($S$103="Chyba","",(IF($I$3="Stádium 3",IF($I$3="","",IF(BI29=4,CONCATENATE("Nelze ve ",$I$3),"")),""))) ->  | BF29: =BH29*hide!$D$59 -> 0
A30: A.2.2.4 | D30: Projektová dokumentace pro provádění stavby | G30: PDPS | H30: Nezařazeno | J30: =IF(H30="Výpočtem",(IF($I$3="",0,IF($I$3="Stádium 3",0,AN30))),0) -> 0 | K30: =IF($I$3="Stádium 3",IF($I$3="","",IF(O30=4,CONCATENATE("Nelze ve ",$I$3),"")),"") ->  | L30: =N30*hide!$D$59 -> 0 | N30: 0 | O30: 2 | P30: Výpočtem | Q30: Smluvně | R30: Individuálně | S30: Nezařazeno | T30: =T97 -> 0.071 | U30: =U97 -> 0.0656 | V30: 0.0619 | W30: 0.0373 | X30: 0.0227 | Y30: 0.014 | Z30: 0.014 | AA30: =($T$3*$AE30+$T$4*$AF30)*AC30 -> 0 | AB30: 0 | AC30: =IF($AN$2>5000000000,Z30,IF($AN$2>2000000000,X30,IF($AN$2>($W$6*1000000),W30,IF($AN$2>($V$6*1000000),V30,IF($AN$2>($U$6*1000000),U30,T30))))) -> 0.071 | AD30: =IF($AN$2>5000000000,Z30,IF($AN$2>2000000000,Y30,IF($AN$2>($W$6*1000000),X30,IF($AN$2>($V$6*1000000),W30,IF($AN$2>($U$6*1000000),V30,U30))))) -> 0.0656 | AE30: 0.4 | AF30: 0.2 | AG30: =IF(I30>AA30,IF(H30="Aktualizace","PŘEKROČENÉ %",IF(H30="Individuálně","PŘEKROČENÉ","OK")),"OK") -> OK | AH30: =IF(AG30="PŘEKROČENÉ %",IF(H30="Výpočtem",0,IF(H30="Smluvně",0,IF(H30="Nezařazeno",0,IF(H30="Individuálně",IF(AG30="PŘEKROČENÉ %",100,1),1)))),0) -> 0 | AI30: =IF(AG30="PŘEKROČENÉ %",IF(H30="Výpočtem",0,IF(H30="Smluvně",0,IF(H30="Nezařazeno",0,IF(H30="Individuálně",IF(AH30="PŘEKROČENÉ %",0,0),1)))),0) -> 0 | AJ30: =IF($AN$2>5000000000,$X$6*1000000,IF($AN$2>($W$6*1000000),$W$6*1000000,IF($AN$2>($V$6*1000000),$V$6*1000000,IF($AN$2>($U$6*1000000),$U$6*1000000,0)))) -> 0 | AK30: =IF($AN$2>5000000000,5000000000,IF($AN$2>($W$6*1000000),$X$6*1000000,IF($AN$2>($V$6*1000000),$W$6*1000000,IF($AN$2>($U$6*1000000),$V$6*1000000,$U$6*1000000)))) -> 50000000 | AL30: =IF($AN$2<X$6*1000000,(X30+(((U30-X30)/($X$6*1000000))*($X$6*1000000-$AN$2))),IF($AN$2<$Y$6,Y30,Z30)) -> 0.0656 | AM30: =IF(AL30=0,0,100%-((AA30-AN30)/AA30)) ->  | AN30: =ROUND(AL30*($AN$3*AE30+$AN$4*AF30),0) -> 0 | AO30: =ROUND(AD30*($AN$3*AE30+$AN$4*AF30),0) -> 0 | AP30: =ROUND(AC30*($AN$3*AE30+$AN$4*AF30),0) -> 0 | AU30: A.2.2.4 | AX30: Projektová dokumentace pro provádění stavby | BA30: PDPS | BB30: Nezařazeno | BD30: =IF(BB30="Výpočtem",(IF($I$3="",0,IF($I$3="Stádium 3",0,CH30))),0) -> 0 | BE30: =IF($I$3="Stádium 3",IF($I$3="","",IF(BI30=4,CONCATENATE("Nelze ve ",$I$3),"")),"") ->  | BF30: =BH30*hide!$D$59 -> 0
A31: A.2.2.5 | D31: Ostatní náklady na základní služby | H31: Nezařazeno | J31: =IF(H31="Výpočtem",AN31,0) -> 0 | L31: =N31*hide!$D$59 -> 0 | N31: 0 | O31: 2 | P31: Výpočtem | Q31: Smluvně | R31: Individuálně | S31: Nezařazeno | T31: 0.005 | U31: 0.005 | V31: 0.004 | W31: 0.003 | X31: 0.002 | Y31: 0.002 | Z31: 0.002 | AA31: =($T$3*$AE31+$T$4*$AF31)*AC31 -> 0 | AB31: 0 | AC31: =IF($AN$2>5000000000,Z31,IF($AN$2>2000000000,X31,IF($AN$2>($W$6*1000000),W31,IF($AN$2>($V$6*1000000),V31,IF($AN$2>($U$6*1000000),U31,T31))))) -> 0.005 | AD31: =IF($AN$2>5000000000,Z31,IF($AN$2>2000000000,Y31,IF($AN$2>($W$6*1000000),X31,IF($AN$2>($V$6*1000000),W31,IF($AN$2>($U$6*1000000),V31,U31))))) -> 0.005 | AE31: 1 | AF31: 1 | AG31: =IF(I31>AA31,IF(H31="Aktualizace","PŘEKROČENÉ %",IF(H31="Individuálně","PŘEKROČENÉ","OK")),"OK") -> OK | AH31: =IF(AG31="PŘEKROČENÉ %",IF(H31="Smluvně",0,IF(H31="Nezařazeno",0,IF(H31="Individuálně",IF(AG31="PŘEKROČENÉ %",100,1),1))),0) -> 0 | AI31: =IF(AG31="PŘEKROČENÉ %",IF(H31="Smluvně",0,IF(H31="Nezařazeno",0,IF(H31="Individuálně",IF(AH31="PŘEKROČENÉ %",0,0),1))),0) -> 0 | AJ31: =IF($AN$2>5000000000,$X$6*1000000,IF($AN$2>($W$6*1000000),$W$6*1000000,IF($AN$2>($V$6*1000000),$V$6*1000000,IF($AN$2>($U$6*1000000),$U$6*1000000,0)))) -> 0 | AK31: =IF($AN$2>5000000000,5000000000,IF($AN$2>($W$6*1000000),$X$6*1000000,IF($AN$2>($V$6*1000000),$W$6*1000000,IF($AN$2>($U$6*1000000),$V$6*1000000,$U$6*1000000)))) -> 50000000 | AL31: =IF($AN$2<X$6*1000000,(X31+(((U31-X31)/($X$6*1000000))*($X$6*1000000-$AN$2))),IF($AN$2<$Y$6,Y31,Z31)) -> 0.005 | AM31: =IF(AL31=0,0,100%-((AA31-AN31)/AA31)) ->  | AN31: 0 | AO31: 0 | AP31: 0 | AU31: A.2.2.5 | AX31: Ostatní náklady na základní služby | BB31: Nezařazeno | BD31: =IF(BB31="Výpočtem",CH31,0) -> 0 | BF31: =BH31*hide!$D$59 -> 0
A32: A.2.3 | C32: Autorský dozor | E32: předpokládaný počet hodin: | G32: =IF(N32=0,"",CONCATENATE(ROUND((N32/1000),0)," hod")) ->  | H32: Nezařazeno | J32: =IF(H32="Výpočtem",AN32,0) -> 0 | L32: =N32*hide!$D$59 -> 0 | N32: 0 | O32: 2 | P32: Výpočtem | Q32: Smluvně | R32: Individuálně | S32: Nezařazeno | T32: 0.02 | U32: 0.02 | V32: 0.01 | W32: 0.006 | X32: 0.004 | Y32: 0.003 | Z32: 0.002 | AA32: =($T$3*$AE32+$T$4*$AF32)*AC32 -> 0 | AB32: 0 | AC32: =IF($AN$2>5000000000,Z32,IF($AN$2>2000000000,X32,IF($AN$2>($W$6*1000000),W32,IF($AN$2>($V$6*1000000),V32,IF($AN$2>($U$6*1000000),U32,T32))))) -> 0.02 | AD32: =IF($AN$2>5000000000,Z32,IF($AN$2>2000000000,Y32,IF($AN$2>($W$6*1000000),X32,IF($AN$2>($V$6*1000000),W32,IF($AN$2>($U$6*1000000),V32,U32))))) -> 0.02 | AE32: 1 | AF32: 0.5 | AG32: =IF(I32>AA32,IF(H32="Aktualizace","PŘEKROČENÉ %",IF(H32="Individuálně","PŘEKROČENÉ","OK")),"OK") -> OK | AH32: =IF(AG32="PŘEKROČENÉ %",IF(H32="Výpočtem",0,IF(H32="Smluvně",0,IF(H32="Nezařazeno",0,IF(H32="Individuálně",IF(AG32="PŘEKROČENÉ %",100,1),1)))),0) -> 0 | AI32: =IF(AG32="PŘEKROČENÉ %",IF(H32="Výpočtem",0,IF(H32="Smluvně",0,IF(H32="Nezařazeno",0,IF(H32="Individuálně",IF(AH32="PŘEKROČENÉ %",0,0),1)))),0) -> 0 | AJ32: =IF($AN$2>5000000000,$X$6*1000000,IF($AN$2>($W$6*1000000),$W$6*1000000,IF($AN$2>($V$6*1000000),$V$6*1000000,IF($AN$2>($U$6*1000000),$U$6*1000000,0)))) -> 0 | AK32: =IF($AN$2>5000000000,5000000000,IF($AN$2>($W$6*1000000),$X$6*1000000,IF($AN$2>($V$6*1000000),$W$6*1000000,IF($AN$2>($U$6*1000000),$V$6*1000000,$U$6*1000000)))) -> 50000000 | AL32: =IF($AN$2<X$6*1000000,(X32+(((U32-X32)/($X$6*1000000))*($X$6*1000000-$AN$2))),IF($AN$2<$Y$6,Y32,Z32)) -> 0.02 | AM32: =IF(AL32=0,0,100%-((AA32-AN32)/AA32)) ->  | AN32: 0 | AO32: 0 | AP32: 0 | AU32: A.2.3 | AW32: Autorský dozor | AY32: předpokládaný počet hodin: | BA32: =IF(BH32=0,"",CONCATENATE(ROUND((BH32/1000),0)," hod")) ->  | BB32: Nezařazeno | BD32: =IF(BB32="Výpočtem",CH32,0) -> 0 | BF32: =BH32*hide!$D$59 -> 0
A33: A.2.4 | C33: Ostatní náklady pro přípravu stavby | J33: =N33 -> 0 | L33: =SUM(L34:L37) -> 0 | N33: =SUM(N34:N37) -> 0 | AH33: =IF(AG33="PŘEKROČENÉ %",IF(H33="Smluvně",0,IF(H33="Nezařazeno",0,IF(H33="Individuálně",IF(AG33="PŘEKROČENÉ %",100,1),1))),0) -> 0 | AI33: =IF(AG33="PŘEKROČENÉ %",IF(H33="Smluvně",0,IF(H33="Nezařazeno",0,IF(H33="Individuálně",IF(AH33="PŘEKROČENÉ %",0,0),1))),0) -> 0 | AU33: A.2.4 | AW33: Ostatní náklady pro přípravu stavby | BD33: =BH33 -> 0 | BF33: =SUM(BF34:BF37) -> 0
A34: A.2.4.1 | C34: z toho | D34: Osvědčení o shodě notifikovanou osobou v přípravě | H34: Nezařazeno | J34: =IF(H34="Výpočtem",AN34,0) -> 0 | L34: =N34*hide!$D$59 -> 0 | N34: =IF(H34="Nezařazeno",0,IF(H34="Výpočtem",J34,I34)) -> 0 | O34: =IF((IF(H34="Individuálně",1,IF(H34="Smluvně",1,IF(H34="Nezařazeno",2,2))))=1,IF(I34=0,3,1),IF(H34="Výpočtem",4,2)) -> 2 | P34: Výpočtem | Q34: Smluvně | R34: Individuálně | S34: Nezařazeno | T34: 0.003 | U34: 0.003 | V34: 0.002 | W34: 0.0013 | X34: 0.001 | Y34: 0.0008 | Z34: 0.0008 | AA34: =($T$3*$AE34+$T$4*$AF34)*AC34 -> 0 | AB34: 0 | AC34: =IF($AN$2>5000000000,Z34,IF($AN$2>2000000000,X34,IF($AN$2>($W$6*1000000),W34,IF($AN$2>($V$6*1000000),V34,IF($AN$2>($U$6*1000000),U34,T34))))) -> 0.003 | AD34: =IF($AN$2>5000000000,Z34,IF($AN$2>2000000000,Y34,IF($AN$2>($W$6*1000000),X34,IF($AN$2>($V$6*1000000),W34,IF($AN$2>($U$6*1000000),V34,U34))))) -> 0.003 | AE34: 1 | AF34: 1 | AG34: =IF(I34>AA34,IF(H34="Aktualizace","PŘEKROČENÉ %",IF(H34="Individuálně","PŘEKROČENÉ","OK")),"OK") -> OK | AH34: =IF(AG34="PŘEKROČENÉ %",IF(H34="Výpočtem",0,IF(H34="Smluvně",0,IF(H34="Nezařazeno",0,IF(H34="Individuálně",IF(AG34="PŘEKROČENÉ %",100,1),1)))),0) -> 0 | AI34: =IF(AG34="PŘEKROČENÉ %",IF(H34="Výpočtem",0,IF(H34="Smluvně",0,IF(H34="Nezařazeno",0,IF(H34="Individuálně",IF(AH34="PŘEKROČENÉ %",0,0),1)))),0) -> 0 | AJ34: =IF($AN$2>5000000000,$X$6*1000000,IF($AN$2>($W$6*1000000),$W$6*1000000,IF($AN$2>($V$6*1000000),$V$6*1000000,IF($AN$2>($U$6*1000000),$U$6*1000000,0)))) -> 0 | AK34: =IF($AN$2>5000000000,5000000000,IF($AN$2>($W$6*1000000),$X$6*1000000,IF($AN$2>($V$6*1000000),$W$6*1000000,IF($AN$2>($U$6*1000000),$V$6*1000000,$U$6*1000000)))) -> 50000000 | AL34: =IF($AN$2<X$6*1000000,(X34+(((U34-X34)/($X$6*1000000))*($X$6*1000000-$AN$2))),IF($AN$2<$Y$6,Y34,Z34)) -> 0.003 | AM34: =IF(AL34=0,0,100%-((AA34-AN34)/AA34)) ->  | AN34: =ROUND(AL34*($AN$3*AE34+$AN$4*AF34),0) -> 0 | AO34: =ROUND(AD34*($AN$3*AE34+$AN$4*AF34),0) -> 0 | AP34: =ROUND(AC34*($AN$3*AE34+$AN$4*AF34),0) -> 0 | AU34: A.2.4.1 | AW34: z toho | AX34: Osvědčení o shodě notifikovanou osobou v přípravě | BB34: Nezařazeno | BD34: =IF(BB34="Výpočtem",CH34,0) -> 0 | BF34: =BH34*hide!$D$59 -> 0
A35: A.2.4.2 | D35: Koordinátor BOZP v přípravě | H35: Nezařazeno | J35: =IF(H35="Výpočtem",AN35,0) -> 0 | L35: =N35*hide!$D$59 -> 0 | N35: =IF(H35="Nezařazeno",0,IF(H35="Výpočtem",J35,I35)) -> 0 | O35: =IF((IF(H35="Individuálně",1,IF(H35="Smluvně",1,IF(H35="Nezařazeno",2,2))))=1,IF(I35=0,3,1),IF(H35="Výpočtem",4,2)) -> 2 | P35: Výpočtem | Q35: Smluvně | R35: Individuálně | S35: Nezařazeno | T35: 0.0012 | U35: 0.0012 | V35: 0.0009 | W35: 0.0008 | X35: 0.0005 | Y35: 0.0005 | Z35: 0.0004 | AA35: 0 | AB35: 0 | AC35: =IF($AN$2>5000000000,Z35,IF($AN$2>2000000000,X35,IF($AN$2>($W$6*1000000),W35,IF($AN$2>($V$6*1000000),V35,IF($AN$2>($U$6*1000000),U35,T35))))) -> 0.0012 | AD35: =IF($AN$2>5000000000,Z35,IF($AN$2>2000000000,Y35,IF($AN$2>($W$6*1000000),X35,IF($AN$2>($V$6*1000000),W35,IF($AN$2>($U$6*1000000),V35,U35))))) -> 0.0012 | AE35: 1 | AF35: 1 | AG35: =IF(I35>AA35,IF(H35="Aktualizace","PŘEKROČENÉ %",IF(H35="Individuálně","PŘEKROČENÉ","OK")),"OK") -> OK | AH35: =IF(AG35="PŘEKROČENÉ %",IF(H35="Výpočtem",0,IF(H35="Smluvně",0,IF(H35="Nezařazeno",0,IF(H35="Individuálně",IF(AG35="PŘEKROČENÉ %",100,1),1)))),0) -> 0 | AI35: =IF(AG35="PŘEKROČENÉ %",IF(H35="Výpočtem",0,IF(H35="Smluvně",0,IF(H35="Nezařazeno",0,IF(H35="Individuálně",IF(AH35="PŘEKROČENÉ %",0,0),1)))),0) -> 0 | AJ35: =IF($AN$2>5000000000,$X$6*1000000,IF($AN$2>($W$6*1000000),$W$6*1000000,IF($AN$2>($V$6*1000000),$V$6*1000000,IF($AN$2>($U$6*1000000),$U$6*1000000,0)))) -> 0 | AK35: =IF($AN$2>5000000000,5000000000,IF($AN$2>($W$6*1000000),$X$6*1000000,IF($AN$2>($V$6*1000000),$W$6*1000000,IF($AN$2>($U$6*1000000),$V$6*1000000,$U$6*1000000)))) -> 50000000 | AL35: =IF($AN$2<X$6*1000000,(X35+(((U35-X35)/($X$6*1000000))*($X$6*1000000-$AN$2))),IF($AN$2<$Y$6,Y35,Z35)) -> 0.0012 | AM35: =IF(AL35=0,0,100%-((AA35-AN35)/AA35)) ->  | AN35: 0 | AO35: 0 | AP35: 0 | AU35: A.2.4.2 | AX35: Koordinátor BOZP v přípravě | BB35: Nezařazeno | BD35: =IF(BB35="Výpočtem",CH35,0) -> 0 | BF35: =BH35*hide!$D$59 -> 0
A36: A.2.4.3 | D36: Zpracování žádosti o spolufinancování stavby | H36: Nezařazeno | J36: =IF(H36="Výpočtem",AN36,0) -> 0 | L36: =N36*hide!$D$59 -> 0 | N36: =IF(H36="Nezařazeno",0,IF(H36="Výpočtem",J36,I36)) -> 0 | O36: =IF((IF(H36="Individuálně",1,IF(H36="Smluvně",1,IF(H36="Nezařazeno",2,2))))=1,IF(I36=0,3,1),IF(H36="Výpočtem",4,2)) -> 2 | P36: Výpočtem | Q36: Smluvně | R36: Individuálně | S36: Nezařazeno | T36: 0.0008 | U36: 0.0008 | V36: 0.0006 | W36: 0.0003 | X36: 0.00012 | Y36: 0.0001 | Z36: 0.0001 | AA36: 0 | AB36: 0 | AC36: =IF($AN$2>5000000000,Z36,IF($AN$2>2000000000,X36,IF($AN$2>($W$6*1000000),W36,IF($AN$2>($V$6*1000000),V36,IF($AN$2>($U$6*1000000),U36,T36))))) -> 0.0008 | AD36: =IF($AN$2>5000000000,Z36,IF($AN$2>2000000000,Y36,IF($AN$2>($W$6*1000000),X36,IF($AN$2>($V$6*1000000),W36,IF($AN$2>($U$6*1000000),V36,U36))))) -> 0.0008 | AE36: 1 | AF36: 1 | AG36: =IF(I36>AA36,IF(H36="Aktualizace","PŘEKROČENÉ %",IF(H36="Individuálně","PŘEKROČENÉ","OK")),"OK") -> OK | AH36: =IF(AG36="PŘEKROČENÉ %",IF(H36="Výpočtem",0,IF(H36="Smluvně",0,IF(H36="Nezařazeno",0,IF(H36="Individuálně",IF(AG36="PŘEKROČENÉ %",100,1),1)))),0) -> 0 | AI36: =IF(AG36="PŘEKROČENÉ %",IF(H36="Výpočtem",0,IF(H36="Smluvně",0,IF(H36="Nezařazeno",0,IF(H36="Individuálně",IF(AH36="PŘEKROČENÉ %",0,0),1)))),0) -> 0 | AJ36: =IF($AN$2>5000000000,$X$6*1000000,IF($AN$2>($W$6*1000000),$W$6*1000000,IF($AN$2>($V$6*1000000),$V$6*1000000,IF($AN$2>($U$6*1000000),$U$6*1000000,0)))) -> 0 | AK36: =IF($AN$2>5000000000,5000000000,IF($AN$2>($W$6*1000000),$X$6*1000000,IF($AN$2>($V$6*1000000),$W$6*1000000,IF($AN$2>($U$6*1000000),$V$6*1000000,$U$6*1000000)))) -> 50000000 | AL36: =IF($AN$2<X$6*1000000,(X36+(((U36-X36)/($X$6*1000000))*($X$6*1000000-$AN$2))),IF($AN$2<$Y$6,Y36,Z36)) -> 0.0008 | AM36: =IF(AL36=0,0,100%-((AA36-AN36)/AA36)) ->  | AN36: 0 | AO36: 0 | AP36: 0 | AU36: A.2.4.3 | AX36: Zpracování žádosti o spolufinancování stavby | BB36: Nezařazeno | BD36: =IF(BB36="Výpočtem",CH36,0) -> 0 | BF36: =BH36*hide!$D$59 -> 0
A37: A.2.4.4 | D37: Zpracování dokumentací stavby v režimu BIM | H37: Nezařazeno | L37: =N37*hide!$D$59 -> 0 | N37: =IF(H37="Nezařazeno",0,IF(H37="Výpočtem",J37,I37)) -> 0 | O37: =IF((IF(H37="Předpoklad",1,IF(H37="Smluvně",1,IF(H37="Nezařazeno",2,2))))=1,IF(I37=0,3,1),IF(H37="Výpočtem",4,2)) -> 2 | Q37: Smluvně | R37: Předpoklad | S37: Nezařazeno | T37: není určena | AH37: =IF(AG37="PŘEKROČENÉ %",IF(H37="Smluvně",0,IF(H37="Nezařazeno",0,IF(H37="Individuálně",IF(AG37="PŘEKROČENÉ %",100,1),1))),0) -> 0 | AI37: =IF(AG37="PŘEKROČENÉ %",IF(H37="Smluvně",0,IF(H37="Nezařazeno",0,IF(H37="Individuálně",IF(AH37="PŘEKROČENÉ %",0,0),1))),0) -> 0 | AU37: A.2.4.4 | AX37: Zpracování dokumentací stavby v režimu BIM | BB37: Nezařazeno | BF37: =BH37*hide!$D$59 -> 0
A38: A.2.5 | C38: Dokumentace skutečného provedení | F38: DSPS | G38: - | J38: =N38 -> 0 | L38: =SUM(L39:L41) -> 0 | N38: =SUM(N39:N41) -> 0 | AH38: =IF(AG38="PŘEKROČENÉ %",IF(H38="Smluvně",0,IF(H38="Nezařazeno",0,IF(H38="Individuálně",IF(AG38="PŘEKROČENÉ %",100,1),1))),0) -> 0 | AI38: =IF(AG38="PŘEKROČENÉ %",IF(H38="Smluvně",0,IF(H38="Nezařazeno",0,IF(H38="Individuálně",IF(AH38="PŘEKROČENÉ %",0,0),1))),0) -> 0 | AU38: A.2.5 | AW38: Dokumentace skutečného provedení | AZ38: DSPS | BA38: - | BD38: =BH38 -> 0 | BF38: =SUM(BF39:BF41) -> 0
A39: A.2.5.1 | C39: z toho | D39: Dokumentace skutečného provedení stavby, geodetická část | H39: Nezařazeno | J39: =IF(H39="Výpočtem",AN39,0) -> 0 | L39: =N39*hide!$D$59 -> 0 | N39: =IF(H39="Nezařazeno",0,IF(H39="Výpočtem",J39,I39)) -> 0 | O39: =IF((IF(H39="Individuálně",1,IF(H39="Smluvně",1,IF(H39="Nezařazeno",2,2))))=1,IF(I39=0,3,1),IF(H39="Výpočtem",4,2)) -> 2 | P39: Výpočtem | Q39: Smluvně | R39: Individuálně | S39: Nezařazeno | T39: 0.0085 | U39: 0.008 | V39: 0.007 | W39: 0.0055 | X39: 0.0035 | Y39: 0.003 | Z39: 0.003 | AA39: =($T$3*$AE39+$T$4*$AF39)*AC39 -> 0 | AB39: =($T$3*$AE39+$T$4*$AF39)*AD39 -> 0 | AC39: =IF($AN$2>5000000000,Z39,IF($AN$2>2000000000,X39,IF($AN$2>($W$6*1000000),W39,IF($AN$2>($V$6*1000000),V39,IF($AN$2>($U$6*1000000),U39,T39))))) -> 0.0085 | AD39: =IF($AN$2>5000000000,Z39,IF($AN$2>2000000000,Y39,IF($AN$2>($W$6*1000000),X39,IF($AN$2>($V$6*1000000),W39,IF($AN$2>($U$6*1000000),V39,U39))))) -> 0.008 | AE39: 1 | AF39: 1 | AG39: =IF(I39>AA39,IF(H39="Aktualizace","PŘEKROČENÉ %",IF(H39="Individuálně","PŘEKROČENÉ","OK")),"OK") -> OK | AH39: =IF(AG39="PŘEKROČENÉ %",IF(H39="Výpočtem",0,IF(H39="Smluvně",0,IF(H39="Nezařazeno",0,IF(H39="Individuálně",IF(AG39="PŘEKROČENÉ %",100,1),1)))),0) -> 0 | AI39: =IF(AG39="PŘEKROČENÉ %",IF(H39="Výpočtem",0,IF(H39="Smluvně",0,IF(H39="Nezařazeno",0,IF(H39="Individuálně",IF(AH39="PŘEKROČENÉ %",0,0),1)))),0) -> 0 | AJ39: =IF($AN$2>5000000000,$X$6*1000000,IF($AN$2>($W$6*1000000),$W$6*1000000,IF($AN$2>($V$6*1000000),$V$6*1000000,IF($AN$2>($U$6*1000000),$U$6*1000000,0)))) -> 0 | AK39: =IF($AN$2>5000000000,5000000000,IF($AN$2>($W$6*1000000),$X$6*1000000,IF($AN$2>($V$6*1000000),$W$6*1000000,IF($AN$2>($U$6*1000000),$V$6*1000000,$U$6*1000000)))) -> 50000000 | AL39: =IF($AN$2<X$6*1000000,(X39+(((U39-X39)/($X$6*1000000))*($X$6*1000000-$AN$2))),IF($AN$2<$Y$6,Y39,Z39)) -> 0.008 | AM39: =IF(AL39=0,0,100%-((AA39-AN39)/AA39)) ->  | AN39: =ROUND(AL39*($AN$3*AE39+$AN$4*AF39),0) -> 0 | AO39: =ROUND(AD39*($AN$3*AE39+$AN$4*AF39),0) -> 0 | AP39: =ROUND(AC39*($AN$3*AE39+$AN$4*AF39),0) -> 0 | AU39: A.2.5.1 | AW39: z toho | AX39: Dokumentace skutečného provedení stavby, geodetická část | BB39: Nezařazeno | BD39: =IF(BB39="Výpočtem",CH39,0) -> 0 | BF39: =BH39*hide!$D$59 -> 0
A40: A.2.5.2 | D40: Dokumentace skutečného provedení stavby, technická část | H40: Nezařazeno | J40: =IF(H40="Výpočtem",AN40,0) -> 0 | L40: =N40*hide!$D$59 -> 0 | N40: =IF(H40="Nezařazeno",0,IF(H40="Výpočtem",J40,I40)) -> 0 | O40: =IF((IF(H40="Individuálně",1,IF(H40="Smluvně",1,IF(H40="Nezařazeno",2,2))))=1,IF(I40=0,3,1),IF(H40="Výpočtem",4,2)) -> 2 | P40: Výpočtem | Q40: Smluvně | R40: Individuálně | S40: Nezařazeno | T40: 0.009 | U40: 0.009 | V40: 0.008 | W40: 0.0062 | X40: 0.0045 | Y40: 0.003 | Z40: 0.003 | AA40: =($T$3*$AE40+$T$4*$AF40)*AC40 -> 0 | AB40: 0 | AC40: =IF($AN$2>5000000000,Z40,IF($AN$2>2000000000,X40,IF($AN$2>($W$6*1000000),W40,IF($AN$2>($V$6*1000000),V40,IF($AN$2>($U$6*1000000),U40,T40))))) -> 0.009 | AD40: =IF($AN$2>5000000000,Z40,IF($AN$2>2000000000,Y40,IF($AN$2>($W$6*1000000),X40,IF($AN$2>($V$6*1000000),W40,IF($AN$2>($U$6*1000000),V40,U40))))) -> 0.009 | AE40: 1 | AF40: 1 | AG40: =IF(I40>AA40,IF(H40="Aktualizace","PŘEKROČENÉ %",IF(H40="Individuálně","PŘEKROČENÉ","OK")),"OK") -> OK | AH40: =IF(AG40="PŘEKROČENÉ %",IF(H40="Výpočtem",0,IF(H40="Smluvně",0,IF(H40="Nezařazeno",0,IF(H40="Individuálně",IF(AG40="PŘEKROČENÉ %",100,1),1)))),0) -> 0 | AI40: =IF(AG40="PŘEKROČENÉ %",IF(H40="Výpočtem",0,IF(H40="Smluvně",0,IF(H40="Nezařazeno",0,IF(H40="Individuálně",IF(AH40="PŘEKROČENÉ %",0,0),1)))),0) -> 0 | AJ40: =IF($AN$2>5000000000,$X$6*1000000,IF($AN$2>($W$6*1000000),$W$6*1000000,IF($AN$2>($V$6*1000000),$V$6*1000000,IF($AN$2>($U$6*1000000),$U$6*1000000,0)))) -> 0 | AK40: =IF($AN$2>5000000000,5000000000,IF($AN$2>($W$6*1000000),$X$6*1000000,IF($AN$2>($V$6*1000000),$W$6*1000000,IF($AN$2>($U$6*1000000),$V$6*1000000,$U$6*1000000)))) -> 50000000 | AL40: =IF($AN$2<X$6*1000000,(X40+(((U40-X40)/($X$6*1000000))*($X$6*1000000-$AN$2))),IF($AN$2<$Y$6,Y40,Z40)) -> 0.009 | AM40: =IF(AL40=0,0,100%-((AA40-AN40)/AA40)) ->  | AN40: 0 | AO40: 0 | AP40: 0 | AU40: A.2.5.2 | AX40: Dokumentace skutečného provedení stavby, technická část | BB40: Nezařazeno | BD40: =IF(BB40="Výpočtem",CH40,0) -> 0 | BF40: =BH40*hide!$D$59 -> 0
A41: A.2.5.3 | D41: Dokumentace skutečného provedení stavby, dokladová část | H41: Nezařazeno | J41: =IF(H41="Výpočtem",AN41,0) -> 0 | L41: =N41*hide!$D$59 -> 0 | N41: =IF(H41="Nezařazeno",0,IF(H41="Výpočtem",J41,I41)) -> 0 | O41: =IF((IF(H41="Individuálně",1,IF(H41="Smluvně",1,IF(H41="Nezařazeno",2,2))))=1,IF(I41=0,3,1),IF(H41="Výpočtem",4,2)) -> 2 | P41: Výpočtem | Q41: Smluvně | R41: Individuálně | S41: Nezařazeno | T41: 0.002 | U41: 0.002 | V41: 0.0018 | W41: 0.0015 | X41: 0.0009 | Y41: 0.0009 | Z41: 0.0009 | AA41: =($T$3*$AE41+$T$4*$AF41)*AC41 -> 0 | AB41: 0 | AC41: =IF($AN$2>5000000000,Z41,IF($AN$2>2000000000,X41,IF($AN$2>($W$6*1000000),W41,IF($AN$2>($V$6*1000000),V41,IF($AN$2>($U$6*1000000),U41,T41))))) -> 0.002 | AD41: =IF($AN$2>5000000000,Z41,IF($AN$2>2000000000,Y41,IF($AN$2>($W$6*1000000),X41,IF($AN$2>($V$6*1000000),W41,IF($AN$2>($U$6*1000000),V41,U41))))) -> 0.002 | AE41: 1 | AF41: 1 | AG41: =IF(I41>AA41,IF(H41="Aktualizace","PŘEKROČENÉ %",IF(H41="Individuálně","PŘEKROČENÉ","OK")),"OK") -> OK | AH41: =IF(AG41="PŘEKROČENÉ %",IF(H41="Výpočtem",0,IF(H41="Smluvně",0,IF(H41="Nezařazeno",0,IF(H41="Individuálně",IF(AG41="PŘEKROČENÉ %",100,1),1)))),0) -> 0 | AI41: =IF(AG41="PŘEKROČENÉ %",IF(H41="Výpočtem",0,IF(H41="Smluvně",0,IF(H41="Nezařazeno",0,IF(H41="Individuálně",IF(AH41="PŘEKROČENÉ %",0,0),1)))),0) -> 0 | AJ41: =IF($AN$2>5000000000,$X$6*1000000,IF($AN$2>($W$6*1000000),$W$6*1000000,IF($AN$2>($V$6*1000000),$V$6*1000000,IF($AN$2>($U$6*1000000),$U$6*1000000,0)))) -> 0 | AK41: =IF($AN$2>5000000000,5000000000,IF($AN$2>($W$6*1000000),$X$6*1000000,IF($AN$2>($V$6*1000000),$W$6*1000000,IF($AN$2>($U$6*1000000),$V$6*1000000,$U$6*1000000)))) -> 50000000 | AL41: =IF($AN$2<X$6*1000000,(X41+(((U41-X41)/($X$6*1000000))*($X$6*1000000-$AN$2))),IF($AN$2<$Y$6,Y41,Z41)) -> 0.002 | AM41: =IF(AL41=0,0,100%-((AA41-AN41)/AA41)) ->  | AN41: 0 | AO41: 0 | AP41: 0 | AU41: A.2.5.3 | AX41: Dokumentace skutečného provedení stavby, dokladová část | BB41: Nezařazeno | BD41: =IF(BB41="Výpočtem",CH41,0) -> 0 | BF41: =BH41*hide!$D$59 -> 0
A42: A.3 | B42: Výkupy a zatížení nemovitých věcí | K42: =SUM(I43:I45) -> 0 | L42: =SUM(L43:L45) -> 0 | N42: =N43+N44+N45 -> 0 | AH42: =IF(AG42="PŘEKROČENÉ %",IF(H42="Smluvně",0,IF(H42="Nezařazeno",0,IF(H42="Individuálně",IF(AG42="PŘEKROČENÉ %",100,1),1))),0) -> 0 | AI42: =IF(AG42="PŘEKROČENÉ %",IF(H42="Smluvně",0,IF(H42="Nezařazeno",0,IF(H42="Individuálně",IF(AH42="PŘEKROČENÉ %",0,0),1))),0) -> 0 | AU42: A.3 | AV42: Výkupy a zatížení nemovitých věcí | BE42: =SUM(BC43:BC45) -> 0 | BF42: =SUM(BF43:BF45) -> 0
A43: A.3.1 | B43: z toho | C43: Výkupy pozemků | G43: - | H43: Nezařazeno | L43: =N43 -> 0 | N43: =IF(H43="Nezařazeno",0,IF(H43="Výpočtem",J43,I43)) -> 0 | O43: =IF((IF(H43="Předpoklad",1,IF(H43="Smluvně",1,IF(H43="Nezařazeno",2,2))))=1,IF(I43=0,3,1),IF(H43="Výpočtem",4,2)) -> 2 | Q43: Smluvně | R43: Předpoklad | S43: Nezařazeno | T43: není určena | AH43: 0 | AI43: 0 | AU43: A.3.1 | AV43: z toho | AW43: Výkupy pozemků | BA43: - | BB43: Nezařazeno | BF43: =BH43 -> 0
A44: A.3.2 | C44: Výkupy staveb | G44: - | H44: Nezařazeno | L44: =N44 -> 0 | N44: =IF(H44="Nezařazeno",0,IF(H44="Výpočtem",J44,I44)) -> 0 | O44: =IF((IF(H44="Předpoklad",1,IF(H44="Smluvně",1,IF(H44="Nezařazeno",2,2))))=1,IF(I44=0,3,1),IF(H44="Výpočtem",4,2)) -> 2 | Q44: Smluvně | R44: Předpoklad | S44: Nezařazeno | T44: není určena | AH44: 0 | AI44: 0 | AU44: A.3.2 | AW44: Výkupy staveb | BA44: - | BB44: Nezařazeno | BF44: =BH44 -> 0
A45: A.3.3 | C45: Věcná břemena a služebnosti | G45: - | H45: Nezařazeno | L45: =N45 -> 0 | N45: =IF(H45="Nezařazeno",0,IF(H45="Výpočtem",J45,I45)) -> 0 | O45: =IF((IF(H45="Předpoklad",1,IF(H45="Smluvně",1,IF(H45="Nezařazeno",2,2))))=1,IF(I45=0,3,1),IF(H45="Výpočtem",4,2)) -> 2 | Q45: Smluvně | R45: Předpoklad | S45: Nezařazeno | T45: není určena | AH45: 0 | AI45: 0 | AU45: A.3.3 | AW45: Věcná břemena a služebnosti | BA45: - | BB45: Nezařazeno | BF45: =BH45 -> 0
A46: A.4 | B46: Nájmy pro účely stavby | K46: =SUM(I47:I48) -> 0 | L46: =SUM(L47:L48) -> 0 | N46: =N47+N48 -> 0 | AH46: 0 | AI46: 0 | AU46: A.4 | AV46: Nájmy pro účely stavby | BE46: =SUM(BC47:BC48) -> 0 | BF46: =SUM(BF47:BF48) -> 0
A47: A.4.1 | B47: z toho | C47: Nájmy hrazené investorem přímo | H47: Nezařazeno | L47: =N47 -> 0 | N47: =IF(H47="Nezařazeno",0,IF(H47="Výpočtem",J47,I47)) -> 0 | O47: =IF((IF(H47="Předpoklad",1,IF(H47="Smluvně",1,IF(H47="Nezařazeno",2,2))))=1,IF(I47=0,3,1),IF(H47="Výpočtem",4,2)) -> 2 | Q47: Smluvně | R47: Předpoklad | S47: Nezařazeno | T47: není určena | AH47: 0 | AI47: 0 | AU47: A.4.1 | AV47: z toho | AW47: Nájmy hrazené investorem přímo | BB47: Nezařazeno | BF47: =BH47 -> 0
A48: A.4.2 | C48: Nájmy hrazené zhotovitelem stavby | G48: =IF(N48>0,"Všeobecný objekt","-") -> - | H48: Nezařazeno | L48: =N48 -> 0 | N48: =IF(H48="Nezařazeno",0,IF(H48="Výpočtem",J48,I48)) -> 0 | O48: =IF((IF(H48="Předpoklad",1,IF(H48="Smluvně",1,IF(H48="Nezařazeno",2,2))))=1,IF(I48=0,3,1),IF(H48="Výpočtem",4,2)) -> 2 | Q48: Smluvně | R48: Předpoklad | S48: Nezařazeno | T48: není určena | AH48: 0 | AI48: 0 | AU48: A.4.2 | AW48: Nájmy hrazené zhotovitelem stavby | BA48: =IF(BH48>0,"Všeobecný objekt","-") -> - | BB48: Nezařazeno | BF48: =BH48 -> 0
A49: A.5 | B49: Jiné náklady přípravy a zabezpečení stavby | K49: =N49 -> 0 | L49: =L50+L54+L55 -> 0 | N49: =N50+N54+N55 -> 0 | AH49: 0 | AI49: 0 | AU49: A.5 | AV49: Jiné náklady přípravy a zabezpečení stavby | BE49: =BH49 -> 0 | BF49: =BF50+BF54+BF55 -> 0
A50: A.5.1 | B50: z toho | C50: Poradenské firmy pro přípravu a zabezpečení stavby | J50: =N50 -> 0 | L50: =SUM(L51:L53) -> 0 | N50: =SUM(N51:N53) -> 0 | AH50: 0 | AI50: 0 | AU50: A.5.1 | AV50: z toho | AW50: Poradenské firmy pro přípravu a zabezpečení stavby | BD50: =BH50 -> 0 | BF50: =SUM(BF51:BF53) -> 0
A51: A.5.1.1 | C51: z toho | D51: Technická podpora investora | H51: Nezařazeno | J51: =IF(H51="Výpočtem",AN51,0) -> 0 | L51: =N51*hide!$D$59 -> 0 | N51: =IF(H51="Nezařazeno",0,IF(H51="Výpočtem",J51,I51)) -> 0 | O51: =IF((IF(H51="Individuálně",1,IF(H51="Smluvně",1,IF(H51="Nezařazeno",2,2))))=1,IF(I51=0,3,1),IF(H51="Výpočtem",4,2)) -> 2 | P51: Výpočtem | Q51: Smluvně | R51: Individuálně | S51: Nezařazeno | T51: 0.0025 | U51: 0.0025 | V51: 0.0023 | W51: 0.002 | X51: 0.0018 | Y51: 0.0018 | Z51: 0.001 | AA51: =($T$3*$AE51+$T$4*$AF51)*AC51 -> 0 | AB51: =($T$3*$AE51+$T$4*$AF51)*AD51 -> 0 | AC51: =IF($AN$2>5000000000,Z51,IF($AN$2>2000000000,X51,IF($AN$2>($W$6*1000000),W51,IF($AN$2>($V$6*1000000),V51,IF($AN$2>($U$6*1000000),U51,T51))))) -> 0.0025 | AD51: =IF($AN$2>5000000000,Z51,IF($AN$2>2000000000,Y51,IF($AN$2>($W$6*1000000),X51,IF($AN$2>($V$6*1000000),W51,IF($AN$2>($U$6*1000000),V51,U51))))) -> 0.0025 | AE51: 1 | AF51: 0.5 | AG51: =IF(I51>AA51,IF(H51="Aktualizace","PŘEKROČENÉ %",IF(H51="Individuálně","PŘEKROČENÉ","OK")),"OK") -> OK | AH51: 0 | AI51: 0 | AJ51: =IF($AN$2>5000000000,$X$6*1000000,IF($AN$2>($W$6*1000000),$W$6*1000000,IF($AN$2>($V$6*1000000),$V$6*1000000,IF($AN$2>($U$6*1000000),$U$6*1000000,0)))) -> 0 | AK51: =IF($AN$2>5000000000,5000000000,IF($AN$2>($W$6*1000000),$X$6*1000000,IF($AN$2>($V$6*1000000),$W$6*1000000,IF($AN$2>($U$6*1000000),$V$6*1000000,$U$6*1000000)))) -> 50000000 | AL51: =IF($AN$2<X$6*1000000,(X51+(((U51-X51)/($X$6*1000000))*($X$6*1000000-$AN$2))),IF($AN$2<$Y$6,Y51,Z51)) -> 0.0025 | AM51: =IF(AL51=0,0,100%-((AA51-AN51)/AA51)) ->  | AN51: =ROUND(AL51*($AN$3*AE51+$AN$4*AF51),0) -> 0 | AO51: =ROUND(AD51*($AN$3*AE51+$AN$4*AF51),0) -> 0 | AP51: =ROUND(AC51*($AN$3*AE51+$AN$4*AF51),0) -> 0 | AU51: A.5.1.1 | AW51: z toho | AX51: Technická podpora investora | BB51: Nezařazeno | BD51: =IF(BB51="Výpočtem",CH51,0) -> 0 | BF51: =BH51*hide!$D$59 -> 0
A52: A.5.1.2 | D52: Poradenské firmy pro geotechnický průzkum | H52: Nezařazeno | J52: =IF(H52="Výpočtem",AN52,0) -> 0 | L52: =N52*hide!$D$59 -> 0 | N52: =IF(H52="Nezařazeno",0,IF(H52="Výpočtem",J52,I52)) -> 0 | O52: =IF((IF(H52="Individuálně",1,IF(H52="Smluvně",1,IF(H52="Nezařazeno",2,2))))=1,IF(I52=0,3,1),IF(H52="Výpočtem",4,2)) -> 2 | P52: Výpočtem | Q52: Smluvně | R52: Individuálně | S52: Nezařazeno | T52: 0.006 | U52: 0.006 | V52: 0.005 | W52: 0.004 | X52: 0.002 | Y52: 0.002 | Z52: 0.0018 | AA52: =($T$3*$AE52+$T$4*$AF52)*AC52 -> 0 | AB52: =($T$3*$AE52+$T$4*$AF52)*AD52 -> 0 | AC52: =IF($AN$2>5000000000,Z52,IF($AN$2>2000000000,X52,IF($AN$2>($W$6*1000000),W52,IF($AN$2>($V$6*1000000),V52,IF($AN$2>($U$6*1000000),U52,T52))))) -> 0.006 | AD52: =IF($AN$2>5000000000,Z52,IF($AN$2>2000000000,Y52,IF($AN$2>($W$6*1000000),X52,IF($AN$2>($V$6*1000000),W52,IF($AN$2>($U$6*1000000),V52,U52))))) -> 0.006 | AE52: 1 | AF52: 1 | AG52: =IF(I52>AA52,IF(H52="Aktualizace","PŘEKROČENÉ %",IF(H52="Individuálně","PŘEKROČENÉ","OK")),"OK") -> OK | AH52: =IF(AG52="PŘEKROČENÉ %",IF(H52="Výpočtem",0,IF(H52="Smluvně",0,IF(H52="Nezařazeno",0,IF(H52="Individuálně",IF(AG52="PŘEKROČENÉ %",100,1),1)))),0) -> 0 | AI52: =IF(AG52="PŘEKROČENÉ %",IF(H52="Výpočtem",0,IF(H52="Smluvně",0,IF(H52="Nezařazeno",0,IF(H52="Individuálně",IF(AH52="PŘEKROČENÉ %",0,0),1)))),0) -> 0 | AJ52: =IF($AN$2>5000000000,$X$6*1000000,IF($AN$2>($W$6*1000000),$W$6*1000000,IF($AN$2>($V$6*1000000),$V$6*1000000,IF($AN$2>($U$6*1000000),$U$6*1000000,0)))) -> 0 | AK52: =IF($AN$2>5000000000,5000000000,IF($AN$2>($W$6*1000000),$X$6*1000000,IF($AN$2>($V$6*1000000),$W$6*1000000,IF($AN$2>($U$6*1000000),$V$6*1000000,$U$6*1000000)))) -> 50000000 | AL52: =IF($AN$2<X$6*1000000,(X52+(((U52-X52)/($X$6*1000000))*($X$6*1000000-$AN$2))),IF($AN$2<$Y$6,Y52,Z52)) -> 0.006 | AM52: =IF(AL52=0,0,100%-((AA52-AN52)/AA52)) ->  | AN52: 0 | AO52: 0 | AP52: 0 | AU52: A.5.1.2 | AX52: Poradenské firmy pro geotechnický průzkum | BB52: Nezařazeno | BD52: =IF(BB52="Výpočtem",CH52,0) -> 0 | BF52: =BH52*hide!$D$59 -> 0
A53: A.5.1.3 | D53: Ostatní poradenské firmy | H53: Nezařazeno | J53: =IF(H53="Výpočtem",AN53,0) -> 0 | L53: =N53*hide!$D$59 -> 0 | N53: =IF(H53="Nezařazeno",0,IF(H53="Výpočtem",J53,I53)) -> 0 | O53: =IF((IF(H53="Individuálně",1,IF(H53="Smluvně",1,IF(H53="Nezařazeno",2,2))))=1,IF(I53=0,3,1),IF(H53="Výpočtem",4,2)) -> 2 | P53: Výpočtem | Q53: Smluvně | R53: Individuálně | S53: Nezařazeno | T53: 0.0033 | U53: =0.18%+0.15% -> 0.0033 | V53: =0.15%+0.12% -> 0.0027 | W53: =0.11%+0.1% -> 0.0021 | X53: 0.0018 | Y53: 0.0018 | Z53: 0.0015 | AA53: =($T$3*$AE53+$T$4*$AF53)*AC53 -> 0 | AB53: 0 | AC53: =IF($AN$2>5000000000,Z53,IF($AN$2>2000000000,X53,IF($AN$2>($W$6*1000000),W53,IF($AN$2>($V$6*1000000),V53,IF($AN$2>($U$6*1000000),U53,T53))))) -> 0.0033 | AD53: =IF($AN$2>5000000000,Z53,IF($AN$2>2000000000,Y53,IF($AN$2>($W$6*1000000),X53,IF($AN$2>($V$6*1000000),W53,IF($AN$2>($U$6*1000000),V53,U53))))) -> 0.0033 | AE53: 1 | AF53: 0 | AG53: =IF(I53>AA53,IF(H53="Aktualizace","PŘEKROČENÉ %",IF(H53="Individuálně","PŘEKROČENÉ","OK")),"OK") -> OK | AH53: =IF(AG53="PŘEKROČENÉ %",IF(H53="Výpočtem",0,IF(H53="Smluvně",0,IF(H53="Nezařazeno",0,IF(H53="Individuálně",IF(AG53="PŘEKROČENÉ %",100,1),1)))),0) -> 0 | AI53: =IF(AG53="PŘEKROČENÉ %",IF(H53="Výpočtem",0,IF(H53="Smluvně",0,IF(H53="Nezařazeno",0,IF(H53="Individuálně",IF(AH53="PŘEKROČENÉ %",0,0),1)))),0) -> 0 | AJ53: =IF($AN$2>5000000000,$X$6*1000000,IF($AN$2>($W$6*1000000),$W$6*1000000,IF($AN$2>($V$6*1000000),$V$6*1000000,IF($AN$2>($U$6*1000000),$U$6*1000000,0)))) -> 0 | AK53: =IF($AN$2>5000000000,5000000000,IF($AN$2>($W$6*1000000),$X$6*1000000,IF($AN$2>($V$6*1000000),$W$6*1000000,IF($AN$2>($U$6*1000000),$V$6*1000000,$U$6*1000000)))) -> 50000000 | AL53: =IF($AN$2<X$6*1000000,(X53+(((U53-X53)/($X$6*1000000))*($X$6*1000000-$AN$2))),IF($AN$2<$Y$6,Y53,Z53)) -> 0.0033 | AM53: =IF(AL53=0,0,100%-((AA53-AN53)/AA53)) ->  | AN53: 0 | AO53: 0 | AP53: 0 | AU53: A.5.1.3 | AX53: Ostatní poradenské firmy | BB53: Nezařazeno | BD53: =IF(BB53="Výpočtem",CH53,0) -> 0 | BF53: =BH53*hide!$D$59 -> 0
A54: A.5.2 | C54: Soutěže a zadávací řízení | H54: Nezařazeno | J54: =IF(H54="Výpočtem",AN54,0) -> 0 | L54: =N54*hide!$D$59 -> 0 | N54: =IF(H54="Nezařazeno",0,IF(H54="Výpočtem",J54,I54)) -> 0 | O54: =IF((IF(H54="Individuálně",1,IF(H54="Smluvně",1,IF(H54="Nezařazeno",2,2))))=1,IF(I54=0,3,1),IF(H54="Výpočtem",4,2)) -> 2 | P54: Výpočtem | Q54: Smluvně | R54: Individuálně | S54: Nezařazeno | T54: 0.00055 | U54: 0.00055 | V54: 0.0003 | W54: 0.00016 | X54: 0.0001 | Y54: 0.0001 | Z54: 5e-05 | AA54: =($T$3*$AE54+$T$4*$AF54)*AC54 -> 0 | AB54: =($T$3*$AE54+$T$4*$AF54)*AD54 -> 0 | AC54: =IF($AN$2>5000000000,Z54,IF($AN$2>2000000000,X54,IF($AN$2>($W$6*1000000),W54,IF($AN$2>($V$6*1000000),V54,IF($AN$2>($U$6*1000000),U54,T54))))) -> 0.00055 | AD54: =IF($AN$2>5000000000,Z54,IF($AN$2>2000000000,Y54,IF($AN$2>($W$6*1000000),X54,IF($AN$2>($V$6*1000000),W54,IF($AN$2>($U$6*1000000),V54,U54))))) -> 0.00055 | AE54: 1 | AF54: 1 | AG54: =IF(I54>AA54,IF(H54="Aktualizace","PŘEKROČENÉ %",IF(H54="Individuálně","PŘEKROČENÉ","OK")),"OK") -> OK | AH54: =IF(AG54="PŘEKROČENÉ %",IF(H54="Výpočtem",0,IF(H54="Smluvně",0,IF(H54="Nezařazeno",0,IF(H54="Individuálně",IF(AG54="PŘEKROČENÉ %",100,1),1)))),0) -> 0 | AI54: =IF(AG54="PŘEKROČENÉ %",IF(H54="Výpočtem",0,IF(H54="Smluvně",0,IF(H54="Nezařazeno",0,IF(H54="Individuálně",IF(AH54="PŘEKROČENÉ %",0,0),1)))),0) -> 0 | AJ54: =IF($AN$2>5000000000,$X$6*1000000,IF($AN$2>($W$6*1000000),$W$6*1000000,IF($AN$2>($V$6*1000000),$V$6*1000000,IF($AN$2>($U$6*1000000),$U$6*1000000,0)))) -> 0 | AK54: =IF($AN$2>5000000000,5000000000,IF($AN$2>($W$6*1000000),$X$6*1000000,IF($AN$2>($V$6*1000000),$W$6*1000000,IF($AN$2>($U$6*1000000),$V$6*1000000,$U$6*1000000)))) -> 50000000 | AL54: =IF($AN$2<X$6*1000000,(X54+(((U54-X54)/($X$6*1000000))*($X$6*1000000-$AN$2))),IF($AN$2<$Y$6,Y54,Z54)) -> 0.00055 | AM54: =IF(AL54=0,0,100%-((AA54-AN54)/AA54)) ->  | AN54: 0 | AO54: 0 | AP54: 0 | AU54: A.5.2 | AW54: Soutěže a zadávací řízení | BB54: Nezařazeno | BD54: =IF(BB54="Výpočtem",CH54,0) -> 0 | BF54: =BH54*hide!$D$59 -> 0
A55: A.5.3 | C55: Ostatní náklady pro zabezpečení stavby | J55: =N55 -> 0 | L55: =SUM(L56:L58,L61:L62) -> 0 | N55: =N56+N57+N58+N61+N62 -> 0 | AH55: =IF(AG55="PŘEKROČENÉ %",IF(H55="Smluvně",0,IF(H55="Nezařazeno",0,IF(H55="Individuálně",IF(AG55="PŘEKROČENÉ %",100,1),1))),0) -> 0 | AI55: =IF(AG55="PŘEKROČENÉ %",IF(H55="Smluvně",0,IF(H55="Nezařazeno",0,IF(H55="Individuálně",IF(AH55="PŘEKROČENÉ %",0,0),1))),0) -> 0 | AU55: A.5.3 | AW55: Ostatní náklady pro zabezpečení stavby | BD55: =BH55 -> 0 | BF55: =SUM(BF56:BF58,BF61:BF62) -> 0
A56: A.5.3.1 | C56: z toho | D56: Poplatky | H56: Nezařazeno | L56: =N56*hide!$D$59 -> 0 | N56: =IF(H56="Nezařazeno",0,IF(H56="Výpočtem",J56,I56)) -> 0 | O56: =IF((IF(H56="Individuálně",1,IF(H56="Smluvně",1,IF(H56="Nezařazeno",2,2))))=1,IF(I56=0,3,1),IF(H56="Výpočtem",4,2)) -> 2 | Q56: Smluvně | R56: Individuálně | S56: Nezařazeno | T56: není určena | AH56: =IF(AG56="PŘEKROČENÉ %",IF(H56="Smluvně",0,IF(H56="Nezařazeno",0,IF(H56="Individuálně",IF(AG56="PŘEKROČENÉ %",100,1),1))),0) -> 0 | AI56: =IF(AG56="PŘEKROČENÉ %",IF(H56="Smluvně",0,IF(H56="Nezařazeno",0,IF(H56="Individuálně",IF(AH56="PŘEKROČENÉ %",0,0),1))),0) -> 0 | AU56: A.5.3.1 | AW56: z toho | AX56: Poplatky | BB56: Nezařazeno | BF56: =BH56*hide!$D$59 -> 0
A57: A.5.3.2 | D57: Záchranný archeologický výzkum | H57: Nezařazeno | L57: =N57*hide!$D$59 -> 0 | N57: =IF(H57="Nezařazeno",0,IF(H57="Výpočtem",J57,I57)) -> 0 | O57: =IF((IF(H57="Předpoklad",1,IF(H57="Smluvně",1,IF(H57="Nezařazeno",2,2))))=1,IF(I57=0,3,1),IF(H57="Výpočtem",4,2)) -> 2 | Q57: Smluvně | R57: Předpoklad | S57: Nezařazeno | T57: není určena | AH57: =IF(AG57="PŘEKROČENÉ %",IF(H57="Smluvně",0,IF(H57="Nezařazeno",0,IF(H57="Individuálně",IF(AG57="PŘEKROČENÉ %",100,1),1))),0) -> 0 | AI57: =IF(AG57="PŘEKROČENÉ %",IF(H57="Smluvně",0,IF(H57="Nezařazeno",0,IF(H57="Individuálně",IF(AH57="PŘEKROČENÉ %",0,0),1))),0) -> 0 | AU57: A.5.3.2 | AX57: Záchranný archeologický výzkum | BB57: Nezařazeno | BF57: =BH57*hide!$D$59 -> 0
A58: A.5.3.3 | D58: Publicita stavby | F58: z toho zhotovitel v realizaci (Všeobecný objekt): | J58: =N58 -> 0 | L58: =SUM(L59:L60) -> 0 | N58: =SUM(N59:N60) -> 0 | AH58: =IF(AG58="PŘEKROČENÉ %",IF(H59="Smluvně",0,IF(H59="Nezařazeno",0,IF(H59="Individuálně",IF(AG58="PŘEKROČENÉ %",100,1),1))),0) -> 0 | AI58: =IF(AG58="PŘEKROČENÉ %",IF(H59="Smluvně",0,IF(H59="Nezařazeno",0,IF(H59="Individuálně",IF(AH58="PŘEKROČENÉ %",0,0),1))),0) -> 0 | AU58: A.5.3.3 | AX58: Publicita stavby | AZ58: z toho zhotovitel v realizaci (Všeobecný objekt): | BD58: =BH58 -> 0 | BF58: =SUM(BF59:BF60) -> 0
A59: A.5.3.3.1 | D59: z toho | E59: Publicita povinná | G59: - | H59: Nezařazeno | J59: =IF(H59="Výpočtem",AN59,0) -> 0 | L59: =N59*hide!$D$59 -> 0 | N59: =IF(H59="Nezařazeno",0,IF(H59="Výpočtem",J59,I59)) -> 0 | O59: =IF((IF(H59="Individuálně",1,IF(H59="Smluvně",1,IF(H59="Nezařazeno",2,2))))=1,IF(I59=0,3,1),IF(H59="Výpočtem",4,2)) -> 2 | P59: Výpočtem | Q59: Smluvně | R59: Individuálně | S59: Nezařazeno | T59: 0.0022 | U59: 0.0018 | V59: 0.0011 | W59: 0.0007 | X59: 0.0004 | Y59: 0.0004 | Z59: 5e-05 | AA59: =IF($AN$2>5000000000,1000000,IF($AN$2>2000000000,800000,IF((($T$3*$AE59+$T$4*$AF59)*AC59)<450000,450000,($T$3*$AE59+$T$4*$AF59)*AC59))) -> 450000 | AB59: =($T$3*$AE59+$T$4*$AF59)*AD59 -> 0 | AC59: =IF($AN$2>5000000000,Z59,IF($AN$2>2000000000,X59,IF($AN$2>($W$6*1000000),W59,IF($AN$2>($V$6*1000000),V59,IF($AN$2>($U$6*1000000),U59,T59))))) -> 0.0022 | AD59: =IF($AN$2>5000000000,Z59,IF($AN$2>2000000000,Y59,IF($AN$2>($W$6*1000000),X59,IF($AN$2>($V$6*1000000),W59,IF($AN$2>($U$6*1000000),V59,U59))))) -> 0.0018 | AE59: 1 | AF59: 1 | AG59: =IF(I59>AA59,IF(H59="Aktualizace","PŘEKROČENÉ %",IF(H59="Individuálně","PŘEKROČENÉ","OK")),"OK") -> OK | AJ59: =IF($AN$2>5000000000,$X$6*1000000,IF($AN$2>($W$6*1000000),$W$6*1000000,IF($AN$2>($V$6*1000000),$V$6*1000000,IF($AN$2>($U$6*1000000),$U$6*1000000,0)))) -> 0 | AK59: =IF($AN$2>5000000000,5000000000,IF($AN$2>($W$6*1000000),$X$6*1000000,IF($AN$2>($V$6*1000000),$W$6*1000000,IF($AN$2>($U$6*1000000),$V$6*1000000,$U$6*1000000)))) -> 50000000 | AL59: =IF($AN$2<X$6*1000000,(X59+(((U59-X59)/($X$6*1000000))*($X$6*1000000-$AN$2))),IF($AN$2<$Y$6,Y59,Z59)) -> 0.0018 | AM59: =IF(AL59=0,0,100%-((AA59-AN59)/AA59)) -> 0 | AN59: =ROUND(AL59*($AN$3*AE59+$AN$4*AF59),0) -> 0 | AO59: =ROUND(AD59*($AN$3*AE59+$AN$4*AF59),0) -> 0 | AP59: =ROUND(AC59*($AN$3*AE59+$AN$4*AF59),0) -> 0 | AU59: A.5.3.3.1 | AX59: z toho | AY59: Publicita povinná | BA59: - | BB59: Nezařazeno | BD59: =IF(BB59="Výpočtem",CH59,0) -> 0 | BF59: =BH59*hide!$D$59 -> 0
A60: A.5.3.3.2 | E60: Publicita nepovinná | G60: - | H60: Nezařazeno | J60: =IF(H60="Výpočtem",AN60,0) -> 0 | L60: =N60*hide!$D$59 -> 0 | N60: =IF(H60="Nezařazeno",0,IF(H60="Výpočtem",J60,I60)) -> 0 | O60: =IF((IF(H60="Individuálně",1,IF(H60="Smluvně",1,IF(H60="Nezařazeno",2,2))))=1,IF(I60=0,3,1),IF(H60="Výpočtem",4,2)) -> 2 | P60: Výpočtem | Q60: Smluvně | R60: Individuálně | S60: Nezařazeno | T60: 0.01 | U60: 0.01 | V60: 0.008 | W60: 0.005 | X60: 0.002 | Y60: 0.002 | Z60: 0.002 | AA60: =IF((($T$3*$AE60+$T$4*$AF60))*AC60>4000000,4000000,($T$3*$AE60+$T$4*$AF60)*AC60) -> 0 | AB60: 0 | AC60: =IF($AN$2>5000000000,Z60,IF($AN$2>2000000000,X60,IF($AN$2>($W$6*1000000),W60,IF($AN$2>($V$6*1000000),V60,IF($AN$2>($U$6*1000000),U60,T60))))) -> 0.01 | AD60: =IF($AN$2>5000000000,Z60,IF($AN$2>2000000000,Y60,IF($AN$2>($W$6*1000000),X60,IF($AN$2>($V$6*1000000),W60,IF($AN$2>($U$6*1000000),V60,U60))))) -> 0.01 | AE60: 1 | AF60: 0.7 | AG60: =IF(I60>AA60,IF(H60="Aktualizace","PŘEKROČENÉ %",IF(H60="Individuálně","PŘEKROČENÉ","OK")),"OK") -> OK | AJ60: =IF($AN$2>5000000000,$X$6*1000000,IF($AN$2>($W$6*1000000),$W$6*1000000,IF($AN$2>($V$6*1000000),$V$6*1000000,IF($AN$2>($U$6*1000000),$U$6*1000000,0)))) -> 0 | AK60: =IF($AN$2>5000000000,5000000000,IF($AN$2>($W$6*1000000),$X$6*1000000,IF($AN$2>($V$6*1000000),$W$6*1000000,IF($AN$2>($U$6*1000000),$V$6*1000000,$U$6*1000000)))) -> 50000000 | AL60: =IF($AN$2<X$6*1000000,(X60+(((U60-X60)/($X$6*1000000))*($X$6*1000000-$AN$2))),IF($AN$2<$Y$6,Y60,Z60)) -> 0.01 | AM60: =IF(AL60=0,0,100%-((AA60-AN60)/AA60)) ->  | AN60: 0 | AO60: 0 | AP60: 0 | AU60: A.5.3.3.2 | AY60: Publicta nepovinná | BA60: - | BB60: Nezařazeno | BD60: =IF(BB60="Výpočtem",CH60,0) -> 0 | BF60: =BH60*hide!$D$59 -> 0
A61: A.5.3.4 | D61: Monitoring stavby | H61: Nezařazeno | J61: =IF(H61="Výpočtem",AN61,0) -> 0 | L61: =N61*hide!$D$59 -> 0 | N61: =IF(H61="Nezařazeno",0,IF(H61="Výpočtem",J61,I61)) -> 0 | O61: =IF((IF(H61="Individuálně",1,IF(H61="Smluvně",1,IF(H61="Nezařazeno",2,2))))=1,IF(I61=0,3,1),IF(H61="Výpočtem",4,2)) -> 2 | P61: Výpočtem | Q61: Smluvně | R61: Individuálně | S61: Nezařazeno | T61: 0.002 | U61: 0.002 | V61: 0.001 | W61: 0.0005 | X61: 0.0004 | Y61: 0.0004 | Z61: 0.0004 | AA61: =IF((($T$3*$AE61+$T$4*$AF61))*AC61>4000000,4000000,($T$3*$AE61+$T$4*$AF61)*AC61) -> 0 | AB61: 0 | AC61: =IF($AN$2>5000000000,Z61,IF($AN$2>2000000000,X61,IF($AN$2>($W$6*1000000),W61,IF($AN$2>($V$6*1000000),V61,IF($AN$2>($U$6*1000000),U61,T61))))) -> 0.002 | AD61: =IF($AN$2>5000000000,Z61,IF($AN$2>2000000000,Y61,IF($AN$2>($W$6*1000000),X61,IF($AN$2>($V$6*1000000),W61,IF($AN$2>($U$6*1000000),V61,U61))))) -> 0.002 | AE61: 1 | AF61: 1 | AG61: =IF(I61>AA61,IF(H61="Aktualizace","PŘEKROČENÉ %",IF(H61="Individuálně","PŘEKROČENÉ","OK")),"OK") -> OK | AH61: =IF(AG61="PŘEKROČENÉ %",IF(H61="Výpočtem",0,IF(H61="Smluvně",0,IF(H61="Nezařazeno",0,IF(H61="Individuálně",IF(AG61="PŘEKROČENÉ %",100,1),1)))),0) -> 0 | AI61: =IF(AG61="PŘEKROČENÉ %",IF(H61="Výpočtem",0,IF(H61="Smluvně",0,IF(H61="Nezařazeno",0,IF(H61="Individuálně",IF(AH61="PŘEKROČENÉ %",0,0),1)))),0) -> 0 | AJ61: =IF($AN$2>5000000000,$X$6*1000000,IF($AN$2>($W$6*1000000),$W$6*1000000,IF($AN$2>($V$6*1000000),$V$6*1000000,IF($AN$2>($U$6*1000000),$U$6*1000000,0)))) -> 0 | AK61: =IF($AN$2>5000000000,5000000000,IF($AN$2>($W$6*1000000),$X$6*1000000,IF($AN$2>($V$6*1000000),$W$6*1000000,IF($AN$2>($U$6*1000000),$V$6*1000000,$U$6*1000000)))) -> 50000000 | AL61: =IF($AN$2<X$6*1000000,(X61+(((U61-X61)/($X$6*1000000))*($X$6*1000000-$AN$2))),IF($AN$2<$Y$6,Y61,Z61)) -> 0.002 | AM61: =IF(AL61=0,0,100%-((AA61-AN61)/AA61)) ->  | AN61: 0 | AO61: 0 | AP61: 0 | AU61: A.5.3.4 | AX61: Monitoring stavby | BB61: Nezařazeno | BD61: =IF(BB61="Výpočtem",CH61,0) -> 0 | BF61: =BH61*hide!$D$59 -> 0
A62: A.5.3.5 | D62: Vyhodnocení stavby | H62: Nezařazeno | J62: =IF(H62="Výpočtem",AN62,0) -> 0 | L62: =N62*hide!$D$59 -> 0 | N62: =IF(H62="Nezařazeno",0,IF(H62="Výpočtem",J62,I62)) -> 0 | O62: =IF((IF(H62="Individuálně",1,IF(H62="Smluvně",1,IF(H62="Nezařazeno",2,2))))=1,IF(I62=0,3,1),IF(H62="Výpočtem",4,2)) -> 2 | P62: Výpočtem | Q62: Smluvně | R62: Individuálně | S62: Nezařazeno | T62: 0.001 | U62: 0.001 | V62: 0.0005 | W62: 0.00025 | X62: 0.0002 | Y62: 0.0002 | Z62: 0.0002 | AA62: =IF((($T$3*$AE62+$T$4*$AF62))*AC62>4000000,4000000,($T$3*$AE62+$T$4*$AF62)*AC62) -> 0 | AB62: 0 | AC62: =IF($AN$2>5000000000,Z62,IF($AN$2>2000000000,X62,IF($AN$2>($W$6*1000000),W62,IF($AN$2>($V$6*1000000),V62,IF($AN$2>($U$6*1000000),U62,T62))))) -> 0.001 | AD62: =IF($AN$2>5000000000,Z62,IF($AN$2>2000000000,Y62,IF($AN$2>($W$6*1000000),X62,IF($AN$2>($V$6*1000000),W62,IF($AN$2>($U$6*1000000),V62,U62))))) -> 0.001 | AE62: 1 | AF62: 1 | AG62: =IF(I62>AA62,IF(H62="Aktualizace","PŘEKROČENÉ %",IF(H62="Individuálně","PŘEKROČENÉ","OK")),"OK") -> OK | AH62: =IF(AG62="PŘEKROČENÉ %",IF(H62="Výpočtem",0,IF(H62="Smluvně",0,IF(H62="Nezařazeno",0,IF(H62="Individuálně",IF(AG62="PŘEKROČENÉ %",100,1),1)))),0) -> 0 | AI62: =IF(AG62="PŘEKROČENÉ %",IF(H62="Výpočtem",0,IF(H62="Smluvně",0,IF(H62="Nezařazeno",0,IF(H62="Individuálně",IF(AH62="PŘEKROČENÉ %",0,0),1)))),0) -> 0 | AJ62: =IF($AN$2>5000000000,$X$6*1000000,IF($AN$2>($W$6*1000000),$W$6*1000000,IF($AN$2>($V$6*1000000),$V$6*1000000,IF($AN$2>($U$6*1000000),$U$6*1000000,0)))) -> 0 | AK62: =IF($AN$2>5000000000,5000000000,IF($AN$2>($W$6*1000000),$X$6*1000000,IF($AN$2>($V$6*1000000),$W$6*1000000,IF($AN$2>($U$6*1000000),$V$6*1000000,$U$6*1000000)))) -> 50000000 | AL62: =IF($AN$2<X$6*1000000,(X62+(((U62-X62)/($X$6*1000000))*($X$6*1000000-$AN$2))),IF($AN$2<$Y$6,Y62,Z62)) -> 0.001 | AM62: =IF(AL62=0,0,100%-((AA62-AN62)/AA62)) ->  | AN62: 0 | AO62: 0 | AP62: 0 | AU62: A.5.3.5 | AX62: Vyhodnocení stavby | BB62: Nezařazeno | BD62: =IF(BB62="Výpočtem",CH62,0) -> 0 | BF62: =BH62*hide!$D$59 -> 0
A63: A.6 | B63: Náklady na přípravu a celkové zabezpečení stavby celkem | I63: =K49+K46+K42+K9+K8 -> 0 | L63: =L49+L46+L42+L9+L8 -> 0 | AN63: =SUM(AN8:AN62) -> 0 | AU63: A.6 | AV63: Náklady na přípravu a celkové zabezpečení stavby celkem | BC63: =BE49+BE46+BE42+BE9+BC8+BE8 -> 0 | BF63: =BF49+BF46+BF42+BF9+BF8 -> 0
R65: % SAZBY PRO PROJEKTOVÉ PRÁCE DUR/DSP(DUSP/L)/PDPS
A66: Poznámka k nákladům na přípravu a zabezpečení stavby - (A): | R66: ROZMEZÍ | T66: 0 | U66: 50 | V66: 200 | W66: 1000 | X66: 2000 | Y66: 3000 | Z66: >5000
A67: rozpis položky | K67: v příloze A: | L67: náklady v Kč | R67: DUR/DSP/PDPS
R68: DUR | T68: 0.03 | U68: 0.022 | V68: 0.018 | W68: 0.012 | X68: 0.008 | Y68: 0.005 | Z68: 0.005
R69: DSP | T69: 0.072 | U69: 0.072 | V69: 0.068 | W69: 0.055 | X69: 0.04 | Y69: 0.03 | Z69: 0.03
R70: PDPS pro DSP | T70: 0.071 | U70: 0.0656 | V70: 0.0619 | W70: 0.0373 | X70: 0.0227 | Y70: 0.014 | Z70: 0.014
R71: Související činnosti k DUR/DSP/PDPS
R72: A.2.1.1.1 | S72: Geodet/DUR | T72: 0.0038 | U72: 0.0038 | V72: 0.0035 | W72: 0.0021 | X72: 0.0005 | Y72: 0.0005 | Z72: 0.0005
R73: A.2.1.1.2 | S73: Průzkum/DUR | T73: 0.0104 | U73: 0.0104 | V73: 0.0098 | W73: 0.0072 | X73: 0.0042 | Y73: 0.0042 | Z73: 0.0042
R74: A.2.1.1.4 | S74: Inž.č./DUR | T74: 0.0035 | U74: 0.0027 | V74: 0.0026 | W74: 0.002 | X74: 0.0014 | Y74: 0.0014 | Z74: 0.0014
R75: A.2.2.1.1 | S75: Geodet/DSP | T75: 0.0013 | U75: 0.0013 | V75: 0.0012 | W75: 0.0007 | X75: 0.0002 | Y75: 0.0002 | Z75: 0.0002
R76: A.2.2.1.2 | S76: Průzkum/DSP | T76: 0.0056 | U76: 0.0056 | V76: 0.0053 | W76: 0.0039 | X76: 0.0022 | Y76: 0.0022 | Z76: 0.0022
R77: A.2.2.1.4 | S77: Inž.č./DSP | T77: 0.0023 | U77: 0.0018 | V77: 0.0017 | W77: 0.0014 | X77: 0.0009 | Y77: 0.0009 | Z77: 0.0009
R78: DUSL/PDPS
R79: DUSL | T79: 0.06 | U79: 0.0492 | V79: 0.0444 | W79: 0.0408 | X79: 0.0312 | Y79: 0.024 | Z79: 0.024
R80: PDPS pro DUSL | T80: 0.101 | U80: 0.0984 | V80: 0.0915 | W80: 0.0645 | X80: 0.0435 | Y80: 0.03 | Z80: 0.03
R81: DUSP/PDPS
R82: DUSP | T82: 0.09 | U82: 0.082 | V82: 0.074 | W82: 0.068 | X82: 0.052 | Y82: 0.04 | Z82: 0.04
R83: PDPS pro DUSP | T83: 0.071 | U83: 0.0656 | V83: 0.0619 | W83: 0.0373 | X83: 0.0227 | Y83: 0.014 | Z83: 0.014
R84: pouze PDPS
R85: PDPS (bez předešlé přípravy) | T85: 0.15 | U85: 0.147 | V85: 0.136 | W85: 0.105 | X85: 0.0747 | Y85: 0.054 | Z85: 0.054
R86: Související činnosti k DUSL,DUSP/PDPS nebo PDPS
R87: A.2.2.1.1 | S87: Geodet/celek | T87: 0.005 | U87: 0.005 | V87: 0.0046 | W87: 0.0028 | X87: 0.0007 | Y87: 0.0007 | Z87: 0.0007
R88: A.2.2.1.2 | S88: Průzkum/celek | T88: 0.02 | U88: 0.016 | V88: 0.015 | W88: 0.0111 | X88: 0.0064 | Y88: 0.0045 | Z88: 0.0045
R89: A.2.2.1.4 | S89: Inž.č./celek | T89: 0.0058 | U89: 0.0045 | V89: 0.0043 | W89: 0.0034 | X89: 0.0023 | Y89: 0.0023 | Z89: 0.0023
R91: AKTUÁLNÍ VÝPOČETNÍ SAZBA
R92: ROZMEZÍ | T92: 0 | U92: 50 | V92: 200 | W92: 1000 | X92: 2000 | Y92: 3000 | Z92: >5000
R93: A.2.2.1.1 | S93: Geodet | T93: =IF($U$103="",T75,T87) -> 0.0013 | U93: =IF($U$103="",U75,U87) -> 0.0013 | V93: 0.0012 | W93: 0.0007 | X93: 0.0002 | Y93: 0.0002 | Z93: 0.0002
R94: A.2.2.1.2 | S94: Průzkum | T94: =IF($U$103="",T76,T88) -> 0.0056 | U94: 0.0056 | V94: 0.0053 | W94: 0.0039 | X94: 0.0022 | Y94: 0.0022 | Z94: 0.0022
R95: A.2.2.1.4 | S95: Inž.čin. | T95: =IF($U$103="",T77,T89) -> 0.0023 | U95: 0.0018 | V95: 0.0017 | W95: 0.0014 | X95: 0.0009 | Y95: 0.0009 | Z95: 0.0009
R96: Společné povolení | T96: =IF($U$103="DUSL",T79,IF($U$103="DUSP",T82,0)) -> 0 | U96: =IF($U$103="DUSL",U79,IF($U$103="DUSP",U82,0)) -> 0 | V96: 0 | W96: 0 | X96: 0 | Y96: 0 | Z96: 0
R97: PDPS | T97: =IF($U$103="DUSL",T80,T83) -> 0.071 | U97: =IF($U$103="DUSL",U80,U83) -> 0.0656 | V97: 0.0619 | W97: 0.0373 | X97: 0.0227 | Y97: 0.014 | Z97: 0.014
S99: Souběh zadání DUR-DUSP(L)-DSP
S100: DUR | U100: DUSL/DUSP | W100: DSP
S101: =IF(S102="Výpočtem",4,0) -> 0 | T101: =IF(S102="Nezařazeno",0,IF(S102="Výpočtem",0,1)) -> 0 | U101: =IF(U102="Výpočtem",4,0) -> 0 | V101: =IF(U102="Nezařazeno",0,IF(U102="Výpočtem",0,1)) -> 0 | W101: =IF(W102="Výpočtem",4,0) -> 0 | X101: =IF(W102="Nezařazeno",0,IF(W102="Výpočtem",0,1)) -> 0
S102: =H20 -> Nezařazeno | U102: =H28 -> Nezařazeno | W102: =H29 -> Nezařazeno
S103: =IF(SUM(S101:V101)>4,"Chyba","OK") -> OK | U103: =IF(U102="Nezařazeno","",G28) ->  | W103: =IF(SUM(U101:X101)>4,"Chyba","OK") -> OK
AA117: DUSL/PDPS
AA118: DUSP/PDPS
AA119: DSP/PDPS
AA120: PDPS

Sheet 1B
A1: =CONCATENATE("Náklady stavby v aktuálním roce: ",IF('Krycí list SR'!H4="","",'Krycí list SR'!H4)) -> Náklady stavby v aktuálním roce: | K1: Formulář 1.B | L1: ='Krycí list SR'!$H$1 -> SRP/2023/08 | O1: CIN: | Q1: ='Krycí list SR'!G13 -> 0 | AM1: NÁKLADY VÝPOČTEM | AO1: Poznámka | AP1: ='1A'!AN2/'Krycí list SR'!G13-100% ->  | AU1: =CONCATENATE("Náklady stavby v aktuálním roce: ",IF('Krycí list SR'!BB4="","",'Krycí list SR'!BB4)) -> Náklady stavby v aktuálním roce: | BE1: Formulář 1.B | BF1: ='Krycí list SR'!$H$1 -> SRP/2023/08
A2: Název stavby: | C2: =IF('Krycí list SR'!B2="","",'Krycí list SR'!B2) ->  | O2: Podklad pro kontrolu výpočtu individuální kalkulace | AL2: =IF($AN$3<50000000,25%,IF($AN$3>2000000000,10%,25%-((($AN$3/2000000000)*((25%-10%)))))) -> 0.25 | AM2: Teoretický CIN | AN2: =AL2*(AN3+AN4)+(AN3+AN4)+AL4 -> 0 | AU2: Název stavby: | AW2: =IF('Krycí list SR'!AV2="","",'Krycí list SR'!AV2) -> 
A3: ISPROFIN: | C3: =IF('Krycí list SR'!$B$3="","",'Krycí list SR'!$B$3) ->  | E3: Označení (S-kód): | G3: =IF('Krycí list SR'!D3="","",'Krycí list SR'!D3) ->  | I3: =IF('Krycí list SR'!E3="","",'Krycí list SR'!E3) ->  | K3: ='Krycí list SR'!F3 -> <= vybrat Stádium v poli E3 | O3: IIČ | Q3: =(K9+K42+K46+#REF!+'1B'!I45) ->  | S3: B.1 | T3: =AN3 -> 0 | AL3: inflace | AM3: B.1 (SO) | AN3: ='1B'!K8 -> 0 | AU3: ISPROFIN: | AW3: =IF('Krycí list SR'!$B$3="","",'Krycí list SR'!$B$3) ->  | AY3: Označení (S-kód): | BA3: =IF('Krycí list SR'!AX3="","",'Krycí list SR'!AX3) ->  | BC3: =IF('Krycí list SR'!AY3="","",'Krycí list SR'!AY3) ->  | BE3: ='Krycí list SR'!AZ3 -> 0
A4: Investor: | B4: SŽ | D4: =IF('Krycí list SR'!$B$5="","",'Krycí list SR'!$B$5) ->  | I4: IČO: | J4: ='Krycí list SR'!$D$8 -> 70994234 | K4: DIČ: | L4: ='Krycí list SR'!D9 -> CZ70994234 | O4: DUSP/DSP/ODOS | Q4: =I28+I29+I30 -> 0 | S4: B.2 | T4: =AN4 -> 0 | AL4: ='2B'!H46+'2B'!H48+'2B'!H49 -> 0 | AM4: B.2 (PS) | AN4: ='1B'!K16 -> 0 | AU4: Investor: | AV4: SŽ | AX4: =IF('Krycí list SR'!$B$5="","",'Krycí list SR'!$B$5) ->  | BC4: IČO: | BD4: ='Krycí list SR'!$D$8 -> 70994234 | BE4: DIČ: | BF4: ='Krycí list SR'!AX9 -> 0
A5: Jiný investor: | C5: =IF('Krycí list SR'!$B$7="","neurčen",'Krycí list SR'!$B$7) -> - | F5: Doplňující informace k stanovení nákladů | I5: Náklady dle rozdělení v Kč | O5: Tabulky stanovení nákladů | T5: Rozhraní pro procentní sazby (v mil. Kč) | AA5: =AA29+AA30 -> 0 | AB5: =AB29+AB30 -> 0 | AJ5: dolní hranice | AK5: horní hranice | AL5: % stavebních nákladů z rozmezí | AM5: rozdíl min/max | AN5: Kč | AO5: dolní hranice CIN | AP5: horní hranice CIN | AU5: Jiný investor: | AW5: =IF('Krycí list SR'!$B$7="","neurčen",'Krycí list SR'!$B$7) -> - | AZ5: Doplňující informace k stanovení nákladů | BC5: Náklady dle rozdělení v Kč
A6: B | B6: Realizace stavby | F6: Doplňující informace | H6: Stanovení nákladů | I6: Kalkulací Smluvně | J6: Výpočtem | K6: Souhrn nákladů | L6: z toho podíl za Ostatní subjekty | M6: Pole pro pracovní výpočty bez tisku | N6: Součet nákladů | O6: sloupec I | T6: 0 | U6: 50 | V6: 200 | W6: 1000 | X6: 2000 | Y6: 3000 | Z6: >5000 | AA6: maximální hodnota | AB6: Minimální hodnota | AC6: max % | AD6: min% | AE6: % z B.1 | AF6: % z B.2 | AG6: Kontrola překročení llimitní hranice % sazby | AL6: % stavebních nákladů z rozmezí | AU6: B | AV6: Realizace stavby | AZ6: Doplňující informace | BB6: Stanovení nákladů | BC6: Kalkulací Smluvně | BD6: Výpočtem | BE6: Souhrn nákladů | BF6: z toho podíl za Ostatní subjekty
O7: Formáty | P7: 4 | Q7: 1 | R7: 1 | S7: 2 | T7: =IF(T6*1000000=$AJ$8,1,IF(T6*1000000=$AK$8,1,0)) -> 1 | U7: 0 | V7: 0 | W7: 0 | X7: 0 | Y7: 0
A8: B.1 | B8: Stavební část | K8: =N8 -> 0 | L8: =L9+L16 -> 0 | N8: =N9+N12 -> 0 | AH8: =IF(AG8="PŘEKROČENÉ %",IF(H8="Smluvně",0,IF(H8="Nezařazeno",0,IF(H8="Individuálně",IF(AG8="PŘEKROČENÉ %",100,1),1))),0) -> 0 | AI8: =IF(AG8="PŘEKROČENÉ %",IF(H8="Smluvně",0,IF(H8="Nezařazeno",0,IF(H8="Individuálně",IF(AH8="PŘEKROČENÉ %",0,0),1))),0) -> 0 | AU8: B.1 | AV8: Stavební část | BE8: =BH8 -> 0 | BF8: =BF9+BF16 -> 0
A9: B.1.1 | B9: z toho | C9: Stavební objekty dodávané zhotoviteli | J9: =N9 -> 0 | L9: =SUM(L10:L11) -> 0 | N9: =N10+N11 -> 0 | AH9: =IF(AG9="PŘEKROČENÉ %",IF(H9="Smluvně",0,IF(H9="Nezařazeno",0,IF(H9="Individuálně",IF(AG9="PŘEKROČENÉ %",100,1),1))),0) -> 0 | AI9: =IF(AG9="PŘEKROČENÉ %",IF(H9="Smluvně",0,IF(H9="Nezařazeno",0,IF(H9="Individuálně",IF(AH9="PŘEKROČENÉ %",0,0),1))),0) -> 0 | AU9: B.1.1 | AV9: z toho | AW9: Stavební objekty dodávané zhotoviteli | BD9: =BH9 -> 0 | BF9: =SUM(BF10:BF11) -> 0
A10: B.1.1.1 | C10: z toho | D10: Základní rozpočtové náklady jednotlivých SO (ZRN) | H10: S z listu 3SO | I10: ='3SO'!G6 -> 0 | L10: ='3SO'!D7 -> 0 | N10: =I10 -> 0 | AH10: =IF(AG10="PŘEKROČENÉ %",IF(H10="Smluvně",0,IF(H10="Nezařazeno",0,IF(H10="Individuálně",IF(AG10="PŘEKROČENÉ %",100,1),1))),0) -> 0 | AI10: =IF(AG10="PŘEKROČENÉ %",IF(H10="Smluvně",0,IF(H10="Nezařazeno",0,IF(H10="Individuálně",IF(AH10="PŘEKROČENÉ %",0,0),1))),0) -> 0 | AU10: B.1.1.1 | AW10: z toho | AX10: Základní rozpočtové náklady jednotlivých SO (ZRN) | BB10: S z listu 3SO | BC10: ='3SO'!BA6 -> 0 | BF10: ='3SO'!AX7 -> 0
A11: B.1.1.2 | D11: Vedlejší rozpočtové náklady nezahrnuté do jednotlivých SO (VRN) | H11: S z listu 3SO | I11: ='3SO'!M9 -> 0 | N11: =I11 -> 0 | AH11: =IF(AG11="PŘEKROČENÉ %",IF(H11="Smluvně",0,IF(H11="Nezařazeno",0,IF(H11="Individuálně",IF(AG11="PŘEKROČENÉ %",100,1),1))),0) -> 0 | AI11: =IF(AG11="PŘEKROČENÉ %",IF(H11="Smluvně",0,IF(H11="Nezařazeno",0,IF(H11="Individuálně",IF(AH11="PŘEKROČENÉ %",0,0),1))),0) -> 0 | AU11: B.1.1.2 | AX11: Vedlejší rozpočtové náklady nezahrnuté do jednotlivých SO (VRN) | BB11: S z listu 3SO | BC11: ='3SO'!BG9 -> 0
A12: B.1.2 | C12: Stavební část zajišťovaná přímo investorem | J12: =N12 -> 0 | L12: =SUM(L13:L15) -> 0 | N12: =SUM(N13:N15) -> 0 | AH12: 0 | AI12: 0 | AU12: B.1.2 | AW12: Stavební část zajišťovaná přímo investorem | BD12: =BH12 -> 0 | BF12: =SUM(BF13:BF15) -> 0
A13: B.1.2.1 | C13: z toho | D13: Stavební objekty zajišťované přímo investorem | H13: S z listu 3SO | I13: ='3SO'!I8 -> 0 | L13: ='3SO'!D9 -> 0 | N13: =I13 -> 0 | AH13: 0 | AI13: 0 | AU13: B.1.2.1 | AW13: z toho | AX13: Stavební objekty zajišťované přímo investorem | BB13: S z listu 3SO | BC13: ='3SO'!BC8 -> 0 | BF13: ='3SO'!AX9 -> 0
A14: B.1.2.2 | D14: Stavební práce a dodávky zajišťované přímo investorem | H14: Nezařazeno | N14: =IF(H14="Nezařazeno",0,IF(H14="Výpočtem",J14,I14)) -> 0 | O14: =IF((IF(H14="Individuálně",1,IF(H14="Smluvně",1,IF(H14="Nezařazeno",2,2))))=1,IF(I14=0,3,1),IF(H14="Výpočtem",4,2)) -> 2 | Q14: Smluvně | R14: Individuálně | S14: Nezařazeno | AH14: 0 | AI14: 0 | AU14: B.1.2.2 | AX14: Stavební práce a dodávky zajišťované přímo investorem | BB14: Nezařazeno
A15: B.1.2.3 | D15: Zkoušky, revize a měření zajišťované přímo investorem | H15: Nezařazeno | N15: =IF(H15="Nezařazeno",0,IF(H15="Výpočtem",J15,I15)) -> 0 | O15: =IF((IF(H15="Předpoklad",1,IF(H15="Dle fakturace",1,IF(H15="Nezařazeno",2,2))))=1,IF(I15=0,3,1),IF(H15="Výpočtem",4,2)) -> 2 | Q15: Dle fakturace | R15: Předpoklad | S15: Nezařazeno | AH15: 0 | AI15: 0 | AU15: B.1.2.3 | AX15: Zkoušky, revize a měření zajišťované přímo investorem | BB15: Nezařazeno
A16: B.2 | B16: Technologická část | K16: =N16 -> 0 | L16: =SUM(L17:L18) -> 0 | N16: =N17+N20 -> 0 | AH16: 0 | AI16: 0 | AU16: B.2 | AV16: Technologická část | BE16: =BH16 -> 0 | BF16: =SUM(BF17:BF18) -> 0
A17: B.2.1 | B17: z toho | C17: Provozní soubory dodávané zhotoviteli | J17: =N17 -> 0 | L17: ='3PS'!D7 -> 0 | N17: =N18+N19 -> 0 | AH17: 0 | AI17: 0 | AU17: B.2.1 | AV17: z toho | AW17: Provozní soubory dodávané zhotoviteli | BD17: =BH17 -> 0 | BF17: ='3PS'!AX7 -> 0
A18: B.2.1.1 | C18: z toho | D18: Základní rozpočtové náklady jednotlivých PS (ZRN) | H18: S z listu 3PS | I18: ='3PS'!G6 -> 0 | N18: =I18 -> 0 | AH18: 0 | AI18: 0 | AU18: B.2.1.1 | AW18: z toho | AX18: Základní rozpočtové náklady jednotlivých PS (ZRN) | BB18: S z listu 3PS | BC18: ='3PS'!BA6 -> 0
A19: B.2.1.2 | D19: Vedlejší rozpočtové náklady nezahrnute do jednotlivých PS (VRN) | H19: S z listu 3PS | I19: ='3PS'!M9 -> 0 | L19: =SUM(L20:L22) -> 0 | N19: =I19 -> 0 | AH19: 0 | AI19: 0 | AU19: B.2.1.2 | AX19: Vedlejší rozpočtové náklady nezahrnute do jednotlivých PS (VRN) | BB19: S z listu 3PS | BC19: ='3PS'!BG9 -> 0 | BF19: =SUM(BF20:BF22) -> 0
A20: B.2.2 | C20: Technologické část zajišťovaná přímo investorem | J20: =N20 -> 0 | L20: ='3PS'!D9 -> 0 | N20: =SUM(N21:N23) -> 0 | AH20: 0 | AI20: 0 | AU20: B.2.2 | AW20: Technologické část zajišťovaná přímo investorem | BD20: =BH20 -> 0 | BF20: ='3PS'!AX9 -> 0
A21: B.2.2.1 | C21: z toho | D21: Provozní soubory zajišťované přímo investorem | H21: S z listu 3PS | I21: ='3PS'!I8 -> 0 | N21: =I21 -> 0 | AH21: 0 | AI21: 0 | AU21: B.2.2.1 | AW21: z toho | AX21: Provozní soubory zajišťované přímo investorem | BB21: S z listu 3PS | BC21: ='3PS'!BC8 -> 0
A22: B.2.2.2 | D22: Technologické práce a dodávky zajišťované přímo investorem | H22: Nezařazeno | N22: =IF(H22="Nezařazeno",0,IF(H22="Výpočtem",J22,I22)) -> 0 | O22: =IF((IF(H22="Individuálně",1,IF(H22="Smluvně",1,IF(H22="Nezařazeno",2,2))))=1,IF(I22=0,3,1),IF(H22="Výpočtem",4,2)) -> 2 | Q22: Smluvně | R22: Individuálně | S22: Nezařazeno | AH22: 0 | AI22: 0 | AU22: B.2.2.2 | AX22: Technologické práce a dodávky zajišťované přímo investorem | BB22: Nezařazeno
A23: B.2.2.3 | D23: Revize a měření zajišťované investorem | H23: Nezařazeno | N23: =IF(H23="Nezařazeno",0,IF(H23="Výpočtem",J23,I23)) -> 0 | O23: =IF((IF(H23="Předpoklad",1,IF(H23="Dle fakturace",1,IF(H23="Nezařazeno",2,2))))=1,IF(I23=0,3,1),IF(H23="Výpočtem",4,2)) -> 2 | Q23: Dle fakturace | R23: Předpoklad | S23: Nezařazeno | AH23: 0 | AI23: 0 | AU23: B.2.2.3 | AX23: Revize a měření zajišťované investorem | BB23: Nezařazeno
A24: B.3 | B24: Ostatní náklady pro zajištění realizace stavby | K24: =N24 -> 0 | L24: =SUM(L25:L25:L31,L35:L38) -> 0 | N24: =SUM(N25:N31,N35:N38) -> 0 | O24: =IF((IF(H24="Individuálně",1,IF(H24="Smluvně",1,IF(H24="Nezařazeno",2,2))))=1,IF(I24=0,3,1),IF(H24="Výpočtem",4,2)) -> 2 | AH24: =IF(AG24="PŘEKROČENÉ %",IF(H24="Smluvně",0,IF(H24="Nezařazeno",0,IF(H24="Individuálně",IF(AG24="PŘEKROČENÉ %",100,1),1))),0) -> 0 | AI24: =IF(AG24="PŘEKROČENÉ %",IF(H24="Smluvně",0,IF(H24="Nezařazeno",0,IF(H24="Individuálně",IF(AH24="PŘEKROČENÉ %",0,0),1))),0) -> 0 | AU24: B.3 | AV24: Ostatní náklady pro zajištění realizace stavby | BE24: =BH24 -> 0 | BF24: =SUM(BF25:BF25:BF31,BF35:BF38) -> 0
A25: B.3.1 | B25: z toho | C25: Osvědčení o shodě notifikovanou osobou v realizaci | G25: - | H25: Nezařazeno | J25: =IF(H25="Výpočtem",AN25,0) -> 0 | L25: =N25*hide!$D$59 -> 0 | N25: =IF(H25="Nezařazeno",0,IF(H25="Výpočtem",J25,I25)) -> 0 | O25: 2 | P25: Výpočtem | Q25: Smluvně | R25: Individuálně | S25: Nezařazeno | T25: 0.003 | U25: 0.003 | V25: 0.002 | W25: 0.0018 | X25: 0.0015 | Y25: 0.0015 | Z25: 0.0015 | AA25: =($T$3*$AE25+$T$4*$AF25)*AC25 -> 0 | AB25: =($T$3*$AE25+$T$4*$AF25)*AD25 -> 0 | AC25: =IF($AN$2>5000000000,Z25,IF($AN$2>2000000000,X25,IF($AN$2>($W$6*1000000),W25,IF($AN$2>($V$6*1000000),V25,IF($AN$2>($U$6*1000000),U25,T25))))) -> 0.003 | AD25: =IF($AN$2>5000000000,Z25,IF($AN$2>2000000000,Y25,IF($AN$2>($W$6*1000000),X25,IF($AN$2>($V$6*1000000),W25,IF($AN$2>($U$6*1000000),V25,U25))))) -> 0.003 | AE25: 1 | AF25: 1 | AG25: =IF(I25>AA25,IF(H25="Aktualizace","PŘEKROČENÉ %",IF(H25="Individuálně","PŘEKROČENÉ","OK")),"OK") -> OK | AH25: =IF(AG25="PŘEKROČENÉ %",IF(H25="Výpočtem",0,IF(H25="Smluvně",0,IF(H25="Nezařazeno",0,IF(H25="Individuálně",IF(AG25="PŘEKROČENÉ %",100,1),1)))),0) -> 0 | AI25: =IF(AG25="PŘEKROČENÉ %",IF(H25="Výpočtem",0,IF(H25="Smluvně",0,IF(H25="Nezařazeno",0,IF(H25="Individuálně",IF(AH25="PŘEKROČENÉ %",0,0),1)))),0) -> 0 | AJ25: =IF($AN$2>5000000000,$X$6*1000000,IF($AN$2>($W$6*1000000),$W$6*1000000,IF($AN$2>($V$6*1000000),$V$6*1000000,IF($AN$2>($U$6*1000000),$U$6*1000000,0)))) -> 0 | AK25: =IF($AN$2>5000000000,5000000000,IF($AN$2>($W$6*1000000),$X$6*1000000,IF($AN$2>($V$6*1000000),$W$6*1000000,IF($AN$2>($U$6*1000000),$V$6*1000000,$U$6*1000000)))) -> 50000000 | AL25: =IF($AN$2<X$6*1000000,(X25+(((U25-X25)/($X$6*1000000))*($X$6*1000000-$AN$2))),IF($AN$2<$Y$6,Y25,Z25)) -> 0.003 | AM25: =IF(AL25=0,0,100%-((AA25-AN25)/AA25)) ->  | AN25: =ROUND(AL25*($AN$3*AE25+$AN$4*AF25),0) -> 0 | AO25: =ROUND(AD25*($AN$3*AE25+$AN$4*AF25),0) -> 0 | AP25: =ROUND(AC25*($AN$3*AE25+$AN$4*AF25),0) -> 0 | AU25: B.3.1 | AV25: z toho | AW25: Osvědčení o shodě notifikovanou osobou v realizaci | BA25: - | BB25: Nezařazeno | BD25: =IF(BB25="Výpočtem",CH25,0) -> 0 | BF25: =BH25*hide!$D$59 -> 0
A26: B.3.2 | C26: Koordinátor BOZP v realizaci | H26: Nezařazeno | J26: =IF(H26="Výpočtem",AN26,0) -> 0 | L26: =N26*hide!$D$59 -> 0 | N26: 0 | O26: 2 | P26: Výpočtem | Q26: Smluvně | R26: Individuálně | S26: Nezařazeno | T26: 0.01 | U26: 0.01 | V26: 0.006 | W26: 0.004 | X26: 0.002 | Y26: 0.002 | Z26: 0.002 | AA26: =($T$3*$AE26+$T$4*$AF26)*AC26 -> 0 | AB26: =($T$3*$AE26+$T$4*$AF26)*AD26 -> 0 | AC26: =IF($AN$2>5000000000,Z26,IF($AN$2>2000000000,X26,IF($AN$2>($W$6*1000000),W26,IF($AN$2>($V$6*1000000),V26,IF($AN$2>($U$6*1000000),U26,T26))))) -> 0.01 | AD26: =IF($AN$2>5000000000,Z26,IF($AN$2>2000000000,Y26,IF($AN$2>($W$6*1000000),X26,IF($AN$2>($V$6*1000000),W26,IF($AN$2>($U$6*1000000),V26,U26))))) -> 0.01 | AE26: 1 | AF26: 1 | AG26: =IF(I26>AA26,IF(H26="Aktualizace","PŘEKROČENÉ %",IF(H26="Individuálně","PŘEKROČENÉ","OK")),"OK") -> OK | AH26: =IF(AG26="PŘEKROČENÉ %",IF(H26="Výpočtem",0,IF(H26="Smluvně",0,IF(H26="Nezařazeno",0,IF(H26="Individuálně",IF(AG26="PŘEKROČENÉ %",100,1),1)))),0) -> 0 | AI26: =IF(AG26="PŘEKROČENÉ %",IF(H26="Výpočtem",0,IF(H26="Smluvně",0,IF(H26="Nezařazeno",0,IF(H26="Individuálně",IF(AH26="PŘEKROČENÉ %",0,0),1)))),0) -> 0 | AJ26: =IF($AN$2>5000000000,$X$6*1000000,IF($AN$2>($W$6*1000000),$W$6*1000000,IF($AN$2>($V$6*1000000),$V$6*1000000,IF($AN$2>($U$6*1000000),$U$6*1000000,0)))) -> 0 | AK26: =IF($AN$2>5000000000,5000000000,IF($AN$2>($W$6*1000000),$X$6*1000000,IF($AN$2>($V$6*1000000),$W$6*1000000,IF($AN$2>($U$6*1000000),$V$6*1000000,$U$6*1000000)))) -> 50000000 | AL26: =IF($AN$2<X$6*1000000,(X26+(((U26-X26)/($X$6*1000000))*($X$6*1000000-$AN$2))),IF($AN$2<$Y$6,Y26,Z26)) -> 0.01 | AM26: =IF(AL26=0,0,100%-((AA26-AN26)/AA26)) ->  | AN26: =ROUND(AL26*($AN$3*AE26+$AN$4*AF26),0) -> 0 | AO26: =ROUND(AD26*($AN$3*AE26+$AN$4*AF26),0) -> 0 | AP26: =ROUND(AC26*($AN$3*AE26+$AN$4*AF26),0) -> 0 | AU26: B.3.2 | AW26: Koordinátor BOZP v realizaci | BB26: Nezařazeno | BD26: =IF(BB26="Výpočtem",CH26,0) -> 0 | BF26: =BH26*hide!$D$59 -> 0
A27: B.3.3 | C27: Osvědčení o bezpečnosti před uvedením do provozu | G27: - | H27: Nezařazeno | J27: 0 | L27: =N27*hide!$D$59 -> 0 | N27: 0 | O27: 2 | P27: Výpočtem | Q27: Smluvně | R27: Individuálně | S27: Nezařazeno | T27: 0.0005 | U27: 0.0005 | V27: 0.0004 | W27: 0.0003 | X27: 0.0002 | Y27: 0.0001 | Z27: 0.0001 | AA27: 0 | AB27: 0 | AC27: 0.0005 | AD27: 0.0005 | AE27: 1 | AF27: 1 | AG27: OK | AH27: 0 | AI27: 0 | AJ27: 0 | AK27: 50000000 | AL27: 0.0005 | AN27: 0 | AO27: 0 | AP27: 0 | AU27: B.3.3 | AW27: Osvědčení o bezpečnosti před uvedením do provozu | BA27: - | BB27: Nezařazeno | BD27: 0 | BF27: =BH27*hide!$D$59 -> 0
A28: B.3.4 | C28: Geodetická vytyčovací síť celé stavby | G28: - | H28: Nezařazeno | J28: 0 | L28: =N28*hide!$D$59 -> 0 | N28: 0 | O28: 2 | P28: Výpočtem | Q28: Smluvně | R28: Individuálně | S28: Nezařazeno | T28: 0.0008 | U28: 0.0007 | V28: 0.0006 | W28: 0.0005 | X28: 0.0004 | Y28: 0.0004 | Z28: 0.0004 | AA28: =($T$3*$AE28+$T$4*$AF28)*AC28 -> 0 | AB28: =($T$3*$AE28+$T$4*$AF28)*AD28 -> 0 | AC28: =IF($AN$2>5000000000,Z28,IF($AN$2>2000000000,X28,IF($AN$2>($W$6*1000000),W28,IF($AN$2>($V$6*1000000),V28,IF($AN$2>($U$6*1000000),U28,T28))))) -> 0.0008 | AD28: =IF($AN$2>5000000000,Z28,IF($AN$2>2000000000,Y28,IF($AN$2>($W$6*1000000),X28,IF($AN$2>($V$6*1000000),W28,IF($AN$2>($U$6*1000000),V28,U28))))) -> 0.0007 | AE28: 1 | AF28: 1 | AG28: =IF(I28>AA28,IF(H28="Aktualizace","PŘEKROČENÉ %",IF(H28="Individuálně","PŘEKROČENÉ","OK")),"OK") -> OK | AH28: =IF(AG28="PŘEKROČENÉ %",IF(H28="Výpočtem",0,IF(H28="Smluvně",0,IF(H28="Nezařazeno",0,IF(H28="Individuálně",IF(AG28="PŘEKROČENÉ %",100,1),1)))),0) -> 0 | AI28: =IF(AG28="PŘEKROČENÉ %",IF(H28="Výpočtem",0,IF(H28="Smluvně",0,IF(H28="Nezařazeno",0,IF(H28="Individuálně",IF(AH28="PŘEKROČENÉ %",0,0),1)))),0) -> 0 | AJ28: 0 | AK28: 50000000 | AL28: =IF($AN$2<X$6*1000000,(X28+(((U28-X28)/($X$6*1000000))*($X$6*1000000-$AN$2))),IF($AN$2<$Y$6,Y28,Z28)) -> 0.0007 | AM28: =IF(AL28=0,0,100%-((AA28-AN28)/AA28)) ->  | AN28: =ROUND(AL28*($AN$3*AE28+$AN$4*AF28),0) -> 0 | AO28: =ROUND(AD28*($AN$3*AE28+$AN$4*AF28),0) -> 0 | AP28: =ROUND(AC28*($AN$3*AE28+$AN$4*AF28),0) -> 0 | AU28: B.3.4 | AW28: Geodetická vytyčovací síť celé stavby | BA28: - | BB28: Nezařazeno | BD28: 0 | BF28: =BH28*hide!$D$59 -> 0
A29: B.3.5 | C29: Odborné dozory, dohledy a průzkumy zajišťované zhotovitelem | G29: - | H29: Nezařazeno | L29: =N29*hide!$D$59 -> 0 | N29: 0 | O29: 2 | Q29: Smluvně | R29: Individuálně | S29: Nezařazeno | AH29: =IF(AG29="PŘEKROČENÉ %",IF(H29="Smluvně",0,IF(H29="Nezařazeno",0,IF(H29="Individuálně",IF(AG29="PŘEKROČENÉ %",100,1),1))),0) -> 0 | AI29: =IF(AG29="PŘEKROČENÉ %",IF(H29="Smluvně",0,IF(H29="Nezařazeno",0,IF(H29="Individuálně",IF(AH29="PŘEKROČENÉ %",0,0),1))),0) -> 0 | AU29: B.3.5 | AW29: Odborné dozory, dohledy a průzkumy zajišťované zhotovitelem | BA29: - | BB29: Nezařazeno | BF29: =BH29*hide!$D$59 -> 0
A30: B.3.6 | C30: Hlukové měření pro účely realizace stavby | G30: - | H30: Nezařazeno | L30: =N30*hide!$D$59 -> 0 | N30: 0 | O30: =IF((IF(H30="Předpoklad",1,IF(H30="Smluvně",1,IF(H30="Nezařazeno",2,2))))=1,IF(I30=0,3,1),IF(H30="Výpočtem",4,2)) -> 2 | Q30: Smluvně | R30: Předpoklad | S30: Nezařazeno | AH30: 0 | AI30: 0 | AU30: B.3.6 | AW30: Hlukové měření pro účely realizace stavby | BA30: - | BB30: Nezařazeno | BF30: =BH30*hide!$D$59 -> 0
A31: B.3.7 | C31: Náhrady | J31: =N31 -> 0 | L31: =SUM(L32:L34) -> 0 | N31: =SUM(N32:N34) -> 0 | AH31: 0 | AI31: 0 | AU31: B.3.7 | AW31: Náhrady | BD31: =BH31 -> 0 | BF31: =SUM(BF32:BF34) -> 0
A32: B.3.7.1 | C32: z toho | D32: Náhrady za omezení hospodaření | G32: - | H32: Nezařazeno | L32: =N32 -> 0 | N32: 0 | O32: =IF((IF(H32="Individuálně",1,IF(H32="Smluvně",1,IF(H32="Nezařazeno",2,2))))=1,IF(I32=0,3,1),IF(H32="Výpočtem",4,2)) -> 2 | Q32: Smluvně | R32: Individuálně | S32: Nezařazeno | AH32: 0 | AI32: 0 | AU32: B.3.7.1 | AW32: z toho | AX32: Náhrady za omezení hospodaření | BA32: - | BB32: Nezařazeno | BF32: =BH32 -> 0
A33: B.3.7.2 | D33: Náhrady za omezení provozu | H33: Nezařazeno | J33: =IF(H33="Dle listu NAD",N33,0) -> 0 | L33: =N33 -> 0 | N33: =IF(H33="Nezařazeno",0,IF(H33="Dle listu NAD",NAD!C1,I33)) -> 0 | O33: =IF((IF(H33="Individuálně",1,IF(H33="Smluvně",1,IF(H33="Nezařazeno",2,2))))=1,IF(I33=0,3,1),IF(H33="Dle listu NAD",4,2)) -> 2 | P33: Dle listu NAD | Q33: Smluvně | R33: Individuálně | S33: Nezařazeno | AH33: 0 | AI33: 0 | AU33: B.3.7.2 | AX33: Náhrady za omezení provozu | BB33: Nezařazeno | BD33: =IF(BB33="Dle listu NAD",BH33,0) -> 0 | BF33: =BH33 -> 0
A34: B.3.7.3 | D34: Ostatní náhrady v realizaci | H34: Nezařazeno | N34: =IF(H34="Nezařazeno",0,IF(H34="Výpočtem",J34,I34)) -> 0 | Q34: Smluvně | R34: Individuálně | S34: Nezařazeno | AH34: 0 | AI34: 0 | AU34: B.3.7.3 | AX34: Ostatní náhrady v realizaci | BB34: Nezařazeno
A35: B.3.8 | C35: Zabezpečovací a konzervační práce | H35: Nezařazeno | N35: 0 | Q35: Smluvně | R35: Předpoklad | S35: Nezařazeno | AH35: 0 | AI35: 0 | AU35: B.3.8 | AW35: Zabezpečovací a konzervační práce | BB35: Nezařazeno
A36: B.3.9 | C36: Ostatní nezařazené náklady v realizaci | G36: =IF(N36>0,"Všeobecný objekt","-") -> - | H36: Nezařazeno | N36: 0 | O36: =IF((IF(H36="Individuálně",1,IF(H36="Smluvně",1,IF(H36="Nezařazeno",2,2))))=1,IF(I36=0,3,1),IF(H36="Výpočtem",4,2)) -> 2 | Q36: Smluvně | R36: Individuálně | S36: Nezařazeno | AH36: 0 | AI36: 0 | AU36: B.3.9 | AW36: Ostatní nezařazené náklady v realizaci | BA36: =IF(BH36>0,"Všeobecný objekt","-") -> - | BB36: Nezařazeno
A37: B.3.10 | C37: Jiné náklady v realizaci | H37: Nezařazeno | L37: =N37*hide!$D$59 -> 0 | N37: 0 | O37: 2 | Q37: Smluvně | R37: Individuálně | S37: Nezařazeno | AH37: 0 | AI37: 0 | AU37: B.3.10 | AW37: Jiné náklady v realizaci | BB37: Nezařazeno | BF37: =BH37*hide!$D$59 -> 0
A38: B.3.11 | C38: Stavební náklady z rozdílu stádia přípravy a realizace | H38: Nezařazeno | N38: 0 | Q38: Smluvně | R38: Individuálně | S38: Nezařazeno | AH38: 0 | AI38: 0 | AU38: B.3.11 | AW38: Stavební náklady z rozdílu stádia přípravy a realizace | BB38: Nezařazeno
A39: B.4 | B39: Příspěvky jiným investorům | K39: =N39 -> 0 | L39: =SUM(L40:L42) -> 0 | N39: =SUM(N40:N42) -> 0 | AH39: 0 | AI39: 0 | AU39: B.4 | AV39: Příspěvky jiným investorům | BE39: =BH39 -> 0 | BF39: =SUM(BF40:BF42) -> 0
A40: B.4.1 | B40: z toho | C40: Podíl na účelně vynaložených nákl. ve smyslu zák. č.458/00 Sb. | H40: Nezařazeno | L40: =N40 -> 0 | N40: =IF(H40="Nezařazeno",0,IF(H40="Výpočtem",J40,I40)) -> 0 | O40: =IF((IF(H40="Předpoklad",1,IF(H40="Smluvně",1,IF(H40="Nezařazeno",2,2))))=1,IF(I40=0,3,1),IF(H40="Výpočtem",4,2)) -> 2 | Q40: Smluvně | R40: Předpoklad | S40: Nezařazeno | AH40: 0 | AI40: 0 | AU40: B.4.1 | AV40: z toho | AW40: Podíl na účelně vynaložených nákl. ve smyslu zák. č.458/00 Sb. | BB40: Nezařazeno | BF40: =BH40 -> 0
A41: B.4.2 | C41: Podíl na účelně vynaložených nákladech dle zákona č. 127/2005 Sb. | H41: Nezařazeno | L41: =N41 -> 0 | N41: 0 | O41: =IF((IF(H41="Předpoklad",1,IF(H41="Smluvně",1,IF(H41="Nezařazeno",2,2))))=1,IF(I41=0,3,1),IF(H41="Výpočtem",4,2)) -> 2 | Q41: Smluvně | R41: Předpoklad | S41: Nezařazeno | AH41: 0 | AI41: 0 | AU41: B.4.2 | AW41: Podíl na účelně vynaložených nákladech dle zákona č. 127/2005 Sb. | BB41: Nezařazeno | BF41: =BH41 -> 0
A42: B.4.3 | C42: Ostatní příspěvky | H42: Nezařazeno | L42: =N42 -> 0 | N42: 0 | O42: =IF((IF(H42="Individuálně",1,IF(H42="Smluvně",1,IF(H42="Nezařazeno",2,2))))=1,IF(I42=0,3,1),IF(H42="Výpočtem",4,2)) -> 2 | Q42: Smluvně | R42: Individuálně | S42: Nezařazeno | AH42: 0 | AI42: 0 | AU42: B.4.3 | AW42: Ostatní příspěvky | BB42: Nezařazeno | BF42: =BH42 -> 0
A43: B.5 | B43: Rezerva | G43: S z listu 3SO, 3PS | K43: =N43 -> 0 | L43: =N43*hide!$D$59 -> 0 | N43: =('3SO'!K8+'3PS'!K8) -> 0 | AH43: 0 | AI43: 0 | AU43: B.5 | AV43: Rezerva | BA43: S z listu 3SO, 3PS | BE43: =BH43 -> 0 | BF43: =BH43*hide!$D$59 -> 0
A44: B.6 | B44: Náklady na realizaci stavby bez rezervy | I44: =K39+K24+K16+K8 -> 0 | J44: =J39+J24+J16+J8 -> 0 | K44: 0 | L44: =L39+L24+L16+L8 -> 0 | AU44: B.6 | AV44: Náklady na realizaci stavby bez rezervy | BC44: =BE39+BE24+BE16+BE8 -> 0 | BD44: =BD39+BD24+BD16+BD8 -> 0 | BE44: 0 | BF44: =BF39+BF24+BF16+BF8 -> 0
A45: B.7 | B45: Náklady na realizaci stavby celkem s rezervou | I45: =K43+K39+K24+K16+K8 -> 0 | J45: =J43+J39+J24+J16+J8 -> 0 | K45: 0 | L45: =L43+L39+L24+L16+L8 -> 0 | AU45: B.7 | AV45: Náklady na realizaci stavby celkem s rezervou | BC45: =BE43+BE39+BE24+BE16+BE8 -> 0 | BD45: =BD43+BD39+BD24+BD16+BD8 -> 0 | BE45: 0 | BF45: =BF43+BF39+BF24+BF16+BF8 -> 0
A48: Poznámka k nákladům v realizaci - (B): | AU48: Poznámka k nákladům v realizaci - (B):
A49: rozpis položky | K49: v příloze B: | L49: náklady v Kč | AU49: rozpis položky | BE49: v příloze B: | BF49: náklady v Kč

Sheet 1C
A1: =CONCATENATE("Náklady stavby v aktuálním roce: ",IF('Krycí list SR'!H4="","",'Krycí list SR'!H4)) -> Náklady stavby v aktuálním roce: | J1: Formulář 1.C | K1: ='Krycí list SR'!$H$1 -> SRP/2023/08 | Q1: =CONCATENATE("Náklady stavby v aktuálním roce: ",IF('Krycí list SR'!X4="","",'Krycí list SR'!X4)) -> Náklady stavby v aktuálním roce: | Z1: Formulář 1.C | AA1: ='Krycí list SR'!$H$1 -> SRP/2023/08
A2: Název stavby: | C2: =IF('Krycí list SR'!B2="","",'Krycí list SR'!B2) ->  | Q2: Název stavby: | S2: =IF('Krycí list SR'!R2="","",'Krycí list SR'!R2) -> 
A3: ISPROFIN: | C3: =IF('Krycí list SR'!$B$3="","",'Krycí list SR'!$B$3) ->  | E3: Označení (S-kód): | G3: =IF('Krycí list SR'!D3="","",'Krycí list SR'!D3) ->  | I3: =IF('Krycí list SR'!E3="","",'Krycí list SR'!E3) ->  | J3: ='Krycí list SR'!F3 -> <= vybrat Stádium v poli E3 | Q3: ISPROFIN: | S3: =IF('Krycí list SR'!$B$3="","",'Krycí list SR'!$B$3) ->  | U3: Označení (S-kód): | W3: =IF('Krycí list SR'!T3="","",'Krycí list SR'!T3) ->  | Y3: =IF('Krycí list SR'!U3="","",'Krycí list SR'!U3) -> ISPROFIN: | Z3: ='Krycí list SR'!V3 -> 5113720005
A4: Investor: | B4: SŽ | D4: =IF('Krycí list SR'!$B$5="","",'Krycí list SR'!$B$5) ->  | H4: IČO: | I4: ='Krycí list SR'!$D$8 -> 70994234 | J4: DIČ: | K4: ='Krycí list SR'!D9 -> CZ70994234 | Q4: Investor: | R4: SŽ | T4: =IF('Krycí list SR'!$B$5="","",'Krycí list SR'!$B$5) ->  | X4: IČO: | Y4: ='Krycí list SR'!$D$8 -> 70994234 | Z4: DIČ: | AA4: ='Krycí list SR'!T9 -> 0
A5: Jiný investor: | C5: =IF('Krycí list SR'!$B$7="","neurčen",'Krycí list SR'!$B$7) -> - | I5: Náklady celkem [Kč] | J5: Náklady dle rozdělení majektu | Q5: Jiný investor: | S5: =IF('Krycí list SR'!$B$7="","neurčen",'Krycí list SR'!$B$7) -> - | Y5: Náklady celkem [Kč] | Z5: Náklady dle rozdělení majektu
A6: C | B6: Rekapitulace nákladů | J6: SŽ | K6: Ostatní | L6: Pole pro pracovní výpočty bez tisku | Q6: C | R6: Rekapitulace nákladů | Z6: SŽ | AA6: Ostatní
A8: C.1 | B8: Pořizovací investiční náklady | H8: PIN | I8: =I9+I13 -> 0 | J8: =J9+J13 -> 0 | K8: =K9+K13 -> 0 | Q8: C.1 | R8: Pořizovací investiční náklady | X8: PIN | Y8: =Y9+Y13 -> 0 | Z8: =Z9+Z13 -> 0 | AA8: =AA9+AA13 -> 0
A9: C.1.1 | B9: z toho | C9: Celkové investiční náklady | H9: CIN | I9: =SUM(I10:I12) -> 0 | J9: =SUM(J10:J12) -> 0 | K9: =K10+K11+K12 -> 0 | Q9: C.1.1 | R9: z toho | S9: Celkové investiční náklady | X9: CIN | Y9: =SUM(Y10:Y12) -> 0 | Z9: =SUM(Z10:Z12) -> 0 | AA9: =AA10+AA11+AA12 -> 0
A10: C.1.1.1 | C10: z toho | D10: Náklady na přípravu a celkové zabezpečení výstavby | I10: ='1A'!I63 -> 0 | J10: =I10-K10 -> 0 | K10: ='1A'!L63 -> 0 | Q10: C.1.1.1 | S10: z toho | T10: Náklady na přípravu a celkové zabezpečení výstavby | Y10: ='1A'!Y63 -> 0 | Z10: =Y10-AA10 -> 0 | AA10: ='1A'!AB63 -> 0
A11: C.1.1.2 | D11: Náklady na realizaci stavby bez rezervy | I11: ='1B'!I44 -> 0 | J11: =I11-K11 -> 0 | K11: ='1B'!L44 -> 0 | Q11: C.1.1.2 | T11: Náklady na realizaci stavby bez rezervy | Y11: ='1B'!Y44 -> 0 | Z11: =Y11-AA11 -> 0 | AA11: ='1B'!AB44 -> 0
A12: C.1.1.3 | D12: Rezerva stavby | I12: ='1B'!K43 -> 0 | J12: =I12-K12 -> 0 | K12: ='1B'!L43 -> 0 | Q12: C.1.1.3 | T12: Rezerva stavby | Y12: ='1B'!AA43 -> 0 | Z12: =Y12-AA12 -> 0 | AA12: ='1B'!AB43 -> 0
A13: C.1.2 | C13: Hodnota zůstatkového majetku SŽ, který bude stavbou odstraněn | J13: =I13 -> 0 | Q13: C.1.2 | S13: Hodnota zůstatkového majetku SŽ, který bude stavbou odstraněn | Z13: =Y13 -> 0
A14: C.2 | B14: Provozní náklady | H14: PRN | J14: =I14 -> 0 | Q14: C.2 | R14: Provozní náklady | X14: PRN | Z14: =Y14 -> 0
A15: C.3 | B15: Příjmy generované stavbou | I15: =I16+I17 -> 0 | J15: =J16+J17 -> 0 | K15: =K16+K17 -> 0 | Q15: C.3 | R15: Příjmy generované stavbou | Y15: =Y16+Y17 -> 0 | Z15: =Z16+Z17 -> 0 | AA15: =AA16+AA17 -> 0
A16: C.3.1 | B16: z toho | C16: Zdroje z výzisku materiálu SŽ | I16: =J16 -> 0 | Q16: C.3.1 | R16: z toho | S16: Zdroje z výzisku materiálu SŽ | Y16: =Z16 -> 0
A17: C.3.2 | C17: Ostatní zdroje | I17: =K17 -> 0 | Q17: C.3.2 | S17: Ostatní zdroje | Y17: =AA17 -> 0
A19: C.4 | B19: Celkové náklady stavby bez DPH | H19: CNS | I19: =I8+I14 -> 0 | J19: =J8+J14-J15 -> 0 | K19: =K8+K14-K15 -> 0 | Q19: C.4 | R19: Celkové náklady stavby bez DPH | X19: CNS | Y19: =Y8+Y14 -> 0 | Z19: =Z8+Z14-Z15 -> 0 | AA19: =AA8+AA14-AA15 -> 0
A21: Poznámka: | Q21: Poznámka:

Sheet 2A
A1: Náklady stavby ve smíšené CÚ: | E1: ='Krycí list SR'!F4 -> 0 | F1: - | G1: ='Krycí list SR'!G10 ->  | H1: Formulář 2.A | I1: Náklady v letech výstavby | S1: ='Krycí list SR'!$H$1 -> SRP/2023/08
A2: Název stavby: | C2: =IF('Krycí list SR'!B2="","",'Krycí list SR'!B2) ->  | I2: Do 31.12 | J2: Aktuální rok | K2: v roce | L2: v roce | M2: v roce | N2: v roce | O2: v roce | P2: v roce | Q2: v roce | R2: v roce | S2: v letech | AI2: ='Krycí list SR'!E5 -> Stavební náklady stanovené v roce:
A3: ISPROFIN: | C3: =IF('Krycí list SR'!$B$3="","",'Krycí list SR'!$B$3) ->  | E3: Označení (S-kód): | G3: =IF('Krycí list SR'!D3="","",'Krycí list SR'!D3) ->  | W3: Výběr dokumentací pro inflaci | AI3: ='Krycí list SR'!F5 -> 0
A4: Investor: | B4: SŽ s.o., | D4: =IF('Krycí list SR'!$B$5="","",'Krycí list SR'!$B$5) ->  | H4: =IF('Krycí list SR'!E3="","",'Krycí list SR'!E3) ->  | I4: =J4-1 -> -1 | J4: ='Krycí list SR'!H4 -> 0 | K4: =J4+1 -> 1 | L4: 2 | M4: 3 | N4: 4 | O4: 5 | P4: 6 | Q4: 7 | R4: 8 | S4: =CONCATENATE("po ",R4) -> po 8 | W4: Stádium | X4: =H4 ->  | Y4: =IF(X4="",0,IF(X4="Stádium 3",0,IF(X4="Stádium 2",2,1))) -> 0 | AI4: ='Krycí list SR'!G4 -> Aktuální rok
A5: Jiný investor: | C5: =IF('Krycí list SR'!$B$7="","neurčen",'Krycí list SR'!$B$7) -> - | H5: =IF(MIN(J7:S62)<0,"Chyba: rozdělení nákladů v letech","") ->  | K5: Inflační koeficient pro daný rok | AI5: ='Krycí list SR'!H4 -> 0
A6: A | B6: Příprava a celkové zabezpečení stavby | H6: náklady v Kč celkem | J6: =SUMIF($AI$8:$AI$37,J4,$AJ$8:$AJ$37) -> 0 | K6: =SUMIF($AI$8:$AI$37,K4,$AJ$8:$AJ$37) -> 0 | L6: =SUMIF($AI$8:$AI$37,L4,$AJ$8:$AJ$37) -> 0 | M6: =SUMIF($AI$8:$AI$37,M4,$AJ$8:$AJ$37) -> 0 | N6: 0 | O6: 0 | P6: 0 | Q6: 0 | R6: 0 | S6: =SUMIF($AI$8:$AI$37,(R4+1),$AJ$8:$AJ$37) -> 0 | T6: Pole pro pracovní výpočty bez tisku | W6: Podklad pro opravu formátování
A7: A.1 | B7: Náklady investorsko - inženýrské činnosti ve výstavbě | F7: z toho ve stádiu realizace | G7: 0.6 | H7: ='1A'!N8 -> 0 | J7: ='1A'!N8-I7-SUM(K7:S8) -> 0 | X7: ='1A'!AB8-W7-SUM(Y7:AG8) -> 0 | AI7: rok | AJ7: inflace
K8: =ROUND(((('1A'!$N8)*$G$7)*SUMIF(hide!$H$74:$H$83,K$4,hide!$L$74:$L$83)),0) -> 0 | L8: =ROUND(((('1A'!$N8)*$G$7)*SUMIF(hide!$H$74:$H$83,L$4,hide!$L$74:$L$83)),0) -> 0 | M8: =ROUND(((('1A'!$N8)*$G$7)*SUMIF(hide!$H$74:$H$83,M$4,hide!$L$74:$L$83)),0) -> 0 | N8: =ROUND(((('1A'!$N8)*$G$7)*SUMIF(hide!$H$74:$H$83,N$4,hide!$L$74:$L$83)),0) -> 0 | O8: =ROUND(((('1A'!$N8)*$G$7)*SUMIF(hide!$H$74:$H$83,O$4,hide!$L$74:$L$83)),0) -> 0 | P8: =ROUND(((('1A'!$N8)*$G$7)*SUMIF(hide!$H$74:$H$83,P$4,hide!$L$74:$L$83)),0) -> 0 | Q8: =ROUND(((('1A'!$N8)*$G$7)*SUMIF(hide!$H$74:$H$83,Q$4,hide!$L$74:$L$83)),0) -> 0 | R8: =ROUND(((('1A'!$N8)*$G$7)*SUMIF(hide!$H$74:$H$83,R$4,hide!$L$74:$L$83)),0) -> 0 | S8: =ROUND(((('1A'!$N8)*$G$7)*SUMIF(hide!$H$74:$H$83,S$4,hide!$L$74:$L$83)),0) -> 0 | Y8: =ROUND(((('1A'!$N8)*$G$7)*SUMIF(hide!$H$74:$H$83,Y$4,hide!$L$74:$L$83)),0) -> 0 | Z8: =ROUND(((('1A'!$N8)*$G$7)*SUMIF(hide!$H$74:$H$83,Z$4,hide!$L$74:$L$83)),0) -> 0 | AA8: =ROUND(((('1A'!$N8)*$G$7)*SUMIF(hide!$H$74:$H$83,AA$4,hide!$L$74:$L$83)),0) -> 0 | AB8: =ROUND(((('1A'!$N8)*$G$7)*SUMIF(hide!$H$74:$H$83,AB$4,hide!$L$74:$L$83)),0) -> 0 | AC8: =ROUND(((('1A'!$N8)*$G$7)*SUMIF(hide!$H$74:$H$83,AC$4,hide!$L$74:$L$83)),0) -> 0 | AD8: =ROUND(((('1A'!$N8)*$G$7)*SUMIF(hide!$H$74:$H$83,AD$4,hide!$L$74:$L$83)),0) -> 0 | AE8: =ROUND(((('1A'!$N8)*$G$7)*SUMIF(hide!$H$74:$H$83,AE$4,hide!$L$74:$L$83)),0) -> 0 | AF8: =ROUND(((('1A'!$N8)*$G$7)*SUMIF(hide!$H$74:$H$83,AF$4,hide!$L$74:$L$83)),0) -> 0 | AG8: =ROUND(((('1A'!$N8)*$G$7)*SUMIF(hide!$H$74:$H$83,AG$4,hide!$L$74:$L$83)),0) -> 0 | AI8: ='hide inflace'!A3 -> 2015 | AJ8: ='hide inflace'!C3 -> 0
A9: A.2 | B9: Náklady na dokumentace stavby | H9: =SUM(I9:S9) -> 0 | I9: =I10+I21+I32+I33+I38 -> 0 | J9: 0 | K9: 0 | L9: 0 | M9: 0 | N9: 0 | O9: 0 | P9: 0 | Q9: 0 | R9: 0 | S9: 0 | W9: =W10+W21+W32+W33+W38 -> 0 | X9: 0 | Y9: 0 | Z9: 0 | AA9: 0 | AB9: 0 | AC9: 0 | AD9: 0 | AE9: 0 | AF9: 0 | AG9: 0 | AI9: ='hide inflace'!A4 -> 2016 | AJ9: ='hide inflace'!C4 -> 0
A10: A.2.1 | B10: z toho | C10: Náklady na předprojektové dokumentace pro přípravu stavby | H10: =SUM(I10:S10) -> 0 | I10: =SUM(I11,I17,I20) -> 0 | J10: =J11+J17+J20 -> 0 | K10: =K11+K17+K20 -> 0 | L10: 0 | M10: 0 | N10: 0 | O10: 0 | P10: 0 | Q10: 0 | R10: 0 | S10: 0 | W10: =SUM(W11,W17,W20) -> 0 | X10: =X11+X17+X20 -> 0 | Y10: =Y11+Y17+Y20 -> 0 | Z10: =Z11+Z17+Z20 -> 0 | AA10: =AA11+AA17+AA20 -> 0 | AB10: =AB11+AB17+AB20 -> 0 | AC10: =AC11+AC17+AC20 -> 0 | AD10: =AD11+AD17+AD20 -> 0 | AE10: =AE11+AE17+AE20 -> 0 | AF10: =AF11+AF17+AF20 -> 0 | AG10: =AG11+AG17+AG20 -> 0 | AI10: ='hide inflace'!A5 -> 2017 | AJ10: ='hide inflace'!C5 -> 0.015
A11: A.2.1.1 | C11: z toho | D11: Práce prováděné pro zpracování předprojektových dokumentací | H11: =SUM(I11:S11) -> 0 | I11: =SUM(I12:I16) -> 0 | J11: =SUM(J12:J16) -> 0 | K11: =SUM(K12:K16) -> 0 | L11: =SUM(L12:L16) -> 0 | M11: =SUM(M12:M16) -> 0 | N11: 0 | O11: 0 | P11: 0 | Q11: 0 | R11: 0 | S11: 0 | W11: =SUM(W12:W16) -> 0 | X11: =SUM(X12:X16) -> 0 | Y11: =SUM(Y12:Y16) -> 0 | Z11: =SUM(Z12:Z16) -> 0 | AA11: =SUM(AA12:AA16) -> 0 | AB11: 0 | AC11: 0 | AD11: 0 | AE11: 0 | AF11: 0 | AG11: 0 | AI11: ='hide inflace'!A6 -> 2018 | AJ11: ='hide inflace'!C6 -> 0.031
A12: A.2.1.1.1 | D12: z toho | E12: Geodetické práce a mapové podklady | H12: =SUM(I12:S12) -> 0 | J12: ='1A'!N12-SUM(I12,K12:S12) -> 0 | AI12: ='hide inflace'!A7 -> 2019 | AJ12: ='hide inflace'!C7 -> 0.047
A13: A.2.1.1.2 | E13: Průzkumné práce pro předprojektové dokumentace | H13: =SUM(I13:S13) -> 0 | J13: ='1A'!N13-SUM(I13,K13:S13) -> 0 | X13: ='1A'!AB13-SUM(W13,Y13:AG13) -> 0 | AI13: ='hide inflace'!A8 -> 2020 | AJ13: ='hide inflace'!C8 -> 0.037
A14: A.2.1.1.3 | E14: Posouzení vlivu stavby na životní prostředí | H14: 0 | J14: ='1A'!N14-SUM(I14,K14:S14) -> 0 | X14: ='1A'!AB14-SUM(W14,Y14:AG14) -> 0 | AI14: ='hide inflace'!A9 -> 2021 | AJ14: ='hide inflace'!C9 -> 0.044
A15: A.2.1.1.4 | E15: Inženýrská činnost pro předprojektové dokumentace | H15: 0 | J15: ='1A'!N15-SUM(I15,K15:S15) -> 0 | X15: ='1A'!AB15-SUM(W15,Y15:AG15) -> 0 | AI15: ='hide inflace'!A10 -> 2022 | AJ15: ='hide inflace'!C10 -> 0.119
A16: A.2.1.1.5 | E16: Ostatní náklady pro předprojektové dokumentace | H16: 0 | J16: ='1A'!N16-SUM(I16,K16:S16) -> 0 | X16: ='1A'!AB16-SUM(W16,Y16:AG16) -> 0 | AI16: ='hide inflace'!A11 -> 2023 | AJ16: ='hide inflace'!C11 -> 0.108
A17: A.2.1.2 | D17: Záměr projektu | H17: =SUM(I17:S17) -> 0 | I17: =SUM(I18:I19) -> 0 | J17: =SUM(J18:J19) -> 0 | K17: =SUM(K18:K19) -> 0 | L17: 0 | M17: 0 | N17: 0 | O17: 0 | P17: 0 | Q17: 0 | R17: 0 | S17: 0 | W17: =SUM(W18:W19) -> 0 | X17: =SUM(X18:X19) -> 0 | Y17: =SUM(Y18:Y19) -> 0 | Z17: 0 | AA17: 0 | AB17: 0 | AC17: 0 | AD17: 0 | AE17: 0 | AF17: 0 | AG17: 0 | AI17: ='hide inflace'!A12 -> 2024 | AJ17: ='hide inflace'!C12 -> 0.021
A18: A.2.1.2.1 | D18: z toho | E18: Záměr projektu, povinný obsah | G18: ZP | H18: 0 | J18: ='1A'!N18-SUM(I18,K18:S18) -> 0 | X18: ='1A'!AB18-SUM(W18,Y18:AG18) -> 0 | AI18: ='hide inflace'!A13 -> 2025 | AJ18: ='hide inflace'!C13 -> 0.02
A19: A.2.1.2.2 | E19: Doprovodná dokumentace | G19: DD | H19: 0 | J19: ='1A'!N19-SUM(I19,K19:S19) -> 0 | X19: ='1A'!AB19-SUM(W19,Y19:AG19) -> 0 | AI19: ='hide inflace'!A14 -> 2026 | AJ19: ='hide inflace'!C14 -> 0.02
A20: A.2.1.3 | D20: Dokumentace pro územní řízení | G20: DUR | H20: =SUM(I20:S20) -> 0 | J20: ='1A'!N20-SUM(I20,K20:S20) -> 0 | X20: ='1A'!AB20-SUM(W20,Y20:AG20) -> 0 | AI20: ='hide inflace'!A15 -> 2027 | AJ20: ='hide inflace'!C15 -> 0.02
A21: A.2.2 | C21: Náklady na projektové dokumentace | H21: =SUM(I21:S21) -> 0 | I21: =I22+I28+I29+I30+I31 -> 0 | J21: =J22+J28+J29+J30+J31 -> 0 | K21: =K22+K28+K29+K30+K31 -> 0 | L21: =L22+L28+L29+L30+L31 -> 0 | M21: =M22+M28+M29+M30+M31 -> 0 | N21: 0 | O21: 0 | P21: 0 | Q21: 0 | R21: 0 | S21: 0 | W21: =W22+W28+W29+W30+W31 -> 0 | X21: =X22+X28+X29+X30+X31 -> 0 | Y21: =Y22+Y28+Y29+Y30+Y31 -> 0 | Z21: =Z22+Z28+Z29+Z30+Z31 -> 0 | AA21: =AA22+AA28+AA29+AA30+AA31 -> 0 | AB21: 0 | AC21: 0 | AD21: 0 | AE21: 0 | AF21: 0 | AG21: 0 | AI21: ='hide inflace'!A16 -> 2028 | AJ21: ='hide inflace'!C16 -> 0.02
A22: A.2.2.1 | C22: z toho | D22: Práce prováděné pro zpracování projektových dokumentací | H22: =SUM(I22:S22) -> 0 | I22: =SUM(I23:I27) -> 0 | J22: =SUM(J23:J27) -> 0 | K22: =SUM(K23:K27) -> 0 | L22: =SUM(L23:L27) -> 0 | M22: =SUM(M23:M27) -> 0 | N22: 0 | O22: 0 | P22: 0 | Q22: 0 | R22: 0 | S22: 0 | W22: =SUM(W23:W27) -> 0 | X22: =SUM(X23:X27) -> 0 | Y22: =SUM(Y23:Y27) -> 0 | Z22: =SUM(Z23:Z27) -> 0 | AA22: =SUM(AA23:AA27) -> 0 | AB22: 0 | AC22: 0 | AD22: 0 | AE22: 0 | AF22: 0 | AG22: 0 | AI22: ='hide inflace'!A17 -> 2029 | AJ22: ='hide inflace'!C17 -> 0.02
A23: A.2.2.1.1 | D23: z toho | E23: Geodetické práce a mapové podklady | H23: =SUM(I23:S23) -> 0 | J23: ='1A'!N23-SUM(I23,K23:S23) -> 0 | X23: ='1A'!AB23-SUM(W23,Y23:AG23) -> 0 | AI23: ='hide inflace'!A18 -> 2030 | AJ23: ='hide inflace'!C18 -> 0.02
A24: A.2.2.1.2 | E24: Geotechnický průzkum | H24: 0 | J24: ='1A'!N24-SUM(I24,K24:S24) -> 0 | X24: ='1A'!AB24-SUM(W24,Y24:AG24) -> 0 | AI24: ='hide inflace'!A19 -> 2031 | AJ24: ='hide inflace'!C19 -> 0.02
A25: A.2.2.1.3 | E25: Ostatní průzkumné práce | H25: 0 | J25: ='1A'!N25-SUM(I25,K25:S25) -> 0 | X25: ='1A'!AB25-SUM(W25,Y25:AG25) -> 0 | AI25: ='hide inflace'!A20 -> 2032 | AJ25: ='hide inflace'!C20 -> 0.02
A26: A.2.2.1.4 | E26: Inženýrská činnost pro projektové dokumentace | H26: 0 | J26: ='1A'!N26-SUM(I26,K26:S26) -> 0 | X26: ='1A'!AB26-SUM(W26,Y26:AG26) -> 0 | AI26: ='hide inflace'!A21 -> 2033 | AJ26: ='hide inflace'!C21 -> 0.02
A27: A.2.2.1.5 | E27: Ostatní náklady pro projektové dokumentace | H27: 0 | J27: ='1A'!N27-SUM(I27,K27:S27) -> 0 | X27: ='1A'!AB27-SUM(W27,Y27:AG27) -> 0 | AI27: ='hide inflace'!A22 -> 2034 | AJ27: ='hide inflace'!C22 -> 0.02
A28: A.2.2.2 | D28: Projektová dokumentace společné povolení | H28: 0 | J28: ='1A'!N28-SUM(I28,K28:S28) -> 0 | X28: ='1A'!AB28-SUM(W28,Y28:AG28) -> 0 | AI28: ='hide inflace'!A23 -> 2035 | AJ28: ='hide inflace'!C23 -> 0.02
A29: A.2.2.3 | D29: Projektová dokumentace pro stavební povolení | H29: 0 | J29: ='1A'!N29-SUM(I29,K29:S29) -> 0 | X29: ='1A'!AB29-SUM(W29,Y29:AG29) -> 0 | AI29: ='hide inflace'!A24 -> 2036 | AJ29: ='hide inflace'!C24 -> 0.02
A30: A.2.2.4 | D30: Projektová dokumentace pro provádění stavby | H30: 0 | J30: ='1A'!N30-SUM(I30,K30:S30) -> 0 | X30: ='1A'!AB30-SUM(W30,Y30:AG30) -> 0 | AI30: ='hide inflace'!A25 -> 2037 | AJ30: ='hide inflace'!C25 -> 0.02
A31: A.2.2.5 | D31: Ostatní náklady na základní služby | H31: 0 | J31: ='1A'!N31-SUM(I31,K31:S31) -> 0 | X31: ='1A'!AB31-SUM(W31,Y31:AG31) -> 0 | AI31: ='hide inflace'!A26 -> 2038 | AJ31: ='hide inflace'!C26 -> 0.02
A32: A.2.3 | C32: Autorský dozor | H32: ='1A'!N32 -> 0 | J32: ='1A'!N32-SUM(I32,K32:S32) -> 0 | K32: ='1A'!$N$32*SUMIF(hide!$H$74:$H$83,K$4,hide!$L$74:$L$83) -> 0 | L32: ='1A'!$N$32*SUMIF(hide!$H$74:$H$83,L$4,hide!$L$74:$L$83) -> 0 | M32: ='1A'!$N$32*SUMIF(hide!$H$74:$H$83,M$4,hide!$L$74:$L$83) -> 0 | N32: ='1A'!$N$32*SUMIF(hide!$H$74:$H$83,N$4,hide!$L$74:$L$83) -> 0 | O32: ='1A'!$N$32*SUMIF(hide!$H$74:$H$83,O$4,hide!$L$74:$L$83) -> 0 | P32: ='1A'!$N$32*SUMIF(hide!$H$74:$H$83,P$4,hide!$L$74:$L$83) -> 0 | Q32: ='1A'!$N$32*SUMIF(hide!$H$74:$H$83,Q$4,hide!$L$74:$L$83) -> 0 | R32: ='1A'!$N$32*SUMIF(hide!$H$74:$H$83,R$4,hide!$L$74:$L$83) -> 0 | S32: ='1A'!$N$32*SUMIF(hide!$H$74:$H$83,S$4,hide!$L$74:$L$83) -> 0 | X32: ='1A'!AB32-SUM(W32,Y32:AG32) -> 0 | Y32: ='1A'!$N$32*SUMIF(hide!$H$74:$H$83,Y$4,hide!$L$74:$L$83) -> 0 | Z32: ='1A'!$N$32*SUMIF(hide!$H$74:$H$83,Z$4,hide!$L$74:$L$83) -> 0 | AA32: ='1A'!$N$32*SUMIF(hide!$H$74:$H$83,AA$4,hide!$L$74:$L$83) -> 0 | AB32: ='1A'!$N$32*SUMIF(hide!$H$74:$H$83,AB$4,hide!$L$74:$L$83) -> 0 | AC32: ='1A'!$N$32*SUMIF(hide!$H$74:$H$83,AC$4,hide!$L$74:$L$83) -> 0 | AD32: ='1A'!$N$32*SUMIF(hide!$H$74:$H$83,AD$4,hide!$L$74:$L$83) -> 0 | AE32: ='1A'!$N$32*SUMIF(hide!$H$74:$H$83,AE$4,hide!$L$74:$L$83) -> 0 | AF32: ='1A'!$N$32*SUMIF(hide!$H$74:$H$83,AF$4,hide!$L$74:$L$83) -> 0 | AG32: ='1A'!$N$32*SUMIF(hide!$H$74:$H$83,AG$4,hide!$L$74:$L$83) -> 0 | AI32: ='hide inflace'!A27 -> 2039 | AJ32: ='hide inflace'!C27 -> 0.02
A33: A.2.4 | C33: Ostatní náklady pro přípravu stavby | H33: =SUM(I33:S33) -> 0 | I33: =SUM(I34:I37) -> 0 | J33: =SUM(J34:J37) -> 0 | K33: =SUM(K34:K37) -> 0 | L33: =SUM(L34:L37) -> 0 | M33: =SUM(M34:M37) -> 0 | N33: 0 | O33: 0 | P33: 0 | Q33: 0 | R33: 0 | S33: 0 | W33: =SUM(W34:W37) -> 0 | X33: =SUM(X34:X37) -> 0 | Y33: =SUM(Y34:Y37) -> 0 | Z33: =SUM(Z34:Z37) -> 0 | AA33: =SUM(AA34:AA37) -> 0 | AB33: 0 | AC33: 0 | AD33: 0 | AE33: 0 | AF33: 0 | AG33: 0 | AI33: ='hide inflace'!A28 -> 2040 | AJ33: ='hide inflace'!C28 -> 0.02
A34: A.2.4.1 | C34: z toho | D34: Osvědčení o shodě notifikovanou osobou v přípravě | H34: 0 | J34: ='1A'!N34-SUM(I34,K34:S34) -> 0 | X34: ='1A'!AB34-SUM(W34,Y34:AG34) -> 0 | AI34: ='hide inflace'!A29 -> 2041 | AJ34: ='hide inflace'!C29 -> 0.02
A35: A.2.4.2 | D35: Koordinátor BOZP v přípravě | H35: 0 | J35: ='1A'!N35-SUM(I35,K35:S35) -> 0 | X35: ='1A'!AB35-SUM(W35,Y35:AG35) -> 0 | AI35: ='hide inflace'!A30 -> 2042 | AJ35: ='hide inflace'!C30 -> 0.02
A36: A.2.4.3 | D36: Zpracování žádosti o spolufinancování stavby | H36: 0 | J36: ='1A'!N36-SUM(I36,K36:S36) -> 0 | X36: ='1A'!AB36-SUM(W36,Y36:AG36) -> 0 | AI36: ='hide inflace'!A31 -> 2043 | AJ36: ='hide inflace'!C31 -> 0.02
A37: A.2.4.4 | D37: Zpracování dokumentací stavby v režimu BIM | H37: 0 | J37: ='1A'!N37-SUM(I37,K37:S37) -> 0 | X37: ='1A'!AB37-SUM(W37,Y37:AG37) -> 0 | AI37: ='hide inflace'!A32 -> 2044 | AJ37: ='hide inflace'!C32 -> 0.02
A38: A.2.5 | C38: DSPS | E38: počet dní na zpracování: | G38: 280 | H38: 0 | I38: =SUM(I39:I41) -> 0 | J38: =SUM(J39:J41) -> 0 | K38: =SUM(K39:K41) -> 0 | L38: =SUM(L39:L41) -> 0 | M38: =SUM(M39:M41) -> 0 | N38: 0 | O38: 0 | P38: 0 | Q38: 0 | R38: 0 | S38: 0 | W38: =SUM(W39:W41) -> 0 | X38: =SUM(X39:X41) -> 0 | Y38: =SUM(Y39:Y41) -> 0 | Z38: =SUM(Z39:Z41) -> 0 | AA38: =SUM(AA39:AA41) -> 0 | AB38: 0 | AC38: 0 | AD38: 0 | AE38: 0 | AF38: 0 | AG38: 0
A39: A.2.5.1 | C39: z toho | D39: Dokumentace skutečného provedení stavby, geodetická část | H39: 0 | J39: ='1A'!N39-SUM(I39,K39:S39) -> 0 | K39: =IF('Krycí list SR'!$G$9<>"",IF(YEAR('Krycí list SR'!$G$9+$G$38)=K$4,'1A'!$N39,0),0) -> 0 | L39: =IF('Krycí list SR'!$G$9<>"",IF(YEAR('Krycí list SR'!$G$9+$G$38)=L$4,'1A'!$N39,0),0) -> 0 | M39: =IF('Krycí list SR'!$G$9<>"",IF(YEAR('Krycí list SR'!$G$9+$G$38)=M$4,'1A'!$N39,0),0) -> 0 | N39: =IF('Krycí list SR'!$G$9<>"",IF(YEAR('Krycí list SR'!$G$9+$G$38)=N$4,'1A'!$N39,0),0) -> 0 | O39: =IF('Krycí list SR'!$G$9<>"",IF(YEAR('Krycí list SR'!$G$9+$G$38)=O$4,'1A'!$N39,0),0) -> 0 | P39: =IF('Krycí list SR'!$G$9<>"",IF(YEAR('Krycí list SR'!$G$9+$G$38)=P$4,'1A'!$N39,0),0) -> 0 | Q39: =IF('Krycí list SR'!$G$9<>"",IF(YEAR('Krycí list SR'!$G$9+$G$38)=Q$4,'1A'!$N39,0),0) -> 0 | R39: =IF('Krycí list SR'!$G$9<>"",IF(YEAR('Krycí list SR'!$G$9+$G$38)=R$4,'1A'!$N39,0),0) -> 0 | S39: =IF('Krycí list SR'!$G$9<>"",IF(YEAR('Krycí list SR'!$G$9+$G$38)>R$4,'1A'!$N39,0),0) -> 0 | X39: ='1A'!AB39-SUM(W39,Y39:AG39) -> 0 | Y39: =IF('Krycí list SR'!$G$9<>"",IF(YEAR('Krycí list SR'!$G$9+$G$38)=Y$4,'1A'!$N39,0),0) -> 0 | Z39: =IF('Krycí list SR'!$G$9<>"",IF(YEAR('Krycí list SR'!$G$9+$G$38)=Z$4,'1A'!$N39,0),0) -> 0 | AA39: =IF('Krycí list SR'!$G$9<>"",IF(YEAR('Krycí list SR'!$G$9+$G$38)=AA$4,'1A'!$N39,0),0) -> 0 | AB39: =IF('Krycí list SR'!$G$9<>"",IF(YEAR('Krycí list SR'!$G$9+$G$38)=AB$4,'1A'!$N39,0),0) -> 0 | AC39: =IF('Krycí list SR'!$G$9<>"",IF(YEAR('Krycí list SR'!$G$9+$G$38)=AC$4,'1A'!$N39,0),0) -> 0 | AD39: =IF('Krycí list SR'!$G$9<>"",IF(YEAR('Krycí list SR'!$G$9+$G$38)=AD$4,'1A'!$N39,0),0) -> 0 | AE39: =IF('Krycí list SR'!$G$9<>"",IF(YEAR('Krycí list SR'!$G$9+$G$38)=AE$4,'1A'!$N39,0),0) -> 0 | AF39: =IF('Krycí list SR'!$G$9<>"",IF(YEAR('Krycí list SR'!$G$9+$G$38)=AF$4,'1A'!$N39,0),0) -> 0 | AG39: =IF('Krycí list SR'!$G$9<>"",IF(YEAR('Krycí list SR'!$G$9+$G$38)>AF$4,'1A'!$N39,0),0) -> 0
A40: A.2.5.2 | D40: Dokumentace skutečného provedení stavby, technická část | H40: =SUM(I40:S40) -> 0 | J40: ='1A'!N40-SUM(I40,K40:S40) -> 0 | K40: =IF('Krycí list SR'!$G$9<>"",IF(YEAR('Krycí list SR'!$G$9+$G$38)=K$4,'1A'!$N40,0),0) -> 0 | L40: =IF('Krycí list SR'!$G$9<>"",IF(YEAR('Krycí list SR'!$G$9+$G$38)=L$4,'1A'!$N40,0),0) -> 0 | M40: =IF('Krycí list SR'!$G$9<>"",IF(YEAR('Krycí list SR'!$G$9+$G$38)=M$4,'1A'!$N40,0),0) -> 0 | N40: =IF('Krycí list SR'!$G$9<>"",IF(YEAR('Krycí list SR'!$G$9+$G$38)=N$4,'1A'!$N40,0),0) -> 0 | O40: =IF('Krycí list SR'!$G$9<>"",IF(YEAR('Krycí list SR'!$G$9+$G$38)=O$4,'1A'!$N40,0),0) -> 0 | P40: =IF('Krycí list SR'!$G$9<>"",IF(YEAR('Krycí list SR'!$G$9+$G$38)=P$4,'1A'!$N40,0),0) -> 0 | Q40: =IF('Krycí list SR'!$G$9<>"",IF(YEAR('Krycí list SR'!$G$9+$G$38)=Q$4,'1A'!$N40,0),0) -> 0 | R40: =IF('Krycí list SR'!$G$9<>"",IF(YEAR('Krycí list SR'!$G$9+$G$38)=R$4,'1A'!$N40,0),0) -> 0 | S40: =IF('Krycí list SR'!$G$9<>"",IF(YEAR('Krycí list SR'!$G$9+$G$38)>R$4,'1A'!$N40,0),0) -> 0 | X40: ='1A'!AB40-SUM(W40,Y40:AG40) -> 0 | Y40: =IF('Krycí list SR'!$G$9<>"",IF(YEAR('Krycí list SR'!$G$9+$G$38)=Y$4,'1A'!$N40,0),0) -> 0 | Z40: =IF('Krycí list SR'!$G$9<>"",IF(YEAR('Krycí list SR'!$G$9+$G$38)=Z$4,'1A'!$N40,0),0) -> 0 | AA40: =IF('Krycí list SR'!$G$9<>"",IF(YEAR('Krycí list SR'!$G$9+$G$38)=AA$4,'1A'!$N40,0),0) -> 0 | AB40: =IF('Krycí list SR'!$G$9<>"",IF(YEAR('Krycí list SR'!$G$9+$G$38)=AB$4,'1A'!$N40,0),0) -> 0 | AC40: =IF('Krycí list SR'!$G$9<>"",IF(YEAR('Krycí list SR'!$G$9+$G$38)=AC$4,'1A'!$N40,0),0) -> 0 | AD40: =IF('Krycí list SR'!$G$9<>"",IF(YEAR('Krycí list SR'!$G$9+$G$38)=AD$4,'1A'!$N40,0),0) -> 0 | AE40: =IF('Krycí list SR'!$G$9<>"",IF(YEAR('Krycí list SR'!$G$9+$G$38)=AE$4,'1A'!$N40,0),0) -> 0 | AF40: =IF('Krycí list SR'!$G$9<>"",IF(YEAR('Krycí list SR'!$G$9+$G$38)=AF$4,'1A'!$N40,0),0) -> 0 | AG40: =IF('Krycí list SR'!$G$9<>"",IF(YEAR('Krycí list SR'!$G$9+$G$38)>AF$4,'1A'!$N40,0),0) -> 0
A41: A.2.5.3 | D41: Dokumentace skutečného provedení stavby, dokladová část | H41: =SUM(I41:S41) -> 0 | J41: ='1A'!N41-SUM(I41,K41:S41) -> 0 | K41: =IF('Krycí list SR'!$G$9<>"",IF(YEAR('Krycí list SR'!$G$9+$G$38)=K$4,'1A'!$N41,0),0) -> 0 | L41: =IF('Krycí list SR'!$G$9<>"",IF(YEAR('Krycí list SR'!$G$9+$G$38)=L$4,'1A'!$N41,0),0) -> 0 | M41: =IF('Krycí list SR'!$G$9<>"",IF(YEAR('Krycí list SR'!$G$9+$G$38)=M$4,'1A'!$N41,0),0) -> 0 | N41: =IF('Krycí list SR'!$G$9<>"",IF(YEAR('Krycí list SR'!$G$9+$G$38)=N$4,'1A'!$N41,0),0) -> 0 | O41: =IF('Krycí list SR'!$G$9<>"",IF(YEAR('Krycí list SR'!$G$9+$G$38)=O$4,'1A'!$N41,0),0) -> 0 | P41: =IF('Krycí list SR'!$G$9<>"",IF(YEAR('Krycí list SR'!$G$9+$G$38)=P$4,'1A'!$N41,0),0) -> 0 | Q41: =IF('Krycí list SR'!$G$9<>"",IF(YEAR('Krycí list SR'!$G$9+$G$38)=Q$4,'1A'!$N41,0),0) -> 0 | R41: =IF('Krycí list SR'!$G$9<>"",IF(YEAR('Krycí list SR'!$G$9+$G$38)=R$4,'1A'!$N41,0),0) -> 0 | S41: =IF('Krycí list SR'!$G$9<>"",IF(YEAR('Krycí list SR'!$G$9+$G$38)>R$4,'1A'!$N41,0),0) -> 0 | X41: ='1A'!AB41-SUM(W41,Y41:AG41) -> 0 | Y41: =IF('Krycí list SR'!$G$9<>"",IF(YEAR('Krycí list SR'!$G$9+$G$38)=Y$4,'1A'!$N41,0),0) -> 0 | Z41: =IF('Krycí list SR'!$G$9<>"",IF(YEAR('Krycí list SR'!$G$9+$G$38)=Z$4,'1A'!$N41,0),0) -> 0 | AA41: =IF('Krycí list SR'!$G$9<>"",IF(YEAR('Krycí list SR'!$G$9+$G$38)=AA$4,'1A'!$N41,0),0) -> 0 | AB41: =IF('Krycí list SR'!$G$9<>"",IF(YEAR('Krycí list SR'!$G$9+$G$38)=AB$4,'1A'!$N41,0),0) -> 0 | AC41: =IF('Krycí list SR'!$G$9<>"",IF(YEAR('Krycí list SR'!$G$9+$G$38)=AC$4,'1A'!$N41,0),0) -> 0 | AD41: =IF('Krycí list SR'!$G$9<>"",IF(YEAR('Krycí list SR'!$G$9+$G$38)=AD$4,'1A'!$N41,0),0) -> 0 | AE41: =IF('Krycí list SR'!$G$9<>"",IF(YEAR('Krycí list SR'!$G$9+$G$38)=AE$4,'1A'!$N41,0),0) -> 0 | AF41: =IF('Krycí list SR'!$G$9<>"",IF(YEAR('Krycí list SR'!$G$9+$G$38)=AF$4,'1A'!$N41,0),0) -> 0 | AG41: =IF('Krycí list SR'!$G$9<>"",IF(YEAR('Krycí list SR'!$G$9+$G$38)>AF$4,'1A'!$N41,0),0) -> 0
A42: A.3 | B42: Výkupy a zatížení nemovitých věcí | H42: 0 | I42: =SUM(I43:I45) -> 0 | J42: =SUM(J43:J45) -> 0 | K42: =SUM(K43:K45) -> 0 | L42: =SUM(L43:L45) -> 0 | M42: =SUM(M43:M45) -> 0 | N42: 0 | O42: 0 | P42: 0 | Q42: 0 | R42: 0 | S42: 0 | W42: =SUM(W43:W45) -> 0 | X42: =SUM(X43:X45) -> 0 | Y42: =SUM(Y43:Y45) -> 0 | Z42: =SUM(Z43:Z45) -> 0 | AA42: =SUM(AA43:AA45) -> 0 | AB42: 0 | AC42: 0 | AD42: 0 | AE42: 0 | AF42: 0 | AG42: 0
A43: A.3.1 | B43: z toho | C43: Výkupy pozemků | H43: 0 | J43: ='1A'!N43-SUM(I43,K43:S43) -> 0 | X43: ='1A'!AB43-SUM(W43,Y43:AG43) -> 0
A44: A.3.2 | C44: Výkupy staveb | H44: 0 | J44: ='1A'!N44-SUM(I44,K44:S44) -> 0 | X44: ='1A'!AB44-SUM(W44,Y44:AG44) -> 0
A45: A.3.3 | C45: Věcná břemena a služebnosti | H45: 0 | J45: ='1A'!N45-SUM(I45,K45:S45) -> 0 | X45: ='1A'!AB45-SUM(W45,Y45:AG45) -> 0
A46: A.4 | B46: Nájmy pro účely stavby | H46: 0 | I46: =SUM(I47:I48) -> 0 | J46: =SUM(J47:J48) -> 0 | K46: =SUM(K47:K48) -> 0 | L46: =SUM(L47:L48) -> 0 | M46: =SUM(M47:M48) -> 0 | N46: 0 | O46: 0 | P46: 0 | Q46: 0 | R46: 0 | S46: 0 | W46: =SUM(W47:W48) -> 0 | X46: =SUM(X47:X48) -> 0 | Y46: =SUM(Y47:Y48) -> 0 | Z46: =SUM(Z47:Z48) -> 0 | AA46: =SUM(AA47:AA48) -> 0 | AB46: 0 | AC46: 0 | AD46: 0 | AE46: 0 | AF46: 0 | AG46: 0
A47: A.4.1 | B47: z toho | C47: Nájmy hrazené investorem přímo | H47: 0 | J47: ='1A'!N47-SUM(I47,K47:S47) -> 0 | X47: ='1A'!AB47-SUM(W47,Y47:AG47) -> 0
A48: A.4.2 | C48: Nájmy hrazené zhotovitelem stavby | H48: 0 | J48: ='1A'!N48-SUM(I48,K48:S48) -> 0 | X48: ='1A'!AB48-SUM(W48,Y48:AG48) -> 0
A49: A.5 | B49: Jiné náklady přípravy a zabezpečení stavby | H49: 0 | I49: =I50+I54+I55 -> 0 | J49: =J50+J54+J55 -> 0 | K49: 0 | L49: 0 | M49: 0 | N49: 0 | O49: 0 | P49: 0 | Q49: 0 | R49: 0 | S49: 0 | W49: =W50+W54+W55 -> 0 | X49: =X50+X54+X55 -> 0 | Y49: 0 | Z49: 0 | AA49: 0 | AB49: 0 | AC49: 0 | AD49: 0 | AE49: 0 | AF49: 0 | AG49: 0
A50: A.5.1 | B50: z toho | C50: Poradenské firmy pro přípravu a zabezpečení stavby | H50: 0 | I50: =SUM(I51:I53) -> 0 | J50: =SUM(J51:J53) -> 0 | K50: =SUM(K51:K53) -> 0 | L50: =SUM(L51:L53) -> 0 | M50: =SUM(M51:M53) -> 0 | N50: 0 | O50: 0 | P50: 0 | Q50: 0 | R50: 0 | S50: 0 | W50: =SUM(W51:W53) -> 0 | X50: =SUM(X51:X53) -> 0 | Y50: =SUM(Y51:Y53) -> 0 | Z50: =SUM(Z51:Z53) -> 0 | AA50: =SUM(AA51:AA53) -> 0 | AB50: 0 | AC50: 0 | AD50: 0 | AE50: 0 | AF50: 0 | AG50: 0
A51: A.5.1.1 | C51: z toho | D51: Technická podpora investora | H51: ='1A'!N51 -> 0 | J51: ='1A'!N51-SUM(I51,K51:S51) -> 0 | K51: ='1A'!$N$51*SUMIF(hide!$H$74:$H$83,K$4,hide!$L$74:$L$83) -> 0 | L51: ='1A'!$N$51*SUMIF(hide!$H$74:$H$83,L$4,hide!$L$74:$L$83) -> 0 | M51: ='1A'!$N$51*SUMIF(hide!$H$74:$H$83,M$4,hide!$L$74:$L$83) -> 0 | N51: ='1A'!$N$51*SUMIF(hide!$H$74:$H$83,N$4,hide!$L$74:$L$83) -> 0 | O51: ='1A'!$N$51*SUMIF(hide!$H$74:$H$83,O$4,hide!$L$74:$L$83) -> 0 | P51: ='1A'!$N$51*SUMIF(hide!$H$74:$H$83,P$4,hide!$L$74:$L$83) -> 0 | Q51: ='1A'!$N$51*SUMIF(hide!$H$74:$H$83,Q$4,hide!$L$74:$L$83) -> 0 | R51: ='1A'!$N$51*SUMIF(hide!$H$74:$H$83,R$4,hide!$L$74:$L$83) -> 0 | S51: ='1A'!$N$51*SUMIF(hide!$H$74:$H$83,S$4,hide!$L$74:$L$83) -> 0 | X51: ='1A'!AB51-SUM(W51,Y51:AG51) -> 0 | Y51: ='1A'!$N$51*SUMIF(hide!$H$74:$H$83,Y$4,hide!$L$74:$L$83) -> 0 | Z51: ='1A'!$N$51*SUMIF(hide!$H$74:$H$83,Z$4,hide!$L$74:$L$83) -> 0 | AA51: ='1A'!$N$51*SUMIF(hide!$H$74:$H$83,AA$4,hide!$L$74:$L$83) -> 0 | AB51: ='1A'!$N$51*SUMIF(hide!$H$74:$H$83,AB$4,hide!$L$74:$L$83) -> 0 | AC51: ='1A'!$N$51*SUMIF(hide!$H$74:$H$83,AC$4,hide!$L$74:$L$83) -> 0 | AD51: ='1A'!$N$51*SUMIF(hide!$H$74:$H$83,AD$4,hide!$L$74:$L$83) -> 0 | AE51: ='1A'!$N$51*SUMIF(hide!$H$74:$H$83,AE$4,hide!$L$74:$L$83) -> 0 | AF51: ='1A'!$N$51*SUMIF(hide!$H$74:$H$83,AF$4,hide!$L$74:$L$83) -> 0 | AG51: ='1A'!$N$51*SUMIF(hide!$H$74:$H$83,AG$4,hide!$L$74:$L$83) -> 0
A52: A.5.1.2 | D52: Poradenské firmy pro geotechnický průzkum | H52: 0 | J52: ='1A'!N52-SUM(I52,K52:S52) -> 0 | X52: ='1A'!AB52-SUM(W52,Y52:AG52) -> 0
A53: A.5.1.3 | D53: Ostatní poradenské firmy | H53: 0 | J53: ='1A'!N53-SUM(I53,K53:S53) -> 0 | X53: ='1A'!AB53-SUM(W53,Y53:AG53) -> 0
A54: A.5.2 | C54: Soutěže a zadávací řízení | H54: =SUM(I54:S54) -> 0 | J54: ='1A'!N54-SUM(I54,K54:S54) -> 0 | X54: ='1A'!AB54-SUM(W54,Y54:AG54) -> 0
A55: A.5.3 | C55: Ostatní náklady pro zabezpečení stavby | H55: 0 | I55: =SUM(I56:I58,I61:I62) -> 0 | J55: =SUM(J56:J58,J61:J62) -> 0 | K55: =SUM(K56:K58,K61:K62) -> 0 | L55: =SUM(L56:L58,L61:L62) -> 0 | M55: =SUM(M56:M58,M61:M62) -> 0 | N55: 0 | O55: 0 | P55: 0 | Q55: 0 | R55: 0 | S55: 0 | W55: =SUM(W56:W58,W61:W62) -> 0 | X55: =SUM(X56:X58,X61:X62) -> 0 | Y55: =SUM(Y56:Y58,Y61:Y62) -> 0 | Z55: =SUM(Z56:Z58,Z61:Z62) -> 0 | AA55: =SUM(AA56:AA58,AA61:AA62) -> 0 | AB55: 0 | AC55: 0 | AD55: 0 | AE55: 0 | AF55: 0 | AG55: 0
A56: A.5.3.1 | C56: z toho | D56: Poplatky | H56: 0 | J56: ='1A'!N56-SUM(I56,K56:S56) -> 0 | X56: ='1A'!AB56-SUM(W56,Y56:AG56) -> 0
A57: A.5.3.2 | D57: Záchranný archeologický výzkum | H57: 0 | J57: ='1A'!N57-SUM(I57,K57:S57) -> 0 | X57: ='1A'!AB57-SUM(W57,Y57:AG57) -> 0
A58: A.5.3.3 | D58: Publicita stavby | H58: 0 | I58: =SUM(I59:I60) -> 0 | J58: =SUM(J59:J60) -> 0 | K58: =SUM(K59:K60) -> 0 | L58: =SUM(L59:L60) -> 0 | M58: =SUM(M59:M60) -> 0 | N58: 0 | O58: 0 | P58: 0 | Q58: 0 | R58: 0 | S58: 0 | W58: =SUM(W59:W60) -> 0 | X58: =SUM(X59:X60) -> 0 | Y58: =SUM(Y59:Y60) -> 0 | Z58: =SUM(Z59:Z60) -> 0 | AA58: =SUM(AA59:AA60) -> 0 | AB58: 0 | AC58: 0 | AD58: 0 | AE58: 0 | AF58: 0 | AG58: 0
A59: A.5.3.3.1 | D59: z toho | E59: Publicita povinná | H59: 0 | J59: ='1A'!N59-SUM(I59,K59:S59) -> 0 | X59: ='1A'!AB59-SUM(W59,Y59:AG59) -> 0
A60: A.5.3.3.2 | E60: Publicita nepovinná | H60: 0 | J60: ='1A'!N60-SUM(I60,K60:S60) -> 0 | X60: ='1A'!AB60-SUM(W60,Y60:AG60) -> 0
A61: A.5.3.4 | D61: Monitoring stavby | H61: ='1A'!N61 -> 0 | J61: ='1A'!N61-SUM(I61,K61:S61) -> 0 | K61: ='1A'!$N$61*SUMIF(hide!$H$74:$H$83,K$4,hide!$L$74:$L$83) -> 0 | L61: ='1A'!$N$61*SUMIF(hide!$H$74:$H$83,L$4,hide!$L$74:$L$83) -> 0 | M61: ='1A'!$N$61*SUMIF(hide!$H$74:$H$83,M$4,hide!$L$74:$L$83) -> 0 | N61: ='1A'!$N$61*SUMIF(hide!$H$74:$H$83,N$4,hide!$L$74:$L$83) -> 0 | O61: ='1A'!$N$61*SUMIF(hide!$H$74:$H$83,O$4,hide!$L$74:$L$83) -> 0 | P61: ='1A'!$N$61*SUMIF(hide!$H$74:$H$83,P$4,hide!$L$74:$L$83) -> 0 | Q61: ='1A'!$N$61*SUMIF(hide!$H$74:$H$83,Q$4,hide!$L$74:$L$83) -> 0 | R61: ='1A'!$N$61*SUMIF(hide!$H$74:$H$83,R$4,hide!$L$74:$L$83) -> 0 | S61: ='1A'!$N$61*SUMIF(hide!$H$74:$H$83,S$4,hide!$L$74:$L$83) -> 0 | X61: ='1A'!AB61-SUM(W61,Y61:AG61) -> 0 | Y61: ='1A'!$N$61*SUMIF(hide!$H$74:$H$83,Y$4,hide!$L$74:$L$83) -> 0 | Z61: ='1A'!$N$61*SUMIF(hide!$H$74:$H$83,Z$4,hide!$L$74:$L$83) -> 0 | AA61: ='1A'!$N$61*SUMIF(hide!$H$74:$H$83,AA$4,hide!$L$74:$L$83) -> 0 | AB61: ='1A'!$N$61*SUMIF(hide!$H$74:$H$83,AB$4,hide!$L$74:$L$83) -> 0 | AC61: ='1A'!$N$61*SUMIF(hide!$H$74:$H$83,AC$4,hide!$L$74:$L$83) -> 0 | AD61: ='1A'!$N$61*SUMIF(hide!$H$74:$H$83,AD$4,hide!$L$74:$L$83) -> 0 | AE61: ='1A'!$N$61*SUMIF(hide!$H$74:$H$83,AE$4,hide!$L$74:$L$83) -> 0 | AF61: ='1A'!$N$61*SUMIF(hide!$H$74:$H$83,AF$4,hide!$L$74:$L$83) -> 0 | AG61: ='1A'!$N$61*SUMIF(hide!$H$74:$H$83,AG$4,hide!$L$74:$L$83) -> 0
A62: A.5.3.5 | D62: Vyhodnocení | E62: počet dní na zpracování: | G62: 30 | H62: 0 | J62: ='1A'!N62-SUM(I62,K62:S62) -> 0 | K62: =IF('Krycí list SR'!$G$9<>"",IF(YEAR('Krycí list SR'!$G$9+$G$38+$G$62)=K$4,'1A'!$N62,0),0) -> 0 | L62: =IF('Krycí list SR'!$G$9<>"",IF(YEAR('Krycí list SR'!$G$9+$G$38+$G$62)=L$4,'1A'!$N62,0),0) -> 0 | M62: =IF('Krycí list SR'!$G$9<>"",IF(YEAR('Krycí list SR'!$G$9+$G$38+$G$62)=M$4,'1A'!$N62,0),0) -> 0 | N62: =IF('Krycí list SR'!$G$9<>"",IF(YEAR('Krycí list SR'!$G$9+$G$38+$G$62)=N$4,'1A'!$N62,0),0) -> 0 | O62: =IF('Krycí list SR'!$G$9<>"",IF(YEAR('Krycí list SR'!$G$9+$G$38+$G$62)=O$4,'1A'!$N62,0),0) -> 0 | P62: =IF('Krycí list SR'!$G$9<>"",IF(YEAR('Krycí list SR'!$G$9+$G$38+$G$62)=P$4,'1A'!$N62,0),0) -> 0 | Q62: =IF('Krycí list SR'!$G$9<>"",IF(YEAR('Krycí list SR'!$G$9+$G$38+$G$62)=Q$4,'1A'!$N62,0),0) -> 0 | R62: =IF('Krycí list SR'!$G$9<>"",IF(YEAR('Krycí list SR'!$G$9+$G$38+$G$62)=R$4,'1A'!$N62,0),0) -> 0 | S62: =IF('Krycí list SR'!$G$9<>"",IF(YEAR('Krycí list SR'!$G$9+$G$38+$G$62)>R$4,'1A'!$N62,0),0) -> 0 | X62: ='1A'!AB62-SUM(W62,Y62:AG62) -> 0 | Y62: =IF('Krycí list SR'!$G$9<>"",IF(YEAR('Krycí list SR'!$G$9+$G$38+$G$62)=Y$4,'1A'!$N62,0),0) -> 0 | Z62: =IF('Krycí list SR'!$G$9<>"",IF(YEAR('Krycí list SR'!$G$9+$G$38+$G$62)=Z$4,'1A'!$N62,0),0) -> 0 | AA62: =IF('Krycí list SR'!$G$9<>"",IF(YEAR('Krycí list SR'!$G$9+$G$38+$G$62)=AA$4,'1A'!$N62,0),0) -> 0 | AB62: =IF('Krycí list SR'!$G$9<>"",IF(YEAR('Krycí list SR'!$G$9+$G$38+$G$62)=AB$4,'1A'!$N62,0),0) -> 0 | AC62: =IF('Krycí list SR'!$G$9<>"",IF(YEAR('Krycí list SR'!$G$9+$G$38+$G$62)=AC$4,'1A'!$N62,0),0) -> 0 | AD62: =IF('Krycí list SR'!$G$9<>"",IF(YEAR('Krycí list SR'!$G$9+$G$38+$G$62)=AD$4,'1A'!$N62,0),0) -> 0 | AE62: =IF('Krycí list SR'!$G$9<>"",IF(YEAR('Krycí list SR'!$G$9+$G$38+$G$62)=AE$4,'1A'!$N62,0),0) -> 0 | AF62: =IF('Krycí list SR'!$G$9<>"",IF(YEAR('Krycí list SR'!$G$9+$G$38+$G$62)=AF$4,'1A'!$N62,0),0) -> 0 | AG62: =IF('Krycí list SR'!$G$9<>"",IF(YEAR('Krycí list SR'!$G$9+$G$38+$G$62)>AF$4,'1A'!$N62,0),0) -> 0
A63: A.6 | B63: Náklady na přípravu a celkové zabezpečení stavby celkem včetně inflace | H63: =H65+H64 -> 0 | I63: =I65+I64 -> 0 | J63: 0 | K63: 0 | L63: 0 | M63: 0 | N63: 0 | O63: 0 | P63: 0 | Q63: 0 | R63: 0 | S63: 0 | W63: =W65+W64 -> 0 | X63: 0 | Y63: 0 | Z63: 0 | AA63: 0 | AB63: 0 | AC63: 0 | AD63: 0 | AE63: 0 | AF63: 0 | AG63: 0
A64: z toho | B64: A.6.1 | C64: Náklady na přípravu a celkové zabezpečení stavby bez inflace | H64: =H49+H46+H42+H9+H7 -> 0 | I64: =I49+I46+I42+I9+I7 -> 0 | J64: =J49+J46+J42+J9+J7 -> 0 | K64: =K49+K46+K42+K9+K7+K8 -> 0 | L64: 0 | M64: 0 | N64: 0 | O64: 0 | P64: 0 | Q64: 0 | R64: 0 | S64: 0 | W64: =W49+W46+W42+W9+W7 -> 0 | X64: =X49+X46+X42+X9+X7 -> 0 | Y64: =Y49+Y46+Y42+Y9+Y7+Y8 -> 0 | Z64: 0 | AA64: 0 | AB64: 0 | AC64: 0 | AD64: 0 | AE64: 0 | AF64: 0 | AG64: 0
B65: A.6.2 | C65: Inflace k vybraným nákladům na přípravu stavby | H65: =SUM(I65:S65) -> 0 | J65: =ROUND(IF($Y$4=1,(J10+J21+J32+J33)*(J66-1),IF($Y$4=2,(J21+J32+J33)*(J66-1),0)),0) -> 0 | K65: =ROUND(IF($Y$4=1,(K10+K21+K32+K33)*(($K$66*$J$66)-1),IF($Y$4=2,(K21+K32+K33)*(($K$66*$J$66)-1),0)),0) -> 0 | L65: =ROUND(IF($Y$4=1,(L10+L21+L32+L33)*(($L$66*$K$66*$J$66)-1),IF($Y$4=2,(L21+L32+L33)*(($L$66*$K$66*$J$66)-1),0)),0) -> 0 | M65: =ROUND(IF($Y$4=1,(M10+M21+M32+M33)*(($M$66*$L$66*$K$66*$J$66)-1),IF($Y$4=2,(M21+M32+M33)*(($M$66*$L$66*$K$66*$J$66)-1),0)),0) -> 0 | N65: =ROUND(IF($Y$4=1,(N10+N21+N32+N33)*(($N$66*$M$66*$L$66*$K$66*$J$66)-1),IF($Y$4=2,(N21+N32+N33)*(($N$66*$M$66*$L$66*$K$66*$J$66)-1),0)),0) -> 0 | O65: =ROUND(IF($Y$4=1,(O10+O21+O32+O33)*(($O$66*$N$66*$M$66*$L$66*$K$66*$J$66)-1),IF($Y$4=2,(O21+O32+O33)*(($O$66*$N$66*$M$66*$L$66*$K$66*$J$66)-1),0)),0) -> 0 | P65: =ROUND(IF($Y$4=1,(P10+P21+P32+P33)*(($P$66*$O$66*$N$66*$M$66*$L$66*$K$66*$J$66)-1),IF($Y$4=2,(P21+P32+P33)*(($P$66*$O$66*$N$66*$M$66*$L$66*$K$66*$J$66)-1),0)),0) -> 0 | Q65: =ROUND(IF($Y$4=1,(Q10+Q21+Q32+Q33)*(($Q$66*$P$66*$O$66*$N$66*$M$66*$L$66*$K$66*$J$66)-1),IF($Y$4=2,(Q21+Q32+Q33)*(($Q$66*$P$66*$O$66*$N$66*$M$66*$L$66*$K$66*$J$66)-1),0)),0) -> 0 | R65: =ROUND(IF($Y$4=1,(R10+R21+R32+R33)*(($R$66*$Q$66*$P$66*$O$66*$N$66*$M$66*$L$66*$K$66*$J$66)-1),IF($Y$4=2,(R21+R32+R33)*(($R$66*$Q$66*$P$66*$O$66*$N$66*$M$66*$L$66*$K$66*$J$66)-1),0)),0) -> 0 | S65: =ROUND(IF($Y$4=1,(S10+S21+S32+S33)*(($S$66*$R$66*$Q$66*$P$66*$O$66*$N$66*$M$66*$L$66*$K$66*$J$66)-1),IF($Y$4=1,(S21+S32+S33)*(($S$66*$R$66*$Q$66*$P$66*$O$66*$N$66*$M$66*$L$66*$K$66*$J$66)-1),0)),0) -> 0 | X65: =ROUND(IF($Y$4=1,(X10+X21+X32+X33)*(X66-1),IF($Y$4=2,(X21+X32+X33)*(X66-1),0)),0) -> 0 | Y65: =ROUND(IF($Y$4=1,(Y10+Y21+Y32+Y33)*(($K$66*$J$66)-1),IF($Y$4=2,(Y21+Y32+Y33)*(($K$66*$J$66)-1),0)),0) -> 0 | Z65: =ROUND(IF($Y$4=1,(Z10+Z21+Z32+Z33)*(($L$66*$K$66*$J$66)-1),IF($Y$4=2,(Z21+Z32+Z33)*(($L$66*$K$66*$J$66)-1),0)),0) -> 0 | AA65: =ROUND(IF($Y$4=1,(AA10+AA21+AA32+AA33)*(($M$66*$L$66*$K$66*$J$66)-1),IF($Y$4=2,(AA21+AA32+AA33)*(($M$66*$L$66*$K$66*$J$66)-1),0)),0) -> 0 | AB65: =ROUND(IF($Y$4=1,(AB10+AB21+AB32+AB33)*(($N$66*$M$66*$L$66*$K$66*$J$66)-1),IF($Y$4=2,(AB21+AB32+AB33)*(($N$66*$M$66*$L$66*$K$66*$J$66)-1),0)),0) -> 0 | AC65: =ROUND(IF($Y$4=1,(AC10+AC21+AC32+AC33)*(($O$66*$N$66*$M$66*$L$66*$K$66*$J$66)-1),IF($Y$4=2,(AC21+AC32+AC33)*(($O$66*$N$66*$M$66*$L$66*$K$66*$J$66)-1),0)),0) -> 0 | AD65: =ROUND(IF($Y$4=1,(AD10+AD21+AD32+AD33)*(($P$66*$O$66*$N$66*$M$66*$L$66*$K$66*$J$66)-1),IF($Y$4=2,(AD21+AD32+AD33)*(($P$66*$O$66*$N$66*$M$66*$L$66*$K$66*$J$66)-1),0)),0) -> 0 | AE65: =ROUND(IF($Y$4=1,(AE10+AE21+AE32+AE33)*(($Q$66*$P$66*$O$66*$N$66*$M$66*$L$66*$K$66*$J$66)-1),IF($Y$4=2,(AE21+AE32+AE33)*(($Q$66*$P$66*$O$66*$N$66*$M$66*$L$66*$K$66*$J$66)-1),0)),0) -> 0 | AF65: =ROUND(IF($Y$4=1,(AF10+AF21+AF32+AF33)*(($R$66*$Q$66*$P$66*$O$66*$N$66*$M$66*$L$66*$K$66*$J$66)-1),IF($Y$4=2,(AF21+AF32+AF33)*(($R$66*$Q$66*$P$66*$O$66*$N$66*$M$66*$L$66*$K$66*$J$66)-1),0)),0) -> 0 | AG65: =ROUND(IF($Y$4=1,(AG10+AG21+AG32+AG33)*(($S$66*$R$66*$Q$66*$P$66*$O$66*$N$66*$M$66*$L$66*$K$66*$J$66)-1),IF($Y$4=1,(AG21+AG32+AG33)*(($S$66*$R$66*$Q$66*$P$66*$O$66*$N$66*$M$66*$L$66*$K$66*$J$66)-1),0)),0) -> 0
H66: Koeficient inlace | J66: =J6+1 -> 1 | K66: =K6+1 -> 1 | L66: 1 | M66: 1 | N66: 1 | O66: 1 | P66: 1 | Q66: 1 | R66: 1 | S66: 1 | X66: =X6+1 -> 1 | Y66: =Y6+1 -> 1 | Z66: 1 | AA66: 1 | AB66: 1 | AC66: 1 | AD66: 1 | AE66: 1 | AF66: 1 | AG66: 1

Sheet 2B
A1: Náklady stavby ve smíšené CÚ: | E1: ='Krycí list SR'!F4 -> 0 | F1: - | G1: ='Krycí list SR'!G10 ->  | H1: Formulář 2.B | I1: Náklady v letech výstavby | S1: ='Krycí list SR'!$H$1 -> SRP/2023/08
A2: Název stavby: | C2: =IF('Krycí list SR'!B2="","",'Krycí list SR'!B2) ->  | I2: Do 31.12 | J2: =IF('Krycí list SR'!$H$4=YEAR('Krycí list SR'!H7),"Aktuální rok a zahájení výběrového řízení na realizaci","Aktuální rok") -> Aktuální rok | K2: =IF(K4=YEAR('Krycí list SR'!$H$7),"Zahájení výběrového řízení","") ->  | L2: =IF(L4=YEAR('Krycí list SR'!$H$7),"Zahájení výběrového řízení","") ->  | M2: =IF(M4=YEAR('Krycí list SR'!$H$7),"Zahájení výběrového řízení","") ->  | N2: =IF(N4=YEAR('Krycí list SR'!$H$7),"Zahájení výběrového řízení","") ->  | O2: =IF(O4=YEAR('Krycí list SR'!$H$7),"Zahájení výběrového řízení","") ->  | P2: =IF(P4=YEAR('Krycí list SR'!$H$7),"Zahájení výběrového řízení","") ->  | Q2: =IF(Q4=YEAR('Krycí list SR'!$H$7),"Zahájení výběrového řízení","") ->  | R2: =IF(R4=YEAR('Krycí list SR'!$H$7),"Zahájení výběrového řízení","") ->  | S2: v letech
A3: ISPROFIN: | C3: =IF('Krycí list SR'!$B$3="","",'Krycí list SR'!$B$3) ->  | E3: Označení (S-kód): | G3: =IF('Krycí list SR'!D3="","",'Krycí list SR'!D3) ->  | K3: v roce | L3: v roce | M3: v roce | N3: v roce | O3: v roce | P3: v roce | Q3: v roce | R3: v roce
A4: Investor: | B4: SŽ s.o., | D4: =IF('Krycí list SR'!$B$5="","",'Krycí list SR'!$B$5) ->  | H4: =IF('Krycí list SR'!E3="","",'Krycí list SR'!E3) ->  | I4: =J4-1 -> -1 | J4: ='Krycí list SR'!H4 -> 0 | K4: =J4+1 -> 1 | L4: =K4+1 -> 2 | M4: 3 | N4: 4 | O4: 5 | P4: 6 | Q4: 7 | R4: 8 | S4: =CONCATENATE("po ",R4) -> po 8
A5: Jiný investor: | C5: =IF('Krycí list SR'!$B$7="","neurčen",'Krycí list SR'!$B$7) -> - | H5: =IF(MIN(J7:S41)<0,"Chyba: rozdělení nákladů v letech","") ->  | K5: Inflační koeficient pro daný rok
A6: B | B6: Realizace stavby | H6: náklady v Kč celkem | J6: =SUMIF($AI$8:$AI$37,J4,$AJ$8:$AJ$37) -> 0 | K6: =SUMIF($AI$8:$AI$37,K4,$AJ$8:$AJ$37) -> 0 | L6: =SUMIF($AI$8:$AI$37,L4,$AJ$8:$AJ$37) -> 0 | M6: =SUMIF($AI$8:$AI$37,M4,$AJ$8:$AJ$37) -> 0 | N6: 0 | O6: 0 | P6: 0 | Q6: 0 | R6: 0 | S6: =SUMIF($AI$8:$AI$37,(R4+1),$AJ$8:$AJ$37) -> 0 | T6: Pole pro pracovní výpočty bez tisku | W6: Podklad pro opravu formátování
A7: B.1 | B7: Stavební část | H7: =SUM(I7:S7) -> 0 | I7: =I8+I11 -> 0 | J7: =J8+J11 -> 0 | K7: =K8+K11 -> 0 | L7: =L8+L11 -> 0 | M7: =M8+M11 -> 0 | N7: 0 | O7: 0 | P7: 0 | Q7: 0 | R7: 0 | S7: 0 | W7: =W8+W11 -> 0 | X7: =X8+X11 -> 0 | Y7: =Y8+Y11 -> 0 | Z7: =Z8+Z11 -> 0 | AA7: =AA8+AA11 -> 0 | AB7: 0 | AC7: 0 | AD7: 0 | AE7: 0 | AF7: 0 | AG7: 0 | AI7: rok | AJ7: inflace | AL7: Aktuální rok | AM7: ='Krycí list SR'!H4 -> 0
A8: B.1.1 | B8: z toho | C8: Stavební objekty dodávané zhotoviteli | H8: =SUM(I8:S8) -> 0 | J8: =SUM(J9:J10) -> 0 | K8: =SUM(K9:K10) -> 0 | L8: =SUM(L9:L10) -> 0 | M8: =SUM(M9:M10) -> 0 | N8: 0 | O8: 0 | P8: 0 | Q8: 0 | R8: 0 | S8: 0 | X8: =SUM(X9:X10) -> 0 | Y8: =SUM(Y9:Y10) -> 0 | Z8: =SUM(Z9:Z10) -> 0 | AA8: =SUM(AA9:AA10) -> 0 | AB8: 0 | AC8: 0 | AD8: 0 | AE8: 0 | AF8: 0 | AG8: 0 | AI8: ='hide inflace'!A3 -> 2015 | AJ8: ='hide inflace'!B3 -> 0 | AL8: Stavební náklady stanovené v roce: | AM8: ='Krycí list SR'!F5 -> 0
A9: B.1.1.1 | C9: z toho | D9: Základní rozpočtové náklady jednotlivých SO (ZRN) | H9: 0 | J9: ='1B'!$I10*SUMIF(hide!$H$90:$H$99,J$4,hide!$L$90:$L$99) -> 0 | K9: ='1B'!$I10*SUMIF(hide!$H$90:$H$99,K$4,hide!$L$90:$L$99) -> 0 | L9: ='1B'!$I10*SUMIF(hide!$H$90:$H$99,L$4,hide!$L$90:$L$99) -> 0 | M9: ='1B'!$I10*SUMIF(hide!$H$90:$H$99,M$4,hide!$L$90:$L$99) -> 0 | N9: ='1B'!$I10*SUMIF(hide!$H$90:$H$99,N$4,hide!$L$90:$L$99) -> 0 | O9: ='1B'!$I10*SUMIF(hide!$H$90:$H$99,O$4,hide!$L$90:$L$99) -> 0 | P9: ='1B'!$I10*SUMIF(hide!$H$90:$H$99,P$4,hide!$L$90:$L$99) -> 0 | Q9: ='1B'!$I10*SUMIF(hide!$H$90:$H$99,Q$4,hide!$L$90:$L$99) -> 0 | R9: ='1B'!$I10*SUMIF(hide!$H$90:$H$99,R$4,hide!$L$90:$L$99) -> 0 | S9: ='1B'!$I10*SUMIF(hide!$H$90:$H$99,S$4,hide!$L$90:$L$99) -> 0 | X9: ='1B'!$I10*SUMIF(hide!$H$90:$H$99,X$4,hide!$L$90:$L$99) -> 0 | Y9: ='1B'!$I10*SUMIF(hide!$H$90:$H$99,Y$4,hide!$L$90:$L$99) -> 0 | Z9: ='1B'!$I10*SUMIF(hide!$H$90:$H$99,Z$4,hide!$L$90:$L$99) -> 0 | AA9: ='1B'!$I10*SUMIF(hide!$H$90:$H$99,AA$4,hide!$L$90:$L$99) -> 0 | AB9: ='1B'!$I10*SUMIF(hide!$H$90:$H$99,AB$4,hide!$L$90:$L$99) -> 0 | AC9: ='1B'!$I10*SUMIF(hide!$H$90:$H$99,AC$4,hide!$L$90:$L$99) -> 0 | AD9: ='1B'!$I10*SUMIF(hide!$H$90:$H$99,AD$4,hide!$L$90:$L$99) -> 0 | AE9: ='1B'!$I10*SUMIF(hide!$H$90:$H$99,AE$4,hide!$L$90:$L$99) -> 0 | AF9: ='1B'!$I10*SUMIF(hide!$H$90:$H$99,AF$4,hide!$L$90:$L$99) -> 0 | AG9: ='1B'!$I10*SUMIF(hide!$H$90:$H$99,AG$4,hide!$L$90:$L$99) -> 0 | AI9: ='hide inflace'!A4 -> 2016 | AJ9: ='hide inflace'!B4 -> 0 | AL9: Zahájení výběrového řízení na realizaci: | AM9: ='Krycí list SR'!H7 -> 2024 | AN9: =AM9-AM7 -> 2024
A10: B.1.1.2 | D10: Vedlejší rozpočtové náklady dle indexu jednotlivých SO (VRN) | H10: ='3SO'!M9 -> 0 | J10: =IF($H$9=0,0,(J9/$H$9)*$H$10) -> 0 | K10: 0 | L10: 0 | M10: 0 | N10: 0 | O10: 0 | P10: 0 | Q10: 0 | R10: 0 | S10: 0 | X10: =IF($H$9=0,0,(X9/$H$9)*$H$10) -> 0 | Y10: 0 | Z10: 0 | AA10: 0 | AB10: 0 | AC10: 0 | AD10: 0 | AE10: 0 | AF10: 0 | AG10: 0 | AI10: ='hide inflace'!A5 -> 2017 | AJ10: ='hide inflace'!B5 -> 0.015 | AL10: Čtvrtletí zahájení výběrového řízení | AM10: ='Krycí list SR'!G7 -> 2.Q | AN10: =IF(AM10="","",IF(AM10="1.Q",0,IF(AM10="2.Q",25%,IF(AM10="3.Q",50%,IF(AM10="4.Q",75%,0))))) -> 0.25
A11: B.1.2 | C11: Stavební část zajišťovaná přímo investorem | H11: 0 | I11: =SUM(I12:I14) -> 0 | J11: =SUM(J12:J14) -> 0 | K11: =SUM(K12:K14) -> 0 | L11: =SUM(L12:L14) -> 0 | M11: =SUM(M12:M14) -> 0 | N11: 0 | O11: 0 | P11: 0 | Q11: 0 | R11: 0 | S11: 0 | W11: =SUM(W12:W14) -> 0 | X11: =SUM(X12:X14) -> 0 | Y11: =SUM(Y12:Y14) -> 0 | Z11: =SUM(Z12:Z14) -> 0 | AA11: =SUM(AA12:AA14) -> 0 | AB11: 0 | AC11: 0 | AD11: 0 | AE11: 0 | AF11: 0 | AG11: 0 | AI11: ='hide inflace'!A6 -> 2018 | AJ11: ='hide inflace'!B6 -> 0.031
A12: B.1.2.1 | C12: z toho | D12: Stavební objekty zajišťované přímo investorem | H12: 0 | J12: =('1B'!$I13-$I$12)*SUMIF(hide!$H$90:$H$99,J$4,hide!$L$90:$L$99) -> 0 | K12: =('1B'!$I13-$I$12)*SUMIF(hide!$H$90:$H$99,K$4,hide!$L$90:$L$99) -> 0 | L12: =('1B'!$I13-$I$12)*SUMIF(hide!$H$90:$H$99,L$4,hide!$L$90:$L$99) -> 0 | M12: =('1B'!$I13-$I$12)*SUMIF(hide!$H$90:$H$99,M$4,hide!$L$90:$L$99) -> 0 | N12: =('1B'!$I13-$I$12)*SUMIF(hide!$H$90:$H$99,N$4,hide!$L$90:$L$99) -> 0 | O12: =('1B'!$I13-$I$12)*SUMIF(hide!$H$90:$H$99,O$4,hide!$L$90:$L$99) -> 0 | P12: =('1B'!$I13-$I$12)*SUMIF(hide!$H$90:$H$99,P$4,hide!$L$90:$L$99) -> 0 | Q12: =('1B'!$I13-$I$12)*SUMIF(hide!$H$90:$H$99,Q$4,hide!$L$90:$L$99) -> 0 | R12: =('1B'!$I13-$I$12)*SUMIF(hide!$H$90:$H$99,R$4,hide!$L$90:$L$99) -> 0 | S12: =('1B'!$I13-$I$12)*SUMIF(hide!$H$90:$H$99,S$4,hide!$L$90:$L$99) -> 0 | X12: =('1B'!$I13-$I$12)*SUMIF(hide!$H$90:$H$99,X$4,hide!$L$90:$L$99) -> 0 | Y12: =('1B'!$I13-$I$12)*SUMIF(hide!$H$90:$H$99,Y$4,hide!$L$90:$L$99) -> 0 | Z12: =('1B'!$I13-$I$12)*SUMIF(hide!$H$90:$H$99,Z$4,hide!$L$90:$L$99) -> 0 | AA12: =('1B'!$I13-$I$12)*SUMIF(hide!$H$90:$H$99,AA$4,hide!$L$90:$L$99) -> 0 | AB12: =('1B'!$I13-$I$12)*SUMIF(hide!$H$90:$H$99,AB$4,hide!$L$90:$L$99) -> 0 | AC12: =('1B'!$I13-$I$12)*SUMIF(hide!$H$90:$H$99,AC$4,hide!$L$90:$L$99) -> 0 | AD12: =('1B'!$I13-$I$12)*SUMIF(hide!$H$90:$H$99,AD$4,hide!$L$90:$L$99) -> 0 | AE12: =('1B'!$I13-$I$12)*SUMIF(hide!$H$90:$H$99,AE$4,hide!$L$90:$L$99) -> 0 | AF12: =('1B'!$I13-$I$12)*SUMIF(hide!$H$90:$H$99,AF$4,hide!$L$90:$L$99) -> 0 | AG12: =('1B'!$I13-$I$12)*SUMIF(hide!$H$90:$H$99,AG$4,hide!$L$90:$L$99) -> 0 | AI12: ='hide inflace'!A7 -> 2019 | AJ12: ='hide inflace'!B7 -> 0.047 | AL12: Koeficient inflace pro PN
A13: B.1.2.2 | D13: Stavební práce a dodávky zajišťované přímo investorem | H13: 0 | J13: =('1B'!$I14-$I$13)*SUMIF(hide!$H$90:$H$99,J$4,hide!$L$90:$L$99) -> 0 | K13: =('1B'!$I14-$I$13)*SUMIF(hide!$H$90:$H$99,K$4,hide!$L$90:$L$99) -> 0 | L13: =('1B'!$I14-$I$13)*SUMIF(hide!$H$90:$H$99,L$4,hide!$L$90:$L$99) -> 0 | M13: =('1B'!$I14-$I$13)*SUMIF(hide!$H$90:$H$99,M$4,hide!$L$90:$L$99) -> 0 | N13: =('1B'!$I14-$I$13)*SUMIF(hide!$H$90:$H$99,N$4,hide!$L$90:$L$99) -> 0 | O13: =('1B'!$I14-$I$13)*SUMIF(hide!$H$90:$H$99,O$4,hide!$L$90:$L$99) -> 0 | P13: =('1B'!$I14-$I$13)*SUMIF(hide!$H$90:$H$99,P$4,hide!$L$90:$L$99) -> 0 | Q13: =('1B'!$I14-$I$13)*SUMIF(hide!$H$90:$H$99,Q$4,hide!$L$90:$L$99) -> 0 | R13: =('1B'!$I14-$I$13)*SUMIF(hide!$H$90:$H$99,R$4,hide!$L$90:$L$99) -> 0 | S13: =('1B'!$I14-$I$13)*SUMIF(hide!$H$90:$H$99,S$4,hide!$L$90:$L$99) -> 0 | X13: =('1B'!$I14-$I$13)*SUMIF(hide!$H$90:$H$99,X$4,hide!$L$90:$L$99) -> 0 | Y13: =('1B'!$I14-$I$13)*SUMIF(hide!$H$90:$H$99,Y$4,hide!$L$90:$L$99) -> 0 | Z13: =('1B'!$I14-$I$13)*SUMIF(hide!$H$90:$H$99,Z$4,hide!$L$90:$L$99) -> 0 | AA13: =('1B'!$I14-$I$13)*SUMIF(hide!$H$90:$H$99,AA$4,hide!$L$90:$L$99) -> 0 | AB13: =('1B'!$I14-$I$13)*SUMIF(hide!$H$90:$H$99,AB$4,hide!$L$90:$L$99) -> 0 | AC13: =('1B'!$I14-$I$13)*SUMIF(hide!$H$90:$H$99,AC$4,hide!$L$90:$L$99) -> 0 | AD13: =('1B'!$I14-$I$13)*SUMIF(hide!$H$90:$H$99,AD$4,hide!$L$90:$L$99) -> 0 | AE13: =('1B'!$I14-$I$13)*SUMIF(hide!$H$90:$H$99,AE$4,hide!$L$90:$L$99) -> 0 | AF13: =('1B'!$I14-$I$13)*SUMIF(hide!$H$90:$H$99,AF$4,hide!$L$90:$L$99) -> 0 | AG13: =('1B'!$I14-$I$13)*SUMIF(hide!$H$90:$H$99,AG$4,hide!$L$90:$L$99) -> 0 | AI13: ='hide inflace'!A8 -> 2020 | AJ13: ='hide inflace'!B8 -> 0.037 | AL13: SO (ZRN+VRN+INFL)/(ZRN+VRN) | AM13: =IF(H9=0,1,(H9+H10+H46)/(H9+H10)) -> 1
A14: B.1.2.3 | D14: Zkoušky, revize a měření zajišťované přímo investorem | H14: 0 | J14: =('1B'!$I15-$I$13)*SUMIF(hide!$H$90:$H$99,J$4,hide!$L$90:$L$99) -> 0 | K14: =('1B'!$I15-$I$13)*SUMIF(hide!$H$90:$H$99,K$4,hide!$L$90:$L$99) -> 0 | L14: =('1B'!$I15-$I$13)*SUMIF(hide!$H$90:$H$99,L$4,hide!$L$90:$L$99) -> 0 | M14: =('1B'!$I15-$I$13)*SUMIF(hide!$H$90:$H$99,M$4,hide!$L$90:$L$99) -> 0 | N14: =('1B'!$I15-$I$13)*SUMIF(hide!$H$90:$H$99,N$4,hide!$L$90:$L$99) -> 0 | O14: =('1B'!$I15-$I$13)*SUMIF(hide!$H$90:$H$99,O$4,hide!$L$90:$L$99) -> 0 | P14: =('1B'!$I15-$I$13)*SUMIF(hide!$H$90:$H$99,P$4,hide!$L$90:$L$99) -> 0 | Q14: =('1B'!$I15-$I$13)*SUMIF(hide!$H$90:$H$99,Q$4,hide!$L$90:$L$99) -> 0 | R14: =('1B'!$I15-$I$13)*SUMIF(hide!$H$90:$H$99,R$4,hide!$L$90:$L$99) -> 0 | S14: =('1B'!$I15-$I$13)*SUMIF(hide!$H$90:$H$99,S$4,hide!$L$90:$L$99) -> 0 | X14: =('1B'!$I15-$I$13)*SUMIF(hide!$H$90:$H$99,X$4,hide!$L$90:$L$99) -> 0 | Y14: =('1B'!$I15-$I$13)*SUMIF(hide!$H$90:$H$99,Y$4,hide!$L$90:$L$99) -> 0 | Z14: =('1B'!$I15-$I$13)*SUMIF(hide!$H$90:$H$99,Z$4,hide!$L$90:$L$99) -> 0 | AA14: =('1B'!$I15-$I$13)*SUMIF(hide!$H$90:$H$99,AA$4,hide!$L$90:$L$99) -> 0 | AB14: =('1B'!$I15-$I$13)*SUMIF(hide!$H$90:$H$99,AB$4,hide!$L$90:$L$99) -> 0 | AC14: =('1B'!$I15-$I$13)*SUMIF(hide!$H$90:$H$99,AC$4,hide!$L$90:$L$99) -> 0 | AD14: =('1B'!$I15-$I$13)*SUMIF(hide!$H$90:$H$99,AD$4,hide!$L$90:$L$99) -> 0 | AE14: =('1B'!$I15-$I$13)*SUMIF(hide!$H$90:$H$99,AE$4,hide!$L$90:$L$99) -> 0 | AF14: =('1B'!$I15-$I$13)*SUMIF(hide!$H$90:$H$99,AF$4,hide!$L$90:$L$99) -> 0 | AG14: =('1B'!$I15-$I$13)*SUMIF(hide!$H$90:$H$99,AG$4,hide!$L$90:$L$99) -> 0 | AI14: ='hide inflace'!A9 -> 2021 | AJ14: ='hide inflace'!B9 -> 0.044 | AL14: PS (ZRN+VRN+INFL)/(ZRN+VRN) | AM14: =IF(H17=0,1,(H17+H18+H48)/(H17+H18)) -> 1
A15: B.2 | B15: Technologická část | H15: 0 | I15: =I16+I19 -> 0 | J15: 0 | K15: 0 | L15: 0 | M15: 0 | N15: 0 | O15: 0 | P15: 0 | Q15: 0 | R15: 0 | S15: 0 | W15: =W16+W19 -> 0 | X15: 0 | Y15: 0 | Z15: 0 | AA15: 0 | AB15: 0 | AC15: 0 | AD15: 0 | AE15: 0 | AF15: 0 | AG15: 0 | AI15: ='hide inflace'!A10 -> 2022 | AJ15: ='hide inflace'!B10 -> 0.119
A16: B.2.1 | B16: z toho | C16: Provozní soubory dodávané zhotoviteli | H16: 0 | I16: =SUM(I17:I18) -> 0 | J16: =J17+J18 -> 0 | K16: =SUM(K17:K18) -> 0 | L16: 0 | M16: 0 | N16: 0 | O16: 0 | P16: 0 | Q16: 0 | R16: 0 | S16: 0 | W16: =SUM(W17:W18) -> 0 | X16: =X17+X18 -> 0 | Y16: =SUM(Y17:Y18) -> 0 | Z16: 0 | AA16: 0 | AB16: 0 | AC16: 0 | AD16: 0 | AE16: 0 | AF16: 0 | AG16: 0 | AI16: ='hide inflace'!A11 -> 2023 | AJ16: ='hide inflace'!B11 -> 0.108
A17: B.2.1.1 | C17: z toho | D17: Základní rozpočtové náklady jednotlivých PS (ZRN) | H17: 0 | J17: ='1B'!$I18*SUMIF(hide!$H$106:$H$115,J4,hide!$L$106:$L$115) -> 0 | K17: ='1B'!$I18*SUMIF(hide!$H$106:$H$115,K$4,hide!$L$106:$L$115) -> 0 | L17: ='1B'!$I18*SUMIF(hide!$H$106:$H$115,L$4,hide!$L$106:$L$115) -> 0 | M17: ='1B'!$I18*SUMIF(hide!$H$106:$H$115,M$4,hide!$L$106:$L$115) -> 0 | N17: ='1B'!$I18*SUMIF(hide!$H$106:$H$115,N$4,hide!$L$106:$L$115) -> 0 | O17: ='1B'!$I18*SUMIF(hide!$H$106:$H$115,O$4,hide!$L$106:$L$115) -> 0 | P17: ='1B'!$I18*SUMIF(hide!$H$106:$H$115,P$4,hide!$L$106:$L$115) -> 0 | Q17: ='1B'!$I18*SUMIF(hide!$H$106:$H$115,Q$4,hide!$L$106:$L$115) -> 0 | R17: ='1B'!$I18*SUMIF(hide!$H$106:$H$115,R$4,hide!$L$106:$L$115) -> 0 | S17: ='1B'!$I18*SUMIF(hide!$H$106:$H$115,S$4,hide!$L$106:$L$115) -> 0 | X17: ='1B'!$I18*SUMIF(hide!$H$106:$H$115,X4,hide!$L$106:$L$115) -> 0 | Y17: ='1B'!$I18*SUMIF(hide!$H$106:$H$115,Y$4,hide!$L$106:$L$115) -> 0 | Z17: ='1B'!$I18*SUMIF(hide!$H$106:$H$115,Z$4,hide!$L$106:$L$115) -> 0 | AA17: ='1B'!$I18*SUMIF(hide!$H$106:$H$115,AA$4,hide!$L$106:$L$115) -> 0 | AB17: ='1B'!$I18*SUMIF(hide!$H$106:$H$115,AB$4,hide!$L$106:$L$115) -> 0 | AC17: ='1B'!$I18*SUMIF(hide!$H$106:$H$115,AC$4,hide!$L$106:$L$115) -> 0 | AD17: ='1B'!$I18*SUMIF(hide!$H$106:$H$115,AD$4,hide!$L$106:$L$115) -> 0 | AE17: ='1B'!$I18*SUMIF(hide!$H$106:$H$115,AE$4,hide!$L$106:$L$115) -> 0 | AF17: ='1B'!$I18*SUMIF(hide!$H$106:$H$115,AF$4,hide!$L$106:$L$115) -> 0 | AG17: ='1B'!$I18*SUMIF(hide!$H$106:$H$115,AG$4,hide!$L$106:$L$115) -> 0 | AI17: ='hide inflace'!A12 -> 2024 | AJ17: ='hide inflace'!B12 -> 0.021
A18: B.2.1.2 | D18: Vedlejší rozpočtové náklady dle indexu jednotlivých PS (VRN) | H18: ='3PS'!M9 -> 0 | J18: =IF($H$17=0,0,(J17/$H$17)*$H$18) -> 0 | K18: 0 | L18: 0 | M18: 0 | N18: 0 | O18: 0 | P18: 0 | Q18: 0 | R18: 0 | S18: 0 | X18: =IF($H$17=0,0,(X17/$H$17)*$H$18) -> 0 | Y18: 0 | Z18: 0 | AA18: 0 | AB18: 0 | AC18: 0 | AD18: 0 | AE18: 0 | AF18: 0 | AG18: 0 | AI18: ='hide inflace'!A13 -> 2025 | AJ18: ='hide inflace'!B13 -> 0.02
A19: B.2.2 | C19: Technologické část zajišťovaná přímo investorem | H19: 0 | I19: =SUM(I20:I22) -> 0 | J19: 0 | K19: 0 | L19: 0 | M19: 0 | N19: 0 | O19: 0 | P19: 0 | Q19: 0 | R19: 0 | S19: 0 | W19: =SUM(W20:W22) -> 0 | X19: 0 | Y19: 0 | Z19: 0 | AA19: 0 | AB19: 0 | AC19: 0 | AD19: 0 | AE19: 0 | AF19: 0 | AG19: 0 | AI19: ='hide inflace'!A14 -> 2026 | AJ19: ='hide inflace'!B14 -> 0.02
A20: B.2.2.1 | C20: z toho | D20: Provozní soubory zajišťované přímo investorem | H20: 0 | J20: =('1B'!$N21-$I20)*SUMIF(hide!$H$106:$H$115,J4,hide!$L$106:$L$115) -> 0 | K20: =('1B'!$N21-$I20)*SUMIF(hide!$H$106:$H$115,K4,hide!$L$106:$L$115) -> 0 | L20: =('1B'!$N21-$I20)*SUMIF(hide!$H$106:$H$115,L4,hide!$L$106:$L$115) -> 0 | M20: =('1B'!$N21-$I20)*SUMIF(hide!$H$106:$H$115,M4,hide!$L$106:$L$115) -> 0 | N20: =('1B'!$N21-$I20)*SUMIF(hide!$H$106:$H$115,N4,hide!$L$106:$L$115) -> 0 | O20: =('1B'!$N21-$I20)*SUMIF(hide!$H$106:$H$115,O4,hide!$L$106:$L$115) -> 0 | P20: =('1B'!$N21-$I20)*SUMIF(hide!$H$106:$H$115,P4,hide!$L$106:$L$115) -> 0 | Q20: =('1B'!$N21-$I20)*SUMIF(hide!$H$106:$H$115,Q4,hide!$L$106:$L$115) -> 0 | R20: =('1B'!$N21-$I20)*SUMIF(hide!$H$106:$H$115,R4,hide!$L$106:$L$115) -> 0 | S20: =('1B'!$N21-$I20)*SUMIF(hide!$H$106:$H$115,S4,hide!$L$106:$L$115) -> 0 | X20: =('1B'!$N21-$I20)*SUMIF(hide!$H$106:$H$115,X4,hide!$L$106:$L$115) -> 0 | Y20: =('1B'!$N21-$I20)*SUMIF(hide!$H$106:$H$115,Y4,hide!$L$106:$L$115) -> 0 | Z20: =('1B'!$N21-$I20)*SUMIF(hide!$H$106:$H$115,Z4,hide!$L$106:$L$115) -> 0 | AA20: =('1B'!$N21-$I20)*SUMIF(hide!$H$106:$H$115,AA4,hide!$L$106:$L$115) -> 0 | AB20: =('1B'!$N21-$I20)*SUMIF(hide!$H$106:$H$115,AB4,hide!$L$106:$L$115) -> 0 | AC20: =('1B'!$N21-$I20)*SUMIF(hide!$H$106:$H$115,AC4,hide!$L$106:$L$115) -> 0 | AD20: =('1B'!$N21-$I20)*SUMIF(hide!$H$106:$H$115,AD4,hide!$L$106:$L$115) -> 0 | AE20: =('1B'!$N21-$I20)*SUMIF(hide!$H$106:$H$115,AE4,hide!$L$106:$L$115) -> 0 | AF20: =('1B'!$N21-$I20)*SUMIF(hide!$H$106:$H$115,AF4,hide!$L$106:$L$115) -> 0 | AG20: =('1B'!$N21-$I20)*SUMIF(hide!$H$106:$H$115,AG4,hide!$L$106:$L$115) -> 0 | AI20: ='hide inflace'!A15 -> 2027 | AJ20: ='hide inflace'!B15 -> 0.02
A21: B.2.2.2 | D21: Technologické práce a dodávky zajišťované přímo investorem | H21: 0 | J21: =('1B'!$N22-$I21)*SUMIF(hide!$H$106:$H$115,J4,hide!$L$106:$L$115) -> 0 | K21: =('1B'!$N22-$I21)*SUMIF(hide!$H$106:$H$115,K4,hide!$L$106:$L$115) -> 0 | L21: =('1B'!$N22-$I21)*SUMIF(hide!$H$106:$H$115,L4,hide!$L$106:$L$115) -> 0 | M21: =('1B'!$N22-$I21)*SUMIF(hide!$H$106:$H$115,M4,hide!$L$106:$L$115) -> 0 | N21: =('1B'!$N22-$I21)*SUMIF(hide!$H$106:$H$115,N4,hide!$L$106:$L$115) -> 0 | O21: =('1B'!$N22-$I21)*SUMIF(hide!$H$106:$H$115,O4,hide!$L$106:$L$115) -> 0 | P21: =('1B'!$N22-$I21)*SUMIF(hide!$H$106:$H$115,P4,hide!$L$106:$L$115) -> 0 | Q21: =('1B'!$N22-$I21)*SUMIF(hide!$H$106:$H$115,Q4,hide!$L$106:$L$115) -> 0 | R21: =('1B'!$N22-$I21)*SUMIF(hide!$H$106:$H$115,R4,hide!$L$106:$L$115) -> 0 | S21: =('1B'!$N22-$I21)*SUMIF(hide!$H$106:$H$115,S4,hide!$L$106:$L$115) -> 0 | X21: =('1B'!$N22-$I21)*SUMIF(hide!$H$106:$H$115,X4,hide!$L$106:$L$115) -> 0 | Y21: =('1B'!$N22-$I21)*SUMIF(hide!$H$106:$H$115,Y4,hide!$L$106:$L$115) -> 0 | Z21: =('1B'!$N22-$I21)*SUMIF(hide!$H$106:$H$115,Z4,hide!$L$106:$L$115) -> 0 | AA21: =('1B'!$N22-$I21)*SUMIF(hide!$H$106:$H$115,AA4,hide!$L$106:$L$115) -> 0 | AB21: =('1B'!$N22-$I21)*SUMIF(hide!$H$106:$H$115,AB4,hide!$L$106:$L$115) -> 0 | AC21: =('1B'!$N22-$I21)*SUMIF(hide!$H$106:$H$115,AC4,hide!$L$106:$L$115) -> 0 | AD21: =('1B'!$N22-$I21)*SUMIF(hide!$H$106:$H$115,AD4,hide!$L$106:$L$115) -> 0 | AE21: =('1B'!$N22-$I21)*SUMIF(hide!$H$106:$H$115,AE4,hide!$L$106:$L$115) -> 0 | AF21: =('1B'!$N22-$I21)*SUMIF(hide!$H$106:$H$115,AF4,hide!$L$106:$L$115) -> 0 | AG21: =('1B'!$N22-$I21)*SUMIF(hide!$H$106:$H$115,AG4,hide!$L$106:$L$115) -> 0 | AI21: ='hide inflace'!A16 -> 2028 | AJ21: ='hide inflace'!B16 -> 0.02
A22: B.2.2.3 | D22: Revize a měření zajišťované investorem | H22: 0 | J22: =('1B'!$N23-$I22)*SUMIF(hide!$H$106:$H$115,J4,hide!$L$106:$L$115) -> 0 | K22: =('1B'!$N23-$I22)*SUMIF(hide!$H$106:$H$115,K4,hide!$L$106:$L$115) -> 0 | L22: =('1B'!$N23-$I22)*SUMIF(hide!$H$106:$H$115,L4,hide!$L$106:$L$115) -> 0 | M22: =('1B'!$N23-$I22)*SUMIF(hide!$H$106:$H$115,M4,hide!$L$106:$L$115) -> 0 | N22: =('1B'!$N23-$I22)*SUMIF(hide!$H$106:$H$115,N4,hide!$L$106:$L$115) -> 0 | O22: =('1B'!$N23-$I22)*SUMIF(hide!$H$106:$H$115,O4,hide!$L$106:$L$115) -> 0 | P22: =('1B'!$N23-$I22)*SUMIF(hide!$H$106:$H$115,P4,hide!$L$106:$L$115) -> 0 | Q22: =('1B'!$N23-$I22)*SUMIF(hide!$H$106:$H$115,Q4,hide!$L$106:$L$115) -> 0 | R22: =('1B'!$N23-$I22)*SUMIF(hide!$H$106:$H$115,R4,hide!$L$106:$L$115) -> 0 | S22: =('1B'!$N23-$I22)*SUMIF(hide!$H$106:$H$115,S4,hide!$L$106:$L$115) -> 0 | X22: =('1B'!$N23-$I22)*SUMIF(hide!$H$106:$H$115,X4,hide!$L$106:$L$115) -> 0 | Y22: =('1B'!$N23-$I22)*SUMIF(hide!$H$106:$H$115,Y4,hide!$L$106:$L$115) -> 0 | Z22: =('1B'!$N23-$I22)*SUMIF(hide!$H$106:$H$115,Z4,hide!$L$106:$L$115) -> 0 | AA22: =('1B'!$N23-$I22)*SUMIF(hide!$H$106:$H$115,AA4,hide!$L$106:$L$115) -> 0 | AB22: =('1B'!$N23-$I22)*SUMIF(hide!$H$106:$H$115,AB4,hide!$L$106:$L$115) -> 0 | AC22: =('1B'!$N23-$I22)*SUMIF(hide!$H$106:$H$115,AC4,hide!$L$106:$L$115) -> 0 | AD22: =('1B'!$N23-$I22)*SUMIF(hide!$H$106:$H$115,AD4,hide!$L$106:$L$115) -> 0 | AE22: =('1B'!$N23-$I22)*SUMIF(hide!$H$106:$H$115,AE4,hide!$L$106:$L$115) -> 0 | AF22: =('1B'!$N23-$I22)*SUMIF(hide!$H$106:$H$115,AF4,hide!$L$106:$L$115) -> 0 | AG22: =('1B'!$N23-$I22)*SUMIF(hide!$H$106:$H$115,AG4,hide!$L$106:$L$115) -> 0 | AI22: ='hide inflace'!A17 -> 2029 | AJ22: ='hide inflace'!B17 -> 0.02
A23: B.3 | B23: Ostatní náklady pro zajištění realizace stavby | H23: 0 | I23: =SUM(I24:I29,I30,I34:I37) -> 0 | J23: =SUM(J24:J29,J30,J34:J37) -> 0 | K23: =SUM(K24:K29,K30,K34:K37) -> 0 | L23: =SUM(L24:L29,L30,L34:L37) -> 0 | M23: 0 | N23: 0 | O23: 0 | P23: 0 | Q23: 0 | R23: 0 | S23: 0 | W23: =SUM(W24:W29,W30,W34:W37) -> 0 | X23: =SUM(X24:X29,X30,X34:X37) -> 0 | Y23: =SUM(Y24:Y29,Y30,Y34:Y37) -> 0 | Z23: =SUM(Z24:Z29,Z30,Z34:Z37) -> 0 | AA23: 0 | AB23: 0 | AC23: 0 | AD23: 0 | AE23: 0 | AF23: 0 | AG23: 0 | AI23: ='hide inflace'!A18 -> 2030 | AJ23: ='hide inflace'!B18 -> 0.02
A24: B.3.1 | B24: z toho | C24: Osvědčení o shodě notifikovanou osobou v realizaci | H24: =SUM(I24:S24) -> 0 | J24: ='1B'!N25-SUM(I24,K24:S24) -> 0 | K24: =IF('Krycí list SR'!$G$9<>"",IF(YEAR('Krycí list SR'!$G$9+'2A'!$G$38)=K$4,'1B'!$N$25,0),0) -> 0 | L24: =IF('Krycí list SR'!$G$9<>"",IF(YEAR('Krycí list SR'!$G$9+'2A'!$G$38)=L$4,'1B'!$N$25,0),0) -> 0 | M24: =IF('Krycí list SR'!$G$9<>"",IF(YEAR('Krycí list SR'!$G$9+'2A'!$G$38)=M$4,'1B'!$N$25,0),0) -> 0 | N24: =IF('Krycí list SR'!$G$9<>"",IF(YEAR('Krycí list SR'!$G$9+'2A'!$G$38)=N$4,'1B'!$N$25,0),0) -> 0 | O24: =IF('Krycí list SR'!$G$9<>"",IF(YEAR('Krycí list SR'!$G$9+'2A'!$G$38)=O$4,'1B'!$N$25,0),0) -> 0 | P24: =IF('Krycí list SR'!$G$9<>"",IF(YEAR('Krycí list SR'!$G$9+'2A'!$G$38)=P$4,'1B'!$N$25,0),0) -> 0 | Q24: =IF('Krycí list SR'!$G$9<>"",IF(YEAR('Krycí list SR'!$G$9+'2A'!$G$38)=Q$4,'1B'!$N$25,0),0) -> 0 | R24: =IF('Krycí list SR'!$G$9<>"",IF(YEAR('Krycí list SR'!$G$9+'2A'!$G$38)=R$4,'1B'!$N$25,0),0) -> 0 | S24: =IF('Krycí list SR'!$G$9<>"",IF(YEAR('Krycí list SR'!$G$9+'2A'!G38)>(R$4+1),'1B'!N25,0),0) -> 0 | X24: ='1B'!AB25-SUM(W24,Y24:AG24) -> 0 | Y24: =IF('Krycí list SR'!$G$9<>"",IF(YEAR('Krycí list SR'!$G$9+'2A'!$G$38)=Y$4,'1B'!$N$25,0),0) -> 0 | Z24: =IF('Krycí list SR'!$G$9<>"",IF(YEAR('Krycí list SR'!$G$9+'2A'!$G$38)=Z$4,'1B'!$N$25,0),0) -> 0 | AA24: =IF('Krycí list SR'!$G$9<>"",IF(YEAR('Krycí list SR'!$G$9+'2A'!$G$38)=AA$4,'1B'!$N$25,0),0) -> 0 | AB24: =IF('Krycí list SR'!$G$9<>"",IF(YEAR('Krycí list SR'!$G$9+'2A'!$G$38)=AB$4,'1B'!$N$25,0),0) -> 0 | AC24: =IF('Krycí list SR'!$G$9<>"",IF(YEAR('Krycí list SR'!$G$9+'2A'!$G$38)=AC$4,'1B'!$N$25,0),0) -> 0 | AD24: =IF('Krycí list SR'!$G$9<>"",IF(YEAR('Krycí list SR'!$G$9+'2A'!$G$38)=AD$4,'1B'!$N$25,0),0) -> 0 | AE24: =IF('Krycí list SR'!$G$9<>"",IF(YEAR('Krycí list SR'!$G$9+'2A'!$G$38)=AE$4,'1B'!$N$25,0),0) -> 0 | AF24: =IF('Krycí list SR'!$G$9<>"",IF(YEAR('Krycí list SR'!$G$9+'2A'!$G$38)=AF$4,'1B'!$N$25,0),0) -> 0 | AG24: =IF('Krycí list SR'!$G$9<>"",IF(YEAR('Krycí list SR'!$G$9+'2A'!U38)>(AF$4+1),'1B'!AB25,0),0) -> 0 | AI24: ='hide inflace'!A19 -> 2031 | AJ24: ='hide inflace'!B19 -> 0.02
A25: B.3.2 | C25: Koordinátor BOZP v realizaci | H25: ='1B'!N26 -> 0 | J25: ='1B'!N26-SUM(I25,K25:S25) -> 0 | K25: ='1B'!$N26*SUMIF(hide!$H$74:$H$83,K$4,hide!$L$74:$L$83) -> 0 | L25: ='1B'!$N26*SUMIF(hide!$H$74:$H$83,L$4,hide!$L$74:$L$83) -> 0 | M25: ='1B'!$N26*SUMIF(hide!$H$74:$H$83,M$4,hide!$L$74:$L$83) -> 0 | N25: ='1B'!$N26*SUMIF(hide!$H$74:$H$83,N$4,hide!$L$74:$L$83) -> 0 | O25: ='1B'!$N26*SUMIF(hide!$H$74:$H$83,O$4,hide!$L$74:$L$83) -> 0 | P25: ='1B'!$N26*SUMIF(hide!$H$74:$H$83,P$4,hide!$L$74:$L$83) -> 0 | Q25: ='1B'!$N26*SUMIF(hide!$H$74:$H$83,Q$4,hide!$L$74:$L$83) -> 0 | R25: ='1B'!$N26*SUMIF(hide!$H$74:$H$83,R$4,hide!$L$74:$L$83) -> 0 | S25: ='1B'!$N26*SUMIF(hide!$H$74:$H$83,S$4,hide!$L$74:$L$83) -> 0 | X25: ='1B'!AB26-SUM(W25,Y25:AG25) -> 0 | Y25: ='1B'!$N26*SUMIF(hide!$H$74:$H$83,Y$4,hide!$L$74:$L$83) -> 0 | Z25: ='1B'!$N26*SUMIF(hide!$H$74:$H$83,Z$4,hide!$L$74:$L$83) -> 0 | AA25: ='1B'!$N26*SUMIF(hide!$H$74:$H$83,AA$4,hide!$L$74:$L$83) -> 0 | AB25: ='1B'!$N26*SUMIF(hide!$H$74:$H$83,AB$4,hide!$L$74:$L$83) -> 0 | AC25: ='1B'!$N26*SUMIF(hide!$H$74:$H$83,AC$4,hide!$L$74:$L$83) -> 0 | AD25: ='1B'!$N26*SUMIF(hide!$H$74:$H$83,AD$4,hide!$L$74:$L$83) -> 0 | AE25: ='1B'!$N26*SUMIF(hide!$H$74:$H$83,AE$4,hide!$L$74:$L$83) -> 0 | AF25: ='1B'!$N26*SUMIF(hide!$H$74:$H$83,AF$4,hide!$L$74:$L$83) -> 0 | AG25: ='1B'!$N26*SUMIF(hide!$H$74:$H$83,AG$4,hide!$L$74:$L$83) -> 0 | AI25: ='hide inflace'!A20 -> 2032 | AJ25: ='hide inflace'!B20 -> 0.02
A26: B.3.3 | C26: Osvědčení o bezpečnosti před uvedením do provozu | H26: 0 | J26: ='1B'!N27-SUM(I26,K26:S26) -> 0 | X26: ='1B'!AB27-SUM(W26,Y26:AG26) -> 0 | AI26: ='hide inflace'!A21 -> 2033 | AJ26: ='hide inflace'!B21 -> 0.02
A27: B.3.4 | C27: Geodetická vytyčovací síť celé stavby | H27: 0 | J27: ='1B'!N28-SUM(I27,K27:S27) -> 0 | X27: ='1B'!AB28-SUM(W27,Y27:AG27) -> 0 | AI27: ='hide inflace'!A22 -> 2034 | AJ27: ='hide inflace'!B22 -> 0.02
A28: B.3.5 | C28: Odborné dozory, dohledy a průzkumy zajišťované zhotovitelem | H28: 0 | J28: ='1B'!N29-SUM(I28,K28:S28) -> 0 | K28: =('1B'!$N29-$I28)*SUMIF(hide!$H$74:$H$83,K$4,hide!$L$74:$L$83) -> 0 | L28: =('1B'!$N29-$I28)*SUMIF(hide!$H$74:$H$83,L$4,hide!$L$74:$L$83) -> 0 | M28: =('1B'!$N29-$I28)*SUMIF(hide!$H$74:$H$83,M$4,hide!$L$74:$L$83) -> 0 | N28: =('1B'!$N29-$I28)*SUMIF(hide!$H$74:$H$83,N$4,hide!$L$74:$L$83) -> 0 | O28: =('1B'!$N29-$I28)*SUMIF(hide!$H$74:$H$83,O$4,hide!$L$74:$L$83) -> 0 | P28: =('1B'!$N29-$I28)*SUMIF(hide!$H$74:$H$83,P$4,hide!$L$74:$L$83) -> 0 | Q28: =('1B'!$N29-$I28)*SUMIF(hide!$H$74:$H$83,Q$4,hide!$L$74:$L$83) -> 0 | R28: =('1B'!$N29-$I28)*SUMIF(hide!$H$74:$H$83,R$4,hide!$L$74:$L$83) -> 0 | S28: =('1B'!$I29-$I28)*SUMIF(hide!$H$74:$H$83,S$4,hide!$L$74:$L$83) -> 0 | X28: ='1B'!AB29-SUM(W28,Y28:AG28) -> 0 | Y28: =('1B'!$N29-$I28)*SUMIF(hide!$H$74:$H$83,Y$4,hide!$L$74:$L$83) -> 0 | Z28: =('1B'!$N29-$I28)*SUMIF(hide!$H$74:$H$83,Z$4,hide!$L$74:$L$83) -> 0 | AA28: =('1B'!$N29-$I28)*SUMIF(hide!$H$74:$H$83,AA$4,hide!$L$74:$L$83) -> 0 | AB28: =('1B'!$N29-$I28)*SUMIF(hide!$H$74:$H$83,AB$4,hide!$L$74:$L$83) -> 0 | AC28: =('1B'!$N29-$I28)*SUMIF(hide!$H$74:$H$83,AC$4,hide!$L$74:$L$83) -> 0 | AD28: =('1B'!$N29-$I28)*SUMIF(hide!$H$74:$H$83,AD$4,hide!$L$74:$L$83) -> 0 | AE28: =('1B'!$N29-$I28)*SUMIF(hide!$H$74:$H$83,AE$4,hide!$L$74:$L$83) -> 0 | AF28: =('1B'!$N29-$I28)*SUMIF(hide!$H$74:$H$83,AF$4,hide!$L$74:$L$83) -> 0 | AG28: =('1B'!$I29-$I28)*SUMIF(hide!$H$74:$H$83,AG$4,hide!$L$74:$L$83) -> 0 | AI28: ='hide inflace'!A23 -> 2035 | AJ28: ='hide inflace'!B23 -> 0.02
A29: B.3.6 | C29: Hlukové měření pro účely realizace stavby | H29: 0 | J29: ='1B'!N30-SUM(I29,K29:S29) -> 0 | K29: =('1B'!$N30-$I29)*SUMIF(hide!$H$74:$H$83,K$4,hide!$L$74:$L$83) -> 0 | L29: =('1B'!$N30-$I29)*SUMIF(hide!$H$74:$H$83,L$4,hide!$L$74:$L$83) -> 0 | M29: =('1B'!$N30-$I29)*SUMIF(hide!$H$74:$H$83,M$4,hide!$L$74:$L$83) -> 0 | N29: =('1B'!$N30-$I29)*SUMIF(hide!$H$74:$H$83,N$4,hide!$L$74:$L$83) -> 0 | O29: =('1B'!$N30-$I29)*SUMIF(hide!$H$74:$H$83,O$4,hide!$L$74:$L$83) -> 0 | P29: =('1B'!$N30-$I29)*SUMIF(hide!$H$74:$H$83,P$4,hide!$L$74:$L$83) -> 0 | Q29: =('1B'!$N30-$I29)*SUMIF(hide!$H$74:$H$83,Q$4,hide!$L$74:$L$83) -> 0 | R29: =('1B'!$N30-$I29)*SUMIF(hide!$H$74:$H$83,R$4,hide!$L$74:$L$83) -> 0 | S29: =('1B'!$I30-$I29)*SUMIF(hide!$H$74:$H$83,S$4,hide!$L$74:$L$83) -> 0 | X29: ='1B'!AB30-SUM(W29,Y29:AG29) -> 0 | Y29: =('1B'!$N30-$I29)*SUMIF(hide!$H$74:$H$83,Y$4,hide!$L$74:$L$83) -> 0 | Z29: =('1B'!$N30-$I29)*SUMIF(hide!$H$74:$H$83,Z$4,hide!$L$74:$L$83) -> 0 | AA29: =('1B'!$N30-$I29)*SUMIF(hide!$H$74:$H$83,AA$4,hide!$L$74:$L$83) -> 0 | AB29: =('1B'!$N30-$I29)*SUMIF(hide!$H$74:$H$83,AB$4,hide!$L$74:$L$83) -> 0 | AC29: =('1B'!$N30-$I29)*SUMIF(hide!$H$74:$H$83,AC$4,hide!$L$74:$L$83) -> 0 | AD29: =('1B'!$N30-$I29)*SUMIF(hide!$H$74:$H$83,AD$4,hide!$L$74:$L$83) -> 0 | AE29: =('1B'!$N30-$I29)*SUMIF(hide!$H$74:$H$83,AE$4,hide!$L$74:$L$83) -> 0 | AF29: =('1B'!$N30-$I29)*SUMIF(hide!$H$74:$H$83,AF$4,hide!$L$74:$L$83) -> 0 | AG29: =('1B'!$I30-$I29)*SUMIF(hide!$H$74:$H$83,AG$4,hide!$L$74:$L$83) -> 0 | AI29: ='hide inflace'!A24 -> 2036 | AJ29: ='hide inflace'!B24 -> 0.02
A30: B.3.7 | C30: Náhrady | H30: =SUM(I30:S30) -> 0 | I30: =SUM(I31:I33) -> 0 | J30: =SUM(J31:J33) -> 0 | K30: =SUM(K31:K33) -> 0 | L30: =SUM(L31:L33) -> 0 | M30: 0 | N30: 0 | O30: 0 | P30: 0 | Q30: 0 | R30: 0 | S30: 0 | W30: =SUM(W31:W33) -> 0 | X30: =SUM(X31:X33) -> 0 | Y30: =SUM(Y31:Y33) -> 0 | Z30: =SUM(Z31:Z33) -> 0 | AA30: 0 | AB30: 0 | AC30: 0 | AD30: 0 | AE30: 0 | AF30: 0 | AG30: 0 | AI30: ='hide inflace'!A25 -> 2037 | AJ30: ='hide inflace'!B25 -> 0.02
A31: B.3.7.1 | C31: z toho | D31: Náhrady za omezení hospodaření | H31: ='1B'!N32 -> 0 | J31: ='1B'!N32-SUM(I31,K31:S31) -> 0 | X31: ='1B'!AB32-SUM(W31,Y31:AG31) -> 0 | AI31: ='hide inflace'!A26 -> 2038 | AJ31: ='hide inflace'!B26 -> 0.02
A32: B.3.7.2 | D32: Náhrady za omezení provozu | H32: ='1B'!N33 -> 0 | J32: ='1B'!N33-SUM(I32,K32:S32) -> 0 | X32: ='1B'!AB33-SUM(W32,Y32:AG32) -> 0 | AI32: ='hide inflace'!A27 -> 2039 | AJ32: ='hide inflace'!B27 -> 0.02
A33: B.3.7.3 | D33: Ostatní náhrady v realizaci | H33: =SUM(I33:S33) -> 0 | AI33: ='hide inflace'!A28 -> 2040 | AJ33: ='hide inflace'!B28 -> 0.02
A34: B.3.8 | C34: Zabezpečovací a konzervační práce | H34: =SUM(I34:S34) -> 0 | AI34: ='hide inflace'!A29 -> 2041 | AJ34: ='hide inflace'!B29 -> 0.02
A35: B.3.9 | C35: Ostatní nezařazené náklady v realizaci | H35: ='1B'!N36 -> 0 | J35: ='1B'!N36-SUM(I35,K35:S35) -> 0 | K35: ='1B'!$N36*SUMIF(hide!$H$74:$H$83,K$4,hide!$L$74:$L$83) -> 0 | L35: ='1B'!$N36*SUMIF(hide!$H$74:$H$83,L$4,hide!$L$74:$L$83) -> 0 | M35: ='1B'!$N36*SUMIF(hide!$H$74:$H$83,M$4,hide!$L$74:$L$83) -> 0 | N35: ='1B'!$N36*SUMIF(hide!$H$74:$H$83,N$4,hide!$L$74:$L$83) -> 0 | O35: ='1B'!$N36*SUMIF(hide!$H$74:$H$83,O$4,hide!$L$74:$L$83) -> 0 | P35: ='1B'!$N36*SUMIF(hide!$H$74:$H$83,P$4,hide!$L$74:$L$83) -> 0 | Q35: ='1B'!$N36*SUMIF(hide!$H$74:$H$83,Q$4,hide!$L$74:$L$83) -> 0 | R35: ='1B'!$N36*SUMIF(hide!$H$74:$H$83,R$4,hide!$L$74:$L$83) -> 0 | S35: ='1B'!$N36*SUMIF(hide!$H$74:$H$83,S$4,hide!$L$74:$L$83) -> 0 | X35: ='1B'!AB36-SUM(W35,Y35:AG35) -> 0 | Y35: ='1B'!$N36*SUMIF(hide!$H$74:$H$83,Y$4,hide!$L$74:$L$83) -> 0 | Z35: ='1B'!$N36*SUMIF(hide!$H$74:$H$83,Z$4,hide!$L$74:$L$83) -> 0 | AA35: ='1B'!$N36*SUMIF(hide!$H$74:$H$83,AA$4,hide!$L$74:$L$83) -> 0 | AB35: ='1B'!$N36*SUMIF(hide!$H$74:$H$83,AB$4,hide!$L$74:$L$83) -> 0 | AC35: ='1B'!$N36*SUMIF(hide!$H$74:$H$83,AC$4,hide!$L$74:$L$83) -> 0 | AD35: ='1B'!$N36*SUMIF(hide!$H$74:$H$83,AD$4,hide!$L$74:$L$83) -> 0 | AE35: ='1B'!$N36*SUMIF(hide!$H$74:$H$83,AE$4,hide!$L$74:$L$83) -> 0 | AF35: ='1B'!$N36*SUMIF(hide!$H$74:$H$83,AF$4,hide!$L$74:$L$83) -> 0 | AG35: ='1B'!$N36*SUMIF(hide!$H$74:$H$83,AG$4,hide!$L$74:$L$83) -> 0 | AI35: ='hide inflace'!A30 -> 2042 | AJ35: ='hide inflace'!B30 -> 0.02
A36: B.3.10 | C36: Jiné náklady v realizaci | H36: =SUM(I36:S36) -> 0 | J36: ='1B'!N37-SUM(I36,K36:S36) -> 0 | K36: ='1B'!$N37*SUMIF(hide!$H$74:$H$83,K$4,hide!$L$74:$L$83) -> 0 | L36: ='1B'!$N37*SUMIF(hide!$H$74:$H$83,L$4,hide!$L$74:$L$83) -> 0 | M36: ='1B'!$N37*SUMIF(hide!$H$74:$H$83,M$4,hide!$L$74:$L$83) -> 0 | N36: ='1B'!$N37*SUMIF(hide!$H$74:$H$83,N$4,hide!$L$74:$L$83) -> 0 | O36: ='1B'!$N37*SUMIF(hide!$H$74:$H$83,O$4,hide!$L$74:$L$83) -> 0 | P36: ='1B'!$N37*SUMIF(hide!$H$74:$H$83,P$4,hide!$L$74:$L$83) -> 0 | Q36: ='1B'!$N37*SUMIF(hide!$H$74:$H$83,Q$4,hide!$L$74:$L$83) -> 0 | R36: ='1B'!$N37*SUMIF(hide!$H$74:$H$83,R$4,hide!$L$74:$L$83) -> 0 | S36: ='1B'!$N37*SUMIF(hide!$H$74:$H$83,S$4,hide!$L$74:$L$83) -> 0 | X36: ='1B'!AB37-SUM(W36,Y36:AG36) -> 0 | Y36: ='1B'!$N37*SUMIF(hide!$H$74:$H$83,Y$4,hide!$L$74:$L$83) -> 0 | Z36: ='1B'!$N37*SUMIF(hide!$H$74:$H$83,Z$4,hide!$L$74:$L$83) -> 0 | AA36: ='1B'!$N37*SUMIF(hide!$H$74:$H$83,AA$4,hide!$L$74:$L$83) -> 0 | AB36: ='1B'!$N37*SUMIF(hide!$H$74:$H$83,AB$4,hide!$L$74:$L$83) -> 0 | AC36: ='1B'!$N37*SUMIF(hide!$H$74:$H$83,AC$4,hide!$L$74:$L$83) -> 0 | AD36: ='1B'!$N37*SUMIF(hide!$H$74:$H$83,AD$4,hide!$L$74:$L$83) -> 0 | AE36: ='1B'!$N37*SUMIF(hide!$H$74:$H$83,AE$4,hide!$L$74:$L$83) -> 0 | AF36: ='1B'!$N37*SUMIF(hide!$H$74:$H$83,AF$4,hide!$L$74:$L$83) -> 0 | AG36: ='1B'!$N37*SUMIF(hide!$H$74:$H$83,AG$4,hide!$L$74:$L$83) -> 0 | AI36: ='hide inflace'!A31 -> 2043 | AJ36: ='hide inflace'!B31 -> 0.02
A37: B.3.11 | C37: Stavební náklady z rozdílu stádia přípravy a realizace | H37: =SUM(I37:S37) -> 0 | AI37: ='hide inflace'!A32 -> 2044 | AJ37: ='hide inflace'!B32 -> 0.02
A38: B.4 | B38: Příspěvky jiným investorům | H38: =SUM(I38:S38) -> 0 | I38: =SUM(I39:I41) -> 0 | J38: =SUM(J39:J41) -> 0 | K38: =SUM(K39:K41) -> 0 | L38: =SUM(L39:L41) -> 0 | M38: =SUM(M39:M41) -> 0 | N38: 0 | O38: 0 | P38: 0 | Q38: 0 | R38: 0 | S38: 0 | W38: =SUM(W39:W41) -> 0 | X38: =SUM(X39:X41) -> 0 | Y38: =SUM(Y39:Y41) -> 0 | Z38: =SUM(Z39:Z41) -> 0 | AA38: =SUM(AA39:AA41) -> 0 | AB38: 0 | AC38: 0 | AD38: 0 | AE38: 0 | AF38: 0 | AG38: 0 | AI38: 999 | AJ38: 0
A39: B.4.1 | B39: z toho | C39: Podíl na účelně vynaložených nákl. ve smyslu zák. č.458/00 Sb. | H39: ='1B'!I40 -> 0 | J39: ='1B'!N40-SUM(I39,K39:S39) -> 0 | X39: ='1B'!AB40-SUM(W39,Y39:AG39) -> 0
A40: B.4.2 | C40: Podíl na účelně vynaložených nákladech dle zákona č. 127/2005 Sb. | H40: ='1B'!I41 -> 0 | J40: ='1B'!N41-SUM(I40,K40:S40) -> 0 | X40: ='1B'!AB41-SUM(W40,Y40:AG40) -> 0
A41: B.4.3 | C41: Ostatní příspěvky | H41: ='1B'!I42 -> 0 | J41: ='1B'!N42-SUM(I41,K41:S41) -> 0 | X41: ='1B'!AB42-SUM(W41,Y41:AG41) -> 0
A42: B.5 | B42: Rezerva | H42: 0 | J42: ='1B'!$N43*SUMIF(hide!$H$74:$H$83,J$4,hide!$L$74:$L$83) -> 0 | K42: ='1B'!$N43*SUMIF(hide!$H$74:$H$83,K$4,hide!$L$74:$L$83) -> 0 | L42: ='1B'!$N43*SUMIF(hide!$H$74:$H$83,L$4,hide!$L$74:$L$83) -> 0 | M42: ='1B'!$N43*SUMIF(hide!$H$74:$H$83,M$4,hide!$L$74:$L$83) -> 0 | N42: ='1B'!$N43*SUMIF(hide!$H$74:$H$83,N$4,hide!$L$74:$L$83) -> 0 | O42: ='1B'!$N43*SUMIF(hide!$H$74:$H$83,O$4,hide!$L$74:$L$83) -> 0 | P42: ='1B'!$N43*SUMIF(hide!$H$74:$H$83,P$4,hide!$L$74:$L$83) -> 0 | Q42: ='1B'!$N43*SUMIF(hide!$H$74:$H$83,Q$4,hide!$L$74:$L$83) -> 0 | R42: ='1B'!$N43*SUMIF(hide!$H$74:$H$83,R$4,hide!$L$74:$L$83) -> 0 | S42: ='1B'!$N43*SUMIF(hide!$H$74:$H$83,S$4,hide!$L$74:$L$83) -> 0 | X42: ='1B'!$N43*SUMIF(hide!$H$74:$H$83,X$4,hide!$L$74:$L$83) -> 0 | Y42: ='1B'!$N43*SUMIF(hide!$H$74:$H$83,Y$4,hide!$L$74:$L$83) -> 0 | Z42: ='1B'!$N43*SUMIF(hide!$H$74:$H$83,Z$4,hide!$L$74:$L$83) -> 0 | AA42: ='1B'!$N43*SUMIF(hide!$H$74:$H$83,AA$4,hide!$L$74:$L$83) -> 0 | AB42: ='1B'!$N43*SUMIF(hide!$H$74:$H$83,AB$4,hide!$L$74:$L$83) -> 0 | AC42: ='1B'!$N43*SUMIF(hide!$H$74:$H$83,AC$4,hide!$L$74:$L$83) -> 0 | AD42: ='1B'!$N43*SUMIF(hide!$H$74:$H$83,AD$4,hide!$L$74:$L$83) -> 0 | AE42: ='1B'!$N43*SUMIF(hide!$H$74:$H$83,AE$4,hide!$L$74:$L$83) -> 0 | AF42: ='1B'!$N43*SUMIF(hide!$H$74:$H$83,AF$4,hide!$L$74:$L$83) -> 0 | AG42: ='1B'!$N43*SUMIF(hide!$H$74:$H$83,AG$4,hide!$L$74:$L$83) -> 0
A43: B.6 | B43: Náklady na realizaci stavby bez rezervy a inflace | H43: 0 | I43: =I38+I23+I15+I7 -> 0 | J43: =J38+J23+J15+J7 -> 0 | K43: =K38+K23+K15+K7 -> 0 | L43: =L38+L23+L15+L7 -> 0 | M43: 0 | N43: 0 | O43: 0 | P43: 0 | Q43: 0 | R43: 0 | S43: 0 | W43: =W38+W23+W15+W7 -> 0 | X43: =X38+X23+X15+X7 -> 0 | Y43: =Y38+Y23+Y15+Y7 -> 0 | Z43: =Z38+Z23+Z15+Z7 -> 0 | AA43: 0 | AB43: 0 | AC43: 0 | AD43: 0 | AE43: 0 | AF43: 0 | AG43: 0
A44: B.7 | B44: Náklady na realizaci stavby celkem s rezervou a bez inflace | H44: 0 | I44: =I42+I38+I23+I15+I7 -> 0 | J44: =J42+J38+J23+J15+J7 -> 0 | K44: =K42+K38+K23+K15+K7 -> 0 | L44: =L42+L38+L23+L15+L7 -> 0 | M44: 0 | N44: 0 | O44: 0 | P44: 0 | Q44: 0 | R44: 0 | S44: 0 | W44: =W42+W38+W23+W15+W7 -> 0 | X44: =X42+X38+X23+X15+X7 -> 0 | Y44: =Y42+Y38+Y23+Y15+Y7 -> 0 | Z44: =Z42+Z38+Z23+Z15+Z7 -> 0 | AA44: 0 | AB44: 0 | AC44: 0 | AD44: 0 | AE44: 0 | AF44: 0 | AG44: 0
A45: B.8 | B45: Náklady na realizaci stavby celkem s rezervou a inflací | H45: =SUM(I45:S45) -> 0 | I45: =I44+I47+I48+I49 -> 0 | J45: =J44+J47+J48+J49 -> 0 | K45: =K44+K47+K48+K49 -> 0 | L45: =L44+L47+L48+L49 -> 0 | M45: 0 | N45: 0 | O45: 0 | P45: 0 | Q45: 0 | R45: 0 | S45: 0 | W45: =W44+W47+W48+W49 -> 0 | X45: =X44+X47+X48+X49 -> 0 | Y45: =Y44+Y47+Y48+Y49 -> 0 | Z45: =Z44+Z47+Z48+Z49 -> 0 | AA45: 0 | AB45: 0 | AC45: 0 | AD45: 0 | AE45: 0 | AF45: 0 | AG45: 0
A46: z toho | H46: =SUM(I47:S47) -> 0 | J46: =J6+1 -> 1 | K46: =K6+1 -> 1 | L46: =L6+1 -> 1 | M46: 1 | N46: 1 | O46: 1 | P46: 1 | Q46: 1 | R46: 1 | S46: 1 | X46: =X6+1 -> 1 | Y46: =Y6+1 -> 1 | Z46: =Z6+1 -> 1 | AA46: 1 | AB46: 1 | AC46: 1 | AD46: 1 | AE46: 1 | AF46: 1 | AG46: 1
B47: B.8.1 | C47: inflace ze ZRN jednotlivých SO | J47: =ROUND(((J9+J10)*(J46-1)),0) -> 0 | K47: =ROUND(((K9+K10)*(($K$46*$J$46)-1)),0) -> 0 | L47: =ROUND(((L9+L10)*(($L$46*$K$46*$J$46)-1)),0) -> 0 | M47: =ROUND((M9+M10)*(($M$46*$L$46*$K$46*$J$46)-1),0) -> 0 | N47: =ROUND((N9+N10)*(($N$46*$M$46*$L$46*$K$46*$J$46)-1),0) -> 0 | O47: =ROUND((O9+O10)*(($O$46*$N$46*$M$46*$L$46*$K$46*$J$46)-1),0) -> 0 | P47: =ROUND((P9+P10)*(($P$46*$O$46*$N$46*$M$46*$L$46*$K$46*$J$46)-1),0) -> 0 | Q47: =ROUND((Q9+Q10)*(($Q$46*$P$46*$O$46*$N$46*$M$46*$L$46*$K$46*$J$46)-1),0) -> 0 | R47: =ROUND((R9+R10)*(($R$46*$Q$46*$P$46*$O$46*$N$46*$M$46*$L$46*$K$46*$J$46)-1),0) -> 0 | S47: =ROUND((S9+S10)*(($S$46*$R$46*$Q$46*$P$46*$O$46*$N$46*$M$46*$L$46*$K$46*$J$46)-1),0) -> 0 | X47: =ROUND(((X9+X10)*(X46-1)),0) -> 0 | Y47: =ROUND(((Y9+Y10)*(($K$46*$J$46)-1)),0) -> 0 | Z47: =ROUND(((Z9+Z10)*(($L$46*$K$46*$J$46)-1)),0) -> 0 | AA47: =ROUND((AA9+AA10)*(($M$46*$L$46*$K$46*$J$46)-1),0) -> 0 | AB47: =ROUND((AB9+AB10)*(($N$46*$M$46*$L$46*$K$46*$J$46)-1),0) -> 0 | AC47: =ROUND((AC9+AC10)*(($O$46*$N$46*$M$46*$L$46*$K$46*$J$46)-1),0) -> 0 | AD47: =ROUND((AD9+AD10)*(($P$46*$O$46*$N$46*$M$46*$L$46*$K$46*$J$46)-1),0) -> 0 | AE47: =ROUND((AE9+AE10)*(($Q$46*$P$46*$O$46*$N$46*$M$46*$L$46*$K$46*$J$46)-1),0) -> 0 | AF47: =ROUND((AF9+AF10)*(($R$46*$Q$46*$P$46*$O$46*$N$46*$M$46*$L$46*$K$46*$J$46)-1),0) -> 0 | AG47: =ROUND((AG9+AG10)*(($S$46*$R$46*$Q$46*$P$46*$O$46*$N$46*$M$46*$L$46*$K$46*$J$46)-1),0) -> 0
B48: B.8.2 | C48: inflace ze ZRN jednotlivých PS | H48: =SUM(I48:S48) -> 0 | J48: =ROUND((J17+J18)*(($J$46)-1),0) -> 0 | K48: =ROUND((K17+K18)*(($K$46*$J$46)-1),0) -> 0 | L48: =ROUND((L17+L18)*(($L$46*$K$46*$J$46)-1),0) -> 0 | M48: =ROUND((M17+M18)*(($M$46*$L$46*$K$46*$J$46)-1),0) -> 0 | N48: =ROUND((N17+N18)*(($N$46*$M$46*$L$46*$K$46*$J$46)-1),0) -> 0 | O48: =ROUND((O17+O18)*(($O$46*$N$46*$M$46*$L$46*$K$46*$J$46)-1),0) -> 0 | P48: =ROUND((P17+P18)*(($P$46*$O$46*$N$46*$M$46*$L$46*$K$46*$J$46)-1),0) -> 0 | Q48: =ROUND((Q17+Q18)*(($Q$46*$P$46*$O$46*$N$46*$M$46*$L$46*$K$46*$J$46)-1),0) -> 0 | R48: =ROUND((R17+R18)*(($R$46*$Q$46*$P$46*$O$46*$N$46*$M$46*$L$46*$K$46*$J$46)-1),0) -> 0 | S48: =ROUND((S17+S18)*(($S$46*$R$46*$Q$46*$P$46*$O$46*$N$46*$M$46*$L$46*$K$46*$J$46)-1),0) -> 0 | X48: =ROUND((X17+X18)*(($J$46)-1),0) -> 0 | Y48: =ROUND((Y17+Y18)*(($K$46*$J$46)-1),0) -> 0 | Z48: =ROUND((Z17+Z18)*(($L$46*$K$46*$J$46)-1),0) -> 0 | AA48: =ROUND((AA17+AA18)*(($M$46*$L$46*$K$46*$J$46)-1),0) -> 0 | AB48: =ROUND((AB17+AB18)*(($N$46*$M$46*$L$46*$K$46*$J$46)-1),0) -> 0 | AC48: =ROUND((AC17+AC18)*(($O$46*$N$46*$M$46*$L$46*$K$46*$J$46)-1),0) -> 0 | AD48: =ROUND((AD17+AD18)*(($P$46*$O$46*$N$46*$M$46*$L$46*$K$46*$J$46)-1),0) -> 0 | AE48: =ROUND((AE17+AE18)*(($Q$46*$P$46*$O$46*$N$46*$M$46*$L$46*$K$46*$J$46)-1),0) -> 0 | AF48: =ROUND((AF17+AF18)*(($R$46*$Q$46*$P$46*$O$46*$N$46*$M$46*$L$46*$K$46*$J$46)-1),0) -> 0 | AG48: =ROUND((AG17+AG18)*(($S$46*$R$46*$Q$46*$P$46*$O$46*$N$46*$M$46*$L$46*$K$46*$J$46)-1),0) -> 0
B49: B.8.3 | C49: inflace z rezervy stavby | H49: =SUM(I49:S49) -> 0 | J49: =ROUND((J42)*(($J$46)-1),0) -> 0 | K49: =ROUND((K42)*(($K$46*$J$46)-1),0) -> 0 | L49: =ROUND((L42)*(($L$46*$K$46*$J$46)-1),0) -> 0 | M49: =ROUND((M42)*(($M$46*$L$46*$K$46*$J$46)-1),0) -> 0 | N49: =ROUND((N42)*(($N$46*$M$46*$L$46*$K$46*$J$46)-1),0) -> 0 | O49: =ROUND((O42)*(($O$46*$N$46*$M$46*$L$46*$K$46*$J$46)-1),0) -> 0 | P49: =ROUND((P42)*(($P$46*$O$46*$N$46*$M$46*$L$46*$K$46*$J$46)-1),0) -> 0 | Q49: =ROUND((Q42)*(($Q$46*$P$46*$O$46*$N$46*$M$46*$L$46*$K$46*$J$46)-1),0) -> 0 | R49: =ROUND((R42)*(($R$46*$Q$46*$P$46*$O$46*$N$46*$M$46*$L$46*$K$46*$J$46)-1),0) -> 0 | S49: =ROUND((S42)*(($S$46*$R$46*$Q$46*$P$46*$O$46*$N$46*$M$46*$L$46*$K$46*$J$46)-1),0) -> 0 | X49: =ROUND((X42)*(($J$46)-1),0) -> 0 | Y49: =ROUND((Y42)*(($K$46*$J$46)-1),0) -> 0 | Z49: =ROUND((Z42)*(($L$46*$K$46*$J$46)-1),0) -> 0 | AA49: =ROUND((AA42)*(($M$46*$L$46*$K$46*$J$46)-1),0) -> 0 | AB49: =ROUND((AB42)*(($N$46*$M$46*$L$46*$K$46*$J$46)-1),0) -> 0 | AC49: =ROUND((AC42)*(($O$46*$N$46*$M$46*$L$46*$K$46*$J$46)-1),0) -> 0 | AD49: =ROUND((AD42)*(($P$46*$O$46*$N$46*$M$46*$L$46*$K$46*$J$46)-1),0) -> 0 | AE49: =ROUND((AE42)*(($Q$46*$P$46*$O$46*$N$46*$M$46*$L$46*$K$46*$J$46)-1),0) -> 0 | AF49: =ROUND((AF42)*(($R$46*$Q$46*$P$46*$O$46*$N$46*$M$46*$L$46*$K$46*$J$46)-1),0) -> 0 | AG49: =ROUND((AG42)*(($S$46*$R$46*$Q$46*$P$46*$O$46*$N$46*$M$46*$L$46*$K$46*$J$46)-1),0) -> 0

Sheet 2C
A1: Náklady stavby ve smíšené CÚ: | E1: ='Krycí list SR'!F4 -> 0 | F1: - | G1: ='Krycí list SR'!G10 ->  | H1: Formulář 2.C | I1: Náklady v letech výstavby | S1: ='Krycí list SR'!$H$1 -> SRP/2023/08
A2: Název stavby: | C2: =IF('Krycí list SR'!B2="","",'Krycí list SR'!B2) ->  | I2: Do 31.12 | J2: =IF('Krycí list SR'!$H$4=YEAR('Krycí list SR'!H7),"Aktuální rok a zahájení výběrového řízení na realizaci","Aktuální rok") -> Aktuální rok | K2: =IF(K4=YEAR('Krycí list SR'!$H$7),"Zahájení výběrového řízení","") ->  | L2: =IF(L4=YEAR('Krycí list SR'!$H$7),"Zahájení výběrového řízení","") ->  | M2: =IF(M4=YEAR('Krycí list SR'!$H$7),"Zahájení výběrového řízení","") ->  | N2: =IF(N4=YEAR('Krycí list SR'!$H$7),"Zahájení výběrového řízení","") ->  | O2: =IF(O4=YEAR('Krycí list SR'!$H$7),"Zahájení výběrového řízení","") ->  | P2: =IF(P4=YEAR('Krycí list SR'!$H$7),"Zahájení výběrového řízení","") ->  | Q2: =IF(Q4=YEAR('Krycí list SR'!$H$7),"Zahájení výběrového řízení","") ->  | R2: =IF(R4=YEAR('Krycí list SR'!$H$7),"Zahájení výběrového řízení","") ->  | S2: v letech po roce
A3: ISPROFIN: | C3: =IF('Krycí list SR'!$B$3="","",'Krycí list SR'!$B$3) ->  | E3: Označení (S-kód): | G3: =IF('Krycí list SR'!D3="","",'Krycí list SR'!D3) ->  | K3: v roce | L3: v roce | M3: v roce | N3: v roce | O3: v roce | P3: v roce | Q3: v roce | R3: v roce
A4: Investor: | B4: SŽ s.o., | D4: =IF('Krycí list SR'!$B$5="","",'Krycí list SR'!$B$5) ->  | H4: =IF('Krycí list SR'!E3="","",'Krycí list SR'!E3) ->  | I4: =J4-1 -> -1 | J4: ='Krycí list SR'!H4 -> 0 | K4: =J4+1 -> 1 | L4: =K4+1 -> 2 | M4: 3 | N4: 4 | O4: 5 | P4: 6 | Q4: 7 | R4: 8 | S4: =CONCATENATE("po ",R4) -> po 8
A5: Jiný investor: | C5: =IF('Krycí list SR'!$B$7="","neurčen",'Krycí list SR'!$B$7) -> - | K5: Inflační koeficient pro daný rok dle listů 2A a 2B
A6: C | B6: Rekapitulace nákladů | H6: náklady v Kč celkem | T6: Pole pro pracovní výpočty bez tisku
A7: C.1 | B7: Pořizovací investiční náklady | G7: PIN | H7: =SUM(I7:S7) -> 0 | I7: =I8+I13 -> 0 | J7: 0 | K7: 0 | L7: 0 | M7: 0 | N7: 0 | O7: 0 | P7: 0 | Q7: 0 | R7: 0 | S7: 0 | W7: =W8+W13 -> 0 | X7: 0 | Y7: 0 | Z7: 0 | AA7: 0 | AB7: 0 | AC7: 0 | AD7: 0 | AE7: 0 | AF7: 0 | AG7: 0
A8: C.1.1 | B8: z toho | C8: Celkové investiční náklady | G8: CIN | H8: 0 | I8: =I9+I10+I11+I12 -> 0 | J8: 0 | K8: 0 | L8: 0 | M8: 0 | N8: 0 | O8: 0 | P8: 0 | Q8: 0 | R8: 0 | S8: 0 | W8: =W9+W10+W11+W12 -> 0 | X8: 0 | Y8: 0 | Z8: 0 | AA8: 0 | AB8: 0 | AC8: 0 | AD8: 0 | AE8: 0 | AF8: 0 | AG8: 0
A9: C.1.1.1 | C9: z toho | D9: Náklady na přípravu a celkové zabezpečení výstavby | H9: 0 | I9: ='2A'!I63 -> 0 | J9: ='2A'!J63 -> 0 | K9: ='2A'!K63 -> 0 | L9: ='2A'!L63 -> 0 | M9: ='2A'!M63 -> 0 | N9: ='2A'!N63 -> 0 | O9: ='2A'!O63 -> 0 | P9: ='2A'!P63 -> 0 | Q9: ='2A'!Q63 -> 0 | R9: ='2A'!R63 -> 0 | S9: ='2A'!S63 -> 0 | W9: ='2A'!W63 -> 0 | X9: ='2A'!X63 -> 0 | Y9: ='2A'!Y63 -> 0 | Z9: ='2A'!Z63 -> 0 | AA9: ='2A'!AA63 -> 0 | AB9: ='2A'!AB63 -> 0 | AC9: ='2A'!AC63 -> 0 | AD9: ='2A'!AD63 -> 0 | AE9: ='2A'!AE63 -> 0 | AF9: ='2A'!AF63 -> 0 | AG9: ='2A'!AG63 -> 0
A10: C.1.1.2 | D10: Náklady na realizaci stavby bez rezervy | H10: 0 | I10: ='2B'!I43 -> 0 | J10: ='2B'!J43 -> 0 | K10: ='2B'!K43 -> 0 | L10: ='2B'!L43 -> 0 | M10: ='2B'!M43 -> 0 | N10: ='2B'!N43 -> 0 | O10: ='2B'!O43 -> 0 | P10: ='2B'!P43 -> 0 | Q10: ='2B'!Q43 -> 0 | R10: ='2B'!R43 -> 0 | S10: ='2B'!S43 -> 0 | W10: ='2B'!W43 -> 0 | X10: ='2B'!X43 -> 0 | Y10: ='2B'!Y43 -> 0 | Z10: ='2B'!Z43 -> 0 | AA10: ='2B'!AA43 -> 0 | AB10: ='2B'!AB43 -> 0 | AC10: ='2B'!AC43 -> 0 | AD10: ='2B'!AD43 -> 0 | AE10: ='2B'!AE43 -> 0 | AF10: ='2B'!AF43 -> 0 | AG10: ='2B'!AG43 -> 0
A11: C.1.1.3 | D11: Rezerva stavby | H11: 0 | I11: ='2B'!I42 -> 0 | J11: ='2B'!J42 -> 0 | K11: ='2B'!K42 -> 0 | L11: ='2B'!L42 -> 0 | M11: ='2B'!M42 -> 0 | N11: ='2B'!N42 -> 0 | O11: ='2B'!O42 -> 0 | P11: ='2B'!P42 -> 0 | Q11: ='2B'!Q42 -> 0 | R11: ='2B'!R42 -> 0 | S11: ='2B'!S42 -> 0 | W11: ='2B'!W42 -> 0 | X11: ='2B'!X42 -> 0 | Y11: ='2B'!Y42 -> 0 | Z11: ='2B'!Z42 -> 0 | AA11: ='2B'!AA42 -> 0 | AB11: ='2B'!AB42 -> 0 | AC11: ='2B'!AC42 -> 0 | AD11: ='2B'!AD42 -> 0 | AE11: ='2B'!AE42 -> 0 | AF11: ='2B'!AF42 -> 0 | AG11: ='2B'!AG42 -> 0
A12: C.1.1.4 | D12: Předpokládaná výše inflace v realizaci | H12: =SUM(I12:S12) -> 0 | I12: ='2B'!I47+'2B'!I48+'2B'!I49 -> 0 | J12: ='2B'!J47+'2B'!J48+'2B'!J49 -> 0 | K12: ='2B'!K47+'2B'!K48+'2B'!K49 -> 0 | L12: ='2B'!L47+'2B'!L48+'2B'!L49 -> 0 | M12: ='2B'!M47+'2B'!M48+'2B'!M49 -> 0 | N12: ='2B'!N47+'2B'!N48+'2B'!N49 -> 0 | O12: ='2B'!O47+'2B'!O48+'2B'!O49 -> 0 | P12: ='2B'!P47+'2B'!P48+'2B'!P49 -> 0 | Q12: ='2B'!Q47+'2B'!Q48+'2B'!Q49 -> 0 | R12: ='2B'!R47+'2B'!R48+'2B'!R49 -> 0 | S12: ='2B'!S47+'2B'!S48+'2B'!S49 -> 0 | W12: ='2B'!W47+'2B'!W48+'2B'!W49 -> 0 | X12: ='2B'!X47+'2B'!X48+'2B'!X49 -> 0 | Y12: ='2B'!Y47+'2B'!Y48+'2B'!Y49 -> 0 | Z12: ='2B'!Z47+'2B'!Z48+'2B'!Z49 -> 0 | AA12: ='2B'!AA47+'2B'!AA48+'2B'!AA49 -> 0 | AB12: ='2B'!AB47+'2B'!AB48+'2B'!AB49 -> 0 | AC12: ='2B'!AC47+'2B'!AC48+'2B'!AC49 -> 0 | AD12: ='2B'!AD47+'2B'!AD48+'2B'!AD49 -> 0 | AE12: ='2B'!AE47+'2B'!AE48+'2B'!AE49 -> 0 | AF12: ='2B'!AF47+'2B'!AF48+'2B'!AF49 -> 0 | AG12: ='2B'!AG47+'2B'!AG48+'2B'!AG49 -> 0
A13: C.1.2 | C13: Hodnota zůstatkového majetku SŽ, který bude stavbou odstraněn | H13: 0 | J13: ='1C'!I13-SUM(I13,K13:S13) -> 0 | X13: ='1C'!W13-SUM(W13,Y13:AG13) -> 0
A14: C.2 | B14: Provozní náklady | G14: PRN | H14: 0 | J14: ='1C'!I14-SUM(I14,K14:S14) -> 0 | X14: ='1C'!W14-SUM(W14,Y14:AG14) -> 0
A15: C.3 | B15: Příjmy generované stavbou | H15: 0 | I15: =SUM(I16:I17) -> 0 | J15: =SUM(J16:J17) -> 0 | K15: =SUM(K16:K17) -> 0 | L15: =SUM(L16:L17) -> 0 | M15: 0 | N15: 0 | O15: 0 | P15: 0 | Q15: 0 | R15: 0 | S15: =SUM(S16:S17) -> 0 | W15: =SUM(W16:W17) -> 0 | X15: =SUM(X16:X17) -> 0 | Y15: =SUM(Y16:Y17) -> 0 | Z15: =SUM(Z16:Z17) -> 0 | AA15: 0 | AB15: 0 | AC15: 0 | AD15: 0 | AE15: 0 | AF15: 0 | AG15: =SUM(AG16:AG17) -> 0
A16: C.3.1 | B16: z toho | C16: Zdroje z výzisku materiálu SŽ | H16: 0 | J16: ='1C'!I16-SUM(I16,K16:S16) -> 0 | X16: ='1C'!W16-SUM(W16,Y16:AG16) -> 0
A17: C.3.2 | C17: Ostatní zdroje | H17: 0 | J17: ='1C'!I17-SUM('2C'!I17,'2C'!K17:S17) -> 0 | X17: ='1C'!W17-SUM('2C'!W17,'2C'!Y17:AG17) -> 0
I18: =IF(I8=0,"",IF(I20="Neuplatněno DPH","",IF((I21+I22)>0,"","chyba: v poli I19 a I20 nutno stanovit DPH"))) ->  | W18: =IF(W8=0,"",IF(W20="Neuplatněno DPH","",IF((W21+W22)>0,"","chyba: v poli I19 a I20 nutno stanovit DPH"))) -> 
A19: C.4 | B19: Celkové náklady stavby bez DPH | G19: CNS | H19: 0 | I19: =I7+I14 -> 0 | J19: 0 | K19: 0 | L19: 0 | M19: 0 | N19: 0 | O19: 0 | P19: 0 | Q19: 0 | R19: 0 | S19: 0 | W19: =W7+W14 -> 0 | X19: 0 | Y19: 0 | Z19: 0 | AA19: 0 | AB19: 0 | AC19: 0 | AD19: 0 | AE19: 0 | AF19: 0 | AG19: 0
A20: C.5 | B20: DPH | C20: Daň z přidané hodnoty v letech výstavby [%]: | H20: [%] | I20: 0.21 | J20: 0.21 | K20: 0.21 | L20: 0.21 | M20: 0.21 | N20: 0.21 | O20: 0.21 | P20: 0.21 | Q20: 0.21 | R20: 0.21 | S20: 0.21 | W20: 0.21 | X20: 0.21 | Y20: 0.21 | Z20: 0.21 | AA20: 0.21 | AB20: 0.21 | AC20: 0.21 | AD20: 0.21 | AE20: 0.21 | AF20: 0.21 | AG20: 0.21
C21: Daň z přidané hodnoty celkem [Kč]: | H21: =SUM(I21:S22) -> 0 | J21: =J20*(J8-SUM('2A'!J7,'2B'!J13:J14,'2B'!J21:J22)) -> 0 | K21: =K20*(K8-SUM('2A'!K7:K8,'2B'!K21:K22)) -> 0 | L21: =L20*(L8-SUM('2A'!L7:L8,'2B'!L21:L22)) -> 0 | M21: =M20*(M8-SUM('2A'!M7:M8,'2B'!M21:M22)) -> 0 | N21: =N20*(N8-SUM('2A'!N7:N8,'2B'!N21:N22)) -> 0 | O21: =O20*(O8-SUM('2A'!O7:O8,'2B'!O21:O22)) -> 0 | P21: =P20*(P8-SUM('2A'!P7:P8,'2B'!P21:P22)) -> 0 | Q21: =Q20*(Q8-SUM('2A'!Q7:Q8,'2B'!Q21:Q22)) -> 0 | R21: =R20*(R8-SUM('2A'!R7:R8,'2B'!R21:R22)) -> 0 | S21: =S20*(S8-SUM('2A'!S7:S8,'2B'!S21:S22)) -> 0 | X21: =X20*(X8-SUM('2A'!X7,'2B'!X13:X14,'2B'!X21:X22)) -> 0 | Y21: =Y20*(Y8-SUM('2A'!Y7:Y8,'2B'!Y21:Y22)) -> 0 | Z21: =Z20*(Z8-SUM('2A'!Z7:Z8,'2B'!Z21:Z22)) -> 0 | AA21: =AA20*(AA8-SUM('2A'!AA7:AA8,'2B'!AA21:AA22)) -> 0 | AB21: =AB20*(AB8-SUM('2A'!AB7:AB8,'2B'!AB21:AB22)) -> 0 | AC21: =AC20*(AC8-SUM('2A'!AC7:AC8,'2B'!AC21:AC22)) -> 0 | AD21: =AD20*(AD8-SUM('2A'!AD7:AD8,'2B'!AD21:AD22)) -> 0 | AE21: =AE20*(AE8-SUM('2A'!AE7:AE8,'2B'!AE21:AE22)) -> 0 | AF21: =AF20*(AF8-SUM('2A'!AF7:AF8,'2B'!AF21:AF22)) -> 0 | AG21: =AG20*(AG8-SUM('2A'!AG7:AG8,'2B'!AG21:AG22)) -> 0
I22: =IF(I20="Dle fakturace",0,IF(I20="Předpoklad pro daný rok",0,IF(I20="Neuplatněno DPH",0,(I20*(I8-SUM('2A'!I7:I8,'2B'!I13,'2B'!I14,'2B'!I21,'2B'!I22)))))) -> 0 | W22: =IF(W20="Dle fakturace",0,IF(W20="Předpoklad pro daný rok",0,IF(W20="Neuplatněno DPH",0,(W20*(W8-SUM('2A'!W7:W8,'2B'!W13,'2B'!W14,'2B'!W21,'2B'!W22)))))) -> 0
A23: C.6 | B23: Celkové náklady stavby vč. DPH | G23: CND | H23: =SUM(I23:S23) -> 0 | I23: =I22+I21+I19 -> 0 | J23: =J21+J19 -> 0 | K23: =K21+K19 -> 0 | L23: 0 | M23: 0 | N23: 0 | O23: 0 | P23: 0 | Q23: 0 | R23: 0 | S23: 0 | W23: =W22+W21+W19 -> 0 | X23: =X21+X19 -> 0 | Y23: =Y21+Y19 -> 0 | Z23: 0 | AA23: 0 | AB23: 0 | AC23: 0 | AD23: 0 | AE23: 0 | AF23: 0 | AG23: 0

Sheet 3SO
A1: Formulář 3SO | C1: Rekapitulace nákladů stavebních objektů | D1: Náklady dle rozdělení majetku (SŽ/Ostatní) | E1: Předpokládané období realizace s ohledem na čerpání finančních prostředků: (měsíc.rok) | G1: Náklady na realizaci jednotlivých SO | K1: ='Krycí list SR'!H1 -> SRP/2023/08 | L1: Vedlejší rozpočtové náklady (VRN) B.1.1.2 | N1: Cenová soustava (označení cenové použité soustavy) | O1: Kontrolní hodnota SO B.1.1 v Aktuální cenové úrovni včetně VRN | AB1: Inflace do Aktuálního roku mimo OTSKP | AJ1: =AB2*AC2*AD2*AE2*AF2*AG2*AH2*AI2*AJ2*AK2 -> 1
A2: Název stavby: | C2: =IF('Krycí list SR'!B2="","",'Krycí list SR'!B2) ->  | D2: SŽ celkem [Kč] (B.1.1.1) | G2: B.1.1.1 | H2: Způsobilost pro B.1.1.1 + B.1.1.2 | I2: B.1.2.1 | K2: B.5 | S2: ='Krycí list SR'!G4 -> Aktuální rok | T2: =IF('Krycí list SR'!H4="",1,'Krycí list SR'!H4) -> 1 | AB2: =IF($T$3<$AH$12,1,IF(AB3="X",1,LOOKUP(AB3,$AH$12:$AH$38,$AI$12:$AI$38)+1)) -> 1 | AC2: 1 | AD2: 1 | AE2: 1 | AF2: 1 | AG2: 1 | AH2: =IF($T$3<$AH$12,1,IF(AH3="X",1,LOOKUP(AH3,$AH$12:$AH$38,$AI$12:$AI$38)+1)) -> 1 | AI2: 1 | AJ2: =IF($T$3<$AH$12,1,IF(AJ3="X",1,LOOKUP(AJ3,$AH$12:$AH$38,$AI$12:$AI$38)+1)) -> 1 | AK2: =IF($T$3<$AH$12,1,IF(AK3="X",1,LOOKUP(AK3,$AH$12:$AH$38,$AI$12:$AI$38)+1)) -> 1
D3: =G6-D7 -> 0 | G3: ZRN - Zhotovitel | I3: ZRN - Investor (Uvádí se náklady, které zajišťuje pro účely stavby přímo investor) | K3: Rezerva SO | N3: =IF(SUM(R13:R1200)>0,"neoznačená cenová soustava u všech objektů","") ->  | S3: Rok ocenění stavby | T3: =IF('Krycí list SR'!F5="",1,'Krycí list SR'!F5) -> 1 | X3: Dopočítání inflace od Aktuálního roku do Zahájení výběrového řízení | AB3: =IF(T2>T3,T3,"X") -> X | AC3: =IF(T2>T3+1,T3+1,"X") -> X | AD3: =IF($T$2>$T$3+2,$T$3+2,"X") -> X | AE3: =IF($T$2>$T$3+3,$T$3+3,"X") -> X | AF3: =IF($T$2>$T$3+4,$T$3+4,"X") -> X | AG3: =IF($T$2>$T$3+5,$T$3+5,"X") -> X | AH3: =IF($T$2>$T$3+6,$T$3+6,"X") -> X | AI3: =IF($T$2>$T$3+7,$T$3+7,"X") -> X | AJ3: =IF($T$2>$T$3+8,$T$3+8,"X") -> X | AK3: =IF($T$2>$T$3+9,$T$3+9,"X") -> X
A4: ISPROFIN: | B4: =IF('Krycí list SR'!$B$3="","",'Krycí list SR'!$B$3) ->  | D4: SŽ celkem [Kč] (B.1.2.1) | E4: Zahájení | F4: Dokončení | G4: Celkem se zohledněním inflace do Aktuální roku (bez VRN) | H4: Podíl způsobilých nákladů v % pro financování z fondu EU | I4: B.1.2.1 | J4: Podíl způsobilých nákladů pro financování z fondu EU | S4: Rok OTSKP | T4: =IF('Krycí list SR'!H5="",1,'Krycí list SR'!H5) -> 1 | U4: Podmínka výskytu OTSKP | V4: =IF((SUMIF(N13:N1200,N7,G13:G1200))>0,1,0) -> 0 | X4: =IF('Krycí list SR'!E3="Stádium 3",(IF(T2=1,"nezadáno",IF(T5="X","nezadáno",IF(T6="X","nezadáno","OK")))),"nezadáno") -> nezadáno | Y4: =SUM(X5:AA5) -> 0 | AB4: Inflace do Aktuálního roku pro OTSKP | AJ4: =AB5*AC5*AD5*AE5*AF5*AG5*AH5*AI5*AJ5*AK5 -> 1
A5: Označení: (S-kód) | B5: =IF('Krycí list SR'!D3="","",'Krycí list SR'!D3) ->  | D5: =I8-D9 -> 0 | E5: zahájení realizace nebo zahájení čerpání finančních prostředků (viz poznámka) | F5: ukončení realizace nebo zahájení čerpání finančních prostředků (viz poznámka) | K5: procentní sazba z B.1.1.1 | L5: Zohlednění VRN indexem k hodnotě SO v B.1.1.1 | N5: (cenové soustava mimo OTSKP (např. URS, RTS) | S5: Rok Zahájení výběrového řízení | T5: =IF('Krycí list SR'!H7="","X",'Krycí list SR'!H7) -> 2024 | X5: =SUM(X12:X1200) -> 0 | Y5: =SUM(Y12:Y1200) -> 0 | Z5: =SUM(Z12:Z1200) -> 0 | AA5: =SUM(AA12:AA1200) -> 0 | AB5: =IF($T$4<$AH$12,1,IF(AB6="X",1,LOOKUP(AB6,$AH$12:$AH$38,$AI$12:$AI$38)+1)) -> 1 | AC5: 1 | AD5: 1 | AE5: 1 | AF5: 1 | AG5: 1 | AH5: =IF($T$4<$AH$12,1,IF(AH6="X",1,LOOKUP(AH6,$AH$12:$AH$38,$AI$12:$AI$38)+1)) -> 1 | AI5: 1 | AJ5: =IF($T$4<$AH$12,1,IF(AJ6="X",1,LOOKUP(AJ6,$AH$12:$AH$38,$AI$12:$AI$38)+1)) -> 1 | AK5: =IF($T$4<$AH$12,1,IF(AK6="X",1,LOOKUP(AK6,$AH$12:$AH$38,$AI$12:$AI$38)+1)) -> 1
A6: Investor: | B6: ='Krycí list SR'!B4:D4 -> Správa železnic, státní organizace | D6: Ostatní celkem [Kč] (B.1.1.1) | G6: =SUM(S12:S1200) -> 0 | H6: Způsobilé celkem [Kč] | J6: Způsobilé celkem [Kč] | K6: 0.1 | L6: souhrnný index VRN pro SO | M6: hodnota VRN SO dle souhrnného indexu a OTSKP | N6: Jiná | S6: čtvrtletí Zahájení výběrového řízení | T6: =IF('Krycí list SR'!G7="","X",'Krycí list SR'!G7) -> 2.Q | X6: Aktuální rok | Y6: =IF($X$4="OK",(IF(Y7=$T$5,"Rok zahájení výběrového řízení","Rok")),"X") -> X | Z6: =IF($X$4="OK",(IF(Z7=$T$5,"Rok zahájení výběrového řízení","Rok")),"X") -> X | AA6: =IF($X$4="OK",(IF(AA7=$T$5,"Rok zahájení výběrového řízení","Rok")),"X") -> X | AB6: =IF(T2>T4,T4,"X") -> X | AC6: =IF($T$2>$T$4+1,$T$4+1,"X") -> X | AD6: =IF($T$2>$T$4+2,$T$4+2,"X") -> X | AE6: =IF($T$2>$T$4+3,$T$4+3,"X") -> X | AF6: =IF($T$2>$T$4+4,$T$4+4,"X") -> X | AG6: =IF($T$2>$T$4+5,$T$4+5,"X") -> X | AH6: =IF($T$2>$T$4+6,$T$4+6,"X") -> X | AI6: =IF($T$2>$T$4+7,$T$4+7,"X") -> X | AJ6: =IF($T$2>$T$4+8,$T$4+8,"X") -> X | AK6: =IF($T$2>$T$4+9,$T$4+9,"X") -> X
A7: Zástupce investora: | B7: =IF('Krycí list SR'!B5:D5="","",'Krycí list SR'!B5:D5) ->  | D7: =SUMIF(D12:D1200,"Ostatní",S12:S1200) -> 0 | H7: =SUM(V12:V1200) -> 0 | I7: Celkem [Kč] | J7: =SUM(J12:J1200) -> 0 | K7: Celkem [Kč] | N7: OTSKP | T7: =IF(T6="X","X",LOOKUP(T6,AB10:AE10,AB11:AE11)) -> 0.25 | X7: =IF(X4="OK",T2,"X") -> X | Y7: =IF($X$4="OK",(IF($T$2=1,"X",IF((X7+1)>T5,"X",X7+1))),"X") -> X | Z7: =IF($X$4="OK",(IF($T$2=1,"X",IF(Y7="X","X",IF((Y7+1)>T5,"X",Y7+1)))),"X") -> X | AA7: =IF($X$4="OK",(IF($T$2=1,"X",IF(Z7="X","X",IF((Z7+1)>T5,"X",Z7+1)))),"X") -> X
A8: CÚ: | B8: ='Krycí list SR'!F5 -> 0 | C8: =IF('Krycí list SR'!E3="","",'Krycí list SR'!E3) ->  | D8: Ostatní celkem [Kč] (B.1.2.1) | E8: [mm.rrrr] | F8: [mm.rrrr] | G8: dle ocenění položkových rozpočtů | H8: Nezpůsobilé celkem [Kč] | I8: =SUM(I12:I1200) -> 0 | J8: Nezpůsobilé celkem [Kč] | K8: =SUM(K12:K8376) -> 0 | L8: % | M8: Kč | N8: Kalkulace | X8: =IF(X4="OK",IF($T$5=$T$2,T6,"celý rok"),"X") -> X | Y8: =IF($X$4="OK",(IF(Y7="X","X",(IF(Y7=$T$5,$T$6,"celý rok")))),"X") -> X | Z8: =IF($X$4="OK",(IF(Z7="X","X",(IF(Z7=$T$5,$T$6,"celý rok")))),"X") -> X | AA8: =IF($X$4="OK",(IF(AA7="X","X",(IF(AA7=$T$5,$T$6,"celý rok")))),"X") -> X
A9: Kategorie monitoringu | B9: Číslo SO | C9: Název stavebního objektu | D9: =SUMIF(D12:D1200,"Ostatní",I12:I1200) -> 0 | E9: =IF(MIN(E12:E1200)=0,"",MIN(E12:E1200)) ->  | F9: =IF(MAX(F12:F1200)=0,"",MAX(F12:F1200)) ->  | G9: =SUM(G12:G1200) -> 0 | H9: =SUM(W12:W1200)-H7 -> 0 | J9: =I8-J7 -> 0 | M9: =SUM(M13:M1200) -> 0 | N9: (individuální kalkulace bez použití cenové soustavy) | O9: bez tisku | P9: Pole pro pracovní výpočty bez tisku | S9: B.1.1.1 v roce ocenění (bez VRN) | T9: Dopočítání inflace ke stanoveným nákladů dle rozdělení cenových soustav | V9: Počítání způsobilosti | X9: =IF($X$4="OK",IF(X8="celý rok",100%,T7),0) -> 0 | Y9: =IF($X$4="OK",IF(Y7="X",0,IF(Y8="celý rok",100%,$T$7)),0) -> 0 | Z9: =IF($X$4="OK",IF(Z7="X",0,IF(Z8="celý rok",100%,$T$7)),0) -> 0 | AA9: =IF($X$4="OK",IF(AA7="X",0,IF(AA8="celý rok",100%,$T$7)),0) -> 0 | AB9: poměr inflace dle čtvrtletí | AH9: Vývoj inflace | AM9: Formáty
A10: Stavba: | B10: =C2 ->  | J10: =A4 -> ISPROFIN: | K10: =B4 ->  | N10: =IF(SUM(R13:R1200)>0,"Chyba","") ->  | O10: =SUM(O12:O1200) -> 0 | T10: inflace k B.1.1.1 mimo OTSKP | U10: inflace k B.1.1.1 OTSKP | X10: inflace pro daný rok do předpokládané hodnoty | AB10: 1.Q | AC10: 2.Q | AD10: 3.Q | AE10: 4.Q | AF10: X | AG10: celý rok | AH10: rok | AI10: inflace
A11: Monitoring | B11: Číslo SO | C11: Název stavebního objektu | D11: Rozdělení majetku | E11: realizace od | F11: realizace do | G11: náklady SO (B.1.1.1) | H11: % způsobilosti | I11: náklady SO (B.1.2.1) | J11: z toho způsobilé | K11: rezerva SO | L11: % | M11: Kč | N11: Cenová soustava | R11: Označení cenové soustavy | V11: Způsobilé v roce ocenění | W11: B1.1.1.+VRN a (OTSKP) | X11: =IF(X7="X",0,LOOKUP(X7,$AH$12:$AH$38,$AI$12:$AI$38)) -> 0 | Y11: =(IF(Y7="X",0,LOOKUP(Y7,$AH$12:$AH$38,$AI$12:$AI$38))) -> 0 | Z11: =IF(Z9="X",0,IF(Z7="X",0,LOOKUP(Z7,$AH$12:$AH$38,$AI$12:$AI$38))) -> 0 | AA11: =IF(AA7="X",0,LOOKUP(AA7,$AH$12:$AH$38,$AI$12:$AI$38)) -> 0 | AB11: 0 | AC11: 0.25 | AD11: 0.5 | AE11: 0.75 | AF11: 0 | AG11: 1 | AM11: Monitoring | AN11: Číslo SO | AO11: Název stavebního objektu | AP11: Rozdělení majetku | AQ11: realizace od | AR11: realizace do | AS11: náklady SO (B.1.1.1) | AT11: % způsobilosti | AU11: náklady SO (B.1.2.1) | AV11: z toho způsobilé | AW11: rezerva SO | AX11: % | AY11: Kč | AZ11: Cenová soustava
O12: =W12 -> 0 | R12: =IF(SUM(R13:R1200)>0,"neoznačená cenová soustava u všech objektů","") ->  | S12: =(G12+T12+U12) -> 0 | T12: =ROUND(IF(N12="OTSKP",0,G12*($AJ$1-1)),0) -> 0 | U12: =ROUND(IF(N12="OTSKP",G12*($AJ$4-1),0),0) -> 0 | V12: =H12*(S12+M12) -> 0 | W12: =S12+M12 -> 0 | X12: =(S12+M12)*$X$11*$X$9 -> 0 | Y12: =(S12+M12+X12)*$Y$11*$Y$9 -> 0 | Z12: =(S12+M12+Y12)*$Z$11*$Z$9 -> 0 | AA12: =(S12+M12+Z12)*$AA$11*$AA$9 -> 0 | AH12: ='2B'!AI8 -> 2015 | AI12: ='2B'!AJ8 -> 0 | AP12: =IF(BD12>0,"Chyba v označení","") -> 
K13: =S13*$K$6 -> 0 | M13: =ROUND(S13*L13,0) -> 0 | O13: =W13 -> 0 | R13: =IF(G13=0,0,IF(N13="",1,0)) -> 0 | S13: =(G13+T13+U13) -> 0 | T13: =ROUND(IF(N13="OTSKP",0,G13*($AJ$1-1)),0) -> 0 | U13: =ROUND(IF(N13="OTSKP",G13*($AJ$4-1),0),0) -> 0 | V13: 0 | W13: 0 | X13: =(S13+M13)*$X$11*$X$9 -> 0 | Y13: =(S13+M13+X13)*$Y$11*$Y$9 -> 0 | Z13: =(S13+M13+Y13)*$Z$11*$Z$9 -> 0 | AA13: =(S13+M13+Z13)*$AA$11*$AA$9 -> 0 | AH13: ='2B'!AI9 -> 2016 | AI13: ='2B'!AJ9 -> 0 | AW13: =BE13*$K$6 -> 0 | AY13: =ROUND(BE13*AX13,0) -> 0
K14: 0 | M14: 0 | O14: =W14 -> 0 | R14: =IF(G14=0,0,IF(N14="",1,0)) -> 0 | S14: 0 | T14: 0 | U14: =ROUND(IF(N14="OTSKP",G14*($AJ$4-1),0),0) -> 0 | V14: 0 | W14: 0 | X14: 0 | Y14: 0 | Z14: 0 | AA14: 0 | AH14: ='2B'!AI10 -> 2017 | AI14: ='2B'!AJ10 -> 0.015
K15: 0 | M15: 0 | O15: 0 | R15: 0 | S15: 0 | T15: 0 | U15: 0 | V15: 0 | W15: 0 | X15: 0 | Y15: 0 | Z15: 0 | AA15: 0 | AH15: ='2B'!AI11 -> 2018 | AI15: ='2B'!AJ11 -> 0.031
K16: 0 | M16: 0 | O16: 0 | R16: 0 | S16: 0 | T16: 0 | U16: 0 | V16: 0 | W16: 0 | X16: 0 | Y16: 0 | Z16: 0 | AA16: 0 | AH16: ='2B'!AI12 -> 2019 | AI16: ='2B'!AJ12 -> 0.047
K17: 0 | M17: 0 | O17: 0 | R17: 0 | S17: 0 | T17: 0 | U17: 0 | V17: 0 | W17: 0 | X17: 0 | Y17: 0 | Z17: 0 | AA17: 0 | AH17: ='2B'!AI13 -> 2020 | AI17: ='2B'!AJ13 -> 0.037
K18: 0 | M18: 0 | O18: 0 | R18: 0 | S18: 0 | T18: 0 | U18: 0 | V18: 0 | W18: 0 | X18: 0 | Y18: 0 | Z18: 0 | AA18: 0 | AH18: ='2B'!AI14 -> 2021 | AI18: ='2B'!AJ14 -> 0.044
K19: 0 | M19: 0 | O19: 0 | R19: 0 | S19: 0 | T19: 0 | U19: 0 | V19: 0 | W19: 0 | X19: 0 | Y19: 0 | Z19: 0 | AA19: 0 | AH19: ='2B'!AI15 -> 2022 | AI19: ='2B'!AJ15 -> 0.119
K20: 0 | M20: 0 | O20: 0 | R20: 0 | S20: 0 | T20: 0 | U20: 0 | V20: 0 | W20: 0 | X20: 0 | Y20: 0 | Z20: 0 | AA20: 0 | AH20: ='2B'!AI16 -> 2023 | AI20: ='2B'!AJ16 -> 0.108
K21: 0 | M21: 0 | O21: 0 | R21: 0 | S21: 0 | T21: 0 | U21: 0 | V21: 0 | W21: 0 | X21: 0 | Y21: 0 | Z21: 0 | AA21: 0 | AH21: ='2B'!AI17 -> 2024 | AI21: ='2B'!AJ17 -> 0.021
K22: 0 | M22: 0 | O22: 0 | R22: 0 | S22: 0 | T22: 0 | U22: 0 | V22: 0 | W22: 0 | X22: 0 | Y22: 0 | Z22: 0 | AA22: 0 | AH22: ='2B'!AI18 -> 2025 | AI22: ='2B'!AJ18 -> 0.02
K23: 0 | M23: 0 | O23: 0 | R23: 0 | S23: 0 | T23: 0 | U23: 0 | V23: 0 | W23: 0 | X23: 0 | Y23: 0 | Z23: 0 | AA23: 0 | AH23: ='2B'!AI19 -> 2026 | AI23: ='2B'!AJ19 -> 0.02
K24: 0 | M24: 0 | O24: 0 | R24: 0 | S24: 0 | T24: 0 | U24: 0 | V24: 0 | W24: 0 | X24: 0 | Y24: 0 | Z24: 0 | AA24: 0 | AH24: ='2B'!AI20 -> 2027 | AI24: ='2B'!AJ20 -> 0.02
K25: 0 | M25: 0 | O25: 0 | R25: 0 | S25: 0 | T25: 0 | U25: 0 | V25: 0 | W25: 0 | X25: 0 | Y25: 0 | Z25: 0 | AA25: 0 | AH25: ='2B'!AI21 -> 2028 | AI25: ='2B'!AJ21 -> 0.02
K26: 0 | M26: 0 | O26: 0 | R26: 0 | S26: 0 | T26: 0 | U26: 0 | V26: 0 | W26: 0 | X26: 0 | Y26: 0 | Z26: 0 | AA26: 0 | AH26: ='2B'!AI22 -> 2029 | AI26: ='2B'!AJ22 -> 0.02
K27: 0 | M27: 0 | O27: 0 | R27: 0 | S27: 0 | T27: 0 | U27: 0 | V27: 0 | W27: 0 | X27: 0 | Y27: 0 | Z27: 0 | AA27: 0 | AH27: ='2B'!AI23 -> 2030 | AI27: ='2B'!AJ23 -> 0.02
K28: 0 | M28: 0 | O28: 0 | R28: 0 | S28: 0 | T28: 0 | U28: 0 | V28: 0 | W28: 0 | X28: 0 | Y28: 0 | Z28: 0 | AA28: 0 | AH28: ='2B'!AI24 -> 2031 | AI28: ='2B'!AJ24 -> 0.02
K29: 0 | M29: 0 | O29: 0 | R29: 0 | S29: 0 | T29: 0 | U29: 0 | V29: 0 | W29: 0 | X29: 0 | Y29: 0 | Z29: 0 | AA29: 0 | AH29: ='2B'!AI25 -> 2032 | AI29: ='2B'!AJ25 -> 0.02
K30: 0 | M30: 0 | O30: 0 | R30: 0 | S30: 0 | T30: 0 | U30: 0 | V30: 0 | W30: 0 | X30: 0 | Y30: 0 | Z30: 0 | AA30: 0 | AH30: ='2B'!AI26 -> 2033 | AI30: ='2B'!AJ26 -> 0.02
K31: 0 | M31: 0 | O31: 0 | R31: 0 | S31: 0 | T31: 0 | U31: 0 | V31: 0 | W31: 0 | X31: 0 | Y31: 0 | Z31: 0 | AA31: 0 | AH31: ='2B'!AI27 -> 2034 | AI31: ='2B'!AJ27 -> 0.02
K32: 0 | M32: 0 | O32: 0 | R32: 0 | S32: 0 | T32: 0 | U32: 0 | V32: 0 | W32: 0 | X32: 0 | Y32: 0 | Z32: 0 | AA32: 0 | AH32: ='2B'!AI28 -> 2035 | AI32: ='2B'!AJ28 -> 0.02
K33: 0 | M33: 0 | O33: 0 | R33: 0 | S33: 0 | T33: 0 | U33: 0 | V33: 0 | W33: 0 | X33: 0 | Y33: 0 | Z33: 0 | AA33: 0 | AH33: ='2B'!AI29 -> 2036 | AI33: ='2B'!AJ29 -> 0.02
K34: 0 | M34: 0 | O34: 0 | R34: 0 | S34: 0 | T34: 0 | U34: 0 | V34: 0 | W34: 0 | X34: 0 | Y34: 0 | Z34: 0 | AA34: 0 | AH34: ='2B'!AI30 -> 2037 | AI34: ='2B'!AJ30 -> 0.02
K35: 0 | M35: 0 | O35: 0 | R35: 0 | S35: 0 | T35: 0 | U35: 0 | V35: 0 | W35: 0 | X35: 0 | Y35: 0 | Z35: 0 | AA35: 0 | AH35: ='2B'!AI31 -> 2038 | AI35: ='2B'!AJ31 -> 0.02
K36: 0 | M36: 0 | O36: 0 | R36: 0 | S36: 0 | T36: 0 | U36: 0 | V36: 0 | W36: 0 | X36: 0 | Y36: 0 | Z36: 0 | AA36: 0 | AH36: ='2B'!AI32 -> 2039 | AI36: ='2B'!AJ32 -> 0.02
K37: 0 | M37: 0 | O37: 0 | R37: 0 | S37: 0 | T37: 0 | U37: 0 | V37: 0 | W37: 0 | X37: 0 | Y37: 0 | Z37: 0 | AA37: 0 | AH37: ='2B'!AI33 -> 2040 | AI37: ='2B'!AJ33 -> 0.02
K38: 0 | M38: 0 | O38: 0 | R38: 0 | S38: 0 | T38: 0 | U38: 0 | V38: 0 | W38: 0 | X38: 0 | Y38: 0 | Z38: 0 | AA38: 0 | AH38: ='2B'!AI34 -> 2041 | AI38: ='2B'!AJ34 -> 0.02
K39: 0 | M39: 0 | O39: 0 | R39: 0 | S39: 0 | T39: 0 | U39: 0 | V39: 0 | W39: 0 | X39: 0 | Y39: 0 | Z39: 0 | AA39: 0
K40: 0 | M40: 0 | O40: 0 | R40: 0 | S40: 0 | T40: 0 | U40: 0 | V40: 0 | W40: 0 | X40: 0 | Y40: 0 | Z40: 0 | AA40: 0
K41: 0 | M41: 0 | O41: 0 | R41: 0 | S41: 0 | T41: 0 | U41: 0 | V41: 0 | W41: 0 | X41: 0 | Y41: 0 | Z41: 0 | AA41: 0
K42: 0 | M42: 0 | O42: 0 | R42: 0 | S42: 0 | T42: 0 | U42: 0 | V42: 0 | W42: 0 | X42: 0 | Y42: 0 | Z42: 0 | AA42: 0
K43: 0 | M43: 0 | O43: 0 | R43: 0 | S43: 0 | T43: 0 | U43: 0 | V43: 0 | W43: 0 | X43: 0 | Y43: 0 | Z43: 0 | AA43: 0
K44: 0 | M44: 0 | O44: 0 | R44: 0 | S44: 0 | T44: 0 | U44: 0 | V44: 0 | W44: 0 | X44: 0 | Y44: 0 | Z44: 0 | AA44: 0
K45: 0 | M45: 0 | O45: 0 | R45: 0 | S45: 0 | T45: 0 | U45: 0 | V45: 0 | W45: 0 | X45: 0 | Y45: 0 | Z45: 0 | AA45: 0
K46: 0 | M46: 0 | O46: 0 | R46: 0 | S46: 0 | T46: 0 | U46: 0 | V46: 0 | W46: 0 | X46: 0 | Y46: 0 | Z46: 0 | AA46: 0
K47: 0 | M47: 0 | O47: 0 | R47: 0 | S47: 0 | T47: 0 | U47: 0 | V47: 0 | W47: 0 | X47: 0 | Y47: 0 | Z47: 0 | AA47: 0
K48: 0 | M48: 0 | O48: 0 | R48: 0 | S48: 0 | T48: 0 | U48: 0 | V48: 0 | W48: 0 | X48: 0 | Y48: 0 | Z48: 0 | AA48: 0
K49: 0 | M49: 0 | O49: 0 | R49: 0 | S49: 0 | T49: 0 | U49: 0 | V49: 0 | W49: 0 | X49: 0 | Y49: 0 | Z49: 0 | AA49: 0
K50: 0 | M50: 0 | O50: 0 | R50: 0 | S50: 0 | T50: 0 | U50: 0 | V50: 0 | W50: 0 | X50: 0 | Y50: 0 | Z50: 0 | AA50: 0
K51: 0 | M51: 0 | O51: 0 | R51: 0 | S51: 0 | T51: 0 | U51: 0 | V51: 0 | W51: 0 | X51: 0 | Y51: 0 | Z51: 0 | AA51: 0
K52: 0 | M52: 0 | O52: 0 | R52: 0 | S52: 0 | T52: 0 | U52: 0 | V52: 0 | W52: 0 | X52: 0 | Y52: 0 | Z52: 0 | AA52: 0
K53: 0 | M53: 0 | O53: 0 | R53: 0 | S53: 0 | T53: 0 | U53: 0 | V53: 0 | W53: 0 | X53: 0 | Y53: 0 | Z53: 0 | AA53: 0
K54: 0 | M54: 0 | O54: 0 | R54: 0 | S54: 0 | T54: 0 | U54: 0 | V54: 0 | W54: 0 | X54: 0 | Y54: 0 | Z54: 0 | AA54: 0
K55: 0 | M55: 0 | O55: 0 | R55: 0 | S55: 0 | T55: 0 | U55: 0 | V55: 0 | W55: 0 | X55: 0 | Y55: 0 | Z55: 0 | AA55: 0
K56: 0 | M56: 0 | O56: 0 | R56: 0 | S56: 0 | T56: 0 | U56: 0 | V56: 0 | W56: 0 | X56: 0 | Y56: 0 | Z56: 0 | AA56: 0
K57: 0 | M57: 0 | O57: 0 | R57: 0 | S57: 0 | T57: 0 | U57: 0 | V57: 0 | W57: 0 | X57: 0 | Y57: 0 | Z57: 0 | AA57: 0
K58: 0 | M58: 0 | O58: 0 | R58: 0 | S58: 0 | T58: 0 | U58: 0 | V58: 0 | W58: 0 | X58: 0 | Y58: 0 | Z58: 0 | AA58: 0
K59: 0 | M59: 0 | O59: 0 | R59: 0 | S59: 0 | T59: 0 | U59: 0 | V59: 0 | W59: 0 | X59: 0 | Y59: 0 | Z59: 0 | AA59: 0
K60: 0 | M60: 0 | O60: 0 | R60: 0 | S60: 0 | T60: 0 | U60: 0 | V60: 0 | W60: 0 | X60: 0 | Y60: 0 | Z60: 0 | AA60: 0
K61: 0 | M61: 0 | O61: 0 | R61: 0 | S61: 0 | T61: 0 | U61: 0 | V61: 0 | W61: 0 | X61: 0 | Y61: 0 | Z61: 0 | AA61: 0
K62: 0 | M62: 0 | O62: 0 | R62: 0 | S62: 0 | T62: 0 | U62: 0 | V62: 0 | W62: 0 | X62: 0 | Y62: 0 | Z62: 0 | AA62: 0
K63: 0 | M63: 0 | O63: 0 | R63: 0 | S63: 0 | T63: 0 | U63: 0 | V63: 0 | W63: 0 | X63: 0 | Y63: 0 | Z63: 0 | AA63: 0
K64: 0 | M64: 0 | O64: 0 | R64: 0 | S64: 0 | T64: 0 | U64: 0 | V64: 0 | W64: 0 | X64: 0 | Y64: 0 | Z64: 0 | AA64: 0
K65: 0 | M65: 0 | O65: 0 | R65: 0 | S65: 0 | T65: 0 | U65: 0 | V65: 0 | W65: 0 | X65: 0 | Y65: 0 | Z65: 0 | AA65: 0
K66: 0 | M66: 0 | O66: 0 | R66: 0 | S66: 0 | T66: 0 | U66: 0 | V66: 0 | W66: 0 | X66: 0 | Y66: 0 | Z66: 0 | AA66: 0
K67: 0 | M67: 0 | O67: 0 | R67: 0 | S67: 0 | T67: 0 | U67: 0 | V67: 0 | W67: 0 | X67: 0 | Y67: 0 | Z67: 0 | AA67: 0
K68: 0 | M68: 0 | O68: 0 | R68: 0 | S68: 0 | T68: 0 | U68: 0 | V68: 0 | W68: 0 | X68: 0 | Y68: 0 | Z68: 0 | AA68: 0
K69: 0 | M69: 0 | O69: 0 | R69: 0 | S69: 0 | T69: 0 | U69: 0 | V69: 0 | W69: 0 | X69: 0 | Y69: 0 | Z69: 0 | AA69: 0
K70: 0 | M70: 0 | O70: 0 | R70: 0 | S70: 0 | T70: 0 | U70: 0 | V70: 0 | W70: 0 | X70: 0 | Y70: 0 | Z70: 0 | AA70: 0
K71: 0 | M71: 0 | O71: 0 | R71: 0 | S71: 0 | T71: 0 | U71: 0 | V71: 0 | W71: 0 | X71: 0 | Y71: 0 | Z71: 0 | AA71: 0
K72: 0 | M72: 0 | O72: 0 | R72: 0 | S72: 0 | T72: 0 | U72: 0 | V72: 0 | W72: 0 | X72: 0 | Y72: 0 | Z72: 0 | AA72: 0
K73: 0 | M73: 0 | O73: 0 | R73: 0 | S73: 0 | T73: 0 | U73: 0 | V73: 0 | W73: 0 | X73: 0 | Y73: 0 | Z73: 0 | AA73: 0
K74: 0 | M74: 0 | O74: 0 | R74: 0 | S74: 0 | T74: 0 | U74: 0 | V74: 0 | W74: 0 | X74: 0 | Y74: 0 | Z74: 0 | AA74: 0
K75: 0 | M75: 0 | O75: 0 | R75: 0 | S75: 0 | T75: 0 | U75: 0 | V75: 0 | W75: 0 | X75: 0 | Y75: 0 | Z75: 0 | AA75: 0
K76: 0 | M76: 0 | O76: 0 | R76: 0 | S76: 0 | T76: 0 | U76: 0 | V76: =H76*(S76+M76) -> 0 | W76: =S76+M76 -> 0 | X76: 0 | Y76: 0 | Z76: 0 | AA76: 0
K77: =S77*$K$6 -> 0 | M77: =ROUND(S77*L77,0) -> 0 | O77: 0 | R77: 0 | S77: =(G77+T77+U77) -> 0 | T77: =ROUND(IF(N77="OTSKP",0,G77*($AJ$1-1)),0) -> 0 | U77: =ROUND(IF(N77="OTSKP",G77*($AJ$4-1),0),0) -> 0 | V77: 0 | W77: 0 | X77: =(S77+M77)*$X$11*$X$9 -> 0 | Y77: =(S77+M77+X77)*$Y$11*$Y$9 -> 0 | Z77: =(S77+M77+Y77)*$Z$11*$Z$9 -> 0 | AA77: =(S77+M77+Z77)*$AA$11*$AA$9 -> 0
K78: 0 | M78: 0 | O78: =W78 -> 0 | R78: =IF(G78=0,0,IF(N78="",1,0)) -> 0 | S78: 0 | T78: 0 | U78: 0 | V78: 0 | W78: 0 | X78: 0 | Y78: 0 | Z78: 0 | AA78: 0
K79: 0 | M79: 0 | O79: 0 | R79: 0 | S79: 0 | T79: 0 | U79: 0 | V79: 0 | W79: 0 | X79: 0 | Y79: 0 | Z79: 0 | AA79: 0
K80: 0 | M80: 0 | O80: 0 | R80: 0 | S80: 0 | T80: 0 | U80: 0 | V80: 0 | W80: 0 | X80: 0 | Y80: 0 | Z80: 0 | AA80: 0
K81: 0 | M81: 0 | O81: 0 | R81: 0 | S81: 0 | T81: 0 | U81: 0 | V81: 0 | W81: 0 | X81: 0 | Y81: 0 | Z81: 0 | AA81: 0
K82: 0 | M82: 0 | O82: 0 | R82: 0 | S82: 0 | T82: 0 | U82: 0 | V82: 0 | W82: 0 | X82: 0 | Y82: 0 | Z82: 0 | AA82: 0
K83: 0 | M83: 0 | O83: 0 | R83: 0 | S83: 0 | T83: 0 | U83: 0 | V83: 0 | W83: 0 | X83: 0 | Y83: 0 | Z83: 0 | AA83: 0
K84: 0 | M84: 0 | O84: 0 | R84: 0 | S84: 0 | T84: 0 | U84: 0 | V84: 0 | W84: 0 | X84: 0 | Y84: 0 | Z84: 0 | AA84: 0
K85: 0 | M85: 0 | O85: 0 | R85: 0 | S85: 0 | T85: 0 | U85: 0 | V85: 0 | W85: 0 | X85: 0 | Y85: 0 | Z85: 0 | AA85: 0
K86: 0 | M86: 0 | O86: 0 | R86: 0 | S86: 0 | T86: 0 | U86: 0 | V86: 0 | W86: 0 | X86: 0 | Y86: 0 | Z86: 0 | AA86: 0
K87: 0 | M87: 0 | O87: 0 | R87: 0 | S87: 0 | T87: 0 | U87: 0 | V87: 0 | W87: 0 | X87: 0 | Y87: 0 | Z87: 0 | AA87: 0
K88: 0 | M88: 0 | O88: 0 | R88: 0 | S88: 0 | T88: 0 | U88: 0 | V88: 0 | W88: 0 | X88: 0 | Y88: 0 | Z88: 0 | AA88: 0
K89: 0 | M89: 0 | O89: 0 | R89: 0 | S89: 0 | T89: 0 | U89: 0 | V89: 0 | W89: 0 | X89: 0 | Y89: 0 | Z89: 0 | AA89: 0
K90: 0 | M90: 0 | O90: 0 | R90: 0 | S90: 0 | T90: 0 | U90: 0 | V90: 0 | W90: 0 | X90: 0 | Y90: 0 | Z90: 0 | AA90: 0
K91: 0 | M91: 0 | O91: 0 | R91: 0 | S91: 0 | T91: 0 | U91: 0 | V91: 0 | W91: 0 | X91: 0 | Y91: 0 | Z91: 0 | AA91: 0
K92: 0 | M92: 0 | O92: 0 | R92: 0 | S92: 0 | T92: 0 | U92: 0 | V92: 0 | W92: 0 | X92: 0 | Y92: 0 | Z92: 0 | AA92: 0
K93: 0 | M93: 0 | O93: 0 | R93: 0 | S93: 0 | T93: 0 | U93: 0 | V93: 0 | W93: 0 | X93: 0 | Y93: 0 | Z93: 0 | AA93: 0
K94: 0 | M94: 0 | O94: 0 | R94: 0 | S94: 0 | T94: 0 | U94: 0 | V94: 0 | W94: 0 | X94: 0 | Y94: 0 | Z94: 0 | AA94: 0
K95: 0 | M95: 0 | O95: 0 | R95: 0 | S95: 0 | T95: 0 | U95: 0 | V95: 0 | W95: 0 | X95: 0 | Y95: 0 | Z95: 0 | AA95: 0
K96: 0 | M96: 0 | O96: 0 | R96: 0 | S96: 0 | T96: 0 | U96: 0 | V96: 0 | W96: 0 | X96: 0 | Y96: 0 | Z96: 0 | AA96: 0
K97: 0 | M97: 0 | O97: 0 | R97: 0 | S97: 0 | T97: 0 | U97: 0 | V97: 0 | W97: 0 | X97: 0 | Y97: 0 | Z97: 0 | AA97: 0
K98: 0 | M98: 0 | O98: 0 | R98: 0 | S98: 0 | T98: 0 | U98: 0 | V98: 0 | W98: 0 | X98: 0 | Y98: 0 | Z98: 0 | AA98: 0
K99: 0 | M99: 0 | O99: 0 | R99: 0 | S99: 0 | T99: 0 | U99: 0 | V99: 0 | W99: 0 | X99: 0 | Y99: 0 | Z99: 0 | AA99: 0
K100: 0 | M100: 0 | O100: 0 | R100: 0 | S100: 0 | T100: 0 | U100: 0 | V100: 0 | W100: 0 | X100: 0 | Y100: 0 | Z100: 0 | AA100: 0
K101: 0 | M101: 0 | O101: 0 | R101: 0 | S101: 0 | T101: 0 | U101: 0 | V101: 0 | W101: 0 | X101: 0 | Y101: 0 | Z101: 0 | AA101: 0
K102: 0 | M102: 0 | O102: 0 | R102: 0 | S102: 0 | T102: 0 | U102: 0 | V102: 0 | W102: 0 | X102: 0 | Y102: 0 | Z102: 0 | AA102: 0
K103: 0 | M103: 0 | O103: 0 | R103: 0 | S103: 0 | T103: 0 | U103: 0 | V103: 0 | W103: 0 | X103: 0 | Y103: 0 | Z103: 0 | AA103: 0
K104: 0 | M104: 0 | O104: 0 | R104: 0 | S104: 0 | T104: 0 | U104: 0 | V104: 0 | W104: 0 | X104: 0 | Y104: 0 | Z104: 0 | AA104: 0
K105: 0 | M105: 0 | O105: 0 | R105: 0 | S105: 0 | T105: 0 | U105: 0 | V105: 0 | W105: 0 | X105: 0 | Y105: 0 | Z105: 0 | AA105: 0
K106: 0 | M106: 0 | O106: 0 | R106: 0 | S106: 0 | T106: 0 | U106: 0 | V106: 0 | W106: 0 | X106: 0 | Y106: 0 | Z106: 0 | AA106: 0
K107: 0 | M107: 0 | O107: 0 | R107: 0 | S107: 0 | T107: 0 | U107: 0 | V107: 0 | W107: 0 | X107: 0 | Y107: 0 | Z107: 0 | AA107: 0
K108: 0 | M108: 0 | O108: 0 | R108: 0 | S108: 0 | T108: 0 | U108: 0 | V108: 0 | W108: 0 | X108: 0 | Y108: 0 | Z108: 0 | AA108: 0
K109: 0 | M109: 0 | O109: 0 | R109: 0 | S109: 0 | T109: 0 | U109: 0 | V109: 0 | W109: 0 | X109: 0 | Y109: 0 | Z109: 0 | AA109: 0
K110: 0 | M110: 0 | O110: 0 | R110: 0 | S110: 0 | T110: 0 | U110: 0 | V110: 0 | W110: 0 | X110: 0 | Y110: 0 | Z110: 0 | AA110: 0
K111: 0 | M111: 0 | O111: 0 | R111: 0 | S111: 0 | T111: 0 | U111: 0 | V111: 0 | W111: 0 | X111: 0 | Y111: 0 | Z111: 0 | AA111: 0
K112: 0 | M112: 0 | O112: 0 | R112: 0 | S112: 0 | T112: 0 | U112: 0 | V112: 0 | W112: 0 | X112: 0 | Y112: 0 | Z112: 0 | AA112: 0
K113: 0 | M113: 0 | O113: 0 | R113: 0 | S113: 0 | T113: 0 | U113: 0 | V113: 0 | W113: 0 | X113: 0 | Y113: 0 | Z113: 0 | AA113: 0
K114: 0 | M114: 0 | O114: 0 | R114: 0 | S114: 0 | T114: 0 | U114: 0 | V114: 0 | W114: 0 | X114: 0 | Y114: 0 | Z114: 0 | AA114: 0
K115: 0 | M115: 0 | O115: 0 | R115: 0 | S115: 0 | T115: 0 | U115: 0 | V115: 0 | W115: 0 | X115: 0 | Y115: 0 | Z115: 0 | AA115: 0
K116: 0 | M116: 0 | O116: 0 | R116: 0 | S116: 0 | T116: 0 | U116: 0 | V116: 0 | W116: 0 | X116: 0 | Y116: 0 | Z116: 0 | AA116: 0
K117: 0 | M117: 0 | O117: 0 | R117: 0 | S117: 0 | T117: 0 | U117: 0 | V117: 0 | W117: 0 | X117: 0 | Y117: 0 | Z117: 0 | AA117: 0
K118: 0 | M118: 0 | O118: 0 | R118: 0 | S118: 0 | T118: 0 | U118: 0 | V118: 0 | W118: 0 | X118: 0 | Y118: 0 | Z118: 0 | AA118: 0
K119: 0 | M119: 0 | O119: 0 | R119: 0 | S119: 0 | T119: 0 | U119: 0 | V119: 0 | W119: 0 | X119: 0 | Y119: 0 | Z119: 0 | AA119: 0
K120: 0 | M120: 0 | O120: 0 | R120: 0 | S120: 0 | T120: 0 | U120: 0 | V120: 0 | W120: 0 | X120: 0 | Y120: 0 | Z120: 0 | AA120: 0
K121: 0 | M121: 0 | O121: 0 | R121: 0 | S121: 0 | T121: 0 | U121: 0 | V121: 0 | W121: 0 | X121: 0 | Y121: 0 | Z121: 0 | AA121: 0
K122: 0 | M122: 0 | O122: 0 | R122: 0 | S122: 0 | T122: 0 | U122: 0 | V122: 0 | W122: 0 | X122: 0 | Y122: 0 | Z122: 0 | AA122: 0
K123: 0 | M123: 0 | O123: 0 | R123: 0 | S123: 0 | T123: 0 | U123: 0 | V123: 0 | W123: 0 | X123: 0 | Y123: 0 | Z123: 0 | AA123: 0
K124: 0 | M124: 0 | O124: 0 | R124: 0 | S124: 0 | T124: 0 | U124: 0 | V124: 0 | W124: 0 | X124: 0 | Y124: 0 | Z124: 0 | AA124: 0
K125: 0 | M125: 0 | O125: 0 | R125: 0 | S125: 0 | T125: 0 | U125: 0 | V125: 0 | W125: 0 | X125: 0 | Y125: 0 | Z125: 0 | AA125: 0
K126: 0 | M126: 0 | O126: 0 | R126: 0 | S126: 0 | T126: 0 | U126: 0 | V126: 0 | W126: 0 | X126: 0 | Y126: 0 | Z126: 0 | AA126: 0
K127: 0 | M127: 0 | O127: 0 | R127: 0 | S127: 0 | T127: 0 | U127: 0 | V127: 0 | W127: 0 | X127: 0 | Y127: 0 | Z127: 0 | AA127: 0
K128: 0 | M128: 0 | O128: 0 | R128: 0 | S128: 0 | T128: 0 | U128: 0 | V128: 0 | W128: 0 | X128: 0 | Y128: 0 | Z128: 0 | AA128: 0
K129: 0 | M129: 0 | O129: 0 | R129: 0 | S129: 0 | T129: 0 | U129: 0 | V129: 0 | W129: 0 | X129: 0 | Y129: 0 | Z129: 0 | AA129: 0
K130: 0 | M130: 0 | O130: 0 | R130: 0 | S130: 0 | T130: 0 | U130: 0 | V130: 0 | W130: 0 | X130: 0 | Y130: 0 | Z130: 0 | AA130: 0
K131: 0 | M131: 0 | O131: 0 | R131: 0 | S131: 0 | T131: 0 | U131: 0 | V131: 0 | W131: 0 | X131: 0 | Y131: 0 | Z131: 0 | AA131: 0
K132: 0 | M132: 0 | O132: 0 | R132: 0 | S132: 0 | T132: 0 | U132: 0 | V132: 0 | W132: 0 | X132: 0 | Y132: 0 | Z132: 0 | AA132: 0
K133: 0 | M133: 0 | O133: 0 | R133: 0 | S133: 0 | T133: 0 | U133: 0 | V133: 0 | W133: 0 | X133: 0 | Y133: 0 | Z133: 0 | AA133: 0
K134: 0 | M134: 0 | O134: 0 | R134: 0 | S134: 0 | T134: 0 | U134: 0 | V134: 0 | W134: 0 | X134: 0 | Y134: 0 | Z134: 0 | AA134: 0
K135: 0 | M135: 0 | O135: 0 | R135: 0 | S135: 0 | T135: 0 | U135: 0 | V135: 0 | W135: 0 | X135: 0 | Y135: 0 | Z135: 0 | AA135: 0
K136: 0 | M136: 0 | O136: 0 | R136: 0 | S136: 0 | T136: 0 | U136: 0 | V136: 0 | W136: 0 | X136: 0 | Y136: 0 | Z136: 0 | AA136: 0
K137: 0 | M137: 0 | O137: 0 | R137: 0 | S137: 0 | T137: 0 | U137: 0 | V137: 0 | W137: 0 | X137: 0 | Y137: 0 | Z137: 0 | AA137: 0
K138: 0 | M138: 0 | O138: 0 | R138: 0 | S138: 0 | T138: 0 | U138: 0 | V138: 0 | W138: 0 | X138: 0 | Y138: 0 | Z138: 0 | AA138: 0
K139: 0 | M139: 0 | O139: 0 | R139: 0 | S139: 0 | T139: 0 | U139: 0 | V139: 0 | W139: 0 | X139: 0 | Y139: 0 | Z139: 0 | AA139: 0
K140: 0 | M140: 0 | O140: 0 | R140: 0 | S140: 0 | T140: 0 | U140: 0 | V140: =H140*(S140+M140) -> 0 | W140: =S140+M140 -> 0 | X140: 0 | Y140: 0 | Z140: 0 | AA140: 0
K141: =S141*$K$6 -> 0 | M141: =ROUND(S141*L141,0) -> 0 | O141: 0 | R141: 0 | S141: =(G141+T141+U141) -> 0 | T141: =ROUND(IF(N141="OTSKP",0,G141*($AJ$1-1)),0) -> 0 | U141: =ROUND(IF(N141="OTSKP",G141*($AJ$4-1),0),0) -> 0 | V141: 0 | W141: 0 | X141: =(S141+M141)*$X$11*$X$9 -> 0 | Y141: =(S141+M141+X141)*$Y$11*$Y$9 -> 0 | Z141: =(S141+M141+Y141)*$Z$11*$Z$9 -> 0 | AA141: =(S141+M141+Z141)*$AA$11*$AA$9 -> 0
K142: 0 | M142: 0 | O142: =W142 -> 0 | R142: =IF(G142=0,0,IF(N142="",1,0)) -> 0 | S142: 0 | T142: 0 | U142: 0 | V142: 0 | W142: 0 | X142: 0 | Y142: 0 | Z142: 0 | AA142: 0
K143: 0 | M143: 0 | O143: 0 | R143: 0 | S143: 0 | T143: 0 | U143: 0 | V143: 0 | W143: 0 | X143: 0 | Y143: 0 | Z143: 0 | AA143: 0
K144: 0 | M144: 0 | O144: 0 | R144: 0 | S144: 0 | T144: 0 | U144: 0 | V144: 0 | W144: 0 | X144: 0 | Y144: 0 | Z144: 0 | AA144: 0
K145: 0 | M145: 0 | O145: 0 | R145: 0 | S145: 0 | T145: 0 | U145: 0 | V145: 0 | W145: 0 | X145: 0 | Y145: 0 | Z145: 0 | AA145: 0
K146: 0 | M146: 0 | O146: 0 | R146: 0 | S146: 0 | T146: 0 | U146: 0 | V146: 0 | W146: 0 | X146: 0 | Y146: 0 | Z146: 0 | AA146: 0
K147: 0 | M147: 0 | O147: 0 | R147: 0 | S147: 0 | T147: 0 | U147: 0 | V147: 0 | W147: 0 | X147: 0 | Y147: 0 | Z147: 0 | AA147: 0
K148: 0 | M148: 0 | O148: 0 | R148: 0 | S148: 0 | T148: 0 | U148: 0 | V148: 0 | W148: 0 | X148: 0 | Y148: 0 | Z148: 0 | AA148: 0
K149: 0 | M149: 0 | O149: 0 | R149: 0 | S149: 0 | T149: 0 | U149: 0 | V149: 0 | W149: 0 | X149: 0 | Y149: 0 | Z149: 0 | AA149: 0
K150: 0 | M150: 0 | O150: 0 | R150: 0 | S150: 0 | T150: 0 | U150: 0 | V150: 0 | W150: 0 | X150: 0 | Y150: 0 | Z150: 0 | AA150: 0
K151: 0 | M151: 0 | O151: 0 | R151: 0 | S151: 0 | T151: 0 | U151: 0 | V151: 0 | W151: 0 | X151: 0 | Y151: 0 | Z151: 0 | AA151: 0
K152: 0 | M152: 0 | O152: 0 | R152: 0 | S152: 0 | T152: 0 | U152: 0 | V152: 0 | W152: 0 | X152: 0 | Y152: 0 | Z152: 0 | AA152: 0
K153: 0 | M153: 0 | O153: 0 | R153: 0 | S153: 0 | T153: 0 | U153: 0 | V153: 0 | W153: 0 | X153: 0 | Y153: 0 | Z153: 0 | AA153: 0
K154: 0 | M154: 0 | O154: 0 | R154: 0 | S154: 0 | T154: 0 | U154: 0 | V154: 0 | W154: 0 | X154: 0 | Y154: 0 | Z154: 0 | AA154: 0
K155: 0 | M155: 0 | O155: 0 | R155: 0 | S155: 0 | T155: 0 | U155: 0 | V155: 0 | W155: 0 | X155: 0 | Y155: 0 | Z155: 0 | AA155: 0
K156: 0 | M156: 0 | O156: 0 | R156: 0 | S156: 0 | T156: 0 | U156: 0 | V156: 0 | W156: 0 | X156: 0 | Y156: 0 | Z156: 0 | AA156: 0
K157: 0 | M157: 0 | O157: 0 | R157: 0 | S157: 0 | T157: 0 | U157: 0 | V157: 0 | W157: 0 | X157: 0 | Y157: 0 | Z157: 0 | AA157: 0
K158: 0 | M158: 0 | O158: 0 | R158: 0 | S158: 0 | T158: 0 | U158: 0 | V158: 0 | W158: 0 | X158: 0 | Y158: 0 | Z158: 0 | AA158: 0
K159: 0 | M159: 0 | O159: 0 | R159: 0 | S159: 0 | T159: 0 | U159: 0 | V159: 0 | W159: 0 | X159: 0 | Y159: 0 | Z159: 0 | AA159: 0
K160: 0 | M160: 0 | O160: 0 | R160: 0 | S160: 0 | T160: 0 | U160: 0 | V160: 0 | W160: 0 | X160: 0 | Y160: 0 | Z160: 0 | AA160: 0
K161: 0 | M161: 0 | O161: 0 | R161: 0 | S161: 0 | T161: 0 | U161: 0 | V161: 0 | W161: 0 | X161: 0 | Y161: 0 | Z161: 0 | AA161: 0
K162: 0 | M162: 0 | O162: 0 | R162: 0 | S162: 0 | T162: 0 | U162: 0 | V162: 0 | W162: 0 | X162: 0 | Y162: 0 | Z162: 0 | AA162: 0
K163: 0 | M163: 0 | O163: 0 | R163: 0 | S163: 0 | T163: 0 | U163: 0 | V163: 0 | W163: 0 | X163: 0 | Y163: 0 | Z163: 0 | AA163: 0
K164: 0 | M164: 0 | O164: 0 | R164: 0 | S164: 0 | T164: 0 | U164: 0 | V164: 0 | W164: 0 | X164: 0 | Y164: 0 | Z164: 0 | AA164: 0
K165: 0 | M165: 0 | O165: 0 | R165: 0 | S165: 0 | T165: 0 | U165: 0 | V165: 0 | W165: 0 | X165: 0 | Y165: 0 | Z165: 0 | AA165: 0
K166: 0 | M166: 0 | O166: 0 | R166: 0 | S166: 0 | T166: 0 | U166: 0 | V166: 0 | W166: 0 | X166: 0 | Y166: 0 | Z166: 0 | AA166: 0
K167: 0 | M167: 0 | O167: 0 | R167: 0 | S167: 0 | T167: 0 | U167: 0 | V167: 0 | W167: 0 | X167: 0 | Y167: 0 | Z167: 0 | AA167: 0
K168: 0 | M168: 0 | O168: 0 | R168: 0 | S168: 0 | T168: 0 | U168: 0 | V168: 0 | W168: 0 | X168: 0 | Y168: 0 | Z168: 0 | AA168: 0
K169: 0 | M169: 0 | O169: 0 | R169: 0 | S169: 0 | T169: 0 | U169: 0 | V169: 0 | W169: 0 | X169: 0 | Y169: 0 | Z169: 0 | AA169: 0
K170: 0 | M170: 0 | O170: 0 | R170: 0 | S170: 0 | T170: 0 | U170: 0 | V170: 0 | W170: 0 | X170: 0 | Y170: 0 | Z170: 0 | AA170: 0
K171: 0 | M171: 0 | O171: 0 | R171: 0 | S171: 0 | T171: 0 | U171: 0 | V171: 0 | W171: 0 | X171: 0 | Y171: 0 | Z171: 0 | AA171: 0
K172: 0 | M172: 0 | O172: 0 | R172: 0 | S172: 0 | T172: 0 | U172: 0 | V172: 0 | W172: 0 | X172: 0 | Y172: 0 | Z172: 0 | AA172: 0
K173: 0 | M173: 0 | O173: 0 | R173: 0 | S173: 0 | T173: 0 | U173: 0 | V173: 0 | W173: 0 | X173: 0 | Y173: 0 | Z173: 0 | AA173: 0
K174: 0 | M174: 0 | O174: 0 | R174: 0 | S174: 0 | T174: 0 | U174: 0 | V174: 0 | W174: 0 | X174: 0 | Y174: 0 | Z174: 0 | AA174: 0
K175: 0 | M175: 0 | O175: 0 | R175: 0 | S175: 0 | T175: 0 | U175: 0 | V175: 0 | W175: 0 | X175: 0 | Y175: 0 | Z175: 0 | AA175: 0
K176: 0 | M176: 0 | O176: 0 | R176: 0 | S176: 0 | T176: 0 | U176: 0 | V176: 0 | W176: 0 | X176: 0 | Y176: 0 | Z176: 0 | AA176: 0
K177: 0 | M177: 0 | O177: 0 | R177: 0 | S177: 0 | T177: 0 | U177: 0 | V177: 0 | W177: 0 | X177: 0 | Y177: 0 | Z177: 0 | AA177: 0
K178: 0 | M178: 0 | O178: 0 | R178: 0 | S178: 0 | T178: 0 | U178: 0 | V178: 0 | W178: 0 | X178: 0 | Y178: 0 | Z178: 0 | AA178: 0
K179: 0 | M179: 0 | O179: 0 | R179: 0 | S179: 0 | T179: 0 | U179: 0 | V179: 0 | W179: 0 | X179: 0 | Y179: 0 | Z179: 0 | AA179: 0
K180: 0 | M180: 0 | O180: 0 | R180: 0 | S180: 0 | T180: 0 | U180: 0 | V180: 0 | W180: 0 | X180: 0 | Y180: 0 | Z180: 0 | AA180: 0
K181: 0 | M181: 0 | O181: 0 | R181: 0 | S181: 0 | T181: 0 | U181: 0 | V181: 0 | W181: 0 | X181: 0 | Y181: 0 | Z181: 0 | AA181: 0
K182: 0 | M182: 0 | O182: 0 | R182: 0 | S182: 0 | T182: 0 | U182: 0 | V182: 0 | W182: 0 | X182: 0 | Y182: 0 | Z182: 0 | AA182: 0
K183: 0 | M183: 0 | O183: 0 | R183: 0 | S183: 0 | T183: 0 | U183: 0 | V183: 0 | W183: 0 | X183: 0 | Y183: 0 | Z183: 0 | AA183: 0
K184: 0 | M184: 0 | O184: 0 | R184: 0 | S184: 0 | T184: 0 | U184: 0 | V184: 0 | W184: 0 | X184: 0 | Y184: 0 | Z184: 0 | AA184: 0
K185: 0 | M185: 0 | O185: 0 | R185: 0 | S185: 0 | T185: 0 | U185: 0 | V185: 0 | W185: 0 | X185: 0 | Y185: 0 | Z185: 0 | AA185: 0
K186: 0 | M186: 0 | O186: 0 | R186: 0 | S186: 0 | T186: 0 | U186: 0 | V186: 0 | W186: 0 | X186: 0 | Y186: 0 | Z186: 0 | AA186: 0
K187: 0 | M187: 0 | O187: 0 | R187: 0 | S187: 0 | T187: 0 | U187: 0 | V187: 0 | W187: 0 | X187: 0 | Y187: 0 | Z187: 0 | AA187: 0
K188: 0 | M188: 0 | O188: 0 | R188: 0 | S188: 0 | T188: 0 | U188: 0 | V188: 0 | W188: 0 | X188: 0 | Y188: 0 | Z188: 0 | AA188: 0
K189: 0 | M189: 0 | O189: 0 | R189: 0 | S189: 0 | T189: 0 | U189: 0 | V189: 0 | W189: 0 | X189: 0 | Y189: 0 | Z189: 0 | AA189: 0
K190: 0 | M190: 0 | O190: 0 | R190: 0 | S190: 0 | T190: 0 | U190: 0 | V190: 0 | W190: 0 | X190: 0 | Y190: 0 | Z190: 0 | AA190: 0
K191: 0 | M191: 0 | O191: 0 | R191: 0 | S191: 0 | T191: 0 | U191: 0 | V191: 0 | W191: 0 | X191: 0 | Y191: 0 | Z191: 0 | AA191: 0
K192: 0 | M192: 0 | O192: 0 | R192: 0 | S192: 0 | T192: 0 | U192: 0 | V192: 0 | W192: 0 | X192: 0 | Y192: 0 | Z192: 0 | AA192: 0
K193: 0 | M193: 0 | O193: 0 | R193: 0 | S193: 0 | T193: 0 | U193: 0 | V193: 0 | W193: 0 | X193: 0 | Y193: 0 | Z193: 0 | AA193: 0
K194: 0 | M194: 0 | O194: 0 | R194: 0 | S194: 0 | T194: 0 | U194: 0 | V194: 0 | W194: 0 | X194: 0 | Y194: 0 | Z194: 0 | AA194: 0
K195: 0 | M195: 0 | O195: 0 | R195: 0 | S195: 0 | T195: 0 | U195: 0 | V195: 0 | W195: 0 | X195: 0 | Y195: 0 | Z195: 0 | AA195: 0
K196: 0 | M196: 0 | O196: 0 | R196: 0 | S196: 0 | T196: 0 | U196: 0 | V196: 0 | W196: 0 | X196: 0 | Y196: 0 | Z196: 0 | AA196: 0
K197: 0 | M197: 0 | O197: 0 | R197: 0 | S197: 0 | T197: 0 | U197: 0 | V197: 0 | W197: 0 | X197: 0 | Y197: 0 | Z197: 0 | AA197: 0
K198: 0 | M198: 0 | O198: 0 | R198: 0 | S198: 0 | T198: 0 | U198: 0 | V198: 0 | W198: 0 | X198: 0 | Y198: 0 | Z198: 0 | AA198: 0
K199: 0 | M199: 0 | O199: 0 | R199: 0 | S199: 0 | T199: 0 | U199: 0 | V199: 0 | W199: 0 | X199: 0 | Y199: 0 | Z199: 0 | AA199: 0
K200: 0 | M200: 0 | O200: 0 | R200: 0 | S200: 0 | T200: 0 | U200: 0 | V200: 0 | W200: 0 | X200: 0 | Y200: 0 | Z200: 0 | AA200: 0
... 1000 more rows

Sheet 3PS
A1: Formulář 3PS | C1: Rekapitulace nákladů provozních souborů | D1: Náklady dle rozdělení majetku (SŽ/Ostatní) | E1: Předpokládané období realizace s ohledem na čerpání finančních prostředků: (měsíc.rok) | G1: Náklady na realizaci jednotlivých PS | K1: ='Krycí list SR'!H1 -> SRP/2023/08 | L1: Vedlejší rozpočtové náklady (VRN) B.2.1.2 | N1: Cenová soustava (označení cenové použité soustavy) | O1: Kontrolní hodnota PS B.2.1 v Aktuální cenové úrovni včetně VRN | AB1: Inflace do Aktuálního roku mimo OTSKP | AJ1: =AB2*AC2*AD2*AE2*AF2*AG2*AH2*AI2*AJ2*AK2 -> 1
A2: Název stavby: | C2: =IF('Krycí list SR'!B2="","",'Krycí list SR'!B2) ->  | D2: SŽ celkem [Kč] (B.2.1.1) | G2: B.2.1.1 | H2: Způsobilost pro B.2.1.1 + B.2.1.2 | I2: B.2.2.1 | K2: B.5 | S2: ='Krycí list SR'!G4 -> Aktuální rok | T2: =IF('Krycí list SR'!H4="",1,'Krycí list SR'!H4) -> 1 | AB2: =IF($T$3<$AH$12,1,IF(AB3="X",1,LOOKUP(AB3,$AH$12:$AH$38,$AI$12:$AI$38)+1)) -> 1 | AC2: 1 | AD2: 1 | AE2: 1 | AF2: 1 | AG2: 1 | AH2: =IF($T$3<$AH$12,1,IF(AH3="X",1,LOOKUP(AH3,$AH$12:$AH$38,$AI$12:$AI$38)+1)) -> 1 | AI2: 1 | AJ2: =IF($T$3<$AH$12,1,IF(AJ3="X",1,LOOKUP(AJ3,$AH$12:$AH$38,$AI$12:$AI$38)+1)) -> 1 | AK2: =IF($T$3<$AH$12,1,IF(AK3="X",1,LOOKUP(AK3,$AH$12:$AH$38,$AI$12:$AI$38)+1)) -> 1
D3: =G6-D7 -> 0 | G3: ZRN - Zhotovitel | I3: ZRN - Investor (Uvádí se náklady, které zajišťuje pro účely stavby přímo investor) | K3: Rezerva PS | N3: =IF(SUM(R13:R1200)>0,"neoznačená cenová soustava u všech objektů","") ->  | S3: Rok ocenění stavby | T3: =IF('Krycí list SR'!F5="",1,'Krycí list SR'!F5) -> 1 | X3: Dopočítání inflace od Aktuálního roku do Zahájení výběrového řízení | AB3: =IF(T2>T3,T3,"X") -> X | AC3: =IF(T2>T3+1,T3+1,"X") -> X | AD3: =IF($T$2>$T$3+2,$T$3+2,"X") -> X | AE3: =IF($T$2>$T$3+3,$T$3+3,"X") -> X | AF3: =IF($T$2>$T$3+4,$T$3+4,"X") -> X | AG3: =IF($T$2>$T$3+5,$T$3+5,"X") -> X | AH3: =IF($T$2>$T$3+6,$T$3+6,"X") -> X | AI3: =IF($T$2>$T$3+7,$T$3+7,"X") -> X | AJ3: =IF($T$2>$T$3+8,$T$3+8,"X") -> X | AK3: =IF($T$2>$T$3+9,$T$3+9,"X") -> X
A4: ISPROFIN: | B4: =IF('Krycí list SR'!$B$3="","",'Krycí list SR'!$B$3) ->  | D4: SŽ celkem [Kč] (B.2.2.1) | E4: Zahájení | F4: Dokončení | G4: Celkem se zohledněním inflace do Aktuální roku (bez VRN) | H4: Podíl způsobilých nákladů v % pro financování z fondu EU | I4: B.2.2.1 | J4: Podíl způsobilých nákladů pro financování z fondu EU | S4: Rok OTSKP | T4: =IF('Krycí list SR'!H5="",1,'Krycí list SR'!H5) -> 1 | U4: Podmínka výskytu OTSKP | V4: =IF((SUMIF(N13:N1200,N7,G13:G1200))>0,1,0) -> 0 | X4: =IF('Krycí list SR'!E3="Stádium 3",(IF(T2=1,"nezadáno",IF(T5="X","nezadáno",IF(T6="X","nezadáno","OK")))),"nezadáno") -> nezadáno | Y4: =SUM(X5:AA5) -> 0 | AB4: Inflace do Aktuálního roku pro OTSKP | AJ4: =AB5*AC5*AD5*AE5*AF5*AG5*AH5*AI5*AJ5*AK5 -> 1
A5: Označení: (S-kód) | B5: =IF('Krycí list SR'!D3="","",'Krycí list SR'!D3) ->  | D5: =I8-D9 -> 0 | E5: zahájení realizace nebo zahájení čerpání finančních prostředků (viz poznámka) | F5: ukončení realizace nebo zahájení čerpání finančních prostředků (viz poznámka) | K5: procentní sazba z B.2.1.1 | L5: Zohlednění VRN indexem k hodnotě PS v B.2.1.1 | N5: (cenové soustava mimo OTSKP (např. URS, RTS) | S5: Rok Zahájení výběrového řízení | T5: =IF('Krycí list SR'!H7="","X",'Krycí list SR'!H7) -> 2024 | X5: =SUM(X12:X1200) -> 0 | Y5: =SUM(Y12:Y1200) -> 0 | Z5: =SUM(Z12:Z1200) -> 0 | AA5: =SUM(AA12:AA1200) -> 0 | AB5: =IF($T$4<$AH$12,1,IF(AB6="X",1,LOOKUP(AB6,$AH$12:$AH$38,$AI$12:$AI$38)+1)) -> 1 | AC5: 1 | AD5: 1 | AE5: 1 | AF5: 1 | AG5: 1 | AH5: =IF($T$4<$AH$12,1,IF(AH6="X",1,LOOKUP(AH6,$AH$12:$AH$38,$AI$12:$AI$38)+1)) -> 1 | AI5: 1 | AJ5: =IF($T$4<$AH$12,1,IF(AJ6="X",1,LOOKUP(AJ6,$AH$12:$AH$38,$AI$12:$AI$38)+1)) -> 1 | AK5: =IF($T$4<$AH$12,1,IF(AK6="X",1,LOOKUP(AK6,$AH$12:$AH$38,$AI$12:$AI$38)+1)) -> 1
A6: Investor: | B6: ='Krycí list SR'!B4:D4 -> Správa železnic, státní organizace | D6: Ostatní celkem [Kč] (B.2.1.1) | G6: =SUM(S12:S1200) -> 0 | H6: Způsobilé celkem [Kč] | J6: Způsobilé celkem [Kč] | K6: 0.1 | L6: souhrnný index VRN pro PS | M6: hodnota VRN PS dle souhrnného indexu a OTSKP | N6: Jiná | S6: čtvrtletí Zahájení výběrového řízení | T6: =IF('Krycí list SR'!G7="","X",'Krycí list SR'!G7) -> 2.Q | X6: Aktuální rok | Y6: =IF($X$4="OK",(IF(Y7=$T$5,"Rok zahájení výběrového řízení","Rok")),"X") -> X | Z6: =IF($X$4="OK",(IF(Z7=$T$5,"Rok zahájení výběrového řízení","Rok")),"X") -> X | AA6: =IF($X$4="OK",(IF(AA7=$T$5,"Rok zahájení výběrového řízení","Rok")),"X") -> X | AB6: =IF(T2>T4,T4,"X") -> X | AC6: =IF($T$2>$T$4+1,$T$4+1,"X") -> X | AD6: =IF($T$2>$T$4+2,$T$4+2,"X") -> X | AE6: =IF($T$2>$T$4+3,$T$4+3,"X") -> X | AF6: =IF($T$2>$T$4+4,$T$4+4,"X") -> X | AG6: =IF($T$2>$T$4+5,$T$4+5,"X") -> X | AH6: =IF($T$2>$T$4+6,$T$4+6,"X") -> X | AI6: =IF($T$2>$T$4+7,$T$4+7,"X") -> X | AJ6: =IF($T$2>$T$4+8,$T$4+8,"X") -> X | AK6: =IF($T$2>$T$4+9,$T$4+9,"X") -> X
A7: Zástupce investora: | B7: =IF('Krycí list SR'!B5:D5="","",'Krycí list SR'!B5:D5) ->  | D7: =SUMIF(D12:D1200,"Ostatní",S12:S1200) -> 0 | H7: =SUM(V12:V1200) -> 0 | I7: Celkem [Kč] | J7: =SUM(J12:J1200) -> 0 | K7: Celkem [Kč] | N7: OTSKP | T7: =IF(T6="X","X",LOOKUP(T6,AB10:AE10,AB11:AE11)) -> 0.25 | X7: =IF(X4="OK",T2,"X") -> X | Y7: =IF($X$4="OK",(IF($T$2=1,"X",IF((X7+1)>T5,"X",X7+1))),"X") -> X | Z7: =IF($X$4="OK",(IF($T$2=1,"X",IF(Y7="X","X",IF((Y7+1)>T5,"X",Y7+1)))),"X") -> X | AA7: =IF($X$4="OK",(IF($T$2=1,"X",IF(Z7="X","X",IF((Z7+1)>T5,"X",Z7+1)))),"X") -> X
A8: CÚ: | B8: ='Krycí list SR'!F5 -> 0 | C8: =IF('Krycí list SR'!E3="","",'Krycí list SR'!E3) ->  | D8: Ostatní celkem [Kč] (B.2.2.1) | E8: [mm.rrrr] | F8: [mm.rrrr] | G8: dle ocenění položkových rozpočtů | H8: Nezpůsobilé celkem [Kč] | I8: =SUM(I12:I1200) -> 0 | J8: Nezpůsobilé celkem [Kč] | K8: =SUM(K12:K8375) -> 0 | L8: % | M8: Kč | N8: Kalkulace | X8: =IF(X4="OK",IF($T$5=$T$2,T6,"celý rok"),"X") -> X | Y8: =IF($X$4="OK",(IF(Y7="X","X",(IF(Y7=$T$5,$T$6,"celý rok")))),"X") -> X | Z8: =IF($X$4="OK",(IF(Z7="X","X",(IF(Z7=$T$5,$T$6,"celý rok")))),"X") -> X | AA8: =IF($X$4="OK",(IF(AA7="X","X",(IF(AA7=$T$5,$T$6,"celý rok")))),"X") -> X | AM8: Formáty
A9: Kategorie monitoringu | B9: Číslo PS | C9: Název provozního souboru | D9: =SUMIF(D12:D1200,"Ostatní",I12:I1200) -> 0 | E9: =IF(MIN(E12:E1200)=0,"",MIN(E12:E1200)) ->  | F9: =IF(MAX(F12:F1200)=0,"",MAX(F12:F1200)) ->  | G9: =SUM(G12:G1200) -> 0 | H9: =SUM(W12:W1200)-H7 -> 0 | J9: =I8-J7 -> 0 | M9: =SUM(M13:M1200) -> 0 | N9: (individuální kalkulace bez použití cenové soustavy) | O9: bez tisku | P9: Pole pro pracovní výpočty bez tisku | S9: B.2.1.1 v roce ocenění (bez VRN) | T9: Dopočítání inflace ke stanoveným nákladů dle rozdělení cenových soustav | V9: Počítání způsobilosti | X9: =IF($X$4="OK",IF(X8="celý rok",100%,T7),0) -> 0 | Y9: =IF($X$4="OK",IF(Y7="X",0,IF(Y8="celý rok",100%,$T$7)),0) -> 0 | Z9: =IF($X$4="OK",IF(Z7="X",0,IF(Z8="celý rok",100%,$T$7)),0) -> 0 | AA9: =IF($X$4="OK",IF(AA7="X",0,IF(AA8="celý rok",100%,$T$7)),0) -> 0 | AB9: poměr inflace dle čtvrtletí | AH9: Vývoj inflace
A10: Stavba: | B10: =C2 ->  | J10: =A4 -> ISPROFIN: | K10: =B4 ->  | N10: =IF(SUM(R13:R1200)>0,"Chyba","") ->  | O10: =SUM(O12:O1200) -> 0 | T10: inflace k B.2.1.1 mimo OTSKP | U10: inflace k B.2.1.1 OTSKP | X10: inflace pro daný rok do předpokládané hodnoty | AB10: 1.Q | AC10: 2.Q | AD10: 3.Q | AE10: 4.Q | AF10: X | AG10: celý rok | AH10: rok | AI10: inflace | AM10: Monitoring | AN10: Číslo PS | AO10: Název provozního souboru | AP10: Rozdělení majetku | AQ10: realizace od | AR10: realizace do | AS10: náklady PS (B.2.1.1) | AT10: % způsobilosti | AU10: náklady PS (B.2.1.1) | AV10: z toho způsobilé | AW10: rezerva PS | AX10: % | AY10: Kč | AZ10: Cenová soustava
A11: Monitoring | B11: Číslo PS | C11: Název provozního souboru | D11: Rozdělení majetku | E11: realizace od | F11: realizace do | G11: náklady PS (B.2.1.1) | H11: % způsobilosti | I11: náklady PS (B.2.1.1) | J11: z toho způsobilé | K11: rezerva PS | L11: % | M11: Kč | N11: Cenová soustava | R11: Označení cenové soustavy | V11: Způsobilé v roce ocenění | W11: B2.1.1.+VRN a (OTSKP) | X11: =IF(X7="X",0,LOOKUP(X7,$AH$12:$AH$38,$AI$12:$AI$38)) -> 0 | Y11: =(IF(Y7="X",0,LOOKUP(Y7,$AH$12:$AH$38,$AI$12:$AI$38))) -> 0 | Z11: =IF(Z9="X",0,IF(Z7="X",0,LOOKUP(Z7,$AH$12:$AH$38,$AI$12:$AI$38))) -> 0 | AA11: =IF(AA7="X",0,LOOKUP(AA7,$AH$12:$AH$38,$AI$12:$AI$38)) -> 0 | AB11: 0 | AC11: 0.25 | AD11: 0.5 | AE11: 0.75 | AF11: 0 | AG11: 1 | AP11: =IF(BD11>0,"Chyba v označení","") ->  | AW11: =$G11*$K$6 -> 
K12: =$G12*$K$6 -> 0 | O12: =W12 -> 0 | R12: =IF(SUM(R13:R1200)>0,"neoznačená cenová soustava u všech objektů","") ->  | S12: =(G12+T12+U12) -> 0 | T12: =ROUND((IF(N12="OTSKP",0,G12*($AJ$1-1))),0) -> 0 | U12: =ROUND(IF(N12="OTSKP",G12*($AJ$4-1),0),0) -> 0 | V12: =H12*(S12+M12) -> 0 | W12: =S12+M12 -> 0 | X12: =(S12+M12)*$X$11*$X$9 -> 0 | Y12: =(S12+M12+X12)*$Y$11*$Y$9 -> 0 | Z12: =(S12+M12+Y12)*$Z$11*$Z$9 -> 0 | AA12: =(S12+M12+Z12)*$AA$11*$AA$9 -> 0 | AH12: ='2B'!AI8 -> 2015 | AI12: ='2B'!AJ8 -> 0 | AO12: D.1.1 Zabezpečovací zařízení | AT12: 1 | AW12: =$S12*$K$6 -> 0 | AX12: 0.075 | AY12: =ROUND(BE12*AX12,0) -> 0 | AZ12: URS
A13: D.1.2 | K13: =$S13*$K$6 -> 0 | M13: =ROUND(S13*L13,0) -> 0 | O13: =W13 -> 0 | R13: =IF(G13=0,0,IF(N13="",1,0)) -> 0 | S13: =(G13+T13+U13) -> 0 | T13: =ROUND(IF(N13="OTSKP",0,G13*($AJ$1-1)),0) -> 0 | U13: =ROUND(IF(N13="OTSKP",G13*($AJ$4-1),0),0) -> 0 | V13: 0 | W13: 0 | X13: =(S13+M13)*$X$11*$X$9 -> 0 | Y13: =(S13+M13+X13)*$Y$11*$Y$9 -> 0 | Z13: =(S13+M13+Y13)*$Z$11*$Z$9 -> 0 | AA13: =(S13+M13+Z13)*$AA$11*$AA$9 -> 0 | AH13: ='2B'!AI9 -> 2016 | AI13: ='2B'!AJ9 -> 0
K14: 0 | M14: 0 | O14: =W14 -> 0 | R14: =IF(G14=0,0,IF(N14="",1,0)) -> 0 | S14: =(G14+T14+U14) -> 0 | T14: =ROUND(IF(N14="OTSKP",0,G14*($AJ$1-1)),0) -> 0 | U14: =ROUND(IF(N14="OTSKP",G14*($AJ$4-1),0),0) -> 0 | V14: 0 | W14: 0 | X14: 0 | Y14: 0 | Z14: 0 | AA14: 0 | AH14: ='2B'!AI10 -> 2017 | AI14: ='2B'!AJ10 -> 0.015
K15: 0 | M15: 0 | O15: 0 | R15: 0 | S15: 0 | T15: 0 | U15: 0 | V15: 0 | W15: 0 | X15: 0 | Y15: 0 | Z15: 0 | AA15: 0 | AH15: ='2B'!AI11 -> 2018 | AI15: ='2B'!AJ11 -> 0.031
K16: 0 | M16: 0 | O16: 0 | R16: 0 | S16: 0 | T16: 0 | U16: 0 | V16: 0 | W16: 0 | X16: 0 | Y16: 0 | Z16: 0 | AA16: 0 | AH16: ='2B'!AI12 -> 2019 | AI16: ='2B'!AJ12 -> 0.047
K17: 0 | M17: 0 | O17: 0 | R17: 0 | S17: 0 | T17: 0 | U17: 0 | V17: 0 | W17: 0 | X17: 0 | Y17: 0 | Z17: 0 | AA17: 0 | AH17: ='2B'!AI13 -> 2020 | AI17: ='2B'!AJ13 -> 0.037
K18: 0 | M18: 0 | O18: 0 | R18: 0 | S18: 0 | T18: 0 | U18: 0 | V18: 0 | W18: 0 | X18: 0 | Y18: 0 | Z18: 0 | AA18: 0 | AH18: ='2B'!AI14 -> 2021 | AI18: ='2B'!AJ14 -> 0.044
K19: 0 | M19: 0 | O19: 0 | R19: 0 | S19: 0 | T19: 0 | U19: 0 | V19: 0 | W19: 0 | X19: 0 | Y19: 0 | Z19: 0 | AA19: 0 | AH19: ='2B'!AI15 -> 2022 | AI19: ='2B'!AJ15 -> 0.119
K20: 0 | M20: 0 | O20: 0 | R20: 0 | S20: 0 | T20: 0 | U20: 0 | V20: 0 | W20: 0 | X20: 0 | Y20: 0 | Z20: 0 | AA20: 0 | AH20: ='2B'!AI16 -> 2023 | AI20: ='2B'!AJ16 -> 0.108
K21: 0 | M21: 0 | O21: 0 | R21: 0 | S21: 0 | T21: 0 | U21: 0 | V21: 0 | W21: 0 | X21: 0 | Y21: 0 | Z21: 0 | AA21: 0 | AH21: ='2B'!AI17 -> 2024 | AI21: ='2B'!AJ17 -> 0.021
K22: 0 | M22: 0 | O22: 0 | R22: 0 | S22: 0 | T22: 0 | U22: 0 | V22: 0 | W22: 0 | X22: 0 | Y22: 0 | Z22: 0 | AA22: 0 | AH22: ='2B'!AI18 -> 2025 | AI22: ='2B'!AJ18 -> 0.02
K23: 0 | M23: 0 | O23: 0 | R23: 0 | S23: 0 | T23: 0 | U23: 0 | V23: 0 | W23: 0 | X23: 0 | Y23: 0 | Z23: 0 | AA23: 0 | AH23: ='2B'!AI19 -> 2026 | AI23: ='2B'!AJ19 -> 0.02
K24: 0 | M24: 0 | O24: 0 | R24: 0 | S24: 0 | T24: 0 | U24: 0 | V24: 0 | W24: 0 | X24: 0 | Y24: 0 | Z24: 0 | AA24: 0 | AH24: ='2B'!AI20 -> 2027 | AI24: ='2B'!AJ20 -> 0.02
K25: 0 | M25: 0 | O25: 0 | R25: 0 | S25: 0 | T25: 0 | U25: 0 | V25: 0 | W25: 0 | X25: 0 | Y25: 0 | Z25: 0 | AA25: 0 | AH25: ='2B'!AI21 -> 2028 | AI25: ='2B'!AJ21 -> 0.02
K26: 0 | M26: 0 | O26: 0 | R26: 0 | S26: 0 | T26: 0 | U26: 0 | V26: 0 | W26: 0 | X26: 0 | Y26: 0 | Z26: 0 | AA26: 0 | AH26: ='2B'!AI22 -> 2029 | AI26: ='2B'!AJ22 -> 0.02
K27: 0 | M27: 0 | O27: 0 | R27: 0 | S27: 0 | T27: 0 | U27: 0 | V27: 0 | W27: 0 | X27: 0 | Y27: 0 | Z27: 0 | AA27: 0 | AH27: ='2B'!AI23 -> 2030 | AI27: ='2B'!AJ23 -> 0.02
K28: 0 | M28: 0 | O28: 0 | R28: 0 | S28: 0 | T28: 0 | U28: 0 | V28: 0 | W28: 0 | X28: 0 | Y28: 0 | Z28: 0 | AA28: 0 | AH28: ='2B'!AI24 -> 2031 | AI28: ='2B'!AJ24 -> 0.02
K29: 0 | M29: 0 | O29: 0 | R29: 0 | S29: 0 | T29: 0 | U29: 0 | V29: 0 | W29: 0 | X29: 0 | Y29: 0 | Z29: 0 | AA29: 0 | AH29: ='2B'!AI25 -> 2032 | AI29: ='2B'!AJ25 -> 0.02
K30: 0 | M30: 0 | O30: 0 | R30: 0 | S30: 0 | T30: 0 | U30: 0 | V30: 0 | W30: 0 | X30: 0 | Y30: 0 | Z30: 0 | AA30: 0 | AH30: ='2B'!AI26 -> 2033 | AI30: ='2B'!AJ26 -> 0.02
K31: 0 | M31: 0 | O31: 0 | R31: 0 | S31: 0 | T31: 0 | U31: 0 | V31: 0 | W31: 0 | X31: 0 | Y31: 0 | Z31: 0 | AA31: 0 | AH31: ='2B'!AI27 -> 2034 | AI31: ='2B'!AJ27 -> 0.02
K32: 0 | M32: 0 | O32: 0 | R32: 0 | S32: 0 | T32: 0 | U32: 0 | V32: 0 | W32: 0 | X32: 0 | Y32: 0 | Z32: 0 | AA32: 0 | AH32: ='2B'!AI28 -> 2035 | AI32: ='2B'!AJ28 -> 0.02
K33: 0 | M33: 0 | O33: 0 | R33: 0 | S33: 0 | T33: 0 | U33: 0 | V33: 0 | W33: 0 | X33: 0 | Y33: 0 | Z33: 0 | AA33: 0 | AH33: ='2B'!AI29 -> 2036 | AI33: ='2B'!AJ29 -> 0.02
K34: 0 | M34: 0 | O34: 0 | R34: 0 | S34: 0 | T34: 0 | U34: 0 | V34: 0 | W34: 0 | X34: 0 | Y34: 0 | Z34: 0 | AA34: 0 | AH34: ='2B'!AI30 -> 2037 | AI34: ='2B'!AJ30 -> 0.02
K35: 0 | M35: 0 | O35: 0 | R35: 0 | S35: 0 | T35: 0 | U35: 0 | V35: 0 | W35: 0 | X35: 0 | Y35: 0 | Z35: 0 | AA35: 0 | AH35: ='2B'!AI31 -> 2038 | AI35: ='2B'!AJ31 -> 0.02
K36: 0 | M36: 0 | O36: 0 | R36: 0 | S36: 0 | T36: 0 | U36: 0 | V36: 0 | W36: 0 | X36: 0 | Y36: 0 | Z36: 0 | AA36: 0 | AH36: ='2B'!AI32 -> 2039 | AI36: ='2B'!AJ32 -> 0.02
K37: 0 | M37: 0 | O37: 0 | R37: 0 | S37: 0 | T37: 0 | U37: 0 | V37: 0 | W37: 0 | X37: 0 | Y37: 0 | Z37: 0 | AA37: 0 | AH37: ='2B'!AI33 -> 2040 | AI37: ='2B'!AJ33 -> 0.02
K38: 0 | M38: 0 | O38: 0 | R38: 0 | S38: 0 | T38: 0 | U38: 0 | V38: 0 | W38: 0 | X38: 0 | Y38: 0 | Z38: 0 | AA38: 0 | AH38: ='2B'!AI34 -> 2041 | AI38: ='2B'!AJ34 -> 0.02
K39: 0 | M39: 0 | O39: 0 | R39: 0 | S39: 0 | T39: 0 | U39: 0 | V39: 0 | W39: 0 | X39: 0 | Y39: 0 | Z39: 0 | AA39: 0
K40: 0 | M40: 0 | O40: 0 | R40: 0 | S40: 0 | T40: 0 | U40: 0 | V40: 0 | W40: 0 | X40: 0 | Y40: 0 | Z40: 0 | AA40: 0
K41: 0 | M41: 0 | O41: 0 | R41: 0 | S41: 0 | T41: 0 | U41: 0 | V41: 0 | W41: 0 | X41: 0 | Y41: 0 | Z41: 0 | AA41: 0
K42: 0 | M42: 0 | O42: 0 | R42: 0 | S42: 0 | T42: 0 | U42: 0 | V42: 0 | W42: 0 | X42: 0 | Y42: 0 | Z42: 0 | AA42: 0
K43: 0 | M43: 0 | O43: 0 | R43: 0 | S43: 0 | T43: 0 | U43: 0 | V43: 0 | W43: 0 | X43: 0 | Y43: 0 | Z43: 0 | AA43: 0
K44: 0 | M44: 0 | O44: 0 | R44: 0 | S44: 0 | T44: 0 | U44: 0 | V44: 0 | W44: 0 | X44: 0 | Y44: 0 | Z44: 0 | AA44: 0
K45: 0 | M45: 0 | O45: 0 | R45: 0 | S45: 0 | T45: 0 | U45: 0 | V45: 0 | W45: 0 | X45: 0 | Y45: 0 | Z45: 0 | AA45: 0
K46: 0 | M46: 0 | O46: 0 | R46: 0 | S46: 0 | T46: 0 | U46: 0 | V46: 0 | W46: 0 | X46: 0 | Y46: 0 | Z46: 0 | AA46: 0
K47: 0 | M47: 0 | O47: 0 | R47: 0 | S47: 0 | T47: 0 | U47: 0 | V47: 0 | W47: 0 | X47: 0 | Y47: 0 | Z47: 0 | AA47: 0
K48: 0 | M48: 0 | O48: 0 | R48: 0 | S48: 0 | T48: 0 | U48: 0 | V48: 0 | W48: 0 | X48: 0 | Y48: 0 | Z48: 0 | AA48: 0
K49: 0 | M49: 0 | O49: 0 | R49: 0 | S49: 0 | T49: 0 | U49: 0 | V49: 0 | W49: 0 | X49: 0 | Y49: 0 | Z49: 0 | AA49: 0
K50: 0 | M50: 0 | O50: 0 | R50: 0 | S50: 0 | T50: 0 | U50: 0 | V50: 0 | W50: 0 | X50: 0 | Y50: 0 | Z50: 0 | AA50: 0
K51: 0 | M51: 0 | O51: 0 | R51: 0 | S51: 0 | T51: 0 | U51: 0 | V51: 0 | W51: 0 | X51: 0 | Y51: 0 | Z51: 0 | AA51: 0
K52: 0 | M52: 0 | O52: 0 | R52: 0 | S52: 0 | T52: 0 | U52: 0 | V52: 0 | W52: 0 | X52: 0 | Y52: 0 | Z52: 0 | AA52: 0
K53: 0 | M53: 0 | O53: 0 | R53: 0 | S53: 0 | T53: 0 | U53: 0 | V53: 0 | W53: 0 | X53: 0 | Y53: 0 | Z53: 0 | AA53: 0
K54: 0 | M54: 0 | O54: 0 | R54: 0 | S54: 0 | T54: 0 | U54: 0 | V54: 0 | W54: 0 | X54: 0 | Y54: 0 | Z54: 0 | AA54: 0
K55: 0 | M55: 0 | O55: 0 | R55: 0 | S55: 0 | T55: 0 | U55: 0 | V55: 0 | W55: 0 | X55: 0 | Y55: 0 | Z55: 0 | AA55: 0
K56: 0 | M56: 0 | O56: 0 | R56: 0 | S56: 0 | T56: 0 | U56: 0 | V56: 0 | W56: 0 | X56: 0 | Y56: 0 | Z56: 0 | AA56: 0
K57: 0 | M57: 0 | O57: 0 | R57: 0 | S57: 0 | T57: 0 | U57: 0 | V57: 0 | W57: 0 | X57: 0 | Y57: 0 | Z57: 0 | AA57: 0
K58: 0 | M58: 0 | O58: 0 | R58: 0 | S58: 0 | T58: 0 | U58: 0 | V58: 0 | W58: 0 | X58: 0 | Y58: 0 | Z58: 0 | AA58: 0
K59: 0 | M59: 0 | O59: 0 | R59: 0 | S59: 0 | T59: 0 | U59: 0 | V59: 0 | W59: 0 | X59: 0 | Y59: 0 | Z59: 0 | AA59: 0
K60: 0 | M60: 0 | O60: 0 | R60: 0 | S60: 0 | T60: 0 | U60: 0 | V60: 0 | W60: 0 | X60: 0 | Y60: 0 | Z60: 0 | AA60: 0
K61: 0 | M61: 0 | O61: 0 | R61: 0 | S61: 0 | T61: 0 | U61: 0 | V61: 0 | W61: 0 | X61: 0 | Y61: 0 | Z61: 0 | AA61: 0
K62: 0 | M62: 0 | O62: 0 | R62: 0 | S62: 0 | T62: 0 | U62: 0 | V62: 0 | W62: 0 | X62: 0 | Y62: 0 | Z62: 0 | AA62: 0
K63: 0 | M63: 0 | O63: 0 | R63: 0 | S63: 0 | T63: 0 | U63: 0 | V63: 0 | W63: 0 | X63: 0 | Y63: 0 | Z63: 0 | AA63: 0
K64: 0 | M64: 0 | O64: 0 | R64: 0 | S64: 0 | T64: 0 | U64: 0 | V64: 0 | W64: 0 | X64: 0 | Y64: 0 | Z64: 0 | AA64: 0
K65: 0 | M65: 0 | O65: 0 | R65: 0 | S65: 0 | T65: 0 | U65: 0 | V65: 0 | W65: 0 | X65: 0 | Y65: 0 | Z65: 0 | AA65: 0
K66: 0 | M66: 0 | O66: 0 | R66: 0 | S66: 0 | T66: 0 | U66: 0 | V66: 0 | W66: 0 | X66: 0 | Y66: 0 | Z66: 0 | AA66: 0
K67: 0 | M67: 0 | O67: 0 | R67: 0 | S67: 0 | T67: 0 | U67: 0 | V67: 0 | W67: 0 | X67: 0 | Y67: 0 | Z67: 0 | AA67: 0
K68: 0 | M68: 0 | O68: 0 | R68: 0 | S68: 0 | T68: 0 | U68: 0 | V68: 0 | W68: 0 | X68: 0 | Y68: 0 | Z68: 0 | AA68: 0
K69: 0 | M69: 0 | O69: 0 | R69: 0 | S69: 0 | T69: 0 | U69: 0 | V69: 0 | W69: 0 | X69: 0 | Y69: 0 | Z69: 0 | AA69: 0
K70: 0 | M70: 0 | O70: 0 | R70: 0 | S70: 0 | T70: 0 | U70: 0 | V70: 0 | W70: 0 | X70: 0 | Y70: 0 | Z70: 0 | AA70: 0
K71: 0 | M71: 0 | O71: 0 | R71: 0 | S71: 0 | T71: 0 | U71: 0 | V71: 0 | W71: 0 | X71: 0 | Y71: 0 | Z71: 0 | AA71: 0
K72: 0 | M72: 0 | O72: 0 | R72: 0 | S72: 0 | T72: 0 | U72: 0 | V72: 0 | W72: 0 | X72: 0 | Y72: 0 | Z72: 0 | AA72: 0
K73: 0 | M73: 0 | O73: 0 | R73: 0 | S73: 0 | T73: 0 | U73: 0 | V73: 0 | W73: 0 | X73: 0 | Y73: 0 | Z73: 0 | AA73: 0
K74: 0 | M74: 0 | O74: 0 | R74: 0 | S74: 0 | T74: 0 | U74: 0 | V74: 0 | W74: 0 | X74: 0 | Y74: 0 | Z74: 0 | AA74: 0
K75: 0 | M75: 0 | O75: 0 | R75: 0 | S75: 0 | T75: 0 | U75: 0 | V75: 0 | W75: 0 | X75: 0 | Y75: 0 | Z75: 0 | AA75: 0
K76: 0 | M76: 0 | O76: 0 | R76: 0 | S76: 0 | T76: 0 | U76: 0 | V76: =H76*(S76+M76) -> 0 | W76: =S76+M76 -> 0 | X76: 0 | Y76: 0 | Z76: 0 | AA76: 0
K77: =$S77*$K$6 -> 0 | M77: =ROUND(S77*L77,0) -> 0 | O77: 0 | R77: 0 | S77: =(G77+T77+U77) -> 0 | T77: 0 | U77: 0 | V77: 0 | W77: 0 | X77: =(S77+M77)*$X$11*$X$9 -> 0 | Y77: =(S77+M77+X77)*$Y$11*$Y$9 -> 0 | Z77: =(S77+M77+Y77)*$Z$11*$Z$9 -> 0 | AA77: =(S77+M77+Z77)*$AA$11*$AA$9 -> 0
K78: 0 | M78: 0 | O78: =W78 -> 0 | R78: =IF(G78=0,0,IF(N78="",1,0)) -> 0 | S78: 0 | T78: =ROUND(IF(N78="OTSKP",0,G78*($AJ$1-1)),0) -> 0 | U78: =ROUND(IF(N78="OTSKP",G78*($AJ$4-1),0),0) -> 0 | V78: 0 | W78: 0 | X78: 0 | Y78: 0 | Z78: 0 | AA78: 0
K79: 0 | M79: 0 | O79: 0 | R79: 0 | S79: 0 | T79: 0 | U79: 0 | V79: 0 | W79: 0 | X79: 0 | Y79: 0 | Z79: 0 | AA79: 0
K80: 0 | M80: 0 | O80: 0 | R80: 0 | S80: 0 | T80: 0 | U80: 0 | V80: 0 | W80: 0 | X80: 0 | Y80: 0 | Z80: 0 | AA80: 0
K81: 0 | M81: 0 | O81: 0 | R81: 0 | S81: 0 | T81: 0 | U81: 0 | V81: 0 | W81: 0 | X81: 0 | Y81: 0 | Z81: 0 | AA81: 0
K82: 0 | M82: 0 | O82: 0 | R82: 0 | S82: 0 | T82: 0 | U82: 0 | V82: 0 | W82: 0 | X82: 0 | Y82: 0 | Z82: 0 | AA82: 0
K83: 0 | M83: 0 | O83: 0 | R83: 0 | S83: 0 | T83: 0 | U83: 0 | V83: 0 | W83: 0 | X83: 0 | Y83: 0 | Z83: 0 | AA83: 0
K84: 0 | M84: 0 | O84: 0 | R84: 0 | S84: 0 | T84: 0 | U84: 0 | V84: 0 | W84: 0 | X84: 0 | Y84: 0 | Z84: 0 | AA84: 0
K85: 0 | M85: 0 | O85: 0 | R85: 0 | S85: 0 | T85: 0 | U85: 0 | V85: 0 | W85: 0 | X85: 0 | Y85: 0 | Z85: 0 | AA85: 0
K86: 0 | M86: 0 | O86: 0 | R86: 0 | S86: 0 | T86: 0 | U86: 0 | V86: 0 | W86: 0 | X86: 0 | Y86: 0 | Z86: 0 | AA86: 0
K87: 0 | M87: 0 | O87: 0 | R87: 0 | S87: 0 | T87: 0 | U87: 0 | V87: 0 | W87: 0 | X87: 0 | Y87: 0 | Z87: 0 | AA87: 0
K88: 0 | M88: 0 | O88: 0 | R88: 0 | S88: 0 | T88: 0 | U88: 0 | V88: 0 | W88: 0 | X88: 0 | Y88: 0 | Z88: 0 | AA88: 0
K89: 0 | M89: 0 | O89: 0 | R89: 0 | S89: 0 | T89: 0 | U89: 0 | V89: 0 | W89: 0 | X89: 0 | Y89: 0 | Z89: 0 | AA89: 0
K90: 0 | M90: 0 | O90: 0 | R90: 0 | S90: 0 | T90: 0 | U90: 0 | V90: 0 | W90: 0 | X90: 0 | Y90: 0 | Z90: 0 | AA90: 0
K91: 0 | M91: 0 | O91: 0 | R91: 0 | S91: 0 | T91: 0 | U91: 0 | V91: 0 | W91: 0 | X91: 0 | Y91: 0 | Z91: 0 | AA91: 0
K92: 0 | M92: 0 | O92: 0 | R92: 0 | S92: 0 | T92: 0 | U92: 0 | V92: 0 | W92: 0 | X92: 0 | Y92: 0 | Z92: 0 | AA92: 0
K93: 0 | M93: 0 | O93: 0 | R93: 0 | S93: 0 | T93: 0 | U93: 0 | V93: 0 | W93: 0 | X93: 0 | Y93: 0 | Z93: 0 | AA93: 0
K94: 0 | M94: 0 | O94: 0 | R94: 0 | S94: 0 | T94: 0 | U94: 0 | V94: 0 | W94: 0 | X94: 0 | Y94: 0 | Z94: 0 | AA94: 0
K95: 0 | M95: 0 | O95: 0 | R95: 0 | S95: 0 | T95: 0 | U95: 0 | V95: 0 | W95: 0 | X95: 0 | Y95: 0 | Z95: 0 | AA95: 0
K96: 0 | M96: 0 | O96: 0 | R96: 0 | S96: 0 | T96: 0 | U96: 0 | V96: 0 | W96: 0 | X96: 0 | Y96: 0 | Z96: 0 | AA96: 0
K97: 0 | M97: 0 | O97: 0 | R97: 0 | S97: 0 | T97: 0 | U97: 0 | V97: 0 | W97: 0 | X97: 0 | Y97: 0 | Z97: 0 | AA97: 0
K98: 0 | M98: 0 | O98: 0 | R98: 0 | S98: 0 | T98: 0 | U98: 0 | V98: 0 | W98: 0 | X98: 0 | Y98: 0 | Z98: 0 | AA98: 0
K99: 0 | M99: 0 | O99: 0 | R99: 0 | S99: 0 | T99: 0 | U99: 0 | V99: 0 | W99: 0 | X99: 0 | Y99: 0 | Z99: 0 | AA99: 0
K100: 0 | M100: 0 | O100: 0 | R100: 0 | S100: 0 | T100: 0 | U100: 0 | V100: 0 | W100: 0 | X100: 0 | Y100: 0 | Z100: 0 | AA100: 0
K101: 0 | M101: 0 | O101: 0 | R101: 0 | S101: 0 | T101: 0 | U101: 0 | V101: 0 | W101: 0 | X101: 0 | Y101: 0 | Z101: 0 | AA101: 0
K102: 0 | M102: 0 | O102: 0 | R102: 0 | S102: 0 | T102: 0 | U102: 0 | V102: 0 | W102: 0 | X102: 0 | Y102: 0 | Z102: 0 | AA102: 0
K103: 0 | M103: 0 | O103: 0 | R103: 0 | S103: 0 | T103: 0 | U103: 0 | V103: 0 | W103: 0 | X103: 0 | Y103: 0 | Z103: 0 | AA103: 0
K104: 0 | M104: 0 | O104: 0 | R104: 0 | S104: 0 | T104: 0 | U104: 0 | V104: 0 | W104: 0 | X104: 0 | Y104: 0 | Z104: 0 | AA104: 0
K105: 0 | M105: 0 | O105: 0 | R105: 0 | S105: 0 | T105: 0 | U105: 0 | V105: 0 | W105: 0 | X105: 0 | Y105: 0 | Z105: 0 | AA105: 0
K106: 0 | M106: 0 | O106: 0 | R106: 0 | S106: 0 | T106: 0 | U106: 0 | V106: 0 | W106: 0 | X106: 0 | Y106: 0 | Z106: 0 | AA106: 0
K107: 0 | M107: 0 | O107: 0 | R107: 0 | S107: 0 | T107: 0 | U107: 0 | V107: 0 | W107: 0 | X107: 0 | Y107: 0 | Z107: 0 | AA107: 0
K108: 0 | M108: 0 | O108: 0 | R108: 0 | S108: 0 | T108: 0 | U108: 0 | V108: 0 | W108: 0 | X108: 0 | Y108: 0 | Z108: 0 | AA108: 0
K109: 0 | M109: 0 | O109: 0 | R109: 0 | S109: 0 | T109: 0 | U109: 0 | V109: 0 | W109: 0 | X109: 0 | Y109: 0 | Z109: 0 | AA109: 0
K110: 0 | M110: 0 | O110: 0 | R110: 0 | S110: 0 | T110: 0 | U110: 0 | V110: 0 | W110: 0 | X110: 0 | Y110: 0 | Z110: 0 | AA110: 0
K111: 0 | M111: 0 | O111: 0 | R111: 0 | S111: 0 | T111: 0 | U111: 0 | V111: 0 | W111: 0 | X111: 0 | Y111: 0 | Z111: 0 | AA111: 0
K112: 0 | M112: 0 | O112: 0 | R112: 0 | S112: 0 | T112: 0 | U112: 0 | V112: 0 | W112: 0 | X112: 0 | Y112: 0 | Z112: 0 | AA112: 0
K113: 0 | M113: 0 | O113: 0 | R113: 0 | S113: 0 | T113: 0 | U113: 0 | V113: 0 | W113: 0 | X113: 0 | Y113: 0 | Z113: 0 | AA113: 0
K114: 0 | M114: 0 | O114: 0 | R114: 0 | S114: 0 | T114: 0 | U114: 0 | V114: 0 | W114: 0 | X114: 0 | Y114: 0 | Z114: 0 | AA114: 0
K115: 0 | M115: 0 | O115: 0 | R115: 0 | S115: 0 | T115: 0 | U115: 0 | V115: 0 | W115: 0 | X115: 0 | Y115: 0 | Z115: 0 | AA115: 0
K116: 0 | M116: 0 | O116: 0 | R116: 0 | S116: 0 | T116: 0 | U116: 0 | V116: 0 | W116: 0 | X116: 0 | Y116: 0 | Z116: 0 | AA116: 0
K117: 0 | M117: 0 | O117: 0 | R117: 0 | S117: 0 | T117: 0 | U117: 0 | V117: 0 | W117: 0 | X117: 0 | Y117: 0 | Z117: 0 | AA117: 0
K118: 0 | M118: 0 | O118: 0 | R118: 0 | S118: 0 | T118: 0 | U118: 0 | V118: 0 | W118: 0 | X118: 0 | Y118: 0 | Z118: 0 | AA118: 0
K119: 0 | M119: 0 | O119: 0 | R119: 0 | S119: 0 | T119: 0 | U119: 0 | V119: 0 | W119: 0 | X119: 0 | Y119: 0 | Z119: 0 | AA119: 0
K120: 0 | M120: 0 | O120: 0 | R120: 0 | S120: 0 | T120: 0 | U120: 0 | V120: 0 | W120: 0 | X120: 0 | Y120: 0 | Z120: 0 | AA120: 0
K121: 0 | M121: 0 | O121: 0 | R121: 0 | S121: 0 | T121: 0 | U121: 0 | V121: 0 | W121: 0 | X121: 0 | Y121: 0 | Z121: 0 | AA121: 0
K122: 0 | M122: 0 | O122: 0 | R122: 0 | S122: 0 | T122: 0 | U122: 0 | V122: 0 | W122: 0 | X122: 0 | Y122: 0 | Z122: 0 | AA122: 0
K123: 0 | M123: 0 | O123: 0 | R123: 0 | S123: 0 | T123: 0 | U123: 0 | V123: 0 | W123: 0 | X123: 0 | Y123: 0 | Z123: 0 | AA123: 0
K124: 0 | M124: 0 | O124: 0 | R124: 0 | S124: 0 | T124: 0 | U124: 0 | V124: 0 | W124: 0 | X124: 0 | Y124: 0 | Z124: 0 | AA124: 0
K125: 0 | M125: 0 | O125: 0 | R125: 0 | S125: 0 | T125: 0 | U125: 0 | V125: 0 | W125: 0 | X125: 0 | Y125: 0 | Z125: 0 | AA125: 0
K126: 0 | M126: 0 | O126: 0 | R126: 0 | S126: 0 | T126: 0 | U126: 0 | V126: 0 | W126: 0 | X126: 0 | Y126: 0 | Z126: 0 | AA126: 0
K127: 0 | M127: 0 | O127: 0 | R127: 0 | S127: 0 | T127: 0 | U127: 0 | V127: 0 | W127: 0 | X127: 0 | Y127: 0 | Z127: 0 | AA127: 0
K128: 0 | M128: 0 | O128: 0 | R128: 0 | S128: 0 | T128: 0 | U128: 0 | V128: 0 | W128: 0 | X128: 0 | Y128: 0 | Z128: 0 | AA128: 0
K129: 0 | M129: 0 | O129: 0 | R129: 0 | S129: 0 | T129: 0 | U129: 0 | V129: 0 | W129: 0 | X129: 0 | Y129: 0 | Z129: 0 | AA129: 0
K130: 0 | M130: 0 | O130: 0 | R130: 0 | S130: 0 | T130: 0 | U130: 0 | V130: 0 | W130: 0 | X130: 0 | Y130: 0 | Z130: 0 | AA130: 0
K131: 0 | M131: 0 | O131: 0 | R131: 0 | S131: 0 | T131: 0 | U131: 0 | V131: 0 | W131: 0 | X131: 0 | Y131: 0 | Z131: 0 | AA131: 0
K132: 0 | M132: 0 | O132: 0 | R132: 0 | S132: 0 | T132: 0 | U132: 0 | V132: 0 | W132: 0 | X132: 0 | Y132: 0 | Z132: 0 | AA132: 0
K133: 0 | M133: 0 | O133: 0 | R133: 0 | S133: 0 | T133: 0 | U133: 0 | V133: 0 | W133: 0 | X133: 0 | Y133: 0 | Z133: 0 | AA133: 0
K134: 0 | M134: 0 | O134: 0 | R134: 0 | S134: 0 | T134: 0 | U134: 0 | V134: 0 | W134: 0 | X134: 0 | Y134: 0 | Z134: 0 | AA134: 0
K135: 0 | M135: 0 | O135: 0 | R135: 0 | S135: 0 | T135: 0 | U135: 0 | V135: 0 | W135: 0 | X135: 0 | Y135: 0 | Z135: 0 | AA135: 0
K136: 0 | M136: 0 | O136: 0 | R136: 0 | S136: 0 | T136: 0 | U136: 0 | V136: 0 | W136: 0 | X136: 0 | Y136: 0 | Z136: 0 | AA136: 0
K137: 0 | M137: 0 | O137: 0 | R137: 0 | S137: 0 | T137: 0 | U137: 0 | V137: 0 | W137: 0 | X137: 0 | Y137: 0 | Z137: 0 | AA137: 0
K138: 0 | M138: 0 | O138: 0 | R138: 0 | S138: 0 | T138: 0 | U138: 0 | V138: 0 | W138: 0 | X138: 0 | Y138: 0 | Z138: 0 | AA138: 0
K139: 0 | M139: 0 | O139: 0 | R139: 0 | S139: 0 | T139: 0 | U139: 0 | V139: 0 | W139: 0 | X139: 0 | Y139: 0 | Z139: 0 | AA139: 0
K140: 0 | M140: 0 | O140: 0 | R140: 0 | S140: 0 | T140: 0 | U140: 0 | V140: =H140*(S140+M140) -> 0 | W140: =S140+M140 -> 0 | X140: 0 | Y140: 0 | Z140: 0 | AA140: 0
K141: =$S141*$K$6 -> 0 | M141: =ROUND(S141*L141,0) -> 0 | O141: 0 | R141: 0 | S141: =(G141+T141+U141) -> 0 | T141: 0 | U141: 0 | V141: 0 | W141: 0 | X141: =(S141+M141)*$X$11*$X$9 -> 0 | Y141: =(S141+M141+X141)*$Y$11*$Y$9 -> 0 | Z141: =(S141+M141+Y141)*$Z$11*$Z$9 -> 0 | AA141: =(S141+M141+Z141)*$AA$11*$AA$9 -> 0
K142: 0 | M142: 0 | O142: =W142 -> 0 | R142: =IF(G142=0,0,IF(N142="",1,0)) -> 0 | S142: 0 | T142: =ROUND(IF(N142="OTSKP",0,G142*($AJ$1-1)),0) -> 0 | U142: =ROUND(IF(N142="OTSKP",G142*($AJ$4-1),0),0) -> 0 | V142: 0 | W142: 0 | X142: 0 | Y142: 0 | Z142: 0 | AA142: 0
K143: 0 | M143: 0 | O143: 0 | R143: 0 | S143: 0 | T143: 0 | U143: 0 | V143: 0 | W143: 0 | X143: 0 | Y143: 0 | Z143: 0 | AA143: 0
K144: 0 | M144: 0 | O144: 0 | R144: 0 | S144: 0 | T144: 0 | U144: 0 | V144: 0 | W144: 0 | X144: 0 | Y144: 0 | Z144: 0 | AA144: 0
K145: 0 | M145: 0 | O145: 0 | R145: 0 | S145: 0 | T145: 0 | U145: 0 | V145: 0 | W145: 0 | X145: 0 | Y145: 0 | Z145: 0 | AA145: 0
K146: 0 | M146: 0 | O146: 0 | R146: 0 | S146: 0 | T146: 0 | U146: 0 | V146: 0 | W146: 0 | X146: 0 | Y146: 0 | Z146: 0 | AA146: 0
K147: 0 | M147: 0 | O147: 0 | R147: 0 | S147: 0 | T147: 0 | U147: 0 | V147: 0 | W147: 0 | X147: 0 | Y147: 0 | Z147: 0 | AA147: 0
K148: 0 | M148: 0 | O148: 0 | R148: 0 | S148: 0 | T148: 0 | U148: 0 | V148: 0 | W148: 0 | X148: 0 | Y148: 0 | Z148: 0 | AA148: 0
K149: 0 | M149: 0 | O149: 0 | R149: 0 | S149: 0 | T149: 0 | U149: 0 | V149: 0 | W149: 0 | X149: 0 | Y149: 0 | Z149: 0 | AA149: 0
K150: 0 | M150: 0 | O150: 0 | R150: 0 | S150: 0 | T150: 0 | U150: 0 | V150: 0 | W150: 0 | X150: 0 | Y150: 0 | Z150: 0 | AA150: 0
K151: 0 | M151: 0 | O151: 0 | R151: 0 | S151: 0 | T151: 0 | U151: 0 | V151: 0 | W151: 0 | X151: 0 | Y151: 0 | Z151: 0 | AA151: 0
K152: 0 | M152: 0 | O152: 0 | R152: 0 | S152: 0 | T152: 0 | U152: 0 | V152: 0 | W152: 0 | X152: 0 | Y152: 0 | Z152: 0 | AA152: 0
K153: 0 | M153: 0 | O153: 0 | R153: 0 | S153: 0 | T153: 0 | U153: 0 | V153: 0 | W153: 0 | X153: 0 | Y153: 0 | Z153: 0 | AA153: 0
K154: 0 | M154: 0 | O154: 0 | R154: 0 | S154: 0 | T154: 0 | U154: 0 | V154: 0 | W154: 0 | X154: 0 | Y154: 0 | Z154: 0 | AA154: 0
K155: 0 | M155: 0 | O155: 0 | R155: 0 | S155: 0 | T155: 0 | U155: 0 | V155: 0 | W155: 0 | X155: 0 | Y155: 0 | Z155: 0 | AA155: 0
K156: 0 | M156: 0 | O156: 0 | R156: 0 | S156: 0 | T156: 0 | U156: 0 | V156: 0 | W156: 0 | X156: 0 | Y156: 0 | Z156: 0 | AA156: 0
K157: 0 | M157: 0 | O157: 0 | R157: 0 | S157: 0 | T157: 0 | U157: 0 | V157: 0 | W157: 0 | X157: 0 | Y157: 0 | Z157: 0 | AA157: 0
K158: 0 | M158: 0 | O158: 0 | R158: 0 | S158: 0 | T158: 0 | U158: 0 | V158: 0 | W158: 0 | X158: 0 | Y158: 0 | Z158: 0 | AA158: 0
K159: 0 | M159: 0 | O159: 0 | R159: 0 | S159: 0 | T159: 0 | U159: 0 | V159: 0 | W159: 0 | X159: 0 | Y159: 0 | Z159: 0 | AA159: 0
K160: 0 | M160: 0 | O160: 0 | R160: 0 | S160: 0 | T160: 0 | U160: 0 | V160: 0 | W160: 0 | X160: 0 | Y160: 0 | Z160: 0 | AA160: 0
K161: 0 | M161: 0 | O161: 0 | R161: 0 | S161: 0 | T161: 0 | U161: 0 | V161: 0 | W161: 0 | X161: 0 | Y161: 0 | Z161: 0 | AA161: 0
K162: 0 | M162: 0 | O162: 0 | R162: 0 | S162: 0 | T162: 0 | U162: 0 | V162: 0 | W162: 0 | X162: 0 | Y162: 0 | Z162: 0 | AA162: 0
K163: 0 | M163: 0 | O163: 0 | R163: 0 | S163: 0 | T163: 0 | U163: 0 | V163: 0 | W163: 0 | X163: 0 | Y163: 0 | Z163: 0 | AA163: 0
K164: 0 | M164: 0 | O164: 0 | R164: 0 | S164: 0 | T164: 0 | U164: 0 | V164: 0 | W164: 0 | X164: 0 | Y164: 0 | Z164: 0 | AA164: 0
K165: 0 | M165: 0 | O165: 0 | R165: 0 | S165: 0 | T165: 0 | U165: 0 | V165: 0 | W165: 0 | X165: 0 | Y165: 0 | Z165: 0 | AA165: 0
K166: 0 | M166: 0 | O166: 0 | R166: 0 | S166: 0 | T166: 0 | U166: 0 | V166: 0 | W166: 0 | X166: 0 | Y166: 0 | Z166: 0 | AA166: 0
K167: 0 | M167: 0 | O167: 0 | R167: 0 | S167: 0 | T167: 0 | U167: 0 | V167: 0 | W167: 0 | X167: 0 | Y167: 0 | Z167: 0 | AA167: 0
K168: 0 | M168: 0 | O168: 0 | R168: 0 | S168: 0 | T168: 0 | U168: 0 | V168: 0 | W168: 0 | X168: 0 | Y168: 0 | Z168: 0 | AA168: 0
K169: 0 | M169: 0 | O169: 0 | R169: 0 | S169: 0 | T169: 0 | U169: 0 | V169: 0 | W169: 0 | X169: 0 | Y169: 0 | Z169: 0 | AA169: 0
K170: 0 | M170: 0 | O170: 0 | R170: 0 | S170: 0 | T170: 0 | U170: 0 | V170: 0 | W170: 0 | X170: 0 | Y170: 0 | Z170: 0 | AA170: 0
K171: 0 | M171: 0 | O171: 0 | R171: 0 | S171: 0 | T171: 0 | U171: 0 | V171: 0 | W171: 0 | X171: 0 | Y171: 0 | Z171: 0 | AA171: 0
K172: 0 | M172: 0 | O172: 0 | R172: 0 | S172: 0 | T172: 0 | U172: 0 | V172: 0 | W172: 0 | X172: 0 | Y172: 0 | Z172: 0 | AA172: 0
K173: 0 | M173: 0 | O173: 0 | R173: 0 | S173: 0 | T173: 0 | U173: 0 | V173: 0 | W173: 0 | X173: 0 | Y173: 0 | Z173: 0 | AA173: 0
K174: 0 | M174: 0 | O174: 0 | R174: 0 | S174: 0 | T174: 0 | U174: 0 | V174: 0 | W174: 0 | X174: 0 | Y174: 0 | Z174: 0 | AA174: 0
K175: 0 | M175: 0 | O175: 0 | R175: 0 | S175: 0 | T175: 0 | U175: 0 | V175: 0 | W175: 0 | X175: 0 | Y175: 0 | Z175: 0 | AA175: 0
K176: 0 | M176: 0 | O176: 0 | R176: 0 | S176: 0 | T176: 0 | U176: 0 | V176: 0 | W176: 0 | X176: 0 | Y176: 0 | Z176: 0 | AA176: 0
K177: 0 | M177: 0 | O177: 0 | R177: 0 | S177: 0 | T177: 0 | U177: 0 | V177: 0 | W177: 0 | X177: 0 | Y177: 0 | Z177: 0 | AA177: 0
